{"text_format":"1","workbook":"xlsx","n_sheets":4,"sheets":["Data","Firm_wise","Comparitive","Habs"],"not_rendered":{"charts":0,"images":2,"macros":1,"external_links":1,"defined_names":13,"comments":0,"pivot_tables":0},"unopened":[],"bounds":{"document_bytes":16777216,"sheet_cells":100000,"rows_first":2000,"rows_last":500,"rows_between":2000,"halvings":0,"cell_chars":16384,"cell_head_chars":4096},"cells_cut":0,"cells_raw":0,"read":"whole","date_system":"1900"}

{"sheet":"Data","index":0,"n_rows":30,"n_cols":40,"rows_kept":30,"cut":false,"hidden":false,"merged":[[0,14,0,15],[0,10,0,11],[1,12,1,13]]}
["Work done estimate  Part - A",null,null,null,null,null,null,null,null,null,15292,null,null,null,"Version-8",null,"1 st make csv file"]
["Dist",null,{"$f":"VLOOKUP(M2,Habs!$A$2:$H$2774,3,0)","v":"Medak"},"Mandal",{"$f":"VLOOKUP(M2,Habs!$A$2:$H$2774,5,0)","v":"Alladurg"},{"$f":"\"GP :  \"& VLOOKUP(M2,Habs!$A$2:$H$2774,6,0)","v":"GP :  Bangla Thanda"},null,null,"Habitaion",{"$f":"VLOOKUP(M2,Habs!$A$2:$H$2774,8,0)","v":"Bangla Tanda"},null,"Hab_Slno",18866,null,null,null,"2 nd Upload the life by selecting ",null,null,null,null,null,null,null,null,null,null,null,null,null,null,null,null,null,null,null,null,"distinct"]
[null,null,null,null,"Sub-Division",{"$f":"VLOOKUP(M2,Habs!$A$2:$H$2774,4,0)","v":"Medak"},"dd-mm-YYYY",null,null,null,"Please ref to the list in next tab and fill in slno ↑↑↑      ",null,null,null,null,null,"http://rwsmcs.in/updPartA.php",null,null,null,null,null,null,null,null,null,null,"Pipe","Rmt","Valve","DI Duck foot Bend","EF_Saddles","HDPE PE100 6kg",15,"PLB_DUCT","MDPE 20mm ","Each",{"$f":"IFERROR(LOOKUP(2,1/(COUNTIF($AL$2:AL2,$B$2:$B$48)=0),$B$2:$B$48),\"\")","v":0}]
["Sno","workcol","MB_No","Mb_page","Firm name","Supply/Purchase order","Order Dt","Invoice No","Invoice Dt","Item category","Item","size","Qty","units","Invoice rate","Amt Rs","VAT","GST @ 18%",null,null,null,null,null,null,null,null,null,"VerticalsDI","Each",null,"DI Bell Mouth","MC_Saddles","PVC 6kg",40,"PushFit Joint",null,"Rmt",{"$f":"IFERROR(LOOKUP(2,1/(COUNTIF($AL$2:AL3,$B$2:$B$48)=0),$B$2:$B$48),\"\")","v":"workcol"},"Unique","UniqueFirm"]
[null,null,null,null,null,null,null,null,null,null,null,null,null,null,null,null,null,null,null,null,null,null,null,null,null,null,null,"VerticalsCI","Each",null,"DI Semi Circular bend","FCV",null,63,"Endcap",null,null,{"$f":"IFERROR(LOOKUP(2,1/(COUNTIF($AL$2:AL4,$B$2:$B$48)=0),$B$2:$B$48),\"\")","v":""},{"$f":"IFERROR(INDEX($B$5:$B$43,MATCH(0,COUNTIF($AM$4:AM4,$B$5:$B$43),0)),\"\")","v":0},{"$f":"IFERROR(INDEX($E$5:$E$43,MATCH(0,COUNTIF($AN$4:AN4,$E$5:$E$43),0)),\"\")","v":0}]
[null,null,null,null,null,null,null,null,null,null,null,null,null,null,null,null,null,null,null,null,null,null,null,null,null,null,null,"Valves","Rmt",null,"DI D/F 0.6 mts Pipes","FTA",null,75,null,null,null,{"$f":"IFERROR(LOOKUP(2,1/(COUNTIF($AL$2:AL5,$B$2:$B$48)=0),$B$2:$B$48),\"\")","v":""},{"$f":"IFERROR(INDEX($B$5:$B$43,MATCH(0,COUNTIF($AM$4:AM5,$B$5:$B$43),0)),\"\")","v":""},{"$f":"IFERROR(INDEX($E$5:$E$43,MATCH(0,COUNTIF($AN$4:AN5,$E$5:$E$43),0)),\"\")","v":""}]
[null,null,null,null,null,null,null,null,null,null,null,null,null,null,null,null,null,null,null,null,null,null,null,null,null,null,null,"PLB_DUCT","Rmt",null,"DI D/F 1.0 mts Pipes","FTO",null,80,null,null,null,{"$f":"IFERROR(LOOKUP(2,1/(COUNTIF($AL$2:AL6,$B$2:$B$48)=0),$B$2:$B$48),\"\")","v":""},{"$f":"IFERROR(INDEX($B$5:$B$43,MATCH(0,COUNTIF($AM$4:AM6,$B$5:$B$43),0)),\"\")","v":""},{"$f":"IFERROR(INDEX($E$5:$E$43,MATCH(0,COUNTIF($AN$4:AN6,$E$5:$E$43),0)),\"\")","v":""}]
[null,null,null,null,null,null,null,null,null,null,null,null,null,null,null,null,null,null,null,null,null,null,null,null,null,null,null,"HH","Each",null,"DI D/F 2.0 mts Pipes","GI pipe",null,90,null,null,null,{"$f":"IFERROR(LOOKUP(2,1/(COUNTIF($AL$2:AL7,$B$2:$B$48)=0),$B$2:$B$48),\"\")","v":""},{"$f":"IFERROR(INDEX($B$5:$B$43,MATCH(0,COUNTIF($AM$4:AM7,$B$5:$B$43),0)),\"\")","v":""},{"$f":"IFERROR(INDEX($E$5:$E$43,MATCH(0,COUNTIF($AN$4:AN7,$E$5:$E$43),0)),\"\")","v":""}]
[null,null,null,null,null,null,null,null,null,null,null,null,null,null,null,null,null,null,null,null,null,null,null,null,null,null,null,null,null,null,"CI Duck foot Bend","Tap",null,100,null,null,null,{"$f":"IFERROR(LOOKUP(2,1/(COUNTIF($AL$2:AL8,$B$2:$B$48)=0),$B$2:$B$48),\"\")","v":""},{"$f":"IFERROR(INDEX($B$5:$B$43,MATCH(0,COUNTIF($AM$4:AM8,$B$5:$B$43),0)),\"\")","v":""},{"$f":"IFERROR(INDEX($E$5:$E$43,MATCH(0,COUNTIF($AN$4:AN8,$E$5:$E$43),0)),\"\")","v":""}]
[null,null,null,null,null,null,null,null,null,null,null,null,null,null,null,null,null,null,null,null,null,null,null,null,null,null,null,null,null,null,"CI Bell Mouth","MDPE",null,110,null,null,null,{"$f":"IFERROR(LOOKUP(2,1/(COUNTIF($AL$2:AL9,$B$2:$B$48)=0),$B$2:$B$48),\"\")","v":""},{"$f":"IFERROR(INDEX($B$5:$B$43,MATCH(0,COUNTIF($AM$4:AM9,$B$5:$B$43),0)),\"\")","v":""},{"$f":"IFERROR(INDEX($E$5:$E$43,MATCH(0,COUNTIF($AN$4:AN9,$E$5:$E$43),0)),\"\")","v":""}]
[null,null,null,null,null,null,null,null,null,null,null,null,null,null,null,null,null,null,null,null,null,null,null,null,null,null,null,null,null,null,"CI Semi Circular bend",null,null,125,null,null,null,{"$f":"IFERROR(LOOKUP(2,1/(COUNTIF($AL$2:AL10,$B$2:$B$48)=0),$B$2:$B$48),\"\")","v":""},{"$f":"IFERROR(INDEX($B$5:$B$43,MATCH(0,COUNTIF($AM$4:AM10,$B$5:$B$43),0)),\"\")","v":""},{"$f":"IFERROR(INDEX($E$5:$E$43,MATCH(0,COUNTIF($AN$4:AN10,$E$5:$E$43),0)),\"\")","v":""}]
[null,null,null,null,null,null,null,null,null,null,null,null,null,null,null,null,null,null,null,null,null,null,null,null,null,null,null,null,null,null,"CI D/F 0.6 mts Pipes",null,null,125,null,null,null,{"$f":"IFERROR(LOOKUP(2,1/(COUNTIF($AL$2:AL11,$B$2:$B$48)=0),$B$2:$B$48),\"\")","v":""},{"$f":"IFERROR(INDEX($B$5:$B$43,MATCH(0,COUNTIF($AM$4:AM11,$B$5:$B$43),0)),\"\")","v":""},{"$f":"IFERROR(INDEX($E$5:$E$43,MATCH(0,COUNTIF($AN$4:AN11,$E$5:$E$43),0)),\"\")","v":""}]
[null,null,null,null,null,null,null,null,null,null,null,null,null,null,null,null,null,null,null,null,null,null,null,null,null,null,null,null,null,null,"CI D/F 1.0 mts Pipes",null,null,140,null,null,null,{"$f":"IFERROR(LOOKUP(2,1/(COUNTIF($AL$2:AL12,$B$2:$B$48)=0),$B$2:$B$48),\"\")","v":""},{"$f":"IFERROR(INDEX($B$5:$B$43,MATCH(0,COUNTIF($AM$4:AM12,$B$5:$B$43),0)),\"\")","v":""},{"$f":"IFERROR(INDEX($E$5:$E$43,MATCH(0,COUNTIF($AN$4:AN12,$E$5:$E$43),0)),\"\")","v":""}]
[null,null,null,null,null,null,null,null,null,null,null,null,null,null,null,null,null,null,null,null,null,null,null,null,null,null,null,null,null,null,"CI D/F 2.0 mts Pipes",null,null,150,null,null,null,{"$f":"IFERROR(LOOKUP(2,1/(COUNTIF($AL$2:AL13,$B$2:$B$48)=0),$B$2:$B$48),\"\")","v":""},{"$f":"IFERROR(INDEX($B$5:$B$43,MATCH(0,COUNTIF($AM$4:AM13,$B$5:$B$43),0)),\"\")","v":""},{"$f":"IFERROR(INDEX($E$5:$E$43,MATCH(0,COUNTIF($AN$4:AN13,$E$5:$E$43),0)),\"\")","v":""}]
[null,null,null,null,null,null,null,null,null,null,null,null,null,null,null,null,null,null,null,null,null,null,null,null,null,null,null,null,null,null,null,null,null,160,null,null,null,{"$f":"IFERROR(LOOKUP(2,1/(COUNTIF($AL$2:AL14,$B$2:$B$48)=0),$B$2:$B$48),\"\")","v":""},{"$f":"IFERROR(INDEX($B$5:$B$43,MATCH(0,COUNTIF($AM$4:AM14,$B$5:$B$43),0)),\"\")","v":""},{"$f":"IFERROR(INDEX($E$5:$E$43,MATCH(0,COUNTIF($AN$4:AN14,$E$5:$E$43),0)),\"\")","v":""}]
[null,null,null,null,null,null,null,null,null,null,null,null,null,null,null,null,null,null,null,null,null,null,null,null,null,null,null,null,null,null,null,null,null,180,null,null,null,{"$f":"IFERROR(LOOKUP(2,1/(COUNTIF($AL$2:AL15,$B$2:$B$48)=0),$B$2:$B$48),\"\")","v":""},{"$f":"IFERROR(INDEX($B$5:$B$43,MATCH(0,COUNTIF($AM$4:AM15,$B$5:$B$43),0)),\"\")","v":""},{"$f":"IFERROR(INDEX($E$5:$E$43,MATCH(0,COUNTIF($AN$4:AN15,$E$5:$E$43),0)),\"\")","v":""}]
[null,null,null,null,null,null,null,null,null,null,null,null,null,null,null,null,null,null,null,null,null,null,null,null,null,null,null,null,null,null,null,null,null,200,null,null,null,{"$f":"IFERROR(LOOKUP(2,1/(COUNTIF($AL$2:AL16,$B$2:$B$48)=0),$B$2:$B$48),\"\")","v":""},{"$f":"IFERROR(INDEX($B$5:$B$43,MATCH(0,COUNTIF($AM$4:AM16,$B$5:$B$43),0)),\"\")","v":""},{"$f":"IFERROR(INDEX($E$5:$E$43,MATCH(0,COUNTIF($AN$4:AN16,$E$5:$E$43),0)),\"\")","v":""}]
[null,null,null,null,null,null,null,null,null,null,null,null,null,null,null,null,null,null,null,null,null,null,null,null,null,null,null,null,null,null,null,null,null,225,null,null,null,{"$f":"IFERROR(LOOKUP(2,1/(COUNTIF($AL$2:AL17,$B$2:$B$48)=0),$B$2:$B$48),\"\")","v":""},{"$f":"IFERROR(INDEX($B$5:$B$43,MATCH(0,COUNTIF($AM$4:AM17,$B$5:$B$43),0)),\"\")","v":""},{"$f":"IFERROR(INDEX($E$5:$E$43,MATCH(0,COUNTIF($AN$4:AN17,$E$5:$E$43),0)),\"\")","v":""}]
[null,null,null,null,null,null,null,null,null,null,null,null,null,null,null,null,null,null,null,null,null,null,null,null,null,null,null,null,null,null,null,null,null,250,null,null,null,{"$f":"IFERROR(LOOKUP(2,1/(COUNTIF($AL$2:AL18,$B$2:$B$48)=0),$B$2:$B$48),\"\")","v":""},{"$f":"IFERROR(INDEX($B$5:$B$43,MATCH(0,COUNTIF($AM$4:AM18,$B$5:$B$43),0)),\"\")","v":""},{"$f":"IFERROR(INDEX($E$5:$E$43,MATCH(0,COUNTIF($AN$4:AN18,$E$5:$E$43),0)),\"\")","v":""}]
[null,null,null,null,null,null,null,null,null,null,null,null,null,null,null,null,null,null,null,null,null,null,null,null,null,null,null,null,null,null,null,null,null,280,null,null,null,{"$f":"IFERROR(LOOKUP(2,1/(COUNTIF($AL$2:AL19,$B$2:$B$48)=0),$B$2:$B$48),\"\")","v":""},{"$f":"IFERROR(INDEX($B$5:$B$43,MATCH(0,COUNTIF($AM$4:AM19,$B$5:$B$43),0)),\"\")","v":""},{"$f":"IFERROR(INDEX($E$5:$E$43,MATCH(0,COUNTIF($AN$4:AN19,$E$5:$E$43),0)),\"\")","v":""}]
[null,null,null,null,null,null,null,null,null,null,null,null,null,null,null,null,null,null,null,null,null,null,null,null,null,null,null,null,null,null,null,null,null,315,null,null,null,{"$f":"IFERROR(LOOKUP(2,1/(COUNTIF($AL$2:AL20,$B$2:$B$48)=0),$B$2:$B$48),\"\")","v":""},{"$f":"IFERROR(INDEX($B$5:$B$43,MATCH(0,COUNTIF($AM$4:AM20,$B$5:$B$43),0)),\"\")","v":""},{"$f":"IFERROR(INDEX($E$5:$E$43,MATCH(0,COUNTIF($AN$4:AN20,$E$5:$E$43),0)),\"\")","v":""}]
[null,null,null,null,null,null,null,null,null,null,null,null,null,null,null,null,null,null,null,null,null,null,null,null,null,null,null,null,null,null,null,null,null,null,null,null,null,{"$f":"IFERROR(LOOKUP(2,1/(COUNTIF($AL$2:AL21,$B$2:$B$48)=0),$B$2:$B$48),\"\")","v":""},{"$f":"IFERROR(INDEX($B$5:$B$43,MATCH(0,COUNTIF($AM$4:AM21,$B$5:$B$43),0)),\"\")","v":""},{"$f":"IFERROR(INDEX($E$5:$E$43,MATCH(0,COUNTIF($AN$4:AN21,$E$5:$E$43),0)),\"\")","v":""}]
[null,null,null,null,null,null,null,null,null,null,null,null,null,null,null,null,null,null,null,null,null,null,null,null,null,null,null,null,null,null,null,null,null,null,null,null,null,{"$f":"IFERROR(LOOKUP(2,1/(COUNTIF($AL$2:AL22,$B$2:$B$48)=0),$B$2:$B$48),\"\")","v":""},{"$f":"IFERROR(INDEX($B$5:$B$43,MATCH(0,COUNTIF($AM$4:AM22,$B$5:$B$43),0)),\"\")","v":""},{"$f":"IFERROR(INDEX($E$5:$E$43,MATCH(0,COUNTIF($AN$4:AN22,$E$5:$E$43),0)),\"\")","v":""}]
[null,null,null,null,null,null,null,null,null,null,null,null,null,null,null,null,null,null,null,null,null,null,null,null,null,null,null,null,null,null,null,null,null,null,null,null,null,{"$f":"IFERROR(LOOKUP(2,1/(COUNTIF($AL$2:AL23,$B$2:$B$48)=0),$B$2:$B$48),\"\")","v":""},{"$f":"IFERROR(INDEX($B$5:$B$43,MATCH(0,COUNTIF($AM$4:AM23,$B$5:$B$43),0)),\"\")","v":""},{"$f":"IFERROR(INDEX($E$5:$E$43,MATCH(0,COUNTIF($AN$4:AN23,$E$5:$E$43),0)),\"\")","v":""}]
[null,null,null,null,null,null,null,null,null,null,null,null,null,null,null,null,null,null,null,null,null,null,null,null,null,null,null,null,null,null,null,null,null,null,null,null,null,{"$f":"IFERROR(LOOKUP(2,1/(COUNTIF($AL$2:AL24,$B$2:$B$48)=0),$B$2:$B$48),\"\")","v":""},{"$f":"IFERROR(INDEX($B$5:$B$43,MATCH(0,COUNTIF($AM$4:AM24,$B$5:$B$43),0)),\"\")","v":""},{"$f":"IFERROR(INDEX($E$5:$E$43,MATCH(0,COUNTIF($AN$4:AN24,$E$5:$E$43),0)),\"\")","v":""}]
[null,null,null,null,null,null,null,null,null,null,null,null,null,null,null,null,null,null,null,null,null,null,null,null,null,null,null,null,null,null,null,null,null,null,null,null,null,{"$f":"IFERROR(LOOKUP(2,1/(COUNTIF($AL$2:AL25,$B$2:$B$48)=0),$B$2:$B$48),\"\")","v":""},{"$f":"IFERROR(INDEX($B$5:$B$43,MATCH(0,COUNTIF($AM$4:AM25,$B$5:$B$43),0)),\"\")","v":""},{"$f":"IFERROR(INDEX($E$5:$E$43,MATCH(0,COUNTIF($AN$4:AN25,$E$5:$E$43),0)),\"\")","v":""}]
[null,null,null,null,null,null,null,null,null,null,null,null,null,null,null,null,null,null,null,null,null,null,null,null,null,null,null,null,null,null,null,null,null,null,null,null,null,{"$f":"IFERROR(LOOKUP(2,1/(COUNTIF($AL$2:AL26,$B$2:$B$48)=0),$B$2:$B$48),\"\")","v":""},{"$f":"IFERROR(INDEX($B$5:$B$43,MATCH(0,COUNTIF($AM$4:AM26,$B$5:$B$43),0)),\"\")","v":""},{"$f":"IFERROR(INDEX($E$5:$E$43,MATCH(0,COUNTIF($AN$4:AN26,$E$5:$E$43),0)),\"\")","v":""}]
[null,null,null,null,null,null,null,null,null,null,null,null,null,null,null,null,null,null,null,null,null,null,null,null,null,null,null,null,null,null,null,null,null,null,null,null,null,{"$f":"IFERROR(LOOKUP(2,1/(COUNTIF($AL$2:AL27,$B$2:$B$48)=0),$B$2:$B$48),\"\")","v":""},{"$f":"IFERROR(INDEX($B$5:$B$43,MATCH(0,COUNTIF($AM$4:AM27,$B$5:$B$43),0)),\"\")","v":""},{"$f":"IFERROR(INDEX($E$5:$E$43,MATCH(0,COUNTIF($AN$4:AN27,$E$5:$E$43),0)),\"\")","v":""}]
[null,null,null,null,null,null,null,null,null,null,null,null,null,null,null,null,null,null,null,null,null,null,null,null,null,null,null,null,null,null,null,null,null,null,null,null,null,{"$f":"IFERROR(LOOKUP(2,1/(COUNTIF($AL$2:AL28,$B$2:$B$48)=0),$B$2:$B$48),\"\")","v":""},{"$f":"IFERROR(INDEX($B$5:$B$43,MATCH(0,COUNTIF($AM$4:AM28,$B$5:$B$43),0)),\"\")","v":""},{"$f":"IFERROR(INDEX($E$5:$E$43,MATCH(0,COUNTIF($AN$4:AN28,$E$5:$E$43),0)),\"\")","v":""}]
[null,null,null,null,null,null,null,null,null,null,null,null,null,null,null,null,null,null,null,null,null,null,null,null,null,null,null,null,null,null,null,null,null,null,null,null,null,{"$f":"IFERROR(LOOKUP(2,1/(COUNTIF($AL$2:AL29,$B$2:$B$48)=0),$B$2:$B$48),\"\")","v":""},{"$f":"IFERROR(INDEX($B$5:$B$43,MATCH(0,COUNTIF($AM$4:AM29,$B$5:$B$43),0)),\"\")","v":""},{"$f":"IFERROR(INDEX($E$5:$E$43,MATCH(0,COUNTIF($AN$4:AN29,$E$5:$E$43),0)),\"\")","v":""}]

{"sheet":"Firm_wise","index":1,"n_rows":12,"n_cols":16,"rows_kept":12,"cut":false,"hidden":false,"merged":[]}
[]
[null,null,"Firme wise supply"]
[]
[null,null,"     Firms->\n\nItems","total Item wise",{"$f":"Data!AN5","v":0},{"$f":"Data!AN6","v":""},{"$f":"Data!AN7","v":""},{"$f":"Data!AN8","v":""},{"$f":"Data!AN9","v":""},{"$f":"Data!AN10","v":""},{"$f":"Data!AN11","v":""},{"$f":"Data!AN12","v":""},{"$f":"Data!AN13","v":""},{"$f":"Data!AN14","v":""},{"$f":"Data!AN15","v":""},{"$f":"Data!AN16","v":""}]
[null,"Pipe","Distribution net work",{"$f":"SUM(E5:Q5)","v":0},{"$f":"SUMIFS(Data!$P$5:$P$48,Data!$J$5:$J$48,$B5,Data!$E$5:$E$48,E$4)","v":0},{"$f":"SUMIFS(Data!$P$5:$P$48,Data!$J$5:$J$48,$B5,Data!$E$5:$E$48,F$4)","v":0},{"$f":"SUMIFS(Data!$P$5:$P$48,Data!$J$5:$J$48,$B5,Data!$E$5:$E$48,G$4)","v":0},{"$f":"SUMIFS(Data!$P$5:$P$48,Data!$J$5:$J$48,$B5,Data!$E$5:$E$48,H$4)","v":0},{"$f":"SUMIFS(Data!$P$5:$P$48,Data!$J$5:$J$48,$B5,Data!$E$5:$E$48,I$4)","v":0},{"$f":"SUMIFS(Data!$P$5:$P$48,Data!$J$5:$J$48,$B5,Data!$E$5:$E$48,J$4)","v":0},{"$f":"SUMIFS(Data!$P$5:$P$48,Data!$J$5:$J$48,$B5,Data!$E$5:$E$48,K$4)","v":0},{"$f":"SUMIFS(Data!$P$5:$P$48,Data!$J$5:$J$48,$B5,Data!$E$5:$E$48,L$4)","v":0},{"$f":"SUMIFS(Data!$P$5:$P$48,Data!$J$5:$J$48,$B5,Data!$E$5:$E$48,M$4)","v":0},{"$f":"SUMIFS(Data!$P$5:$P$48,Data!$J$5:$J$48,$B5,Data!$E$5:$E$48,N$4)","v":0}]
[null,"PLB_DUCT","OFC Duct",0,{"$f":"SUMIFS(Data!$P$5:$P$48,Data!$J$5:$J$48,$B6,Data!$E$5:$E$48,E$4)","v":0},{"$f":"SUMIFS(Data!$P$5:$P$48,Data!$J$5:$J$48,$B6,Data!$E$5:$E$48,F$4)","v":0},{"$f":"SUMIFS(Data!$P$5:$P$48,Data!$J$5:$J$48,$B6,Data!$E$5:$E$48,G$4)","v":0},{"$f":"SUMIFS(Data!$P$5:$P$48,Data!$J$5:$J$48,$B6,Data!$E$5:$E$48,H$4)","v":0},{"$f":"SUMIFS(Data!$P$5:$P$48,Data!$J$5:$J$48,$B6,Data!$E$5:$E$48,I$4)","v":0},{"$f":"SUMIFS(Data!$P$5:$P$48,Data!$J$5:$J$48,$B6,Data!$E$5:$E$48,J$4)","v":0},{"$f":"SUMIFS(Data!$P$5:$P$48,Data!$J$5:$J$48,$B6,Data!$E$5:$E$48,K$4)","v":0},{"$f":"SUMIFS(Data!$P$5:$P$48,Data!$J$5:$J$48,$B6,Data!$E$5:$E$48,L$4)","v":0},{"$f":"SUMIFS(Data!$P$5:$P$48,Data!$J$5:$J$48,$B6,Data!$E$5:$E$48,M$4)","v":0},{"$f":"SUMIFS(Data!$P$5:$P$48,Data!$J$5:$J$48,$B6,Data!$E$5:$E$48,N$4)","v":0}]
[null,"HH","HH Connections",0,{"$f":"SUMIFS(Data!$P$5:$P$48,Data!$J$5:$J$48,$B7,Data!$E$5:$E$48,E$4)","v":0},{"$f":"SUMIFS(Data!$P$5:$P$48,Data!$J$5:$J$48,$B7,Data!$E$5:$E$48,F$4)","v":0},{"$f":"SUMIFS(Data!$P$5:$P$48,Data!$J$5:$J$48,$B7,Data!$E$5:$E$48,G$4)","v":0},{"$f":"SUMIFS(Data!$P$5:$P$48,Data!$J$5:$J$48,$B7,Data!$E$5:$E$48,H$4)","v":0},{"$f":"SUMIFS(Data!$P$5:$P$48,Data!$J$5:$J$48,$B7,Data!$E$5:$E$48,I$4)","v":0},{"$f":"SUMIFS(Data!$P$5:$P$48,Data!$J$5:$J$48,$B7,Data!$E$5:$E$48,J$4)","v":0},{"$f":"SUMIFS(Data!$P$5:$P$48,Data!$J$5:$J$48,$B7,Data!$E$5:$E$48,K$4)","v":0},{"$f":"SUMIFS(Data!$P$5:$P$48,Data!$J$5:$J$48,$B7,Data!$E$5:$E$48,L$4)","v":0},{"$f":"SUMIFS(Data!$P$5:$P$48,Data!$J$5:$J$48,$B7,Data!$E$5:$E$48,M$4)","v":0},{"$f":"SUMIFS(Data!$P$5:$P$48,Data!$J$5:$J$48,$B7,Data!$E$5:$E$48,N$4)","v":0}]
[null,"Valves","Valves",0,{"$f":"SUMIFS(Data!$P$5:$P$48,Data!$J$5:$J$48,$B8,Data!$E$5:$E$48,E$4)","v":0},{"$f":"SUMIFS(Data!$P$5:$P$48,Data!$J$5:$J$48,$B8,Data!$E$5:$E$48,F$4)","v":0},{"$f":"SUMIFS(Data!$P$5:$P$48,Data!$J$5:$J$48,$B8,Data!$E$5:$E$48,G$4)","v":0},{"$f":"SUMIFS(Data!$P$5:$P$48,Data!$J$5:$J$48,$B8,Data!$E$5:$E$48,H$4)","v":0},{"$f":"SUMIFS(Data!$P$5:$P$48,Data!$J$5:$J$48,$B8,Data!$E$5:$E$48,I$4)","v":0},{"$f":"SUMIFS(Data!$P$5:$P$48,Data!$J$5:$J$48,$B8,Data!$E$5:$E$48,J$4)","v":0},{"$f":"SUMIFS(Data!$P$5:$P$48,Data!$J$5:$J$48,$B8,Data!$E$5:$E$48,K$4)","v":0},{"$f":"SUMIFS(Data!$P$5:$P$48,Data!$J$5:$J$48,$B8,Data!$E$5:$E$48,L$4)","v":0},{"$f":"SUMIFS(Data!$P$5:$P$48,Data!$J$5:$J$48,$B8,Data!$E$5:$E$48,M$4)","v":0},{"$f":"SUMIFS(Data!$P$5:$P$48,Data!$J$5:$J$48,$B8,Data!$E$5:$E$48,N$4)","v":0}]
[null,"VerticalsCI","VerticalsCI",0,{"$f":"SUMIFS(Data!$P$5:$P$48,Data!$J$5:$J$48,$B9,Data!$E$5:$E$48,E$4)","v":0},{"$f":"SUMIFS(Data!$P$5:$P$48,Data!$J$5:$J$48,$B9,Data!$E$5:$E$48,F$4)","v":0},{"$f":"SUMIFS(Data!$P$5:$P$48,Data!$J$5:$J$48,$B9,Data!$E$5:$E$48,G$4)","v":0},{"$f":"SUMIFS(Data!$P$5:$P$48,Data!$J$5:$J$48,$B9,Data!$E$5:$E$48,H$4)","v":0},{"$f":"SUMIFS(Data!$P$5:$P$48,Data!$J$5:$J$48,$B9,Data!$E$5:$E$48,I$4)","v":0},{"$f":"SUMIFS(Data!$P$5:$P$48,Data!$J$5:$J$48,$B9,Data!$E$5:$E$48,J$4)","v":0},{"$f":"SUMIFS(Data!$P$5:$P$48,Data!$J$5:$J$48,$B9,Data!$E$5:$E$48,K$4)","v":0},{"$f":"SUMIFS(Data!$P$5:$P$48,Data!$J$5:$J$48,$B9,Data!$E$5:$E$48,L$4)","v":0},{"$f":"SUMIFS(Data!$P$5:$P$48,Data!$J$5:$J$48,$B9,Data!$E$5:$E$48,M$4)","v":0},{"$f":"SUMIFS(Data!$P$5:$P$48,Data!$J$5:$J$48,$B9,Data!$E$5:$E$48,N$4)","v":0}]
[null,"VerticalsDI","VerticalsDI",0,{"$f":"SUMIFS(Data!$P$5:$P$48,Data!$J$5:$J$48,$B10,Data!$E$5:$E$48,E$4)","v":0},{"$f":"SUMIFS(Data!$P$5:$P$48,Data!$J$5:$J$48,$B10,Data!$E$5:$E$48,F$4)","v":0},{"$f":"SUMIFS(Data!$P$5:$P$48,Data!$J$5:$J$48,$B10,Data!$E$5:$E$48,G$4)","v":0},{"$f":"SUMIFS(Data!$P$5:$P$48,Data!$J$5:$J$48,$B10,Data!$E$5:$E$48,H$4)","v":0},{"$f":"SUMIFS(Data!$P$5:$P$48,Data!$J$5:$J$48,$B10,Data!$E$5:$E$48,I$4)","v":0},{"$f":"SUMIFS(Data!$P$5:$P$48,Data!$J$5:$J$48,$B10,Data!$E$5:$E$48,J$4)","v":0},{"$f":"SUMIFS(Data!$P$5:$P$48,Data!$J$5:$J$48,$B10,Data!$E$5:$E$48,K$4)","v":0},{"$f":"SUMIFS(Data!$P$5:$P$48,Data!$J$5:$J$48,$B10,Data!$E$5:$E$48,L$4)","v":0},{"$f":"SUMIFS(Data!$P$5:$P$48,Data!$J$5:$J$48,$B10,Data!$E$5:$E$48,M$4)","v":0},{"$f":"SUMIFS(Data!$P$5:$P$48,Data!$J$5:$J$48,$B10,Data!$E$5:$E$48,N$4)","v":0}]
[]
[null,null,null,{"$f":"SUM(D5:D11)","v":0},{"$f":"SUM(E5:E11)","v":0},{"$f":"SUM(F5:F11)","v":0},0,0,0,0,0,0,0,0]

{"sheet":"Comparitive","index":2,"n_rows":70,"n_cols":13,"rows_kept":70,"cut":false,"hidden":false,"merged":[[0,0,0,7],[5,3,5,4],[4,5,4,7],[4,8,4,10]]}
["Work done estimate  Part - A ( ABSTRACT )"]
[null,null,null,"District",{"$f":"Data!C2","v":"Medak"},null,"Mandal",{"$f":"VLOOKUP(H4,Habs!$A$2:$H$2774,5,0)","v":"Alladurg"}]
[null,null,null,"GP",{"$f":"VLOOKUP(H4,Habs!$A$2:$H$2774,6,0)","v":"Bangla Thanda"},null,"Habitaion",{"$f":"VLOOKUP(H4,Habs!$A$2:$H$2774,7,0)","v":"Bangla Thanda"}]
[null,null,null,"Sub division",{"$f":"VLOOKUP(H4,Habs!$A$2:$H$2774,4,0)","v":"Medak"},null,"Hab slno",{"$f":"Data!M2","v":18866}]
[null,null,null,null,null,"As per working estimate",null,null,"As per work done"]
["Slno",null,null,"Desc",null,"QTY","Rate","Amount","QTY","Rate","Amount","Excess","less"]
[1,{"$f":"Data!AM5","v":0},{"$f":"IF(D7=\"\",\"\",D7&\",\"&E7)","v":""},{"$f":"IFERROR(LEFT(B7,FIND(\",\",B7,1)-1),\"\")","v":""},{"$f":"IFERROR(MID(B7,FIND(\",\",B7)+1,FIND(\",\",B7,FIND(\",\",B7)+2)-FIND(\",\",B7)-1),\"\")","v":""},null,null,null,{"$f":"IF(B7=\"\",\"\",(SUMIF(Data!$B$4:$B$48,B7,Data!$M$4:$M$48)))","v":0},{"$f":"IFERROR(RIGHT(B7,LEN(B7)-FIND(\",\",B7,FIND(\",\",B7)+2)),\"\")","v":""},{"$f":"IFERROR(I7*J7,\"\")","v":""},{"$f":"IFERROR(IF(K7-H7<0,\"\",K7-H7),\"\")","v":""},{"$f":"IFERROR(IF(H7-K7>0,H7-K7,\"\"),\"\")","v":""}]
[{"$f":"A7+1","v":2},{"$f":"Data!AM6","v":""},{"$f":"IF(D8=\"\",\"\",D8&\",\"&E8)","v":""},{"$f":"IFERROR(LEFT(B8,FIND(\",\",B8,1)-1),\"\")","v":""},{"$f":"IFERROR(MID(B8,FIND(\",\",B8)+1,FIND(\",\",B8,FIND(\",\",B8)+2)-FIND(\",\",B8)-1),\"\")","v":""},null,null,null,{"$f":"IF(B8=\"\",\"\",(SUMIF(Data!$B$4:$B$48,B8,Data!$M$4:$M$48)))","v":""},"",{"$f":"IFERROR(I8*J8,\"\")","v":""}]
[{"$f":"A8+1","v":3},{"$f":"Data!AM7","v":""},"","","",null,null,null,{"$f":"IF(B9=\"\",\"\",(SUMIF(Data!$B$4:$B$48,B9,Data!$M$4:$M$48)))","v":""},"",""]
[{"$f":"A9+1","v":4},{"$f":"Data!AM8","v":""},"","","",null,null,null,{"$f":"IF(B10=\"\",\"\",(SUMIF(Data!$B$4:$B$48,B10,Data!$M$4:$M$48)))","v":""},"",""]
[5,{"$f":"Data!AM9","v":""},"","","",null,null,null,{"$f":"IF(B11=\"\",\"\",(SUMIF(Data!$B$4:$B$48,B11,Data!$M$4:$M$48)))","v":""},"",""]
[6,{"$f":"Data!AM10","v":""},"","","",null,null,null,{"$f":"IF(B12=\"\",\"\",(SUMIF(Data!$B$4:$B$48,B12,Data!$M$4:$M$48)))","v":""},"",""]
[7,{"$f":"Data!AM11","v":""},"","","",null,null,null,{"$f":"IF(B13=\"\",\"\",(SUMIF(Data!$B$4:$B$48,B13,Data!$M$4:$M$48)))","v":""},"",""]
[8,{"$f":"Data!AM12","v":""},"","","",null,null,null,{"$f":"IF(B14=\"\",\"\",(SUMIF(Data!$B$4:$B$48,B14,Data!$M$4:$M$48)))","v":""},"",""]
[9,{"$f":"Data!AM13","v":""},"","","",null,null,null,{"$f":"IF(B15=\"\",\"\",(SUMIF(Data!$B$4:$B$48,B15,Data!$M$4:$M$48)))","v":""},"",""]
[10,{"$f":"Data!AM14","v":""},"","","",null,null,null,{"$f":"IF(B16=\"\",\"\",(SUMIF(Data!$B$4:$B$48,B16,Data!$M$4:$M$48)))","v":""},"",""]
[11,{"$f":"Data!AM15","v":""},"","","",null,null,null,{"$f":"IF(B17=\"\",\"\",(SUMIF(Data!$B$4:$B$48,B17,Data!$M$4:$M$48)))","v":""},"",""]
[12,{"$f":"Data!AM16","v":""},"","","",null,null,null,{"$f":"IF(B18=\"\",\"\",(SUMIF(Data!$B$4:$B$48,B18,Data!$M$4:$M$48)))","v":""},"",""]
[13,{"$f":"Data!AM17","v":""},"","","",null,null,null,{"$f":"IF(B19=\"\",\"\",(SUMIF(Data!$B$4:$B$48,B19,Data!$M$4:$M$48)))","v":""},"",""]
[14,{"$f":"Data!AM18","v":""},"","","",null,null,null,{"$f":"IF(B20=\"\",\"\",(SUMIF(Data!$B$4:$B$48,B20,Data!$M$4:$M$48)))","v":""},"",""]
[15,{"$f":"Data!AM19","v":""},"","","",null,null,null,{"$f":"IF(B21=\"\",\"\",(SUMIF(Data!$B$4:$B$48,B21,Data!$M$4:$M$48)))","v":""},"",""]
[16,{"$f":"Data!AM20","v":""},"","","",null,null,null,{"$f":"IF(B22=\"\",\"\",(SUMIF(Data!$B$4:$B$48,B22,Data!$M$4:$M$48)))","v":""},"",""]
[17,{"$f":"Data!AM21","v":""},"","","",null,null,null,{"$f":"IF(B23=\"\",\"\",(SUMIF(Data!$B$4:$B$48,B23,Data!$M$4:$M$48)))","v":""},"",""]
[18,{"$f":"Data!AM22","v":""},"","","",null,null,null,{"$f":"IF(B24=\"\",\"\",(SUMIF(Data!$B$4:$B$48,B24,Data!$M$4:$M$48)))","v":""},"",""]
[19,{"$f":"Data!AM23","v":""},"","","",null,null,null,{"$f":"IF(B25=\"\",\"\",(SUMIF(Data!$B$4:$B$48,B25,Data!$M$4:$M$48)))","v":""},"",""]
[20,{"$f":"Data!AM24","v":""},"","","",null,null,null,{"$f":"IF(B26=\"\",\"\",(SUMIF(Data!$B$4:$B$48,B26,Data!$M$4:$M$48)))","v":""},"",""]
[21,{"$f":"Data!AM25","v":""},"","","",null,null,null,{"$f":"IF(B27=\"\",\"\",(SUMIF(Data!$B$4:$B$48,B27,Data!$M$4:$M$48)))","v":""},"",""]
[22,{"$f":"Data!AM26","v":""},"","","",null,null,null,{"$f":"IF(B28=\"\",\"\",(SUMIF(Data!$B$4:$B$48,B28,Data!$M$4:$M$48)))","v":""},"",""]
[23,{"$f":"Data!AM27","v":""},"","","",null,null,null,{"$f":"IF(B29=\"\",\"\",(SUMIF(Data!$B$4:$B$48,B29,Data!$M$4:$M$48)))","v":""},"",""]
[24,{"$f":"Data!AM28","v":""},"","","",null,null,null,{"$f":"IF(B30=\"\",\"\",(SUMIF(Data!$B$4:$B$48,B30,Data!$M$4:$M$48)))","v":""},"",""]
[25,{"$f":"Data!AM29","v":""},"","","",null,null,null,{"$f":"IF(B31=\"\",\"\",(SUMIF(Data!$B$4:$B$48,B31,Data!$M$4:$M$48)))","v":""},"",""]
[26,{"$f":"Data!AM30","v":""},"","","",null,null,null,{"$f":"IF(B32=\"\",\"\",(SUMIF(Data!$B$4:$B$48,B32,Data!$M$4:$M$48)))","v":""},"",""]
[27,{"$f":"Data!#REF!","v":{"$error":"#REF!"}},"","","",null,null,null,null,"",""]
[28,{"$f":"Data!#REF!","v":{"$error":"#REF!"}},"","","",null,null,null,null,"",""]
[29,{"$f":"Data!#REF!","v":{"$error":"#REF!"}},"","","",null,null,null,null,"",""]
[30,{"$f":"Data!#REF!","v":{"$error":"#REF!"}},"","","",null,null,null,null,"",""]
[31,{"$f":"Data!#REF!","v":{"$error":"#REF!"}},"","","",null,null,null,null,"",""]
[32,{"$f":"Data!#REF!","v":{"$error":"#REF!"}},"","","",null,null,null,null,"",""]
[33,{"$f":"Data!#REF!","v":{"$error":"#REF!"}},"","","",null,null,null,null,{"$f":"IFERROR(RIGHT(B39,LEN(B39)-FIND(\",\",B39,FIND(\",\",B39)+2)),\"\")","v":""},""]
[34,{"$f":"Data!#REF!","v":{"$error":"#REF!"}},"","","",null,null,null,null,"",""]
[35,{"$f":"Data!#REF!","v":{"$error":"#REF!"}},"","","",null,null,null,null,"",""]
[36,{"$f":"Data!#REF!","v":{"$error":"#REF!"}},"","","",null,null,null,null,"",""]
[37,{"$f":"Data!#REF!","v":{"$error":"#REF!"}},"","","",null,null,null,null,"",""]
[38,{"$f":"Data!#REF!","v":{"$error":"#REF!"}},"","","",null,null,null,null,"",""]
[39,{"$f":"Data!#REF!","v":{"$error":"#REF!"}},"","","",null,null,null,null,"",""]
[40,{"$f":"Data!#REF!","v":{"$error":"#REF!"}},"","","",null,null,null,null,"",{"$f":"IFERROR(I46*J46,\"\")","v":""}]
[41,{"$f":"Data!#REF!","v":{"$error":"#REF!"}},"","","",null,null,null,null,"",{"$f":"IFERROR(I47*J47,\"\")","v":""}]
[42,{"$f":"Data!#REF!","v":{"$error":"#REF!"}},"","","",null,null,null,null,"",""]
[43,{"$f":"Data!#REF!","v":{"$error":"#REF!"}},"","","",null,null,null,null,"",""]
[44,{"$f":"Data!AM31","v":0},"","","",null,null,null,null,"",""]
[45,{"$f":"Data!AM32","v":0},"","","",null,null,null,null,"",""]
[46,{"$f":"Data!AM33","v":0},"","","",null,null,null,null,"",""]
[47,{"$f":"Data!AM34","v":0},"","","",null,null,null,null,"",""]
[48,{"$f":"Data!AM35","v":0},"","","",null,null,null,null,"",""]
[49,{"$f":"Data!AM36","v":0},"","","",null,null,null,null,"",""]
[50,{"$f":"Data!AM37","v":0},"","","",null,null,null,null,"",""]
[51,{"$f":"Data!AM38","v":0},"","","",null,null,null,null,"",""]
[52,{"$f":"Data!AM39","v":0},"","","",null,null,null,null,"",""]
[53,{"$f":"Data!AM40","v":0},"","","",null,null,null,null,"",""]
[54,{"$f":"Data!AM41","v":0},"","","",null,null,null,null,"",""]
[55,{"$f":"Data!AM42","v":0},"","","",null,null,null,null,"",""]
[]
[]
[]
[null,null,""]
[null,null,""]
[null,null,""]
[null,null,""]
[null,null,""]
[null,null,""]

{"sheet":"Habs","index":3,"n_rows":2774,"n_cols":8,"rows_kept":2774,"cut":false,"hidden":false,"merged":[]}
[1,{"$f":"A1+1","v":2},{"$f":"B1+1","v":3},4,5,6,7,8]
["sl_no","New_Habcode","MB_Dist.","SD","MB_Mandal","MB_GP","Mb_Village","MB_Hab"]
[18885,"1722707004020800","Medak","Medak","Alladurg","Mahammadapur","Mohammadipur","Chowtavagu Thanda"]
[18898,"1722707001030300","Medak","Medak","Alladurg","Seethanagar","Seethanagar","Sethanagar Thanda"]
[18877,"1722707005020900","Medak","Medak","Alladurg","Chilever","Chilver","Pallegadda"]
[18878,"1722907010021400","Medak","Medak","Alladurg","Gadipeddapur","Gadipeddapur","Gadipeddapur I"]
[18869,"1722707002030600","Medak","Medak","Alladurg","Appajipally","Appajipally","Appajipally Lt"]
[18886,"1722707004030800","Medak","Medak","Alladurg","Gollakunta Thanda","Gollakunta Thanda","Kommatikunta Thanda"]
[18891,"1722907006021000","Medak","Medak","Alladurg","Muslapur","Muslapur","Muslapur Lt"]
[18867,"1722707001030100","Medak","Medak","Alladurg","Bangla Thanda","Bangla Thanda","Gandlabai Thanda"]
[18871,"1722707002020600","Medak","Medak","Alladurg","Appajipally","Appajipally","Neelkantpally"]
[18889,"1722707003020700","Medak","Medak","Alladurg","Muparram","Mupparam","Mupparam Lt"]
[18868,"1722707001080100","Medak","Medak","Alladurg","Gollakunta Thanda","Gollakunta Thanda","Gollakunta Thanda"]
[18866,"1722707001010104","Medak","Medak","Alladurg","Bangla Thanda","Bangla Thanda","Bangla Tanda"]
[18897,"1722707001040300","Medak","Medak","Alladurg","Seethanagar","Seethanagar","Seethanagar"]
[18870,"1722707002010600","Medak","Medak","Alladurg","Appajipally","Appajipally","Appajipally"]
[18883,"1722707004010400","Medak","Medak","Alladurg","Kaidampally","Kaidampally","Kaidampally"]
[18900,"1722707001010200","Medak","Medak","Alladurg","Venkatraopet","Venkatraopet","Venkatraopet"]
[18899,"1722707003010500","Medak","Medak","Alladurg","Reddipally","Reddypally","Reddypally"]
[18887,"1722707004010800","Medak","Medak","Alladurg","Mahammadapur","Mohammadipur","Mohammadepur"]
[18896,"1722907001010300","Medak","Medak","Alladurg","Rampur","Rampur","Rampur"]
[18890,"1722907003010700","Medak","Medak","Alladurg","Muparram","Mupparam","Mupparam"]
[18872,"1722907007011100","Medak","Medak","Alladurg","Bhahirandibba","Bairandibba","Bairandibba"]
[18875,"1722907008011200","Medak","Medak","Alladurg","Chevella","Chevella","Chevella"]
[18876,"1722707005010900","Medak","Medak","Alladurg","Chilever","Chilver","Chilver"]
[18892,"1722907006011000","Medak","Medak","Alladurg","Muslapur","Muslapur","Muslapur"]
[18865,"1722707001010100","Medak","Medak","Alladurg","Alladurg","Alladurga","Alladurg"]
[18879,"1722907010011400","Medak","Medak","Alladurg","Gadipeddapur","Gadipeddapur","Gadipeddapur"]
[6969,"1722711001030101","Medak","Medak","Haveli Ghanpur","Rajpet Lt","Rajpet Lt","Poolsingnaik Lt"]
[6982,"1722711020021201","Medak","Medak","Haveli Ghanpur","Sultanpur","Sultanpur","Raincheru Lt"]
[6953,"1703411010011100","Medak","Medak","Haveli Ghanpur","School Lt","School Lt","Jeevla Thanda"]
[6967,"1722711001030103","Medak","Medak","Haveli Ghanpur","Rajpet Lt","Rajpet Lt","Balsing Lt"]
[6955,"1722711011011100","Medak","Medak","Haveli Ghanpur","Choutlapally","Choutlapally","Suklapet"]
[6954,"1722711010011102","Medak","Medak","Haveli Ghanpur","School Lt","School Lt","Ramla Naik Lt"]
[6966,"1722711001030104","Medak","Medak","Haveli Ghanpur","Rajpet Lt","Rajpet Lt","Amra Lt"]
[6972,"1722711001030102","Medak","Medak","Haveli Ghanpur","Rajpet Lt","Rajpet Lt","Tharyanaik Lt"]
[6980,"1722711020031203","Medak","Medak","Haveli Ghanpur","Thogita","Sultanpur","Patigadda Lt"]
[6971,"1722711001030105","Medak","Medak","Haveli Ghanpur","Rajpet Lt","Rajpet Lt","Ramla Lt"]
[6951,"1722711010031100","Medak","Medak","Haveli Ghanpur","School Lt","School Lt","Haveli Ghanpur Tanda"]
[6947,"1722711010011104","Medak","Medak","Haveli Ghanpur","School Lt","School Lt","Baddya Lt"]
[6944,"1722711016011501","Medak","Medak","Haveli Ghanpur","Fareedpur","Fareedpur","Fareedpur Lt"]
[6942,"1722711007010801","Medak","Medak","Haveli Ghanpur","Byathole","Byathole","Byathole Lt"]
[6948,"1703411010021100","Medak","Medak","Haveli Ghanpur","School Lt","School Lt","Bharathamatha Thanda"]
[6952,"1722711010011103","Medak","Medak","Haveli Ghanpur","School Lt","School Lt","Jagnanaik Lt"]
[6981,"1722711020021200","Medak","Medak","Haveli Ghanpur","Thogita","Thogita","Raincheru"]
[6989,"1722711002010401","Medak","Medak","Haveli Ghanpur","Wadi","Wadi","Mettukadi Tanda"]
[6933,"1722711013011001","Medak","Medak","Haveli Ghanpur","B Bhoopathipur","B Bhoopathipur","B Bhoopathipur Lt"]
[6956,"1722711011011101","Medak","Medak","Haveli Ghanpur","Choutlapally","Choutlapally","Suklapet Lt"]
[6929,"1722711023012202","Medak","Medak","Haveli Ghanpur","Aurangabad Lt","Aurangabad Lt","Darga Lt Ohsr At Surya Lt"]
[6930,"1722711023012201","Medak","Medak","Haveli Ghanpur","Aurangabad Lt","Aurangabad Lt","Deshya Lt"]
[6931,"1722711023012203","Medak","Medak","Haveli Ghanpur","Aurangabad Lt","Aurangabad Lt","Dudya Lt"]
[6976,"1722711020012401","Medak","Medak","Haveli Ghanpur","Kothacheru Lt","Kothacheru Lt","Gajulbai Lt"]
[6960,"1722711001010200","Medak","Medak","Haveli Ghanpur","Kothapally","Kothapally","Kothapally"]
[6940,"1722711002030300","Medak","Medak","Haveli Ghanpur","Gajireddypally","Gajireddypally","Gajireddypally Tanda"]
[6946,"1722711006010701","Medak","Medak","Haveli Ghanpur","Gangapur","Gangapur","Gangapur Lt"]
[6968,"1722711001030100","Medak","Medak","Haveli Ghanpur","Rajpet Lt","Rajpet Lt","Kapraipally"]
[6973,"1722711019021700","Medak","Medak","Haveli Ghanpur","S Kuchanpally","S Kuchanpally","D Kuchanpally"]
[6977,"1722711020012402","Medak","Medak","Haveli Ghanpur","Kothacheru Lt","Kothacheru Lt","Kothacheru Lt"]
[6988,"1722711002010402","Medak","Medak","Haveli Ghanpur","Wadi","Wadi","Doopsing Tanda"]
[6984,"1722711020031200","Medak","Medak","Haveli Ghanpur","Sultanpur","Sultanpur","Sultanpur"]
[6985,"1722711020031201","Medak","Medak","Haveli Ghanpur","Sultanpur","Sultanpur","Sultanpur Lt"]
[6958,"1722711015031400","Medak","Medak","Haveli Ghanpur","Pochamral","Pochamral","Pochamral"]
[6959,"1722711015031401","Medak","Medak","Haveli Ghanpur","Pochamral","Pochamral","Pochamral Lt"]
[6961,"1722711005010901","Medak","Medak","Haveli Ghanpur","Lingsanpally Lt","Lingsanpally Lt","Lingsanpally Lt"]
[6964,"1722711021011900","Medak","Medak","Haveli Ghanpur","Maddulwai","Maddulwai","Maddulwai"]
[6949,"1722711010071100","Medak","Medak","Haveli Ghanpur","Choutlapally","Choutlapally","Choutlapally"]
[6932,"1722711013011000","Medak","Medak","Haveli Ghanpur","B Bhoopathipur","B Bhoopathipur","B Bhoopathipur"]
[6962,"1722711005010900","Medak","Medak","Haveli Ghanpur","Lingsanpally","Lingsanpally","Lingsanpally"]
[6939,"1722711002020300","Medak","Medak","Haveli Ghanpur","Gajireddypally","Gajireddypally","Gajireddypally"]
[6941,"1722711007010800","Medak","Medak","Haveli Ghanpur","Byathole","Byathole","Byathole"]
[6965,"1722711017011600","Medak","Medak","Haveli Ghanpur","Muthaipally","Muthaipally","Muthaipally"]
[6943,"1722711016011500","Medak","Medak","Haveli Ghanpur","Fareedpur","Fareedpur","Fareedpur"]
[6963,"1722711021021900","Medak","Medak","Haveli Ghanpur","Maddulwai","Maddulwai","Muthaikota"]
[6990,"1722711002010400","Medak","Medak","Haveli Ghanpur","Wadi","Wadi","Wadi"]
[6936,"1703411005010600","Medak","Medak","Haveli Ghanpur","B Thimmaipally","Ananthsagar","Ananthsagar"]
[6945,"1722711006010700","Medak","Medak","Haveli Ghanpur","Gangapur","Gangapur","Gangapur"]
[6937,"1722711004010600","Medak","Medak","Haveli Ghanpur","B Thimmaipally","B Thimmaipally","B Thimmaipally"]
[6928,"1722711023012200","Medak","Medak","Haveli Ghanpur","Aurangabad","Aurangabad","Aurangabad"]
[6957,"1722711015021400","Medak","Medak","Haveli Ghanpur","Jakkannapet","Jakkannapet","Jakkannapet"]
[6978,"1722711020012400","Medak","Medak","Haveli Ghanpur","Shamnapur","Shamnapur","Shamnapur"]
[6986,"1722711012011200","Medak","Medak","Haveli Ghanpur","Thogita","Sultanpur","Thogita"]
[6935,"1722711009011000","Medak","Medak","Haveli Ghanpur","B Bhoopathipur","Shalipet","Shalipet"]
[6987,"1722711003010500","Medak","Medak","Haveli Ghanpur","Nagapuram","Nagapuram","Nagapuram"]
[6974,"1722711019011700","Medak","Medak","Haveli Ghanpur","S Kuchanpally","S Kuchanpally","S Kuchanpally"]
[6970,"1722711001010100","Medak","Medak","Haveli Ghanpur","Rajpet","Rajpet","Rajpet"]
[6950,"1722711010011100","Medak","Medak","Haveli Ghanpur","Haveli Ghanpur","Haveli Ghanpur","Haveli Ghanpur"]
[6975,"1722711015011300","Medak","Medak","Haveli Ghanpur","Sardhana","Sardhana","Sardhana"]
[6938,"1722711001010300","Medak","Medak","Haveli Ghanpur","Burugupally","Burugupally","Burugupally"]
[7030,"1703411029013000","Medak","Medak","Medak","Shivaipally","Shivaipally","Shivaipally Lt"]
[7014,"1703411026012500","Medak","Medak","Medak","Pathoor","Pathoor","Naila Thanda  F T"]
[6992,"1722811024012301","Medak","Medak","Medak","Ausulapally","Ausulapallly","Ausulapally Lt"]
[7017,"1703411027012600","Medak","Medak","Medak","Malkapur","Malkapur","Chetmalkunta"]
[7022,"1722811034013203","Medak","Medak","Medak","Balanagar","Balanagar","Chatria Lt"]
[7025,"1722811033023201","Medak","Medak","Medak","Rajpally","Thimmakkapallu","Ramla Naik Lt"]
[7026,"1722811034013201","Medak","Medak","Medak","Balanagar","Balanagar","Reddya Naik Lt"]
[7032,"1722811029032900","Medak","Medak","Medak","Venkatapur","Venkatapur","Venkatapur Tanda"]
[7005,"1722811032013102","Medak","Medak","Medak","Khajipally","Khajipally","Pashapur"]
[6997,"1722811035012102","Medak","Medak","Medak","Sangaigutta Lt","Sangaigutta Lt","Lalya Lt"]
[7013,"1722811026012502","Medak","Medak","Medak","Pathoor","Pathoor","Motakadi Lt"]
[7019,"1722811027022601","Medak","Medak","Medak","Malkapur","Malkapur","Malkapur Lt"]
[7010,"1703411020011800","Medak","Medak","Medak","Maqdumpur","Maqdumpur","Mastanpur"]
[6999,"1722811035012101","Medak","Medak","Medak","Sangaigutta Lt","Sangaigutta Lt","Peddabai Lt"]
[7002,"1722811035022101","Medak","Medak","Medak","Sangaigutta Lt","Sangaigutta Lt","Sangaigutta Lt"]
[7012,"1722811026012501","Medak","Medak","Medak","Pathoor","Pathoor","Cheepurdubba Lt"]
[7018,"1722811027022600","Medak","Medak","Medak","Malkapur","Malkapur","Malkapur"]
[6998,"1722811035022102","Medak","Medak","Medak","Sangaigutta Lt","Sangaigutta Lt","Mangaligutta Lt"]
[6996,"1722811035042100","Medak","Medak","Medak","Sangaigutta Lt","Sangaigutta Lt","Kamalanik Tanda"]
[7027,"1722811033023200","Medak","Medak","Medak","Rajpally","Rajpally","Thimmakkapally"]
[7023,"1722811034013202","Medak","Medak","Medak","Balanagar","Balanagar","Dosalamadugu Lt"]
[7003,"1722811032013101","Medak","Medak","Medak","Khajipally","Khajipally","Agraharam"]
[7021,"1722811034013200","Medak","Medak","Medak","Balanagar","Balanagar","Balanagar"]
[7006,"1722811033012900","Medak","Medak","Medak","Venkatapur","Venkatapur","Komtoor"]
[7034,"1722811029012900","Medak","Medak","Medak","Venkatapur","Venkatapur","Venkatapur"]
[7033,"1722811029022900","Medak","Medak","Medak","Guttakindipally","Guttakindipally","Guttakindipally"]
[7029,"1722811029023000","Medak","Medak","Medak","Shivaipally","Shivaipally","Shivaipally"]
[7011,"1722711020011800","Medak","Medak","Medak","Maqdumpur","Maqdumpur","Maqdumpur"]
[6995,"1722811035022100","Medak","Medak","Medak","Janakampally","Janakampally","Janakampally"]
[7020,"1722811027012600","Medak","Medak","Medak","Rainpally","Rainpally","Rainpally"]
[6994,"1722811035012100","Medak","Medak","Medak","Chityala","Chityala","Chityala"]
[7009,"1722811036013500","Medak","Medak","Medak","Mambojipally","Mambojipally","Mambojipally"]
[7016,"1722811037013600","Medak","Medak","Medak","Peroor","Peroor","Peroor"]
[7028,"1722811036033300","Medak","Medak","Medak","Ryalamadugu","Ryalamadugu","Ryalamadugu"]
[7004,"1722811032013100","Medak","Medak","Medak","Khajipally","Khajipally","Khajipally"]
[7031,"1722811028022800","Medak","Medak","Medak","Thimmanagar","Thimmanagar","Thimmanagar"]
[7008,"1722811036023400","Medak","Medak","Medak","Macharam","Macharam","Macharam"]
[7007,"1722811028012700","Medak","Medak","Medak","M Bhopatipur","M Bhopatipur","M Bhopatipur"]
[7015,"1722811026012500","Medak","Medak","Medak","Pathoor","Pathoor","Pathoor"]
[7000,"1722811022042100","Medak","Medak","Medak","Chityala","Pillikotyala","Pillikotyala"]
[6991,"1722811024012300","Medak","Medak","Medak","Ausulapally","Ausulapallly","Ausulapally"]
[7024,"1722811033013200","Medak","Medak","Medak","Balanagar","Balanagar","Rajpally"]
[7074,"1722709020071903","Medak","Medak","Papannapet","Rajya Thanda","Rajya Thanda","Sithya Thanda"]
[7083,"1722709025012201","Medak","Medak","Papannapet","Chitriyal","Chitriyal","Chitriyal Thanda"]
[7072,"1722709020041900","Medak","Medak","Papannapet","Rajya Thanda","Rajya Thanda","Jairamthanda"]
[7077,"1722709020031900","Medak","Medak","Papannapet","Rajya Thanda","Rajya Thanda","Rugya Thanda"]
[7107,"1722709023022000","Medak","Medak","Papannapet","Namapur","Namapur","Namapur Tanda"]
[25135,0,"Medak","Medak","Papannapet","Nagsanpally","Nagsanpally","Vaddera Colony"]
[7071,"1722709020071901","Medak","Medak","Papannapet","Rajya Thanda","Rajya Thanda","Domda Thanda"]
[7066,"1722709016011701","Medak","Medak","Papannapet","Annaram","Annaram","Annaram Tanda"]
[7112,"1722709012041300","Medak","Medak","Papannapet","Lambadithanda","Lambadithanda","Lambadithanda"]
[7075,"1722709020051900","Medak","Medak","Papannapet","Dakhya Tanda","Dakhya Tanda","Pomlathanda"]
[7069,"1722709020071902","Medak","Medak","Papannapet","Dakhya Tanda","Dakhya Tanda","Danuja Thanda"]
[7100,"1722709004030300","Medak","Medak","Papannapet","Narsingarao Pally Lt","Narsingarao Pally Lt","Modalakunta Thanda"]
[7076,"1722709020071900","Medak","Medak","Papannapet","Rajya Thanda","Rajya Thanda","Rajya Thanda"]
[7109,"1722709018021800","Medak","Medak","Papannapet","Papannapet","Papannapet","Kothapalle Madhira"]
[7073,"1722709020021900","Medak","Medak","Papannapet","Rajya Thanda","Rajya Thanda","Kasna Lt"]
[7097,"1722709003010202","Medak","Medak","Papannapet","Amria Tanda","Amria Tanda","Somla Tanda"]
[7078,"1722709019011900","Medak","Medak","Papannapet","Arkela","Thammaipalle","Thammaipalle"]
[7090,"1722709026022400","Medak","Medak","Papannapet","Kodpak","Kodpak","Seripally"]
[7118,"1722709013021400","Medak","Medak","Papannapet","Shanaipalle","Tummalapalle","Tummalapalle"]
[7094,"1722709003010203","Medak","Medak","Papannapet","Amria Tanda","Amria Tanda","Amria Tanda"]
[7113,"1722709012031300","Medak","Medak","Papannapet","Shanaipalle","Thummalapally","Shanaipalle"]
[7111,"1722709012041301","Medak","Medak","Papannapet","Lambadithanda","Lambadithanda","Arnia Tanda"]
[7068,"1722709020061900","Medak","Medak","Papannapet","Dakhya Tanda","Dakhya Tanda","Dakhya Tanda"]
[7120,"1722709009020700","Medak","Medak","Papannapet","Arepalle","Arepalle","Arepalle"]
[7106,"1722709023012000","Medak","Medak","Papannapet","Namapur","Namapur","Namapur"]
[7084,"1722709025012200","Medak","Medak","Papannapet","Chitriyal","Chitriyal","Chitriyal"]
[7088,"1722709011021100","Medak","Medak","Papannapet","Gandhari Pally","Gandhari Pally","Jayapuram"]
[7116,"1722709005020400","Medak","Medak","Papannapet","Ramathirtham","Narsingaraopally","Narsingaraopally"]
[7101,"1722709007030500","Medak","Medak","Papannapet","Doulapur","Doulapur","Doulapur"]
[7085,"1722709024012200","Medak","Medak","Papannapet","Enkepalle","Enkepalle","Enkepalle"]
[7119,"1722709013011400","Medak","Medak","Papannapet","Yellapur","Yellapur","Yellapur"]
[7098,"1722709004020300","Medak","Medak","Papannapet","Mallampet","Mallampet","Kandipalle"]
[7103,"1722709007020500","Medak","Medak","Papannapet","Muddapur","Muddapur","Muddapur"]
[7105,"1722709014011500","Medak","Medak","Papannapet","Nagsanpally","Nagsanpalle","Nagsanpally"]
[7080,"1722709022022100","Medak","Medak","Papannapet","Sithanagar","Sithanagar","Sithanagar"]
[7067,"1722709020011900","Medak","Medak","Papannapet","Arkela","Arkela","Arkela"]
[7082,"1722709001010100","Medak","Medak","Papannapet","Kompally","Kompally","Kompally"]
[7086,"1722709025022300","Medak","Medak","Papannapet","Gajulagudem","Gajulagudem","Gajulagudem"]
[7093,"1722709010020900","Medak","Medak","Papannapet","Laxminagara","Laxminagara","Laxminagara"]
[7117,"1722709005010400","Medak","Medak","Papannapet","Ramathirtham","Ramathirtham","Ramathirtham"]
[7095,"1722709003010201","Medak","Medak","Papannapet","Kothalingaipalle","Kothalingaipalle","Kothalingaipalle"]
[7064,"1722709015011600","Medak","Medak","Papannapet","Ablapur","Ablapur","Ablapur"]
[7079,"1722709022012100","Medak","Medak","Papannapet","Bacharam","Bacharam","Bacharam"]
[7104,"1722709014011501","Medak","Medak","Papannapet","Nagsanpally","Nagsanpalle","Edupayala With Floating Pop "]
[7087,"1722709011011100","Medak","Medak","Papannapet","Gandhari Pally","Gandhari Pally","Gandhari Pally"]
[7081,"1722709002010100","Medak","Medak","Papannapet","Cheekode","Cheekode","Cheekode"]
[7096,"1722709003010200","Medak","Medak","Papannapet","Lingaipalle","Pathalingai Pally","Pathalingai Pally"]
[7065,"1722709016011700","Medak","Medak","Papannapet","Annaram","Annaram","Annaram"]
[7102,"1722709007010500","Medak","Medak","Papannapet","Minpur","Minpur","Minpur"]
[7099,"1722709004010300","Medak","Medak","Papannapet","Mallampet","Mallampet","Mallampet"]
[7092,"1722709008012500","Medak","Medak","Papannapet","Kurthiwada","Kurthiwada","Kurthiwada"]
[7089,"1722709026012400","Medak","Medak","Papannapet","Kodpak","Kodpak","Kodpak"]
[7091,"1722709010010800","Medak","Medak","Papannapet","Kothapalle","Kothapalle","Kothapalle"]
[7121,"1722709009010700","Medak","Medak","Papannapet","Yousfpet","Yousufpet","Yousfpet"]
[7115,"1722709012011200","Medak","Medak","Papannapet","Podchenpalle","Podchanpalle","Podchenpalle"]
[7110,"1722709018011800","Medak","Medak","Papannapet","Papannapet","Papannapet","Papannapet"]
[7108,"1722709021012000","Medak","Medak","Papannapet","Narsingi","Narsingi","Narsingi"]
[24801,0,"Medak","Medak","Regode","Dnt Peddha Thanda","Dnt Peddha Thanda","Kakancha Thanda"]
[18913,"1722905012041200","Medak","Medak","Regode","Dnt Peddha Thanda","Dnt Peddha Thanda","Railonka Thanda"]
[18905,"1722705003020300","Medak","Medak","Regode","Chowderpalle","Chodarpalle","Chowdarpally Thanda"]
[18938,"1722905009020900","Medak","Medak","Regode","R  Itikyal","R  Itkyal","R  Itykal Tanda"]
[18930,"1722705004020400","Medak","Medak","Regode","Kothwalpalle","Kothwalpally","Kothwalpally Thanda"]
[18927,"1722705013021300","Medak","Medak","Regode","Dnt Peddha Thanda","Dnt Peddha Thanda","Ramja Thanda"]
[18921,"1722905019021600","Medak","Medak","Regode","Gajwada6","Gajwada","Mannenaik Thanda6"]
[18924,"1722705014031300","Medak","Medak","Regode","Sanghameswara Thanda","Sanghameswara Thanda","Buranwadi Thanda"]
[18912,"1722905012031200","Medak","Medak","Regode","Sanghameswara Thanda","Sanghameswara Thanda","Patepolam Thanda"]
[18906,"1722705001010300","Medak","Medak","Regode","Pocharam","Pocharam","Pocharam"]
[18926,"1722705013011300","Medak","Medak","Regode","Kondapoor","Kondapur","Kondapur"]
[18914,"1722905012051200","Medak","Medak","Regode","Sanghameswara Thanda","Sanghameswara Thanda","Sanghameswara Thanda"]
[18910,"1722905012021200","Medak","Medak","Regode","Dnt Peddha Thanda","Dnt Peddha Thanda","Dnt Peddha Thanda"]
[18944,"1722905009010500","Medak","Medak","Regode","T  Lingampalle","T Lingampally","T Lingampally"]
[18932,"1722905006020201","Medak","Medak","Regode","Makthavenkatapur5","Makthavenkatapur6","M  Venkatapur6"]
[18943,"1722905014021401","Medak","Medak","Regode","Tatpally","Tatpally","Tatpally"]
[18904,"1722705003010300","Medak","Medak","Regode","Chowderpalle","Chodarpalle","Chowdarpalle"]
[18928,"1722705005011300","Medak","Medak","Regode","Thimmapoor","Thimmapoor","Thimmapoor"]
[18937,"1722905015011500","Medak","Medak","Regode","Pyararam","Pyararm","Pyararam"]
[18922,"1722705008010800","Medak","Medak","Regode","Jagriyal","Jagriyal","Jagriyal"]
[18911,"1722905012011200","Medak","Medak","Regode","Dosapally","Dosapally","Dosapally"]
[18939,"1722905009010900","Medak","Medak","Regode","R  Itikyal","R  Itkyal","R  Itykal"]
[18931,"1722705004010400","Medak","Medak","Regode","Kothwalpalle","Kothwalpally","Kothwalpally"]
[18933,"1722905002010200","Medak","Medak","Regode","Marpalle","Marpally","Marpally"]
[18942,"1722905014011400","Medak","Medak","Regode","Sindole","Sindole","Sindole"]
[18920,"1722905019011600","Medak","Medak","Regode","Gajwada6","Gajwada","Gajwada6"]
[18940,"1722905007010700","Medak","Medak","Regode","Regode","Regode","Regode"]
[15215,"1722706008010800","Medak","Medak","Shankarampeta","Kothapet","Kothapet","Koppole"]
[15212,"1722706019020300","Medak","Medak","Shankarampeta","Kamalapoor","Kamalapoor","Kamalapuram Lt"]
[15214,"1722706016021300","Medak","Medak","Shankarampeta","Isukpaya Lt","Isukpaya Lt","Kollapally Lt"]
[15196,"1722706025041900","Medak","Medak","Shankarampeta","Jamunanaiktanda","Jamunanaiktanda","Dharmanaiklt"]
[15199,"1722706025061900","Medak","Medak","Shankarampeta","Jamunanaiktanda","Jamunanaiktanda","Ramsing Naik Lt"]
[15210,"1722706019030300","Medak","Medak","Shankarampeta","Kamalapoor","Kamalapoor","Chacranayak Lt"]
[15198,"1722706025031900","Medak","Medak","Shankarampeta","Jamunanaiktanda","Jamunanaiktanda","Jamunanaiktanda"]
[15197,"1722706025051900","Medak","Medak","Shankarampeta","Jamunanaiktanda","Jamunanaiktanda","Isranaik Lt"]
[15209,"1722706017021300","Medak","Medak","Shankarampeta","Isukpaya Lt","Isukpaya Lt","Raghavani Lt"]
[15221,"1722706021031500","Medak","Medak","Shankarampeta","Malkapuram","Malkapuram","Thummala Kuchcha Lt"]
[15195,"1722706025021900","Medak","Medak","Shankarampeta","Jamunanaiktanda","Jamunanaiktanda","Chcndranaiktanda"]
[15207,"1722706017031300","Medak","Medak","Shankarampeta","Isukpaya Lt","Isukpaya Lt","Isukpaya Lt"]
[15223,"1722706006010700","Medak","Medak","Shankarampeta","Ramojipally","Ramojipally","Narayanpally"]
[15231,"1722706010021000","Medak","Medak","Shankarampeta","Veerojipally","Veerojipally","Veerojipally Thanda"]
[15219,"1722706021021500","Medak","Medak","Shankarampeta","Malkapuram","Malkapuram","Gattukrindlt"]
[15206,"1722706009020900","Medak","Medak","Shankarampeta","Sangareddypet","Sangareddypet","Sangareddypet"]
[15201,"1722706013011100","Medak","Medak","Shankarampeta","Danampally","Danampally","Danampally"]
[15191,"1722706005020600","Medak","Medak","Shankarampeta","Arepally","Arepally","Arepally"]
[15208,"1722706017011300","Medak","Medak","Shankarampeta","K Venkatapoor","K Venkatapoor","K Venkatapoor"]
[15227,"1722706001020100","Medak","Medak","Shankarampeta","G Venkatapur","G Venkatapur","G Venkatapur"]
[15202,"1722706012011100","Medak","Medak","Shankarampeta","Shivaipally","Shivaipally","Shivaipally"]
[15193,"1722706001030200","Medak","Medak","Shankarampeta","Bujranpally","Bujranpally","Bujranpally"]
[15216,"1722706007010800","Medak","Medak","Shankarampeta","Kothapet","Kothapet","Kothapet"]
[15213,"1722706016011300","Medak","Medak","Shankarampeta","Kollapally","Kollapally","Kollapally"]
[15192,"1722706022011600","Medak","Medak","Shankarampeta","Baddaram","Baddaram","Baddaram"]
[15228,"1722706001010100","Medak","Medak","Shankarampeta","Tenkati","Tenkati","Tenkati"]
[15204,"1722706003010400","Medak","Medak","Shankarampeta","Jambikunta","Jambikunta","Jambikunta"]
[15211,"1722706019010300","Medak","Medak","Shankarampeta","Kamalapoor","Kamalapoor","Kamalapoor"]
[15230,"1722706010011000","Medak","Medak","Shankarampeta","Veerojipally","Veerojipally","Veerojipally"]
[15218,"1722706014011100","Medak","Medak","Shankarampeta","Madsetpally","Madsetpally","Madshetpally"]
[15224,"1722706011010700","Medak","Medak","Shankarampeta","Ramojipally","Ramojipally","Ramojipally"]
[15217,"1722706024011800","Medak","Medak","Shankarampeta","M Laxmapur","M Laxmapur","M Laxmapur"]
[15220,"1722706021011500","Medak","Medak","Shankarampeta","Malkapuram","Malkapuram","Malkapuram"]
[15222,"1722706015011200","Medak","Medak","Shankarampeta","Musapet","Musapet","Musapet"]
[15226,"1722706018011400","Medak","Medak","Shankarampeta","Shankarampet","Shankarampet","Thirumalapur"]
[15229,"1722706005010600","Medak","Medak","Shankarampeta","Uthloor","Uthloor","Uthloor"]
[15205,"1722706009010900","Medak","Medak","Shankarampeta","Jukal","Jukal","Jukal"]
[15200,"1722706004010500","Medak","Medak","Shankarampeta","Cheelapally","Cheelapally","Cheelapally"]
[15203,"1722706023011700","Medak","Medak","Shankarampeta","Gottimukkula","Gottimukkula","Gottimukkula"]
[15194,"1722706025011900","Medak","Medak","Shankarampeta","Burugupally","Burugupally","Burugupally"]
[15225,"1722706020011400","Medak","Medak","Shankarampeta","Shankarampet","Shankarampet","Shankarampet"]
[18953,"1722708007040701","Medak","Medak","Tekmal","Hasanmohamadpalle","Hasanmohamadpalle","Jinkoni Bavi  Lt"]
[18950,"1722708008010702","Medak","Medak","Tekmal","Chandru Lt","Chandru Lt","Laxman  Lt"]
[18956,"1722708007040700","Medak","Medak","Tekmal","Hasanmohamadpalle","Hasanmohamadpalle","Somla Thanda"]
[18954,"1722708007030700","Medak","Medak","Tekmal","Hasanmohamadpalle","Hasanmohamadpalle","Lalu Thanda"]
[18970,"1722708016021500","Medak","Medak","Tekmal","Palvanch","Palvanch","Lambadi Tahnda6"]
[19005,"1722708003030402","Medak","Medak","Tekmal","Shabad","Shabad","Kevula Lt"]
[18987,"1722708012061101","Medak","Medak","Tekmal","Sangya Thanda","Sangya Thanda","Kadilaeai Thanda 2"]
[18986,"1722708012061100","Medak","Medak","Tekmal","Sangya Thanda","Sangya Thanda","Kadilaeai Thanda 1"]
[19003,"1722708003040402","Medak","Medak","Tekmal","Shabad","Shabad","Devula T"]
[18949,"1722708008010703","Medak","Medak","Tekmal","Chandru Lt","Chandru Lt","Kodpak Road Side  Lt"]
[18983,"1722708012051102","Medak","Medak","Tekmal","Venkatpur","Venkatapur","Beemla Thanda"]
[18985,"1722708012051101","Medak","Medak","Tekmal","Sangya Thanda","Sangya Thanda","Jeevla T"]
[18967,"1722708011020900","Medak","Medak","Tekmal","Ekalsapur","Ekalsapur","Hussain Pur"]
[18972,"1722708001050200","Medak","Medak","Tekmal","Yelupugonda","Yelupugonda","Bolikunta Thanda"]
[19008,"1722708003030400","Medak","Medak","Tekmal","Shabad","Shabad","Nallakunta Thanda"]
[19006,"1722708003040401","Medak","Medak","Tekmal","Shabad","Shabad","Mettu  Lt"]
[18997,"1722708006020600","Medak","Medak","Tekmal","Saramankunta Thanda6","Saramankunta Thanda6","Mernguvaritahnda66"]
[19007,"1722708003040400","Medak","Medak","Tekmal","Shabad","Shabad","Mutylabandam Thanda"]
[18995,"1722708012100600","Medak","Medak","Tekmal","Saramankunta Thanda6","Saramankunta Thanda6","Saramankunta Thanda6"]
[18992,"1722708012110600","Medak","Medak","Tekmal","Saramankunta Thanda6","Saramankunta Thanda6","Barrenkalakunta Thanda6"]
[18998,"1722708006030601","Medak","Medak","Tekmal","Yellampalle6","Yellampalle6","Yelampally Lt66"]
[18948,"1722708008010701","Medak","Medak","Tekmal","Chandru Lt","Chandru Lt","Chandru Lt"]
[18994,"1722708012080600","Medak","Medak","Tekmal","Yellampalle6","Yellampalle Lt","Pogula Venkata Pur6"]
[19000,"1722708004010401","Medak","Medak","Tekmal","Shabad","Shabad","Ganya Lt"]
[18996,"1722708006030600","Medak","Medak","Tekmal","Yellampalle6","Yellampalle6","Laxman Thanda66"]
[18961,"1722708018011700","Medak","Medak","Tekmal","Malkapur","Malkapur","Malkapur"]
[18991,"1722708009010800","Medak","Medak","Tekmal","Yelkurthi","Yelkurthi","Yelkurthi"]
[19001,"1722708004010400","Medak","Medak","Tekmal","Shabad","Shabad","Shabad"]
[19002,"1722708003020400","Medak","Medak","Tekmal","Shabad","Shabad","Dandukunta Thanda"]
[18966,"1722708010020900","Medak","Medak","Tekmal","Korampalle","Korampalle","Kotha Palle"]
[18999,"1722708006010600","Medak","Medak","Tekmal","Yellampalle6","Yellampalle6","Yellampalle66"]
[18973,"1722708001040200","Medak","Medak","Tekmal","Cherumangati Thanda","Cherumangati Thanda","Cherumangati Thanda"]
[18988,"1722708012051100","Medak","Medak","Tekmal","Sangya Thanda","Sangya Thanda","Sangya Thanda"]
[18963,"1722708013021200","Medak","Medak","Tekmal","Kadloor","Kadloor","Kadloor Tanda"]
[18993,"1722708012090600","Medak","Medak","Tekmal","Saramankunta Thanda6","Saramankunta Thanda6","Neelaboinavaguthanda6"]
[18965,"1722708010010900","Medak","Medak","Tekmal","Ekalsapur","Ekalsapur","Ekalsapur"]
[18976,"1722708005020500","Medak","Medak","Tekmal","Tamploor","Tamploor","Rukmajipalle"]
[18974,"1722708001030200","Medak","Medak","Tekmal","Kammarikatha","Kammarikatha","Kammarikatha"]
[18947,"1722708008010700","Medak","Medak","Tekmal","Achannapalle","Achannapalle","Achanna Palle"]
[18984,"1722708012071100","Medak","Medak","Tekmal","Challa Palle","Challa Palle","Challa Palle"]
[18979,"1722708012021000","Medak","Medak","Tekmal","Saloji Palle","Saloji Palle","Saloji Palle"]
[18975,"1722708001020200","Medak","Medak","Tekmal","Surampalle","Surampalle","Surampalle"]
[18978,"1722708012031000","Medak","Medak","Tekmal","Tekmal","Tekmal","Golla Gudem"]
[18952,"1722708007010700","Medak","Medak","Tekmal","Hasanmohamadpalle","Hasanmohamadpalle","Hasanmohamadpalle"]
[18960,"1722708019011700","Medak","Medak","Tekmal","Dadaipally","Dadaipally","Dadaipally"]
[18964,"1722708013011200","Medak","Medak","Tekmal","Kadloor","Kadloor","Kadloor"]
[18969,"1722708020011800","Medak","Medak","Tekmal","Kusangi","Kusangi","Kusangi"]
[18990,"1722708009020800","Medak","Medak","Tekmal","Yelkurthi","Yelkurthi","Seri Palle"]
[18968,"1722708009010900","Medak","Medak","Tekmal","Korampalle","Korampalle","Koram Palle"]
[18989,"1722708012041100","Medak","Medak","Tekmal","Venkatpur","Venkatapur","Venkata Pur"]
[18971,"1722708016011500","Medak","Medak","Tekmal","Palvanch","Palvanch","Palvanch"]
[18958,"1722708002010300","Medak","Medak","Tekmal","Bodaghat","Bodaget","Bodget"]
[18982,"1722708001010100","Medak","Medak","Tekmal","Yelupugonda","Yelupugonda","Yelupugonda"]
[18977,"1722708005010500","Medak","Medak","Tekmal","Tamploor","Tamploor","Tamploor"]
[18957,"1722708015011400","Medak","Medak","Tekmal","Bardhipoor","Bardipur","Bardipur"]
[19010,"1722708003010400","Medak","Medak","Tekmal","Yellupet","Yellupet","Yellupet"]
[18962,"1722708017011600","Medak","Medak","Tekmal","Dhanoora6","Dhannaram","Dhannaram"]
[18959,"1722708014011300","Medak","Medak","Tekmal","Bodmatpalle","Bodmatpalle","Bodmat Palle"]
[18981,"1722708011011000","Medak","Medak","Tekmal","Tekmal","Tekmal","Tekmal"]
[10833,"1703725024031400","Medak","Narsapur","Chilipichedu","Jaggampet","Jaggampet","Manchya Thanda"]
[10828,"1722325014060900","Medak","Narsapur","Chilipichedu","Topya Thanda","Topya Thanda","Pharmia Thanda"]
[10969,"1722325027011501","Medak","Narsapur","Chilipichedu","Antharam","Antharam","Hatya Thanda"]
[10822,"1722325020021201","Medak","Narsapur","Chilipichedu","Faizabad","Faizabad","Tulsya Thanda"]
[10832,"1722325024021400","Medak","Narsapur","Chilipichedu","Jaggampet","Jaggampet","Ramsingh Thanda"]
[10908,"1703725019011200","Medak","Narsapur","Chilipichedu","Faizabad","Faizabad","Serifaizabad"]
[10813,"1722325001050101","Medak","Narsapur","Chilipichedu","Badriya  Thanda","Badriya  Thanda","Limbria Lt"]
[10816,"1703425001010100","Medak","Narsapur","Chilipichedu","Badriya  Thanda","Badriya  Thanda","Babu Sangya Lt"]
[10809,"1722325016021000","Medak","Narsapur","Chilipichedu","Gujri Thanda","Gujri Thanda","Gujri Thanda"]
[10819,"1722325019011200","Medak","Narsapur","Chilipichedu","Faizabad","Faizabad","Thourya Thanda"]
[10965,"1722325027011503","Medak","Narsapur","Chilipichedu","Antharam","Antharam","Bheemla Thandacheruvukommu Lt"]
[10841,"1703725001082700","Medak","Narsapur","Chilipichedu","Samla Thanda","Samla Thanda","Lachi Thanda"]
[10840,"1722325001032700","Medak","Narsapur","Chilipichedu","Raheemguda Thandahashamkunta Thanda","Raheemguda Thandahashamkunta Thanda","Chandiya Thanda"]
[10821,"1722325020031202","Medak","Narsapur","Chilipichedu","Faizabad","Faizabad","Kothakunta Thanda"]
[10824,"1722325001022900","Medak","Narsapur","Chilipichedu","Gangaram","Gangaram","Gangaram Lt"]
[10807,"1703725016041000","Medak","Narsapur","Chilipichedu","Gujri Thanda","Gujri Thanda","Seethya Thanda"]
[10963,"1722325027041500","Medak","Narsapur","Chilipichedu","Antharam","Antharam","Mondi Thanda"]
[10815,"1722325001030100","Medak","Narsapur","Chilipichedu","Badriya  Thanda","Badriya  Thanda","Somla Lt"]
[10820,"1703725020041200","Medak","Narsapur","Chilipichedu","Faizabad","Faizabad","Elligutta Thanda"]
[10827,"1722325014030900","Medak","Narsapur","Chilipichedu","Ganya Thanda Kasiram Thanda","Ganya Thanda Kasiram Thanda","Ganya Thanda"]
[10970,"1703725027021500","Medak","Narsapur","Chilipichedu","Antharam","Antharam","Ganya Thanda"]
[10843,"1703725001092700","Medak","Narsapur","Chilipichedu","Samla Thanda","Samla Thanda","Samla Thanda"]
[10808,"1722325016031000","Medak","Narsapur","Chilipichedu","Gujri Thanda","Gujri Thanda","Chandru Thanda"]
[10814,"1722325001020100","Medak","Narsapur","Chilipichedu","Badriya  Thanda","Badriya  Thanda","Badriya  Thanda"]
[10946,"1722325011010800","Medak","Narsapur","Chilipichedu","Ramdasguda","Ramdasguda","Lingaraoguda"]
[10966,"1722325027021500","Medak","Narsapur","Chilipichedu","Antharam","Antharam","Jayaram Lt"]
[10839,"1722325001052700","Medak","Narsapur","Chilipichedu","Samla Thanda","Samla Thanda","Musalikunta   Battu Thanda"]
[10830,"1722325014040900","Medak","Narsapur","Chilipichedu","Ganya Thanda Kasiram Thanda","Ganya Thanda Kasiram Thanda","Mallakacheru Thanda"]
[10842,"1722325001042700","Medak","Narsapur","Chilipichedu","Somakkapet","Somakkapet","Gangireddulawada"]
[10945,"1722325012010800","Medak","Narsapur","Chilipichedu","Ramdasguda","Ramdasguda","Dasguda"]
[10829,"1722325002020200","Medak","Narsapur","Chilipichedu","Topya Thanda","Topya Thanda","Erramatti Thanda"]
[10826,"1722325014020900","Medak","Narsapur","Chilipichedu","Topya Thanda","Topya Thanda","Topya Thanda"]
[10834,"1722325013010800","Medak","Narsapur","Chilipichedu","Ramdasguda","Ramdasguda","Ramdasguda"]
[10844,"1722325001062700","Medak","Narsapur","Chilipichedu","Somakkapet","Somakkapet","Raheemguda"]
[10838,"1722325001022700","Medak","Narsapur","Chilipichedu","Samla Thanda","Samla Thanda","Ganiyanaik Pally  Namya Thanda"]
[10817,"1722325001040100","Medak","Narsapur","Chilipichedu","Badriya  Thanda","Badriya  Thanda","Banjaranagar Lt Durgya Ltroopla Lt"]
[10837,"1722325001072700","Medak","Narsapur","Chilipichedu","Raheemguda Thandahashamkunta Thanda","Raheemguda Thanda","Raheemguda Thandahashamkunta Thanda"]
[10811,"1722325017021100","Medak","Narsapur","Chilipichedu","Seelampally","Seelampally","Seelampally"]
[10835,"1722325027011500","Medak","Narsapur","Chilipichedu","Antharam","Antharam","Antharam"]
[10823,"1722325001012900","Medak","Narsapur","Chilipichedu","Gangaram","Gangaram","Gangaram"]
[10805,"1722325001012800","Medak","Narsapur","Chilipichedu","Bandapothugal","Bandapothugal","Bandapothugal"]
[10825,"1722325014010900","Medak","Narsapur","Chilipichedu","Gouthapur","Gouthapur","Gouthapur"]
[10836,"1722325001012700","Medak","Narsapur","Chilipichedu","Somakkapet","Somakkapet","Somakkapet"]
[10831,"1722325024011400","Medak","Narsapur","Chilipichedu","Jaggampet","Jaggampet","Jaggampet"]
[10804,"1722325022011300","Medak","Narsapur","Chilipichedu","Ajjamarri","Ajjamarri","Ajjamarri"]
[10810,"1722325017011100","Medak","Narsapur","Chilipichedu","Chilipichedu","Chilipichedu","Chilipichedu"]
[10818,"1722325020011200","Medak","Narsapur","Chilipichedu","Faizabad","Faizabad","Faizabad"]
[10806,"1722325016011000","Medak","Narsapur","Chilipichedu","Chandur","Chandur","Chandur"]
[10812,"1722325001010100","Medak","Narsapur","Chilipichedu","Chitkul","Chitkul","Chitkul"]
[10981,"1703725029061600","Medak","Narsapur","Kowdipally","Kushangadda Thanda","Kushangadda Thanda","Kolari Bheemla Thanda"]
[10979,"1703725029011600","Medak","Narsapur","Kowdipally","Kushangadda Thanda","Kushangadda Thanda","Durgya  Kothalambadi Lt"]
[10930,"1722325010060700","Medak","Narsapur","Kowdipally","Sheri Thanda","Sheri Thanda","Erraseethya Lt"]
[10898,"1722325002070201","Medak","Narsapur","Kowdipally","Mananthaipally Thanda","Mananthaipally Thanda","Kakulgandi"]
[10916,"1722325007050502","Medak","Narsapur","Kowdipally","Kottala","Kottala","Ramla   Lakshman Thanda"]
[10958,"1722325027031500","Medak","Narsapur","Kowdipally","Peerla Tanda","Peerla Tanda","Lalsingh  Puliya"]
[10961,"1722325026021500","Medak","Narsapur","Kowdipally","Salabathpur","Salabathpur","Budiya Thanda"]
[10953,"1703725027011500","Medak","Narsapur","Kowdipally","Marrichettu Thanda","Marrichettu Thanda","Atya Thanda"]
[10957,"1722325026071500","Medak","Narsapur","Kowdipally","Peerla Tanda","Peerla Tanda","Dhani Thanda"]
[10905,"1722325001022500","Medak","Narsapur","Kowdipally","Devullapally","Devullapally","Samya Thanda"]
[10914,"1703725007120500","Medak","Narsapur","Kowdipally","Kottala","Kottala","Hathya Thanda"]
[10926,"1722325010050700","Medak","Narsapur","Kowdipally","Kottacheru Thanda","Kottacheru Thanda","Vasuram Thanda"]
[10977,"1703725029041600","Medak","Narsapur","Kowdipally","Kushangadda Thanda","Kushangadda Thanda","Manjya  Kunya Thanda"]
[10936,"1722325033041900","Medak","Narsapur","Kowdipally","Mutrajpally","Mutrajpally","Kistaregadi Thanda"]
[10964,"1722325027011506","Medak","Narsapur","Kowdipally","Peerla Tanda","Peerla Tanda","Dayyala Thanda"]
[10929,"1722325028050700","Medak","Narsapur","Kowdipally","Kottacheru Thanda","Kottacheru Thanda","Somla Thanda"]
[10984,"1722325032041800","Medak","Narsapur","Kowdipally","Harichand Thanda","Harichand Thanda","Jethya Thanda"]
[10913,"1722325007050501","Medak","Narsapur","Kowdipally","Kottala","Kottala","Bakshya Thanda"]
[10976,"1703725029051600","Medak","Narsapur","Kowdipally","Kushangadda Thanda","Kushangadda Thanda","Shekru Buchya Thanda"]
[10941,"1703725001032300","Medak","Narsapur","Kowdipally","Jaaji Thanda","Jaaji Thanda","Ramulavaari Thanda"]
[10968,"1722325027011505","Medak","Narsapur","Kowdipally","Peerla Tanda","Peerla Tanda","Gopia Thanda"]
[10973,"1722325029031600","Medak","Narsapur","Kowdipally","Kushangadda Thanda","Kushangadda Thanda","Gopia Thanda"]
[10925,"1722325010040700","Medak","Narsapur","Kowdipally","Sheri Thanda","Sheri Thanda","Sandrukunta"]
[10960,"1703425026021500","Medak","Narsapur","Kowdipally","Marrichettu Thanda","Marrichettu Thanda","Jodubai Lt"]
[10915,"1722325007040500","Medak","Narsapur","Kowdipally","Kottala","Kottala","Gopya  Beetla Thanda"]
[10959,"1703425026041500","Medak","Narsapur","Kowdipally","Peerla Tanda","Peerla Tanda","Dharma Lt"]
[10917,"1722325007020501","Medak","Narsapur","Kowdipally","Kottala","Kottala","Somla Valia Thanda"]
[10910,"1722325008020600","Medak","Narsapur","Kowdipally","Kanchanpally","Kanchanpally","Pathachelka Thanda"]
[10924,"1722325010030700","Medak","Narsapur","Kowdipally","Sheri Thanda","Sheri Thanda","Korraseethya Thanda"]
[10944,"1703725001042300","Medak","Narsapur","Kowdipally","Jaaji Thanda","Jaaji Thanda","Jagya Thanda"]
[10980,"1703725029021600","Medak","Narsapur","Kowdipally","Kushangadda Thanda","Kushangadda Thanda","Kushangadda Thanda"]
[10967,"1722325026051500","Medak","Narsapur","Kowdipally","Marrichettu Thanda","Marrichettu Thanda","Mansing Thanda"]
[10974,"1722325029021600","Medak","Narsapur","Kowdipally","Kushangadda Thanda","Kushangadda Thanda","Bhavanimandir Thanda"]
[10943,"1703725001052300","Medak","Narsapur","Kowdipally","Jaaji Thanda","Jaaji Thanda","School Thanda"]
[10975,"1703725029031600","Medak","Narsapur","Kowdipally","Kushangadda Thanda","Kushangadda Thanda","Badru Lachya Thanda"]
[10955,"1722325027011502","Medak","Narsapur","Kowdipally","Marrichettu Thanda","Marrichettu Thanda","Veeramansangya Lt"]
[10952,"1703425026011500","Medak","Narsapur","Kowdipally","Marrichettu Thanda","Marrichettu Thanda","Samya Lt"]
[10982,"1722325032051800","Medak","Narsapur","Kowdipally","Harichand Thanda","Harichand Thanda","Komla  Bheemla Thanda"]
[10901,"1722325002060201","Medak","Narsapur","Kowdipally","Peerya Thanda","Peerya Thanda","Dharma Thanda"]
[10928,"1722325028030700","Medak","Narsapur","Kowdipally","Kottacheru Thanda","Kottacheru Thanda","Mondiramjya Thanda"]
[10931,"1722325028040700","Medak","Narsapur","Kowdipally","Kottacheru Thanda","Kottacheru Thanda","Dharma Thanda"]
[10907,"1722325001022000","Medak","Narsapur","Kowdipally","Dharmasagar","Dharmasagar","Dharmasagar Tanda"]
[10983,"1722325032021800","Medak","Narsapur","Kowdipally","Harichand Thanda","Harichand Thanda","Harichand Thanda"]
[10987,"1722325032031800","Medak","Narsapur","Kowdipally","Harichand Thanda","Harichand Thanda","Jaggya Thanda"]
[10991,"1722325001022600","Medak","Narsapur","Kowdipally","Velamakanna","Velamakanna","Vasuram Lt"]
[10954,"1722325026041500","Medak","Narsapur","Kowdipally","Marrichettu Thanda","Marrichettu Thanda","Marrichettu Thanda"]
[10897,"1722325002040200","Medak","Narsapur","Kowdipally","Mananthaipally Thanda","Mananthaipally Thanda","Danjya Thanda"]
[10962,"1722325026061500","Medak","Narsapur","Kowdipally","Peerla Tanda","Peerla Tanda","Koyyagundu Lt"]
[10940,"1703725001062300","Medak","Narsapur","Kowdipally","Jaaji Thanda","Jaaji Thanda","Jaaji Thanda"]
[10934,"1722325033031900","Medak","Narsapur","Kowdipally","Mutrajpally","Mutrajpally","Thallagadda Thanda"]
[10927,"1722325028020700","Medak","Narsapur","Kowdipally","Kottacheru Thanda","Kottacheru Thanda","Kottacheru Thanda"]
[10935,"1722325033021900","Medak","Narsapur","Kowdipally","Mutrajpally","Mutrajpally","Cheruvumeedi Thanda"]
[10956,"1722325027001504","Medak","Narsapur","Kowdipally","Salabathpur","Salabathpur","Kothapally"]
[10900,"1722325002030200","Medak","Narsapur","Kowdipally","Peerya Thanda","Peerya Thanda","Peerya Thanda"]
[10904,"1703725001032500","Medak","Narsapur","Kowdipally","Devullapally","Devullapally","Komatikunta Thanda"]
[10951,"1722325026031500","Medak","Narsapur","Kowdipally","Peerla Tanda","Peerla Tanda","Peerla Tanda"]
[10899,"1722325014050900","Medak","Narsapur","Kowdipally","Bujrampet","Bujrampet","Erramatti Thanda"]
[10919,"1722325006020400","Medak","Narsapur","Kowdipally","Kowdipally","Kowdipally","Bathukammakunta Thanda"]
[10938,"1722325031011701","Medak","Narsapur","Kowdipally","Railapur","Railapur","Railapur Lt"]
[10923,"1722325028060700","Medak","Narsapur","Kowdipally","Mohd Nagar","Mohd Nagar","Gate Thanda"]
[10988,"1722325032061800","Medak","Narsapur","Kowdipally","Harichand Thanda","Harichand Thanda","Devula Tanda"]
[10932,"1722325010020700","Medak","Narsapur","Kowdipally","Sheri Thanda","Sheri Thanda","Seri Thanda"]
[10912,"1722325007030500","Medak","Narsapur","Kowdipally","Kottala","Kottala","Lingampally"]
[10947,"1703725001022200","Medak","Narsapur","Kowdipally","Sadhashivpally","Sadhashivpally","Pampally"]
[10949,"1722325001012200","Medak","Narsapur","Kowdipally","Sadhashivpally","Sadhashivpally","Sadhashivpally"]
[10902,"1722325002050200","Medak","Narsapur","Kowdipally","Mananthaipally Thanda","Mananthaipally Thanda","Noori Pallegadda"]
[10906,"1722325001012000","Medak","Narsapur","Kowdipally","Dharmasagar","Dharmasagar","Dharmasagar"]
[10948,"1703725001032200","Medak","Narsapur","Kowdipally","Burugugadda","Sadhashivpally","Burugugadda"]
[10922,"1722325010010700","Medak","Narsapur","Kowdipally","Mohd Nagar","Mohd Nagar","Kannaram"]
[10972,"1722325030011600","Medak","Narsapur","Kowdipally","Nagsanpally","Nagsanpally","Nagsanpally"]
[10911,"1722325007020500","Medak","Narsapur","Kowdipally","Kottala","Kottala","Kottala"]
[10939,"1703725001022300","Medak","Narsapur","Kowdipally","Venkatapur R","Venkatapur R","Venkatapur R"]
[10896,"1703725001010200","Medak","Narsapur","Kowdipally","Bujrampet","Bujrampet","Venkatapur B"]
[10903,"1722325001012500","Medak","Narsapur","Kowdipally","Devullapally","Devullapally","Devullapally"]
[10950,"1722325026011500","Medak","Narsapur","Kowdipally","Salabathpur","Salabathpur","Salabathpur"]
[10933,"1722325033011900","Medak","Narsapur","Kowdipally","Mutrajpally","Mutrajpally","Mutrajpally"]
[10937,"1722325031011700","Medak","Narsapur","Kowdipally","Railapur","Railapur","Railapur"]
[10942,"1722325001012300","Medak","Narsapur","Kowdipally","Rajipet","Rajipet","Rajipet"]
[10971,"1722325029011600","Medak","Narsapur","Kowdipally","Thimmapur","Thimmapur","Thimmapur"]
[10990,"1722325001012600","Medak","Narsapur","Kowdipally","Velamakanna","Velamakanna","Velamakanna"]
[10989,"1722325001012100","Medak","Narsapur","Kowdipally","Venkatraopet","Venkatraopet","Venkatraopet"]
[10986,"1722325032011800","Medak","Narsapur","Kowdipally","Thunki","Thunki","Thunki"]
[10921,"1722325028010700","Medak","Narsapur","Kowdipally","Mohd Nagar","Mohd Nagar","Mohd Nagar"]
[10909,"1722325008010600","Medak","Narsapur","Kowdipally","Kanchanpally","Kanchanpally","Kanchanpally"]
[10920,"1722325001012400","Medak","Narsapur","Kowdipally","Kukatlapally","Kukatlapally","Kukatlapally"]
[10895,"1722325002010200","Medak","Narsapur","Kowdipally","Bujrampet","Bujrampet","Bujrampet"]
[10918,"1722325006010400","Medak","Narsapur","Kowdipally","Kowdipally","Kowdipally","Kowdipally"]
[11008,"1722810007010602","Medak","Narsapur","Kulcharam","N Jalalpur","N Jalalpur","Roadside Thanda"]
[11021,"1722810010010701","Medak","Narsapur","Kulcharam","Pothireddipally","Pothireddipally","Tummalapally Lt"]
[10994,"1722810006020503","Medak","Narsapur","Kulcharam","Vasuram Thanda","Vasuram Thanda","Bikya Thanda"]
[10996,"1722810006020501","Medak","Narsapur","Kulcharam","Vasuram Thanda","Vasuram Thanda","Vasuram Thanda"]
[11030,"1722810013010900","Medak","Narsapur","Kulcharam","Wariguntham","Wariguntham","Seriwariguntam"]
[11011,"1722810012010802","Medak","Narsapur","Kulcharam","Kulcharam","Kulcharam","Shekya Tanda"]
[11033,"1722810014010904","Medak","Narsapur","Kulcharam","Wariguntham","Wariguntham","Jalabai Thanda"]
[11034,"1722810014010905","Medak","Narsapur","Kulcharam","Sitaram Thanda","Sitaram Thanda","Palugu  Tanda"]
[11007,"1722810007010601","Medak","Narsapur","Kulcharam","N Jalalpur","N Jalalpur","N Jalalpur Thanda"]
[11018,"1722810009010701","Medak","Narsapur","Kulcharam","Pothireddipally","Pothireddipally","Roadside Thanda Pr"]
[11029,"1722810014010901","Medak","Narsapur","Kulcharam","Wariguntham","Wariguntham","Kudicheru Thanda"]
[11019,"1722810009010702","Medak","Narsapur","Kulcharam","Pothireddipally","Pothireddipally","Sarpanch Thanda"]
[11027,"1722810015021002","Medak","Narsapur","Kulcharam","Sangaipet","Sangaipet","Shakriya Tanda"]
[10995,"1722810006020502","Medak","Narsapur","Kulcharam","Vasuram Thanda","Vasuram Thanda","Deshya Thanda"]
[10993,"1722810006020505","Medak","Narsapur","Kulcharam","Vasuram Thanda","Vasuram Thanda","Achannapally Thanda"]
[11032,"1722810014010903","Medak","Narsapur","Kulcharam","Sitaram Thanda","Sitaram Thanda","Tukkya Tanda"]
[11001,"1722810021021501","Medak","Narsapur","Kulcharam","Enigandla","Enigandla","Dumpalakunta"]
[11026,"1722810015021001","Medak","Narsapur","Kulcharam","Sangaipet","Sangaipet","Palugu Gutta Tanda"]
[11020,"1722810010010700","Medak","Narsapur","Kulcharam","Pothireddipally","Pothireddipally","Tummalapally"]
[10999,"1722810001020100","Medak","Narsapur","Kulcharam","Ch Ghanpur","Ch Ghanpur","Ch Ghanpur Lt"]
[11031,"1722810014010902","Medak","Narsapur","Kulcharam","Sitaram Thanda","Sitaram Thanda","Sitaram Thanda"]
[11024,"1722810016021100","Medak","Narsapur","Kulcharam","Rangampet","Rangampet","Sadashivnagar"]
[11010,"1722810012020801","Medak","Narsapur","Kulcharam","Kulcharam","Kulcharam","Maktha Kulcharam Sc Colony"]
[11015,"1722810003020200","Medak","Narsapur","Kulcharam","Pothamshetpally","Pothamshetpally","Pothanshetpally X Road"]
[11006,"1722810007010600","Medak","Narsapur","Kulcharam","N Jalalpur","N Jalalpur","N Jalalpur"]
[11013,"1722810017011200","Medak","Narsapur","Kulcharam","Tukkapur","Tukkapur","Tukkapur"]
[11017,"1722810009010700","Medak","Narsapur","Kulcharam","Pothireddipally","Pothireddipally","Pothireddipally"]
[11016,"1722810011010200","Medak","Narsapur","Kulcharam","Venkatapur","Venkatapur","Venkatapur"]
[11002,"1722810020011400","Medak","Narsapur","Kulcharam","E Mandapur","E Mandapur","E Mandapur"]
[11004,"1722810019011300","Medak","Narsapur","Kulcharam","Konapur","Konapur","Konapur"]
[10997,"1703710001011600","Medak","Narsapur","Kulcharam","Appajipally","Appajipally","Appajipally"]
[11005,"1722810008010600","Medak","Narsapur","Kulcharam","Kongode","Kongode","Kongode"]
[11022,"1722810005010400","Medak","Narsapur","Kulcharam","Rampur","Rampur","Rampur"]
[11014,"1722810003010200","Medak","Narsapur","Kulcharam","Pothamshetpally","Pothamshetpally","Pothamshetpally"]
[10992,"1722810006010500","Medak","Narsapur","Kulcharam","Amsanpally","Amsanpally","Amsanpally"]
[11003,"1722810004010300","Medak","Narsapur","Kulcharam","Kistapur","Kistapur","Kistapur"]
[11025,"1722810015011000","Medak","Narsapur","Kulcharam","Sangaipet","Sangaipet","Sangaipet"]
[11012,"1722810018011200","Medak","Narsapur","Kulcharam","Paithara","Paithara","Paithara"]
[11028,"1722810014010900","Medak","Narsapur","Kulcharam","Wariguntham","Wariguntham","Wariguntham"]
[10998,"1722810001010100","Medak","Narsapur","Kulcharam","Ch Ghanpur","Ch Ghanpur","Ch Ghanpur"]
[11000,"1722810021011500","Medak","Narsapur","Kulcharam","Enigandla","Enigandla","Enigandla"]
[11009,"1722810012010800","Medak","Narsapur","Kulcharam","Kulcharam","Kulcharam","Kulcharam"]
[11023,"1722810016011100","Medak","Narsapur","Kulcharam","Rangampet","Rangampet","Rangampet"]
[11241,"1722341030021201","Medak","Narsapur","Narsapur","Narsapur","Narsapur","Narsapur Thanda"]
[11238,"1722341020051104","Medak","Narsapur","Narsapur","Narayanapur","Narayanapur","Sangya Thanda"]
[11257,"1722341013020801","Medak","Narsapur","Narsapur","Tirumalapur","Tirumalapur","Ramchenderthanda"]
[11173,"1722341029061705","Medak","Narsapur","Narsapur","Madapur","Madapur","Bikya Thanda"]
[11223,"1722341007050504","Medak","Narsapur","Narsapur","Yellareddygudem Lt","Yellareddygudem Lt","Hachyathanda"]
[11237,"1722341020031102","Medak","Narsapur","Narsapur","Narayanapur","Narayanapur","Sajjyathanda"]
[11181,"1722341015040903","Medak","Narsapur","Narsapur","Brahmanpally","Brahmanpally","Gamiyathanda"]
[11263,"1722341012040803","Medak","Narsapur","Narsapur","Tujalpur","Tujalpur","Vasuram Thanda"]
[11234,"1722341020061105","Medak","Narsapur","Narsapur","Narayanapur","Narayanapur","Lalsinghthanda"]
[11188,"1722341021021301","Medak","Narsapur","Narsapur","Chinnachintakunta","Chinnachintakunta","Govind Thanda"]
[11194,"1722341005060300","Medak","Narsapur","Narsapur","Mohmmadabad","Mohmmadabad","Ramla Thanda"]
[11236,"1722341020071106","Medak","Narsapur","Narsapur","Narayanapur","Narayanapur","Rajuthanda"]
[11175,"1722341029031702","Medak","Narsapur","Narsapur","Madapur","Madapur","Hariya Thanda"]
[11196,"1722341004020301","Medak","Narsapur","Narsapur","Jakkapally","Jakkapally","Jakkpally Thanda"]
[11229,"1722341006020401","Medak","Narsapur","Narsapur","Nagulapally","Nagulapally","Thourya Thanda"]
[11204,"1722341003020200","Medak","Narsapur","Narsapur","Admapur","Admapur","Chanchu Thanda"]
[11184,"1722341015020901","Medak","Narsapur","Narsapur","Brahmanpally","Brahmanpally","Somlathanda"]
[11220,"1722341016031002","Medak","Narsapur","Narsapur","Lingapur","Lingapur","Lalu Thanda"]
[11212,"1722341002050200","Medak","Narsapur","Narsapur","Errakunta Thanda","Errakunta Thanda","Umala Thanda"]
[11249,"1722341022031402","Medak","Narsapur","Narsapur","Peddachintakunta","Peddachintakunta","Somlathanda"]
[11262,"1722341012030802","Medak","Narsapur","Narsapur","Tujalpur","Tujalpur","Valya Thanda"]
[11252,"1722341010030600","Medak","Narsapur","Narsapur","Reddypally","Reddypally","Reddypally Thanda"]
[11174,"1722341029041703","Medak","Narsapur","Narsapur","Madapur","Madapur","Chatru Thanda"]
[11183,"1722341015060905","Medak","Narsapur","Narsapur","Brahmanpally","Brahmanpally","Rooplathanda"]
[11254,"1722341010040600","Medak","Narsapur","Narsapur","Reddypally","Reddypally","Roopla Thanda"]
[11206,"1722341002070206","Medak","Narsapur","Narsapur","Errakunta Thanda","Errakunta Thanda","Balya Thanda"]
[11226,"1703741007050500","Medak","Narsapur","Narsapur","Yellareddygudem Lt","Yellareddygudem Lt","Preemnagar Thanda"]
[11247,"1722341022021401","Medak","Narsapur","Narsapur","Peddachintakunta","Peddachintakunta","Paku Thanda"]
[11232,"1703741020071100","Medak","Narsapur","Narsapur","Narayanapur","Narayanapur","Gangaram Thanda"]
[11218,"1722341011010701","Medak","Narsapur","Narsapur","Khajipet","Khajipet","Khajipetthanda"]
[11182,"1703741015070900","Medak","Narsapur","Narsapur","Brahmanpally","Brahmanpally","Gurija Thanda"]
[11185,"1722341015030902","Medak","Narsapur","Narsapur","Brahmanpally","Brahmanpally","Vittalthanda"]
[11205,"1703741003040200","Medak","Narsapur","Narsapur","Admapur","Admapur","Parima Thanda"]
[11190,"1722341005050304","Medak","Narsapur","Narsapur","Ramja Thanda","Ramja Thanda","Ganya Thanda"]
[11222,"1722341016041003","Medak","Narsapur","Narsapur","Lingapur","Lingapur","Mansing Thanda"]
[11207,"1722341002030202","Medak","Narsapur","Narsapur","Errakunta Thanda","Errakunta Thanda","Durgaya Thada"]
[11178,"1722341029031700","Medak","Narsapur","Narsapur","Madapur","Madapur","Suryathanda"]
[11243,"1722341034021900","Medak","Narsapur","Narsapur","Nathnaipally","Nathnaipally","Naimathullagudem"]
[11231,"1722341017021100","Medak","Narsapur","Narsapur","Narayanapur","Narayanapur","Ganyathanda"]
[11191,"1722341005020301","Medak","Narsapur","Narsapur","Ramja Thanda","Ramja Thanda","Namdiyathanda"]
[11198,"1722341008050304","Medak","Narsapur","Narsapur","Mohmmadabad","Mohmmadabad","Jagyathanda"]
[11201,"1722341008040303","Medak","Narsapur","Narsapur","Mohmmadabad","Mohmmadabad","Tukyathanda"]
[11233,"1722341020021101","Medak","Narsapur","Narsapur","Narayanapur","Narayanapur","Lachiramthanda"]
[11176,"1722341029021700","Medak","Narsapur","Narsapur","Tuljarampet","Tuljarampet","Dharma Thanda"]
[11211,"1722341002040200","Medak","Narsapur","Narsapur","Errakunta Thanda","Errakunta Thanda","Tikya Thanda"]
[11193,"1722341005040303","Medak","Narsapur","Narsapur","Ramja Thanda","Ramja Thanda","Ramja Thanda"]
[11214,"1722341032031802","Medak","Narsapur","Narsapur","Khagazmaddur","Khagazmaddur","Khagazmaddur Thanda"]
[11260,"1703741012050800","Medak","Narsapur","Narsapur","Tirumalapur","Tirumalapur","Rupla Thanda"]
[11199,"1722341008060305","Medak","Narsapur","Narsapur","Mohmmadabad","Mohmmadabad","Kokyathanda"]
[11197,"1722341008080307","Medak","Narsapur","Narsapur","Ramja Thanda","Ramja Thanda","Bheemlathanda"]
[11259,"1722341012020801","Medak","Narsapur","Narsapur","Tujalpur","Tujalpur","Arju Thanda"]
[11203,"1703741003030200","Medak","Narsapur","Narsapur","Admapur","Admapur","Bodagutta Thanda"]
[11210,"1722341002010201","Medak","Narsapur","Narsapur","Errakunta Thanda","Errakunta Thanda","Laxman Thanda"]
[11167,"1722341001020100","Medak","Narsapur","Narsapur","Pilligundla Tanda","Pilligundla Tanda","Jivvipochamma Tanda"]
[11168,"1722341001030102","Medak","Narsapur","Narsapur","Pilligundla Tanda","Pilligundla Tanda","Nagonikunta Thanda"]
[11169,"1722341001030100","Medak","Narsapur","Narsapur","Pilligundla Tanda","Pilligundla Tanda","Pilligundla Tanda"]
[11224,"1722341007020501","Medak","Narsapur","Narsapur","Yellareddygudem Lt","Yellareddygudem Lt","Jayaram Thanda"]
[11245,"1722341034031900","Medak","Narsapur","Narsapur","Nathnaipally","Nathnaipally","Wadderawada"]
[11246,"1722341034041900","Medak","Narsapur","Narsapur","Nathnaipally","Nathnaipally","Wadderawada "]
[11219,"1722341016021000","Medak","Narsapur","Narsapur","Lingapur","Lingapur","Jagya Tanda"]
[11179,"1722341015050904","Medak","Narsapur","Narsapur","Brahmanpally","Brahmanpally","Anthaiahpally"]
[11200,"1722341008010300","Medak","Narsapur","Narsapur","Mohmmadabad","Mohmmadabad","Mohmmadabad"]
[11192,"1722341005030300","Medak","Narsapur","Narsapur","Mohmmadabad","Mohmmadabad","Narsing Thanda"]
[11216,"1722341032021800","Medak","Narsapur","Narsapur","Khagazmaddur","Khagazmaddur","Kondapur"]
[11227,"1722341007040503","Medak","Narsapur","Narsapur","Yellareddygudem Lt","Yellareddygudem Lt","Yellareddygudanew Colony"]
[11177,"1722341029011700","Medak","Narsapur","Narsapur","Madapur","Madapur","Madapur"]
[11208,"1722341002060200","Medak","Narsapur","Narsapur","Errakunta Thanda","Errakunta Thanda","Errakunta Thanda"]
[11258,"1722341013010800","Medak","Narsapur","Narsapur","Tirumalapur","Tirumalapur","Tirumalapur"]
[11172,"1722341026041700","Medak","Narsapur","Narsapur","Tuljarampet","Tuljarampet","Tuljarampet"]
[11240,"1722341030031200","Medak","Narsapur","Narsapur","Narsapur","Narsapur","Chaitanyapuri Colony"]
[11239,"1722341018011200","Medak","Narsapur","Narsapur","Narsapur","Narsapur","Hanumanthapur"]
[11256,"1722341023011500","Medak","Narsapur","Narsapur","Seetharapur","Seetharapur","Seetarampur"]
[11202,"1722341003010200","Medak","Narsapur","Narsapur","Admapur","Admapur","Admapur"]
[11213,"1722341032031800","Medak","Narsapur","Narsapur","Gudemgadda","Gudemgadda","Gudemgadda"]
[11230,"1722341017011100","Medak","Narsapur","Narsapur","Achampet","Achampet","Achampet"]
[11186,"1722341014010900","Medak","Narsapur","Narsapur","Gollapally","Gollapally","Gollapally"]
[11170,"1722341028011700","Medak","Narsapur","Narsapur","Yellapur","Yellapur","Yellapur"]
[11180,"1722341015010900","Medak","Narsapur","Narsapur","Brahmanpally","Brahmanpally","Brahmanpally"]
[11235,"1722341020011100","Medak","Narsapur","Narsapur","Narayanapur","Narayanapur","Narayanapur"]
[11251,"1722341010020600","Medak","Narsapur","Narsapur","Manthoor","Manthoor","Manthoor"]
[11195,"1722341004010300","Medak","Narsapur","Narsapur","Jakkapally","Jakkapally","Jakkapally"]
[11209,"1722341002010200","Medak","Narsapur","Narsapur","Ibrahimbad","Ibrahimbad","Ibrahimabad"]
[11221,"1722341016011000","Medak","Narsapur","Narsapur","Lingapur","Lingapur","Lingapur"]
[11217,"1722341011010700","Medak","Narsapur","Narsapur","Khajipet","Khajipet","Khajipet"]
[11261,"1722341012010800","Medak","Narsapur","Narsapur","Tujalpur","Tujalpur","Tujalpur"]
[11244,"1722341034011900","Medak","Narsapur","Narsapur","Nathnaipally","Nathnaipally","Nathnaipally"]
[11171,"1722341026011700","Medak","Narsapur","Narsapur","Avancha","Avancha","Avancha"]
[11228,"1722341006010400","Medak","Narsapur","Narsapur","Nagulapally","Nagulapally","Nagulpally"]
[11250,"1722341025011600","Medak","Narsapur","Narsapur","Ramchandrapur","Ramchandrapur","Ramchandrapur"]
[11166,"1722341001010100","Medak","Narsapur","Narsapur","Ahmednagar","Ahmednagar","Ahmednagar"]
[11253,"1722341010010600","Medak","Narsapur","Narsapur","Reddypally","Reddypally","Reddyplally"]
[11225,"1722341007010500","Medak","Narsapur","Narsapur","Moosapet","Moosapet","Moosapet"]
[11248,"1722341022011400","Medak","Narsapur","Narsapur","Peddachintakunta","Peddachintakunta","Peddachentakunta"]
[11215,"1722341032011800","Medak","Narsapur","Narsapur","Khagazmaddur","Khagazmaddur","Khagazmaddur"]
[11189,"1722341005010300","Medak","Narsapur","Narsapur","Chippalathrthy","Chippalathrthy","Chippalthuthy"]
[11187,"1722341021011300","Medak","Narsapur","Narsapur","Chinnachintakunta","Chinnachintakunta","Chinnachintakunta"]
[11255,"1722341024011500","Medak","Narsapur","Narsapur","Rustumpet","Rustumpet","Rustumpet"]
[11242,"1722341030011200","Medak","Narsapur","Narsapur","Narsapur","Narsapur","Narsapur"]
[11140,"1722342004020400","Medak","Narsapur","Shivampet","Pothulaboguda","Pothulaboguda","Dharama Thada"]
[11118,"1722342012021200","Medak","Narsapur","Shivampet","Rupla Thanda Janiya Thandakunya","Rupla Thanda Janiya Thandakunya","Pothireddipally Thanda"]
[11114,"1722342012011203","Medak","Narsapur","Shivampet","Rupla Thanda Janiya Thandakunya","Rupla Thanda Janiya Thandakunya","Bojya Thanda"]
[11128,"1722342025042300","Medak","Narsapur","Shivampet","Reddya Thanda","Reddya Thanda","Bikya Thanda"]
[11160,"1722342009010901","Medak","Narsapur","Shivampet","Bheemla Tanda","Bheemla Tanda","Deepla Thanda"]
[11113,"1722342005030500","Medak","Narsapur","Shivampet","Konthanpally","Konthanpally","Shanker L T"]
[11151,"1722342016011504","Medak","Narsapur","Shivampet","Tallapallygadda Thanda","Tallapallygadda Thanda","Laxmi Thanda"]
[11154,"1722342016011505","Medak","Narsapur","Shivampet","Tallapallygadda Thanda","Tallapallygadda Thanda","Shankar Thanda"]
[11150,"1722342016041500","Medak","Narsapur","Shivampet","Bhikya Thanda","Bhikya Thanda","Kokiya Thanda Gem Singh"]
[11162,"1722342009010903","Medak","Narsapur","Shivampet","Bheemla Tanda","Bheemla Tanda","Lalu Thanda"]
[11105,"1722342010011001","Medak","Narsapur","Shivampet","Edullapoor","Edullapoor","Reddy Wada"]
[11096,"1703742017091600","Medak","Narsapur","Shivampet","Reddya Thanda","Reddya Thanda","Roopsingh Thanda"]
[11110,"1722342006020600","Medak","Narsapur","Shivampet","Gundlapally","Gundlapally","Madhira Narsapur"]
[11115,"1722342012031200","Medak","Narsapur","Shivampet","Rupla Thanda Janiya Thandakunya","Rupla Thanda Janiya Thandakunya","Janiya Thanda Kunya"]
[11131,"1722342025032300","Medak","Narsapur","Shivampet","Peddagottimukkla","Peddagottimukkla","Donthikunta"]
[11153,"1722342016011502","Medak","Narsapur","Shivampet","Bhikya Thanda","Bhikya Thanda","Seetya Thanda"]
[11093,"1722342017011604","Medak","Narsapur","Shivampet","Bojjya Thanda","Bojjya Thanda","Jagya Thanda"]
[11142,"1722342011041100","Medak","Narsapur","Shivampet","Seeta Ram Thanda","Seeta Ram Thanda","Jagya Thanda"]
[11133,"1722342025072300","Medak","Narsapur","Shivampet","Peddagottimukkla","Peddagottimukkla","Somya Thanda"]
[11098,"1722342015021400","Medak","Narsapur","Shivampet","Chinnagottimukkla","Chinnagottimukkla","Marlagadda Thanda"]
[11107,"1722342019021700","Medak","Narsapur","Shivampet","Bojjya Thanda","Bojjya Thanda","Haridas Gangaiahpally Thanda"]
[11134,"1722342025082300","Medak","Narsapur","Shivampet","Peddagottimukkla","Peddagottimukkla","Thukya Thanda"]
[11163,"1722342009020900","Medak","Narsapur","Shivampet","Bheemla Tanda","Bheemla Tanda","Shanker Thanda"]
[11099,"1722342015031400","Medak","Narsapur","Shivampet","Chinnagottimukkla","Chinnagottimukkla","Smaya Thanda"]
[11102,"1722342008020800","Medak","Narsapur","Shivampet","Mallupally Thanda","Mallupally Thanda","Mallupally Thanda"]
[11088,"1722342002020200","Medak","Narsapur","Shivampet","Alipoor","Alipoor","Chandu Tanda"]
[11117,"1722342012011204","Medak","Narsapur","Shivampet","Rupla Thanda Janiya Thandakunya","Rupla Thanda Janiya Thandakunya","Pandya Thanda"]
[11095,"1722342017041600","Medak","Narsapur","Shivampet","Reddya Thanda","Reddya Thanda","Reddya Thanda"]
[11135,"1722342025062300","Medak","Narsapur","Shivampet","Tikya Devammagudem","Tikya Devammagudem","Tikya Thanda"]
[11161,"1722342009030900","Medak","Narsapur","Shivampet","Usirikapally","Usirikapally","Kottal"]
[11143,"1722342011021100","Medak","Narsapur","Shivampet","Seeta Ram Thanda","Seeta Ram Thanda","Lambadi Thanda Kaliram"]
[11156,"1703742016011500","Medak","Narsapur","Shivampet","Tallapallygadda Thanda","Tallapallygadda Thanda","Tallapallygadda Thanda"]
[11164,"1722342009010902","Medak","Narsapur","Shivampet","Bheemla Tanda","Bheemla Tanda","Touriya Thanda"]
[11120,"1722342027012401","Medak","Narsapur","Shivampet","Nawabpet","Nawabpet","Nawabpet Thanda"]
[11101,"1722342008030800","Medak","Narsapur","Shivampet","Mallupally Thanda","Mallupally Thanda","Mallupally"]
[11089,"1722342002030200","Medak","Narsapur","Shivampet","Alipoor","Alipoor","Puliya Tanda"]
[11130,"1722342025022300","Medak","Narsapur","Shivampet","Tikya Devammagudem","Tikya Devammagudem","Devammagudem"]
[11148,"1722342016051500","Medak","Narsapur","Shivampet","Tallapallygadda Thanda","Tallapallygadda Thanda","Gadda Purllya Thanda"]
[11157,"1722342016011501","Medak","Narsapur","Shivampet","Bhikya Thanda","Bhikya Thanda","Tukkiya Thanda"]
[11147,"1722342016011503","Medak","Narsapur","Shivampet","Bhikya Thanda","Bhikya Thanda","Bhikya Thanda"]
[11094,"1722342017021600","Medak","Narsapur","Shivampet","Bojjya Thanda","Bojjya Thanda","Malle Thanda"]
[11091,"1722342017011601","Medak","Narsapur","Shivampet","Bojjya Thanda","Bojjya Thanda","Bojjya Thanda"]
[11123,"1722342003020300","Medak","Narsapur","Shivampet","Bheemla Tanda","Bheemla Tanda","Bheemla Tanda"]
[11152,"1722342016031500","Medak","Narsapur","Shivampet","Bhikya Thanda","Bhikya Thanda","Nanu Thanda"]
[11145,"1722342011031100","Medak","Narsapur","Shivampet","Seeta Ram Thanda","Seeta Ram Thanda","Seeta Ram Thanda"]
[11136,"1722342001020100","Medak","Narsapur","Shivampet","Lingojiguda","Lingojiguda","Lingojiguda Tanda"]
[11122,"1722342027032400","Medak","Narsapur","Shivampet","Lachi Reddy Guda","Lachi Reddy Guda","Shivayyagudem"]
[11104,"1722342010011000","Medak","Narsapur","Shivampet","Edullapoor","Edullapoor","Edullapoor"]
[11119,"1722342027022400","Medak","Narsapur","Shivampet","Lachi Reddy Guda","Lachi Reddy Guda","Lachi Reddy Guda"]
[11137,"1722342001010100","Medak","Narsapur","Shivampet","Lingojiguda","Lingojiguda","Lingojiguda"]
[11165,"1722342009010900","Medak","Narsapur","Shivampet","Usirikapally","Usirikapally","Usirikapally"]
[11103,"1722342018010800","Medak","Narsapur","Shivampet","Magdunpur","Magdunpur","Magdunpur"]
[11129,"1722342025052300","Medak","Narsapur","Shivampet","Chennapur","Chennapur","Chennapur"]
[11106,"1722342019011700","Medak","Narsapur","Shivampet","Gangaiahpally","Gangaiahpally","Gangaiahpally"]
[11111,"1722342005020500","Medak","Narsapur","Shivampet","Danthanpally","Danthanpally","Danthanpally"]
[11116,"1722342012011200","Medak","Narsapur","Shivampet","Kothapet","Kothapet","Kothapet"]
[11146,"1722342007010700","Medak","Narsapur","Shivampet","Shabaspally","Shabaspally","Shabaspally"]
[11158,"1722342018012000","Medak","Narsapur","Shivampet","Sikindlapur","Sikindlapur","Sikindlapur"]
[11159,"1722342014011300","Medak","Narsapur","Shivampet","Thimmapoor","Thimmapoor","Thimmapoor"]
[11149,"1722342016021500","Medak","Narsapur","Shivampet","Gudur","Gudur","Gudur"]
[11141,"1722342004010400","Medak","Narsapur","Shivampet","Pothulaboguda","Pothulaboguda","Pothulaboguda"]
[11097,"1722342015011400","Medak","Narsapur","Shivampet","Chinnagottimukkla","Chinnagottimukkla","Chinnagottimukkla"]
[11087,"1722342002010200","Medak","Narsapur","Shivampet","Alipoor","Alipoor","Alipoor"]
[11124,"1722342003010300","Medak","Narsapur","Shivampet","Pambanda","Pambanda","Pambanda"]
[11090,"1722342023012100","Medak","Narsapur","Shivampet","Bijilipur","Bijilipur","Bijilipur"]
[11092,"1722342017011600","Medak","Narsapur","Shivampet","Chandi","Chandi","Chandi"]
[11109,"1722342006010600","Medak","Narsapur","Shivampet","Gundlapally","Gundlapally","Gundlapally"]
[11132,"1722342025012300","Medak","Narsapur","Shivampet","Peddagottimukkla","Peddagottimukkla","Peddagottimukkla"]
[11112,"1722342005010500","Medak","Narsapur","Shivampet","Konthanpally","Konthanpally","Konthanpally"]
[11121,"1722342027012400","Medak","Narsapur","Shivampet","Nawabpet","Nawabpet","Nawabpet"]
[11138,"1722342013010100","Medak","Narsapur","Shivampet","Pillutla","Pillutla","Pillutla"]
[11144,"1722342011011100","Medak","Narsapur","Shivampet","Ratnapoor","Ratnapoor","Ratnapoor"]
[11155,"1722342016011500","Medak","Narsapur","Shivampet","Shivampet","Shivampet","Shivampet"]
[11100,"1722342008010800","Medak","Narsapur","Shivampet","Donthi","Donthi","Donthi"]
[11108,"1722342024012200","Medak","Narsapur","Shivampet","Gomaram","Gomaram","Gomaram"]
[11073,"1703724002020200","Medak","Narsapur","Yeldurthy","Settipalle Kalan","Settipalle Kalan","Shettipally Thanda"]
[11044,"1722824004020400","Medak","Narsapur","Yeldurthy","Edulapally","Edulapally","Edulapally Lt"]
[11059,"1722824009020900","Medak","Narsapur","Yeldurthy","Manepalle","Manepalle","Reddygudem"]
[11037,"1703724008010800","Medak","Narsapur","Yeldurthy","Mohammadnagar Thanda","Mohammadnagar Thanda","Peddamagadda Thanda"]
[11085,"1722824012021200","Medak","Narsapur","Yeldurthy","Yesvantharaopet","Yesvantharaopet","Eswnthraopet Lt"]
[11063,"1722824011011100","Medak","Narsapur","Yeldurthy","Mannevar Jalalpur","Mannevar Jalalpur","M Jalalpur Lt"]
[11060,"1722824010021000","Medak","Narsapur","Yeldurthy","Mangalparthy","Mangalparthy","Mangalparthy Lt"]
[11052,"1722824019021900","Medak","Narsapur","Yeldurthy","Koppulapalle","Koppulapalle","Koppulapally Lt"]
[11075,"1722824005020500","Medak","Narsapur","Yeldurthy","Uppulingapur","Uppulingapur","Uppulingapur Lt"]
[11047,"1722824015031500","Medak","Narsapur","Yeldurthy","Hakimpet","Hakimpet","Gopalakrishnapuram"]
[11070,"1722824016021600","Medak","Narsapur","Yeldurthy","Ramanthapur","Ramanthapur","Lingareddipalle"]
[11041,"1722824001020100","Medak","Narsapur","Yeldurthy","Damarancha","Damarancha","Akkampally"]
[11083,"1703724013061300","Medak","Narsapur","Yeldurthy","Cherlapally","Cherlapally","Vardamancheru Thanda"]
[11049,"1722824020032000","Medak","Narsapur","Yeldurthy","Shamshireddypally","Shamshireddypally","Bandameedipally"]
[11039,"1722824003030300","Medak","Narsapur","Yeldurthy","Ramaipally","Ramaipally","Kothapally"]
[11080,"1703724020042000","Medak","Narsapur","Yeldurthy","Hasthalpur","Hasthalpur","Gangireddula Wada"]
[11066,"1722824014021400","Medak","Narsapur","Yeldurthy","Mellur","Mellur","Peddapur"]
[11036,"1722824008020800","Medak","Narsapur","Yeldurthy","Mohammadnagar Thanda","Mohammadnagar Thanda","Mohammadnagar Thanda"]
[11051,"1722824020022000","Medak","Narsapur","Yeldurthy","Shamshireddypally","Shamshireddypally","Shamshireddypally"]
[11069,"1722824018031800","Medak","Narsapur","Yeldurthy","Stn Masaipet","Stn Masaipet","Stn Masaipet"]
[11079,"1722824013021300","Medak","Narsapur","Yeldurthy","Yeldurthy","Yeldurthy","Elkapally"]
[11057,"1703724006040600","Medak","Narsapur","Yeldurthy","Kukunur","Kukunur","Prakashnagar"]
[11056,"1722824006030600","Medak","Narsapur","Yeldurthy","Baswapur","Baswapur","Panthulapally"]
[11048,"1722824015011500","Medak","Narsapur","Yeldurthy","Hakimpet","Hakimpet","Hakeempet"]
[11054,"1722824006020600","Medak","Narsapur","Yeldurthy","Kukunur","Kukunur","Baswapur"]
[11071,"1722824016031600","Medak","Narsapur","Yeldurthy","Ramanthapur Lt","Ramanthapur Lt","Ramanthapur Lt"]
[11081,"1703724013071300","Medak","Narsapur","Yeldurthy","Yeldurthy","Yeldurthy","Kotakindha"]
[11046,"1722824015021500","Medak","Narsapur","Yeldurthy","Achampet","Achampet","Achampet"]
[11067,"1722824018021800","Medak","Narsapur","Yeldurthy","Bommaram","Bommaram","Bommaram"]
[11078,"1722824013041300","Medak","Narsapur","Yeldurthy","Cherlapally","Cherlapally","Cherlapally"]
[11072,"1722824016011600","Medak","Narsapur","Yeldurthy","Ramanthapur","Ramanthapur","Ramanthapur"]
[11068,"1722824018011800","Medak","Narsapur","Yeldurthy","Nagsanpally","Nagsanpally","Nagsanpally"]
[11077,"1722824013031300","Medak","Narsapur","Yeldurthy","Aregudem","Aregudem","Aregudem"]
[11045,"1722824004010400","Medak","Narsapur","Yeldurthy","Edulapally","Edulapally","Edulapally"]
[11038,"1722824003010300","Medak","Narsapur","Yeldurthy","Bandaposanpalle","Bandaposanpalle","Bandaposanpalli"]
[11065,"1722824014011400","Medak","Narsapur","Yeldurthy","Mellur","Mellur","Mellore"]
[11050,"1722824020012000","Medak","Narsapur","Yeldurthy","Hasthalpur","Hasthalpur","Hasthalpur"]
[11043,"1722824007010700","Medak","Narsapur","Yeldurthy","Dharmaram","Dharmaram","Dharmaram"]
[11082,"1722824013051300","Medak","Narsapur","Yeldurthy","Yeldurthy","Yeldurthy","Serilla"]
[11086,"1722824012011200","Medak","Narsapur","Yeldurthy","Yesvantharaopet","Yesvantharaopet","Eswnthraopet"]
[11035,"1722824008010800","Medak","Narsapur","Yeldurthy","Andugulapally","Andugulapally","Andugulapally"]
[11062,"1722824011021100","Medak","Narsapur","Yeldurthy","Mannevar Jalalpur","Mannevar Jalalpur","M Jalalpur"]
[11061,"1722824010011000","Medak","Narsapur","Yeldurthy","Mangalparthy","Mangalparthy","Mangalparthy"]
[11076,"1722824005010500","Medak","Narsapur","Yeldurthy","Uppulingapur","Uppulingapur","Uppulingapur"]
[11042,"1722824001010100","Medak","Narsapur","Yeldurthy","Damarancha","Damarancha","Damarancha"]
[11053,"1722824019011900","Medak","Narsapur","Yeldurthy","Koppulapalle","Koppulapalle","Koppulapally"]
[11040,"1722824003020300","Medak","Narsapur","Yeldurthy","Ramaipally","Ramaipally","Ramaipally"]
[11055,"1722824006010600","Medak","Narsapur","Yeldurthy","Baswapur","Baswapur","Kukunur"]
[11058,"1722824009010900","Medak","Narsapur","Yeldurthy","Manepalle","Manepalle","Manepally"]
[11074,"1722824002010200","Medak","Narsapur","Yeldurthy","Settipalle Kalan","Settipalle Kalan","Shettipally"]
[11084,"1722824013011300","Medak","Narsapur","Yeldurthy","Yeldurthy","Yeldurthy","Yeldurthy"]
[11064,"1722824017011700","Medak","Narsapur","Yeldurthy","Masaipet","Masaipet","Masaipet"]
[14434,"1722823023022201","Medak","Toopran","Chegunta","Makkarajpet","Makkarajpet","Salkamcheru Lt"]
[14451,"1722823014061200","Medak","Toopran","Chegunta","Rampur","Rampur","Deshiya Tanda"]
[14455,"1722823014021200","Medak","Toopran","Chegunta","Somla  Palugu Thanda","Somla  Palugu Thanda","Palugu Tanda"]
[14407,"1704123010020800","Medak","Toopran","Chegunta","B Kondapur","B Kondapur","Singarayagutta"]
[14409,"1722823009010700","Medak","Toopran","Chegunta","Bonal","Bonal","Pitla Tanda"]
[14442,"1722823025032400","Medak","Toopran","Chegunta","Pedda Shivnoor","Pedda Shivnoor","Mangya Tanda"]
[14452,"1722823014031200","Medak","Toopran","Chegunta","Rampur","Rampur","Jeevlatanda"]
[14422,"1722823013051100","Medak","Toopran","Chegunta","Gollapally","Gollapally","Peddagutta"]
[14421,"1722823013011100","Medak","Toopran","Chegunta","Gollapally","Gollapally","Kotwal Tanda"]
[14441,"1722823025022400","Medak","Toopran","Chegunta","Pedda Shivnoor","Pedda Shivnoor","Gopalapuram"]
[14433,"1722823007010600","Medak","Toopran","Chegunta","Makkarajpet","Makkarajpet","Raincherutanda"]
[14446,"1722823026022700","Medak","Toopran","Chegunta","Pothanpally","Pothanpally","Lambadi Tanda"]
[14424,"1722823013021100","Medak","Toopran","Chegunta","Gollapally","Gollapally","Vasuram Tanda"]
[14445,"1722823026012700","Medak","Toopran","Chegunta","Pothanpally","Pothanpally","Jillagutta Tanda"]
[14454,"1722823014051200","Medak","Toopran","Chegunta","Rampur","Rampur","Lokiya Tanda"]
[14431,"1722823029022800","Medak","Toopran","Chegunta","Kasanpalle","Kasanpalle","Lambaditanda"]
[14423,"1722823013031100","Medak","Toopran","Chegunta","Gollapally","Gollapally","Reddya Tanda"]
[14413,"1722823027052600","Medak","Toopran","Chegunta","Nadmitanda","Nadmitanda","Nadmitanda"]
[14416,"1722823027022600","Medak","Toopran","Chegunta","Nadmitanda","Nadmitanda","Venuka Tanda"]
[14414,"1722823027042600","Medak","Toopran","Chegunta","Nadmitanda","Nadmitanda","Puliguttatanda"]
[14420,"1722823013041100","Medak","Toopran","Chegunta","Jeethiya Tanda","Jeethiya Tanda","Jeethiya Tanda"]
[14449,"1722823008010600","Medak","Toopran","Chegunta","Pulimamidi","Pulimamidi","Kishtapur"]
[14415,"1722823027032600","Medak","Toopran","Chegunta","Chetla Thimmaipalli","Chetla Thimmaipalli","Sajutanda"]
[14440,"1722823001010100","Medak","Toopran","Chegunta","Valbhapur","Valbhapur","Valbhapur"]
[14412,"1722823020011800","Medak","Toopran","Chegunta","Chetla Thimmaipalli","Chetla Thimmaipalli","Chetlathimaipally"]
[14419,"1722823022012000","Medak","Toopran","Chegunta","Gollapally","Gollapally","Gollapally"]
[14430,"1722823006010500","Medak","Toopran","Chegunta","Kasanpalle","Kasanpalle","Kasanpally"]
[14450,"1722823014011200","Medak","Toopran","Chegunta","Pulimamidi","Pulimamidi","Pulimamidi"]
[14453,"1722823014041200","Medak","Toopran","Chegunta","Kareemnagar","Kareemnagar","Kareemnagar"]
[14443,"1722823025012400","Medak","Toopran","Chegunta","Pedda Shivnoor","Pedda Shivnoor","Peddashivnur"]
[14418,"1722823022022100","Medak","Toopran","Chegunta","Chittojipalle","Chittojipalle","Chittojipally"]
[14444,"1722823019011700","Medak","Toopran","Chegunta","Polampalle","Polampalle","Polampally"]
[14459,"1722823011020900","Medak","Toopran","Chegunta","Ullithimmaipalle","Ullithimmaipalle","Ullithimaipally"]
[14458,"1722823016011400","Medak","Toopran","Chegunta","Rukmapur","Rukmapur","Rukmapur"]
[14405,"1722823015011300","Medak","Toopran","Chegunta","Ananthsagar","Ananthsagar","Ananthsagar"]
[14417,"1722823027012600","Medak","Toopran","Chegunta","Chinna Shivnoor","Chinna Shivnoor","Chinnshivnur"]
[14448,"1722823028012700","Medak","Toopran","Chegunta","Pothanpally","Pothanpally","Pothanpally"]
[14457,"1722823005010400","Medak","Toopran","Chegunta","Reddipalle","Reddipalle","Reddypally"]
[14456,"1722823017011500","Medak","Toopran","Chegunta","Rampur","Rampur","Rampur"]
[14447,"1722823028022700","Medak","Toopran","Chegunta","Pothamshetpally","Pothamshetpally","Pothamshetpally"]
[14429,"1722823006020300","Medak","Toopran","Chegunta","Karnalpally","Karnalpally","Karnalpally"]
[14406,"1722823010010800","Medak","Toopran","Chegunta","B Kondapur","B Kondapur","B Kondapur"]
[14408,"1722823019021600","Medak","Toopran","Chegunta","Bonal","Bonal","Bonal"]
[14428,"1722823012011000","Medak","Toopran","Chegunta","Ibrahimpur","Ibrahimpur","Ibrahimpur"]
[14410,"1722823009020700","Medak","Toopran","Chegunta","Chandaipet","Chandaipet","Chandaipet"]
[14432,"1722823029012800","Medak","Toopran","Chegunta","Makkarajpet","Makkarajpet","Makkarajpet"]
[14464,"1722823021011900","Medak","Toopran","Chegunta","Wadiaram","Wadiaram","Waddiaram"]
[14411,"1722823024012300","Medak","Toopran","Chegunta","Chegunta","Chegunta","Chegunta"]
[14786,"1722243031032000","Medak","Toopran","Manoharabad","Kucharam","Kucharam","Dillai"]
[14796,"1722243028031700","Medak","Toopran","Manoharabad","Manoharabad","Manoharabad","Railway Station"]
[14795,"1722243028041700","Medak","Toopran","Manoharabad","Manoharabad","Manoharabad","Pittalagudiselu"]
[14788,"1722243031022000","Medak","Toopran","Manoharabad","Kucharam","Kucharam","Lambadithanda"]
[14779,"1722243030021900","Medak","Toopran","Manoharabad","Jeedipally","Jeedipally","Gollagadda"]
[14784,"1722243025011600","Medak","Toopran","Manoharabad","Konaipallypt","Konaipallypt","Dharmarajpally"]
[14782,"1722243032022100","Medak","Toopran","Manoharabad","Kondapur","Kondapur","Kondapur"]
[11127,"1722342021021900","Medak","Toopran","Manoharabad","Parki Banda","Parki Banda","Thupakulapally"]
[11125,"1722342021031900","Medak","Toopran","Manoharabad","Gouthoji Guda","Gouthoji Guda","Gouthoji Guda"]
[14803,"1722243026012200","Medak","Toopran","Manoharabad","Chetlagouraram","Chetlagouraram","Chetlagouraram"]
[14801,"1722243022011500","Medak","Toopran","Manoharabad","Palat","Palat","Palat"]
[14793,"1722243028021700","Medak","Toopran","Manoharabad","Dandupally","Dandupally","Dandupally"]
[14769,"1722243024011200","Medak","Toopran","Manoharabad","Venkatapuragr","Venkatapuragr","Venakatapuragr"]
[14785,"1722243027011600","Medak","Toopran","Manoharabad","Konaipallypt","Konaipallypt","Konaipallypt"]
[11126,"1722342021011900","Medak","Toopran","Manoharabad","Parki Banda","Parki Banda","Parki Banda"]
[14804,"1722243034012200","Medak","Toopran","Manoharabad","Rangaipally","Rangaipally","Rangaipally"]
[14797,"1722243033011800","Medak","Toopran","Manoharabad","Muppireddypally","Muppireddypally","Muppireddypally"]
[14780,"1722243030011900","Medak","Toopran","Manoharabad","Jeedipally","Jeedipally","Jeedipally"]
[11139,"1722342020011800","Medak","Toopran","Manoharabad","Potharam","Potharam","Potharam"]
[14789,"1722243021011400","Medak","Toopran","Manoharabad","Lingareddypet","Lingareddypet","Lingareddypet"]
[14787,"1722243031012000","Medak","Toopran","Manoharabad","Kucharam","Kucharam","Kucharam"]
[14802,"1722243023011500","Medak","Toopran","Manoharabad","Ramaipally","Ramaipally","Ramaipally"]
[14794,"1722243028011700","Medak","Toopran","Manoharabad","Manoharabad","Manoharabad","Manoharabad"]
[14781,"1722243032012100","Medak","Toopran","Manoharabad","Kallakal","Kallakal","Kallakal"]
[7039,"1722812003010601","Medak","Toopran","Narsingi","Zaptishivanoor","Zaptishivanoor","Z Shivanoor Lt"]
[7208,"1722812003020600","Medak","Toopran","Narsingi","Zaptishivanoor","Kaslapur","Kaslapur"]
[7038,"1703412003010600","Medak","Toopran","Narsingi","Zaptishivanoor","Zaptishivanoor","Kasna Kashya Thanda"]
[7035,"1722812401010401","Medak","Toopran","Narsingi","Sankapur Lt","Sankapur Lt","Sankapur Lt"]
[14462,"1722823003010100","Medak","Toopran","Narsingi","Bheemraopally","Bheemraopally","Bheemraopally"]
[14437,"1722823002020201","Medak","Toopran","Narsingi","Pedda Thanda","Narsampally","Pedda Thanda"]
[14463,"1722823018011600","Medak","Toopran","Narsingi","Vallur","Vallur","Vallur"]
[14438,"1722823002010200","Medak","Toopran","Narsingi","Narsingi","Narsingi","Lambadi Thanda"]
[14436,"1722823023022200","Medak","Toopran","Narsingi","Narasampally","Narsampally","Narsampally"]
[7036,"1722812002010401","Medak","Toopran","Narsingi","Shankpur","Shankpur","Shankapur"]
[7040,"1722812003010600","Medak","Toopran","Narsingi","Zaptishivanoor","Zaptishivanoor","Zaptishivanoor"]
[7037,"1722812006011000","Medak","Toopran","Narsingi","Sheripally","Sheripally","Sheripally"]
[14435,"1722823023012200","Medak","Toopran","Narsingi","Pedda Thanda","Narsampally","Chinnathanda"]
[14439,"1722823002020200","Medak","Toopran","Narsingi","Narsingi","Narsingi","Narsingi"]
[25134,0,"Medak","Toopran","Nizampet","Nizampet ","Nizampet ","Turkakasi"]
[7045,"1722813014031200","Medak","Toopran","Nizampet","Chelmada","Chelmada","Medikunta "]
[7042,"1703413020012000","Medak","Toopran","Nizampet","Bachurajpally","Bachurajpally","Bachurajpally Thanda "]
[7058,"1722813019031900","Medak","Toopran","Nizampet","Thippanagulla","Thippanagulla","Shoukatpally"]
[7063,"1722813018021700","Medak","Toopran","Nizampet","Venkatapur K","Venkatapur K","Venkatapur K Thanda "]
[7061,"1703413019021900","Medak","Toopran","Nizampet","Thippanagulla","Thippanagulla","Waddera Colony "]
[7059,"1703413019011900","Medak","Toopran","Nizampet","Thippanagulla","Thippanagulla","Shoukatpally Thanda"]
[7055,"1722813017031600","Medak","Toopran","Nizampet","Razakpally","Razakpally","Kasimpur "]
[7056,"1722813017021600","Medak","Toopran","Nizampet","Razakpally","Razakpally","Kasimpur Thanda "]
[7049,"1722813015041300","Medak","Toopran","Nizampet","Nagaram ","Nagaram ","Nagaram "]
[7043,"1722813020022002","Medak","Toopran","Nizampet","Jadcheru Thanda","Jadcheru Thanda","Jadcheru Thanda"]
[7050,"1703413015011300","Medak","Toopran","Nizampet","Nagaram ","Nagaram ","Nagaram Thanda "]
[7057,"1722813018011600","Medak","Toopran","Nizampet","Razakpally","Razakpally","Razakpally"]
[7041,"1722813020022000","Medak","Toopran","Nizampet","Bachurajpally","Bachurajpally","Bachurajpally"]
[7060,"1722813019021900","Medak","Toopran","Nizampet","Thippanagulla","Thippanagulla","Thippanagulla"]
[7051,"1722813015031300","Medak","Toopran","Nizampet","Nandagokul ","Nandagokul ","Nandagokul "]
[7062,"1722813018011700","Medak","Toopran","Nizampet","Venkatapur K","Venkatapur K","Venkatapur K"]
[7053,"1722813015021300","Medak","Toopran","Nizampet","Rampur ","Rampur ","Rampur "]
[7047,"1722813013011100","Medak","Toopran","Nizampet","Nandigama ","Nandigama ","Nandigam "]
[7048,"1722813019011800","Medak","Toopran","Nizampet","Narlapur ","Narlapur ","Narlapur "]
[7052,"1722813015011300","Medak","Toopran","Nizampet","Naskal","Naskal","Naskal "]
[7046,"1722813017011500","Medak","Toopran","Nizampet","Kalvakunta","Kalvakunta","Kalvakunta"]
[7044,"1722813014011200","Medak","Toopran","Nizampet","Chelmada","Chelmada","Chelmada "]
[7054,"1722813016011400","Medak","Toopran","Nizampet","Nizampet","Nizampet ","Nizampet "]
[7128,"1722813001060100","Medak","Toopran","Ramayampet","Danthepally","Danthepally","Chandru Tanda"]
[7139,"1722713003030300","Medak","Toopran","Ramayampet","Katrial","Katrial","Temple Tanda  Panya Thanda"]
[7137,"1722813003020300","Medak","Toopran","Ramayampet","Katrial","Katrial","Laxman Naik Thanda  Jemla Thanda"]
[7130,"1722813001040100","Medak","Toopran","Ramayampet","Danthepally","Danthepally","Raghavendar Tanda Jemla"]
[7140,"1722813012021000","Medak","Toopran","Ramayampet","Konapur","Konapur","Chinnthanda"]
[7143,"1722813012031000","Medak","Toopran","Ramayampet","Konapur","Konapur","Turkakasilt"]
[7135,"1722713006010600","Medak","Toopran","Ramayampet","Janshilingapur","Janshilingapur","Sadasivnagar"]
[7145,"1722713002020201","Medak","Toopran","Ramayampet","Parvathapur","Parvathapur","Gangya Lt"]
[7131,"1722813001050100","Medak","Toopran","Ramayampet","Danthepally","Danthepally","Tukram Tanda"]
[7155,"1722813010040900","Medak","Toopran","Ramayampet","Ramayampet","Ramayampet","Komatpally Thanda"]
[7147,"1722813002020200","Medak","Toopran","Ramayampet","Parvathapur","Parvathapur","Lokya Tanda"]
[7132,"1722813009020800","Medak","Toopran","Ramayampet","Dhamaracheruvu","Dhamaracheruvu","Damarcheru Thanda"]
[7126,"1722813001030100","Medak","Toopran","Ramayampet","Danthepally","Danthepally","Bilya Tanda"]
[7142,"1722813012041000","Medak","Toopran","Ramayampet","Konapur","Konapur","Peddatanda"]
[7148,"1722813002050200","Medak","Toopran","Ramayampet","Parvathapur","Parvathapur","Mothku Tanda"]
[7146,"1722713002040200","Medak","Toopran","Ramayampet","Kishan Lt","Kishan Lt","Kishan Lt"]
[7122,"1722813008020700","Medak","Toopran","Ramayampet","Akkanpet","Akkanpet","Akkannapet Stn"]
[7158,"1703413005010500","Medak","Toopran","Ramayampet","Tonigandla","Tonigandla","Narayan Thanda"]
[7157,"1722813010030900","Medak","Toopran","Ramayampet","Ramayampet","Ramayampet","Ramayampet Thanda"]
[7138,"1722813003030300","Medak","Toopran","Ramayampet","Katrial","Katrial","Ramlanaik Thanda  Golya Thanda"]
[7127,"1722813001020100","Medak","Toopran","Ramayampet","Danthepally","Danthepally","Bp Tanda"]
[7129,"1722813001010100","Medak","Toopran","Ramayampet","Danthepally","Danthepally","Danhepally"]
[7149,"1722813002010200","Medak","Toopran","Ramayampet","Parvathapur","Parvathapur","Parvathapur"]
[7154,"1722813011010900","Medak","Toopran","Ramayampet","Ramayampet","Ramayampet","Komatipalli"]
[7152,"1722813021022100","Medak","Toopran","Ramayampet","Venkatapur R","Venkatapur R","Venkatapur R"]
[7125,"1722813023012200","Medak","Toopran","Ramayampet","Shivaipally","Shivaipally","Shivaipally"]
[7159,"1722713005010500","Medak","Toopran","Ramayampet","Tonigandla","Tonigandla","Tonigandla"]
[7141,"1722813012011000","Medak","Toopran","Ramayampet","Konapur","Konapur","Konapur"]
[7150,"1722813021012100","Medak","Toopran","Ramayampet","Railapur","Railapur","Railapur"]
[7151,"1722813022012100","Medak","Toopran","Ramayampet","Sutaripalli","Sutaripalli","Sutaripalli"]
[7153,"1722813010020900","Medak","Toopran","Ramayampet","Ramayampet","Ramayampet","Gulparty"]
[7133,"1722813009010800","Medak","Toopran","Ramayampet","Dhamaracheruvu","Dhamaracheruvu","Dhamaracheruvu"]
[7136,"1722713003010300","Medak","Toopran","Ramayampet","Katrial","Katrial","Katriala"]
[7144,"1722713004010400","Medak","Toopran","Ramayampet","Laxmapur","Laxmapur","Laxmapur"]
[7134,"1722713007010600","Medak","Toopran","Ramayampet","Janshilingapur","Janshilingapur","Janshilingapur"]
[7124,"1722813024012200","Medak","Toopran","Ramayampet","D Darmaram","D Darmaram","D Darmaram"]
[7123,"1722713008010700","Medak","Toopran","Ramayampet","Akkanpet","Akkanpet","Akkanpet"]
[7156,"1722813010010900","Medak","Toopran","Ramayampet","Ramayampet","Ramayampet","Ramayampet"]
[7196,"1722812012022300","Medak","Toopran","Shankarampet R","S Kondapur","S Kondapur","S Kondapur Lt"]
[7205,"1722812019014101","Medak","Toopran","Shankarampet R","Suraram","Suraram","Suraram Lt"]
[7185,"1722812008031300","Medak","Toopran","Shankarampet R","Madoor","Madoor","Kurmapally"]
[7200,"1722812015053500","Medak","Toopran","Shankarampet R","Shankarampet","Shankarampet","Kurmapally"]
[7201,"1722812015073500","Medak","Toopran","Shankarampet R","Mallupally","Mallupally","Mallupally"]
[7172,"1703412018023900","Medak","Toopran","Shankarampet R","Jangarai Lt","Jangarai Lt","Nagulamma Thanda"]
[7174,"1722812018013901","Medak","Toopran","Shankarampet R","Jangarai Lt","Jangarai Lt","Jangarai Lt"]
[7194,"1722812012042300","Medak","Toopran","Shankarampet R","S Kondapur","S Kondapur","Ranguvani Pally"]
[7183,"1722812010011901","Medak","Toopran","Shankarampet R","Koruipally","Koruipally","Koruipally Lt"]
[7178,"1703412007011100","Medak","Toopran","Shankarampet R","Kamaram","Kamaram","Rajya Thanda"]
[7181,"1722812001020100","Medak","Toopran","Shankarampet R","Khajapur","Khajapur","Kummarlaplly"]
[7171,"1703412018033900","Medak","Toopran","Shankarampet R","Jangarai Lt","Jangarai Lt","Erragutta Thanda"]
[7175,"1703412018013900","Medak","Toopran","Shankarampet R","Jangarai Lt","Jangarai Lt","Sarvan Lt"]
[7170,"1703412013022800","Medak","Toopran","Shankarampet R","Gavalapally","Gavalapally","Koyyamarri Thanda"]
[7199,"1722812015043500","Medak","Toopran","Shankarampet R","Shankarampet","Shankarampet","Bhagirthipally"]
[7169,"1703412013012800","Medak","Toopran","Shankarampet R","Gavalapally","Gavalapally","Gerilla Thanda"]
[7193,"1722812012032300","Medak","Toopran","Shankarampet R","S Kondapur","S Kondapur","Pyatagadda"]
[7188,"1722812008051300","Medak","Toopran","Shankarampet R","Venkatrao Pally","Venkatrao Pally","Venkatrao Pally"]
[7180,"1722812001010101","Medak","Toopran","Shankarampet R","Khajapur Lt","Khajapur Lt","Khajapur Lt"]
[7166,"1722812013022800","Medak","Toopran","Shankarampet R","Gavalapally","Gavalapally","Agraharam"]
[7190,"1703412005010800","Medak","Toopran","Shankarampet R","Mirzapally","Mirzapally","Mirzapally Station"]
[7176,"1722812007011100","Medak","Toopran","Shankarampet R","Kamaram","Kamaram","Kamaram"]
[7187,"1722812008021300","Medak","Toopran","Shankarampet R","Sangipally","Sangipally","Sangipally"]
[7191,"1722812005010801","Medak","Toopran","Shankarampet R","Mirzapally Thanda","Mirzapally Thanda","Mirzapally Thanda"]
[7207,"1722812011022100","Medak","Toopran","Shankarampet R","T Mandhapur Lt","T Mandhapur Lt","T Mandhapur Lt"]
[7182,"1722812010011900","Medak","Toopran","Shankarampet R","Koruipally","Koruipally","Koruipally"]
[7168,"1722812013032800","Medak","Toopran","Shankarampet R","Gavalapally Lt","Gavalapally Lt","Gavalapally Lt"]
[7177,"1722812007021100","Medak","Toopran","Shankarampet R","Kamaram Thanda","Kamaram Thanda","Kamaram Thanda"]
[7184,"1722812008041300","Medak","Toopran","Shankarampet R","Chennai Pally","Chennai Pally","Chennai Pally"]
[7163,"1722812017013800","Medak","Toopran","Shankarampet R","Chandampur","Chandampur","Chandampur"]
[7203,"1722812019024100","Medak","Toopran","Shankarampet R","Bagirthpally","Bagirthpally","Bagirthpally"]
[7206,"1722812011012100","Medak","Toopran","Shankarampet R","T Mandhapur","T Mandhapur","T Mandhapur"]
[7173,"1722812018013900","Medak","Toopran","Shankarampet R","Jangarai","Jangarai","Jangarai"]
[7160,"1722812014013100","Medak","Toopran","Shankarampet R","Ambajipet","Ambajipet","Ambajipet"]
[7195,"1722812301012301","Medak","Toopran","Shankarampet R","S Kondapur","S Kondapur","S Kondapur"]
[7186,"1722812008011300","Medak","Toopran","Shankarampet R","Madoor","Madoor","Madoor"]
[7165,"1722812009011800","Medak","Toopran","Shankarampet R","Gajagatlapally","Gajagatlapally","Gajagatlapally"]
[7189,"1722812005010800","Medak","Toopran","Shankarampet R","Mirzapally","Mirzapally","Mirzapally"]
[7167,"1722812013012800","Medak","Toopran","Shankarampet R","Gavalapally","Gavalapally","Gavalapally"]
[7162,"1722812016023700","Medak","Toopran","Shankarampet R","Rudraram","Rudraram","Rudraram"]
[7197,"1722812008020500","Medak","Toopran","Shankarampet R","Shalipet","Shalipet","Ramaipally"]
[7179,"1722812001010100","Medak","Toopran","Shankarampet R","Khajapur","Khajapur","Khajapur"]
[7198,"1722812008010500","Medak","Toopran","Shankarampet R","Shalipet","Shalipet","Shalipet"]
[7161,"1722812016013700","Medak","Toopran","Shankarampet R","Chandampet","Chandampet","Chandampet"]
[7164,"1722812300004300","Medak","Toopran","Shankarampet R","Dharipally","Dharipally","Dharipally"]
[7204,"1722812019014100","Medak","Toopran","Shankarampet R","Suraram","Suraram","Suraram"]
[7202,"1722812015063500","Medak","Toopran","Shankarampet R","Shankarampet","Shankarampet","Shankarampet"]
[14810,"1722243013050900","Medak","Toopran","Toopran","Toopran","Toopran","Pushkaralu"]
[14792,"1722143007030400","Medak","Toopran","Toopran","Malkapur","Malkapur","Malkapur Thanda"]
[14842,"1722244001020100","Medak","Toopran","Toopran","Narsam Pally","Narsam Pally","Limbyatanda"]
[14841,"1722244001040100","Medak","Toopran","Toopran","Narsam Pally","Narsam Pally","Gundiyanayak Thanda"]
[14778,"1722243004020200","Medak","Toopran","Toopran","Islampur","Islampur","Islampur Thanda"]
[14844,"1722244001030100","Medak","Toopran","Toopran","Narsam Pally","Narsam Pally","Redyanayak Thanda"]
[14774,"1722243006030300","Medak","Toopran","Toopran","Gundreddypally","Gundreddypally","Goundlagudam"]
[14813,"1722243011020700","Medak","Toopran","Toopran","Yavapur","Yavapur","Tadakpally"]
[14809,"1722243013020900","Medak","Toopran","Toopran","Toopran","Toopran","Hyderguda"]
[24802,0,"Medak","Toopran","Toopran","Ghanpur","Ghanpur","Wadderawada"]
[14808,"1722243013040900","Medak","Toopran","Toopran","Toopran","Toopran","Abothpally"]
[14798,"1722243002010100","Medak","Toopran","Toopran","Nagulapally","Nagulapally","Jandepally"]
[14791,"1722143007020400","Medak","Toopran","Toopran","Malkapur","Malkapur","Malkapur"]
[14766,"1722243016011000","Medak","Toopran","Toopran","Brahmanpally","Brahmanpally","Venkatapurpt"]
[14770,"1722243018021200","Medak","Toopran","Toopran","Ghanpur","Ghanpur","Dhamakpally"]
[14800,"1722243001010100","Medak","Toopran","Toopran","Vatoor","Vatoor","Vatoor"]
[14807,"1722243013030900","Medak","Toopran","Toopran","Toopran","Toopran","Tatabapanpally"]
[14773,"1722243006020300","Medak","Toopran","Toopran","Datharpally","Datharpally","Datharpally"]
[14776,"1722243004030200","Medak","Toopran","Toopran","Venkataratnapur","Venkataratnaur","Venkataratnaur"]
[14767,"1722243015011000","Medak","Toopran","Toopran","Brahmanpally","Brahmanpally","Brahmanpally"]
[14790,"1722143007010400","Medak","Toopran","Toopran","Konaipally Pb","Konaipally Pb","Konaipally Pb"]
[14775,"1722243019011300","Medak","Toopran","Toopran","Immampur","Immampur","Immampur"]
[14805,"1722243017021100","Medak","Toopran","Toopran","Ravelly","Ravelly","Pothrajpally"]
[14806,"1722243017011100","Medak","Toopran","Toopran","Ravelly","Ravelly","Ravelly"]
[14799,"1722243003010100","Medak","Toopran","Toopran","Nagulapally","Nagulapally","Nagulapally"]
[14812,"1722243009010500","Medak","Toopran","Toopran","Venkataipally","Venkataipally","Venkataipally"]
[14768,"1722243014011000","Medak","Toopran","Toopran","Brahmanpally","Brahmanpally","Padalpally"]
[14772,"1722243006010300","Medak","Toopran","Toopran","Gundreddypally","Gundreddypally","Gundreddypally"]
[14777,"1722243004010200","Medak","Toopran","Toopran","Islampur","Islampur","Islampur"]
[14765,"1722243020010800","Medak","Toopran","Toopran","Allapur","Allapur","Allapur"]
[14843,"1722244001010100","Medak","Toopran","Toopran","Narsam Pally","Narsam Pally","Narsampally"]
[14814,"1722243011010700","Medak","Toopran","Toopran","Yavapur","Yavapur","Yavapur"]
[14783,"1722243010010600","Medak","Toopran","Toopran","Kistapur","Kistapur","Kistapur"]
[14771,"1722243018011200","Medak","Toopran","Toopran","Ghanpur","Ghanpur","Ghanpur"]
[14811,"1722243013010900","Medak","Toopran","Toopran","Toopran","Toopran","Toopran"]
[12587,"1504312010030800","Medchal  Malkajgiri","Keesara","Ghatkesar","Aushapur","Aushapur","Kepal"]
[12601,"1521912011062100","Medchal  Malkajgiri","Keesara","Ghatkesar","Nfc Nagar","Nfc Nagar","Chandupatlaguda"]
[24247,"1504312020041600","Medchal  Malkajgiri","Keesara","Ghatkesar","Edulabad","Edulabad","Kothaguda"]
[12596,"1521912011020900","Medchal  Malkajgiri","Keesara","Ghatkesar","Ghatkesar","Ghatkesar","Guntiguda"]
[12588,"1521912010010808","Medchal  Malkajgiri","Keesara","Ghatkesar","Madaram","Madaram","Madaram"]
[12594,"1504312011040900","Medchal  Malkajgiri","Keesara","Ghatkesar","Ghatkesar","Ghatkesar","Gattumaisamma"]
[12597,"1521912011030900","Medchal  Malkajgiri","Keesara","Ghatkesar","Ghatkesar","Ghatkesar","Shivareddyguda"]
[12592,"1521912020021600","Medchal  Malkajgiri","Keesara","Ghatkesar","Edulabad","Edulabad","Pothirajguda"]
[12591,"1521912020031600","Medchal  Malkajgiri","Keesara","Ghatkesar","Marpallyguda","Marpallyguda","Marpallyguda"]
[12600,"1521912011052100","Medchal  Malkajgiri","Keesara","Ghatkesar","Nfc Nagar","Nfc Nagar","Bokkoniguda"]
[12593,"1521912023051700","Medchal  Malkajgiri","Keesara","Ghatkesar","Ghanpur","Ghanpur","Ghanapur"]
[12598,"1521912008010600","Medchal  Malkajgiri","Keesara","Ghatkesar","Kondapur","Kondapur","Kondapur"]
[12589,"1521912009010700","Medchal  Malkajgiri","Keesara","Ghatkesar","Aushapur","Aushapur","Aushapur"]
[12586,"1521912010010800","Medchal  Malkajgiri","Keesara","Ghatkesar","Ankushapur","Ankushapur","Ankushpur"]
[12602,"1521912011042100","Medchal  Malkajgiri","Keesara","Ghatkesar","Nfc Nagar","Nfc Nagar","Nfc Nagar"]
[12590,"1521912020011600","Medchal  Malkajgiri","Keesara","Ghatkesar","Edulabad","Edulabad","Edulabad"]
[12595,"1521912011010900","Medchal  Malkajgiri","Keesara","Ghatkesar","Ghatkesar","Ghatkesar","Ghatkesar"]
[12606,"1521911005030300","Medchal  Malkajgiri","Keesara","Keesara","Keesara","Keesara","Kapuguda"]
[12610,"1521911009030300","Medchal  Malkajgiri","Keesara","Keesara","Keesara","Keesaradiora","Nookalguda"]
[12604,"1521911016021000","Medchal  Malkajgiri","Keesara","Keesara","Bogaram","Bogaram","Barsiguda"]
[12611,"1521911015050900","Medchal  Malkajgiri","Keesara","Keesara","Rampally Diara","Rampally Diara","Lalaniguda"]
[24246,"1521911009020301","Medchal  Malkajgiri","Keesara","Keesara","Keesara","Keesara","Keesara Gutta"]
[12608,"1521911005020300","Medchal  Malkajgiri","Keesara","Keesara","Keesara","Keesara","Unniguda"]
[12612,"1521911015040900","Medchal  Malkajgiri","Keesara","Keesara","Rampally Diara","Rampally Diara","Rampally Diara"]
[12609,"1521911009010300","Medchal  Malkajgiri","Keesara","Keesara","Keesara","Keesaradiora","Keesaradiora"]
[12603,"1521911005040400","Medchal  Malkajgiri","Keesara","Keesara","Ankireddypally","Keesara","Ankireddypally"]
[12605,"1521911016011000","Medchal  Malkajgiri","Keesara","Keesara","Bogaram","Bogaram","Bogaram"]
[12613,"1521911004010200","Medchal  Malkajgiri","Keesara","Keesara","Yadgarpally","Yadgarpally","Yadgarpally"]
[12607,"1521911005010300","Medchal  Malkajgiri","Keesara","Keesara","Keesara","Keesara","Keesara"]
[12374,"1521907001020100","Medchal  Malkajgiri","Medchal","Dundigal Gandimaisamma","Gagillapur","Gagillapur","Gagillapur Thada"]
[12370,"1521907003020202","Medchal  Malkajgiri","Medchal","Dundigal Gandimaisamma","Dundigal","Dundigal","Dundigal Tanda I"]
[12377,"1521907009020600","Medchal  Malkajgiri","Medchal","Dundigal Gandimaisamma","Mallampet","Mallampet","Maheshwarm"]
[12373,"1521907002010200","Medchal  Malkajgiri","Medchal","Dundigal Gandimaisamma","Dundigal","Nagloor","Nagloor"]
[12371,"1521907003030203","Medchal  Malkajgiri","Medchal","Dundigal Gandimaisamma","Dundigal","Dundigal","Dundigal Tanda Ii"]
[12369,"1521907008010501","Medchal  Malkajgiri","Medchal","Dundigal Gandimaisamma","Bowrampet","Shambipur","Shambipur"]
[12375,"1521907001010100","Medchal  Malkajgiri","Medchal","Dundigal Gandimaisamma","Gagillapur","Gagillapur","Gagillapur"]
[12376,"1521907001030100","Medchal  Malkajgiri","Medchal","Dundigal Gandimaisamma","Gagillapur","Gagillapur","Guntur Basthi"]
[12372,"1521907003010201","Medchal  Malkajgiri","Medchal","Dundigal Gandimaisamma","Dundigal","Dundigal","Dundigal"]
[12635,"1521908007030400","Medchal  Malkajgiri","Medchal","Medchal","Ravalkole","Ravalkole","Gudemgadda Thanda"]
[12637,"1521908007040400","Medchal  Malkajgiri","Medchal","Medchal","Ravalkole","Ravalkole","Lethamamilla Thanda"]
[12638,"1521908007050400","Medchal  Malkajgiri","Medchal","Medchal","Ravalkole","Ravalkole","Pittalagutta Thanda"]
[12632,"1521908022040600","Medchal  Malkajgiri","Medchal","Medchal","Rajabollaram Thanda","Rajabollaram Thanda","Gubbadi Thanda"]
[12644,"1521908015031000","Medchal  Malkajgiri","Medchal","Medchal","Srirangavaram","Srirangavaram","Kurmagadda"]
[12614,"1504308014020900","Medchal  Malkajgiri","Medchal","Medchal","Bandamadaram","Bandamadaram","Bandamadaram New"]
[12636,"1521908007020400","Medchal  Malkajgiri","Medchal","Medchal","Ravalkole","Ravalkole","Khasimbhai Thanda"]
[12616,"1521908013030800","Medchal  Malkajgiri","Medchal","Medchal","Dabilpur","Dabilpur","Barmajiguda"]
[12643,"1521908015021000","Medchal  Malkajgiri","Medchal","Medchal","Srirangavaram","Srirangavaram","Kummarigadda"]
[12626,"1521908024011500","Medchal  Malkajgiri","Medchal","Medchal","Pudur","Pudur","Gosaiguda"]
[12624,"1521908003010100","Medchal  Malkajgiri","Medchal","Medchal","Mysireddypally","Mysireddypally","Mysireddypally"]
[12629,"1521908011010600","Medchal  Malkajgiri","Medchal","Medchal","Rajabollaram","Rajabollaram","Akbarjapet"]
[12631,"1521908023020600","Medchal  Malkajgiri","Medchal","Medchal","Rajabollaram","Rajabollaram","Ghanpur Thanda"]
[12623,"1521908004010100","Medchal  Malkajgiri","Medchal","Medchal","Konaipally","Konaipally","Konaipally"]
[12641,"1521908008010400","Medchal  Malkajgiri","Medchal","Medchal","Ravalkole","Ravalkole","Shajadiguda"]
[12615,"1521908014010900","Medchal  Malkajgiri","Medchal","Medchal","Bandamadaram","Bandamadaram","Bandamadaram"]
[12630,"1521908023010600","Medchal  Malkajgiri","Medchal","Medchal","Rajabollaram","Rajabollaram","Ghanpur"]
[12642,"1521908006010300","Medchal  Malkajgiri","Medchal","Medchal","Somaram","Somaram","Somaram"]
[12618,"1521908013020800","Medchal  Malkajgiri","Medchal","Medchal","Lingapur","Lingapur","Lingapur"]
[12621,"1521908026011700","Medchal  Malkajgiri","Medchal","Medchal","Kandlakoi","Kandlakoi","Suthariguda"]
[12633,"1521908022010600","Medchal  Malkajgiri","Medchal","Medchal","Rajabollaram","Rajabollaram","Rajabollaram"]
[12640,"1521908007070400","Medchal  Malkajgiri","Medchal","Medchal","Saidonigadda Thanda","Saidonigadda Thanda","Saidonigadda Thanda"]
[12634,"1521908022020600","Medchal  Malkajgiri","Medchal","Medchal","Rajabollaram Thanda","Rajabollaram Thanda","Rajabollaram Thanda"]
[12628,"1521908017011100","Medchal  Malkajgiri","Medchal","Medchal","Railapur","Railapur","Railapur"]
[12648,"1521908005010200","Medchal  Malkajgiri","Medchal","Medchal","Yellampet","Yellampet","Yellampet"]
[12622,"1521908025011600","Medchal  Malkajgiri","Medchal","Medchal","Muneerabad","Muneerabad","Muneerabad"]
[12619,"1521908018011200","Medchal  Malkajgiri","Medchal","Medchal","Girmapur","Girmapur","Girmapur"]
[12625,"1521908002010100","Medchal  Malkajgiri","Medchal","Medchal","Nuthankal","Nuthankal","Nuthankal"]
[12645,"1521908015011000","Medchal  Malkajgiri","Medchal","Medchal","Srirangavaram","Srirangavaram","Srirangavaram"]
[12639,"1521908007010400","Medchal  Malkajgiri","Medchal","Medchal","Ravalkole","Ravalkole","Ravalkole"]
[12620,"1521908019011300","Medchal  Malkajgiri","Medchal","Medchal","Gowdavelly","Gowdavelly","Gowdavelly"]
[12627,"1521908021011500","Medchal  Malkajgiri","Medchal","Medchal","Pudur","Pudur","Pudur"]
[12617,"1521908013010800","Medchal  Malkajgiri","Medchal","Medchal","Dabilpur","Dabilpur","Dabilpur"]
[12663,"1521909002020200","Medchal  Malkajgiri","Keesara","Muduchintalpally","Kolthoor","Kolthoor","Rajkhanpet"]
[12650,"1521909015021200","Medchal  Malkajgiri","Keesara","Muduchintalpally","Adraspally","Adraspally","Yellaguda"]
[12659,"1521909009020700","Medchal  Malkajgiri","Keesara","Muduchintalpally","Keshwaram","Keshwaram","Keshwaram Tanda"]
[12661,"1521909008010700","Medchal  Malkajgiri","Keesara","Muduchintalpally","Nagashattypally","Nagashattypally","Nagashattypally"]
[12680,"1521909018011300","Medchal  Malkajgiri","Keesara","Muduchintalpally","Uddemarry","Uddemarry","Usharpally"]
[12656,"1521909014020800","Medchal  Malkajgiri","Keesara","Muduchintalpally","Jaganguda","Jaganguda","Jaganguda Wshc"]
[12666,"1521909006020500","Medchal  Malkajgiri","Keesara","Muduchintalpally","Laxmapoor","Laxmapoor","Laxmapoor Tanda"]
[12672,"1521909003010300","Medchal  Malkajgiri","Keesara","Muduchintalpally","Potharam","Potharam","Potharam"]
[12669,"1521909016020600","Medchal  Malkajgiri","Keesara","Muduchintalpally","Lingapoor Thanda","Lingapoor Thanda","Lingapoor Thanda"]
[12671,"1521909005010300","Medchal  Malkajgiri","Keesara","Muduchintalpally","Narayanpur","Narayanpur","Narayanapur"]
[12658,"1521909019011400","Medchal  Malkajgiri","Keesara","Muduchintalpally","Keshawapur","Keshawapur","Keshawapur"]
[12653,"1521909004010400","Medchal  Malkajgiri","Keesara","Muduchintalpally","Anantharam","Anantharam","Ananatharam"]
[12657,"1521909010010800","Medchal  Malkajgiri","Keesara","Muduchintalpally","Jaganguda","Sampanbole","Sampanbole"]
[12655,"1521909014010800","Medchal  Malkajgiri","Keesara","Muduchintalpally","Jaganguda","Jaganguda","Jaganguda"]
[12649,"1521909015011200","Medchal  Malkajgiri","Keesara","Muduchintalpally","Adraspally","Adraspally","Adraspally"]
[12679,"1521909017011300","Medchal  Malkajgiri","Keesara","Muduchintalpally","Uddemarry","Uddemarry","Uddemarry"]
[12660,"1521909009010700","Medchal  Malkajgiri","Keesara","Muduchintalpally","Keshwaram","Keshwaram","Keshwaram"]
[12670,"1521909007010600","Medchal  Malkajgiri","Keesara","Muduchintalpally","Mudichintalpally","Mudichintalpally","Mudchintalpally"]
[12667,"1521909006010500","Medchal  Malkajgiri","Keesara","Muduchintalpally","Laxmapoor","Laxmapoor","Laxmapoor"]
[12662,"1521909002010200","Medchal  Malkajgiri","Keesara","Muduchintalpally","Kolthoor","Kolthoor","Kolthoor"]
[12664,"1521909011020900","Medchal  Malkajgiri","Keesara","Shamirpet","Lalgadi Malakpet","Lalgadi Malakpet","Kashwada"]
[12678,"1521909001020100","Medchal  Malkajgiri","Keesara","Shamirpet","Turkapally","Turkapally","Turkapallythanda"]
[12647,"1521908010010500","Medchal  Malkajgiri","Keesara","Shamirpet","Muraharipally","Muraharipally","Muraharipally"]
[12674,"1521909023031700","Medchal  Malkajgiri","Keesara","Shamirpet","Babaguda","Babaguda","Babaguda"]
[12646,"1521908009010500","Medchal  Malkajgiri","Keesara","Shamirpet","Yadaram","Yadaram","Yadaram"]
[12673,"1521909021011500","Medchal  Malkajgiri","Keesara","Shamirpet","Ponnal","Ponnal","Ponnal"]
[12668,"1521909012011000","Medchal  Malkajgiri","Keesara","Shamirpet","Majeedpur","Majeedpur","Majeedpur"]
[12652,"1504309013021100","Medchal  Malkajgiri","Keesara","Shamirpet","Aliabad","Aliabad","Pittalaguda"]
[12654,"1521909022011600","Medchal  Malkajgiri","Keesara","Shamirpet","Bomraspet","Bomraspet","Bomraspet"]
[12677,"1521909001010100","Medchal  Malkajgiri","Keesara","Shamirpet","Turkapally","Turkapally","Turkapally"]
[12651,"1521909013011100","Medchal  Malkajgiri","Keesara","Shamirpet","Aliabad","Aliabad","Aliabad"]
[12665,"1521909011010900","Medchal  Malkajgiri","Keesara","Shamirpet","Lalgadi Malakpet","Lalgadi Malakpet","Lalgadi Malakpet"]
[12676,"1521909023011700","Medchal  Malkajgiri","Keesara","Shamirpet","Shamirpet","Shamirpet","Shameerpet"]
[18776,"1722926004020200","Sangareddy","Andole","Andole","Ramsanpally","Ramsanpally","Kothapally"]
[18777,"1722926004030200","Sangareddy","Andole","Andole","Ramsanpally","Ramsanpally","Ramsanpally Thanda"]
[18770,"1722926013021105","Sangareddy","Andole","Andole","Neeredigunta","Neeredigunta","Makthagudam"]
[18773,"1722926027022303","Sangareddy","Andole","Andole","Kondareddypally","Kondareddypally","Kondareddypally Tanda"]
[18760,"1722926011020900","Sangareddy","Andole","Andole","Annasagar","Annasagar","Dhanampally"]
[18758,"1722926028022100","Sangareddy","Andole","Andole","Chandampet","Chandampet","Chandampet"]
[18779,"1722926007010600","Sangareddy","Andole","Andole","Rollapad","Rollapad","Rollapad"]
[18774,"1722926027012300","Sangareddy","Andole","Andole","Kondareddypally","Kondareddypally","Kondareddypally"]
[18764,"1722926003020300","Sangareddy","Andole","Andole","Kansanpally","Kansanpally","Serimallreddypally"]
[18756,"1722926014021200","Sangareddy","Andole","Andole","Brahmanpally","Brahmanpally","Brahmanpally"]
[18765,"1722926005010400","Sangareddy","Andole","Andole","Kichannapally","Kichannapally","Kichannapally"]
[18784,"1722926012011000","Sangareddy","Andole","Andole","Yerraram","Yerraram","Yerraram"]
[18780,"1722926023012000","Sangareddy","Andole","Andole","Saibanpet","Saibanpet","Saibanpet"]
[18769,"1722926018011500","Sangareddy","Andole","Andole","Nadlapur","Nadlapur","Nadlapur"]
[18781,"1722926025012200","Sangareddy","Andole","Andole","Sangupet","Sangupet","Sangupet"]
[18757,"1722926024012100","Sangareddy","Andole","Andole","Almaipet","Almaipet","Almaipet"]
[18767,"1722926008010700","Sangareddy","Andole","Andole","Mansanpally","Mansanpally","Mansanpally"]
[18766,"1722926017011400","Sangareddy","Andole","Andole","Kodekal","Kodekal","Kodekal"]
[18768,"1722926021011800","Sangareddy","Andole","Andole","Masanpally","Masanpally","Masanpally"]
[18772,"1722926009010800","Sangareddy","Andole","Andole","Posanipet","Posanipet","Posanipet"]
[18759,"1722926010010900","Sangareddy","Andole","Andole","Annasagar","Annasagar","Annasagar"]
[18775,"1722926026012300","Sangareddy","Andole","Andole","Pothireddypalli","Pothireddypalli","Pothireddypalli"]
[18783,"1722926001010100","Sangareddy","Andole","Andole","Talelma","Talelma","Talelma"]
[18771,"1722926013011100","Sangareddy","Andole","Andole","Neeredigunta","Neeredigunta","Neeredigunta"]
[18778,"1722926004010200","Sangareddy","Andole","Andole","Ramsanpally","Ramsanpally","Ramsanpally"]
[18763,"1722926003010300","Sangareddy","Andole","Andole","Kansanpally","Kansanpally","Kansanpally"]
[18761,"1722926006010500","Sangareddy","Andole","Andole","Chinthakonta","Chinthakonta","Chinthakonta"]
[18755,"1722926015011200","Sangareddy","Andole","Andole","Aksanpally","Aksanpally","Aksanpally"]
[18782,"1722926016011300","Sangareddy","Andole","Andole","Tadmanoor","Tadmanoor","Tadmanoor"]
[18762,"1722926019011600","Sangareddy","Andole","Andole","Dakoor","Dakoor","Dakoor"]
[18806,"1722933013061100","Sangareddy","Andole","Pulkal","Lal Singh Thanda","Lal Singh Thanda","Suvali Thanda"]
[18797,"1722933017021600","Sangareddy","Andole","Pulkal","Kodur","Kodur","Kodur Thanda"]
[18803,"1722933013071100","Sangareddy","Andole","Pulkal","Laxmi Sagar","Laxmi Sagar","Pathikunta Thanda"]
[18805,"1722933013041100","Sangareddy","Andole","Pulkal","Hanunaiak Thanda","Hanunaiak Thanda","Sarvanaik Thanda"]
[18807,"1722933013061105","Sangareddy","Andole","Pulkal","Hanunaiak Thanda","Hanunaiak Thanda","Toury Tanda"]
[18804,"1722933013081100","Sangareddy","Andole","Pulkal","Hanunaiak Thanda","Hanunaiak Thanda","Sangyanaik Thanda"]
[18808,"1722933013051104","Sangareddy","Andole","Pulkal","Laxmi Sagar","Laxmi Sagar","Umla Tanda"]
[18822,"1722933020011900","Sangareddy","Andole","Pulkal","Badrigudem","Badrigudem","Seriramreddy Guda"]
[18813,"1722933011020900","Sangareddy","Andole","Pulkal","Mudimanik","Mudimanik","Mudimanik Thanda"]
[18789,"1722933028022300","Sangareddy","Andole","Pulkal","Chakriyal","Chakriyal","New Hunnapur"]
[18801,"1722933013021101","Sangareddy","Andole","Pulkal","Lal Singh Thanda","Lal Singh Thanda","Lal Singh Thanda"]
[18810,"1722933016021500","Sangareddy","Andole","Pulkal","Minpur Thanda","Minpur Thanda","Minpur Thanda"]
[18787,"1722933015041400","Sangareddy","Andole","Pulkal","Bommareddyguda","Bommareddyguda","Bommareddyguda"]
[18800,"1722933013031100","Sangareddy","Andole","Pulkal","Hanunaiak Thanda","Hanunaiak Thanda","Hanunaiak Thanda"]
[18802,"1722933013011100","Sangareddy","Andole","Pulkal","Laxmi Sagar","Laxmi Sagar","Laxmi Sagar"]
[18798,"1722933017011600","Sangareddy","Andole","Pulkal","Kodur","Kodur","Kodur"]
[18825,"1722933015022500","Sangareddy","Andole","Pulkal","Badrigudem","Badrigudem","Badrigudem"]
[18793,"1722933026012200","Sangareddy","Andole","Pulkal","Taddanpally","Taddanpally","Taddanpally"]
[18818,"1722933003010200","Sangareddy","Andole","Pulkal","Raipad","Raipad","Raiphad"]
[18821,"1722933022011900","Sangareddy","Andole","Pulkal","Sarafpally","Sarafpally","Sarafpally"]
[18786,"1722933015051400","Sangareddy","Andole","Pulkal","Bommareddyguda","Bommareddyguda","Bommareddyguda Thanda"]
[18828,"1722933024012100","Sangareddy","Andole","Pulkal","Lingampally","Lingampally","Lingampally"]
[18794,"1722933019021800","Sangareddy","Andole","Pulkal","Gongloor Tanda","Gongloor Tanda","Gongloor Tanda"]
[18791,"1722933015021200","Sangareddy","Andole","Pulkal","Posanipally","Posanipally","Posanipally"]
[18792,"1722933027012200","Sangareddy","Andole","Pulkal","Gangojipet","Gangojipet","Gangojipet"]
[18826,"1722933015012500","Sangareddy","Andole","Pulkal","Upprigudem","Upprigudem","Upprigudem"]
[18812,"1722933008010600","Sangareddy","Andole","Pulkal","Muddaiahpet","Muddaiahpet","Muddaiahpet"]
[18809,"1722933001010100","Sangareddy","Andole","Pulkal","Manthoor","Manthoor","Manthoor"]
[18829,"1722933025012100","Sangareddy","Andole","Pulkal","Venkatkistapur","Venkatkistapur","Venkatkisthapur"]
[18823,"1722933021011900","Sangareddy","Andole","Pulkal","Sultanpur","Sultanpur","Sultanpur"]
[18785,"1722933010010800","Sangareddy","Andole","Pulkal","Baswapur","Baswapur","Baswapur"]
[18796,"1722933018011700","Sangareddy","Andole","Pulkal","Isojipet","Isojipet","Isojipet"]
[18827,"1722933030013500","Sangareddy","Andole","Pulkal","Vendikole","Vendikole","Vendikole"]
[18819,"1722933006010400","Sangareddy","Andole","Pulkal","Singoor","Singoor","Singoor"]
[18816,"1722933007010500","Sangareddy","Andole","Pulkal","Pocharam","Pocharam","Pocharam"]
[18824,"1722933012011000","Sangareddy","Andole","Pulkal","S  Itkyal","S  Itkyal","S Itkyal"]
[18815,"1722933004010300","Sangareddy","Andole","Pulkal","Peddareddypet","Peddareddypet","Peddareddypet"]
[18788,"1722933028012300","Sangareddy","Andole","Pulkal","Chakriyal","Chakriyal","Chakriyal"]
[18795,"1722933019011800","Sangareddy","Andole","Pulkal","Gongloor","Gongloor","Gongloor"]
[18799,"1722933023012000","Sangareddy","Andole","Pulkal","Korpole","Korpole","Korpole"]
[18811,"1722933016011500","Sangareddy","Andole","Pulkal","Minpur","Minpur","Minpur"]
[18790,"1722933015011200","Sangareddy","Andole","Pulkal","Choutkur","Choutkur","Choutkur"]
[18817,"1722933013011300","Sangareddy","Andole","Pulkal","Pulkal","Pulkal","Pulkal"]
[18820,"1722933029012400","Sangareddy","Andole","Pulkal","Shivampet","Shivampet","Shivampet"]
[18814,"1722933011010900","Sangareddy","Andole","Pulkal","Mudimanik","Mudimanik","Mudimanik"]
[18917,"1722905011041103","Sangareddy","Andole","Wattpally","Manchriyal Thanda","Manchriyal Thanda","Laxmidevi Tanda"]
[18919,"1722905011031102","Sangareddy","Andole","Wattpally","Manchriyal Thanda","Manchriyal Thanda","Sarkarkanch Tanda"]
[18934,"1722705010021000","Sangareddy","Andole","Wattpally","Manchriyal Thanda","Manchriyal Thanda","Meedkunda L T "]
[18902,"1722907015021900","Sangareddy","Andole","Wattpally","Manchriyal Thanda","Manchriyal Thanda","Wattpally T"]
[18916,"1722905011031100","Sangareddy","Andole","Wattpally","Manchriyal Thanda","Manchriyal Thanda","Lakyanaik Thanda"]
[18874,"1722707012021600","Sangareddy","Andole","Wattpally","Bijipur","Bijipur","Budaipally"]
[18882,"1722907014021800","Sangareddy","Andole","Wattpally","Gorrekal","Gorrekal","Husainnagar"]
[18918,"1722905011021100","Sangareddy","Andole","Wattpally","Manchriyal Thanda","Manchriyal Thanda","Manchriyal Thanda"]
[18881,"1722907014031800","Sangareddy","Andole","Wattpally","Gouthapur","Gouthapur","Gouthapur"]
[18945,"1722905023021900","Sangareddy","Andole","Wattpally","Darkastpally","Darkastpally","Darkastpally"]
[18909,"1722905021021700","Sangareddy","Andole","Wattpally","Paladugu","Paladugu","Paladugu"]
[18915,"1722905011011100","Sangareddy","Andole","Wattpally","Dudyal","Dudyal","Dudyal"]
[18901,"1722907016011900","Sangareddy","Andole","Wattpally","Shadnagar Gatpally ","Shadnagar Gatpally ","Shadnagar Gatpally "]
[18941,"1722905026012100","Sangareddy","Andole","Wattpally","Saipet","Saipet","Saipet"]
[18894,"1722907017012000","Sangareddy","Andole","Wattpally","Palvatla","Palvatla","Palvatla"]
[18946,"1722905023011900","Sangareddy","Andole","Wattpally","Usrikapally","Usrikapally","Usrikapally"]
[18935,"1722905009011000","Sangareddy","Andole","Wattpally","Meedkunda","Meedkunda","Meedkunda"]
[18884,"1722907020011500","Sangareddy","Andole","Wattpally","Kerror","Kerror","Kerror"]
[18907,"1722905022011700","Sangareddy","Andole","Wattpally","Boothkur","Boothkur","Boothkur"]
[18936,"1722905024011800","Sangareddy","Andole","Wattpally","Nirjipla","Nirjipla","Nirjipla"]
[18908,"1722905021011700","Sangareddy","Andole","Wattpally","Devnoor","Devnoor","Devnoor"]
[18903,"1722907015011900","Sangareddy","Andole","Wattpally","Wattpally","Wattpally","Wattpally"]
[18873,"1722907012011600","Sangareddy","Andole","Wattpally","Bijipur","Bijipur","Bijipur"]
[18893,"1722907013011700","Sangareddy","Andole","Wattpally","Nagulpally","Nagulpally","Nagulpally"]
[18880,"1722907014011800","Sangareddy","Andole","Wattpally","Gorrekal","Gorrekal","Gorrekal"]
[18895,"1722907013011300","Sangareddy","Andole","Wattpally","Pothulaboguda","Pothulaboguda","Pothulaboguda"]
[18888,"1722907019012100","Sangareddy","Andole","Wattpally","Marvelly","Marvelly","Marvelly"]
[18923,"1722905025012000","Sangareddy","Andole","Wattpally","Kadhirabad","Kadhirabad","Kadhirabad"]
[15308,"1722437006020600","Sangareddy","Hathoora","Ameenpur","Daira","Daira","Daira"]
[15307,"1722437006040600","Sangareddy","Hathoora","Ameenpur","Daira","Daira","Bommukunta"]
[15309,"1722437006030600","Sangareddy","Hathoora","Ameenpur","Daira","Daira","Gandiguda"]
[15310,"1722437005020500","Sangareddy","Hathoora","Ameenpur","Jankampet","Jankampet","Janakampet"]
[15311,"1722437005010500","Sangareddy","Hathoora","Ameenpur","Wadakpally","Wadakpally","Wadakpally"]
[15234,"1722339002010100","Sangareddy","Hathoora","Gumadidala","Kothapally","Kothapally","Kothapally"]
[15245,"1722339009020700","Sangareddy","Hathoora","Gumadidala","Gumadidala","Gumadidala","Dargula"]
[15269,"1722339020110300","Sangareddy","Hathoora","Gumadidala","Domadugu","Domadugu","Upparidomadugu"]
[15236,"1722339003010200","Sangareddy","Hathoora","Gumadidala","Nallavelly","Nallavelly","Pyaranagar"]
[15248,"1722339010030800","Sangareddy","Hathoora","Gumadidala","Veerannaguda","Veerannaguda","Kattenkaguda"]
[15232,"1722339001010100","Sangareddy","Hathoora","Gumadidala","Kothapally","Kothapally","Laxmapur"]
[15240,"1722339007020500","Sangareddy","Hathoora","Gumadidala","Veerareddypally","Veerareddypally","Mollaguda"]
[15252,"1722339013021100","Sangareddy","Hathoora","Gumadidala","Annaram","Annaram","Ex Servicemen Colony"]
[15235,"1722339002020100","Sangareddy","Hathoora","Gumadidala","Nagireddyguda","Nagireddyguda","Nagireddyguda"]
[15242,"1722339007040500","Sangareddy","Hathoora","Gumadidala","Ramreddybai","Ramreddybai","Ramreddy Bai"]
[15238,"1722339006010400","Sangareddy","Hathoora","Gumadidala","Anantharam","Anantharam","Anantharam"]
[15247,"1722339010020800","Sangareddy","Hathoora","Gumadidala","Veerannaguda","Veerannaguda","Veerannaguda"]
[15233,"1722339001010900","Sangareddy","Hathoora","Gumadidala","Mambapoor","Mambapoor","Mambapoor"]
[15241,"1722339007030500","Sangareddy","Hathoora","Gumadidala","Veerareddypally","Veerareddypally","Veerareddypally"]
[15237,"1722339004010200","Sangareddy","Hathoora","Gumadidala","Nallavelly","Nallavelly","Nallavelly"]
[15249,"1722339010110300","Sangareddy","Hathoora","Gumadidala","Domadugu","Domadugu","Domadugu"]
[15251,"1722339013011100","Sangareddy","Hathoora","Gumadidala","Annaram","Annaram","Annaram"]
[15239,"1722339007010500","Sangareddy","Hathoora","Gumadidala","Kankunta","Kankunta","Kankunta"]
[15246,"1722339010010800","Sangareddy","Hathoora","Gumadidala","Bonthapally","Bonthapally","Bonthapally"]
[15244,"1722339009010700","Sangareddy","Hathoora","Gumadidala","Gumadidala","Gumadidala","Gumadidala"]
[10887,"1722340002050102","Sangareddy","Hathoora","Hathnoora","Sirpoora","Sirpoora","Peertya Thanda"]
[10884,"1722340002040101","Sangareddy","Hathoora","Hathnoora","Sirpoora","Sirpoora","Yelligegutta Thanda"]
[10870,"1722340009020700","Sangareddy","Hathoora","Hathnoora","Naguldevpally","Naguldevpally","Naguldevpally Lt"]
[10886,"1722340002030100","Sangareddy","Hathoora","Hathnoora","Devunigutta Lt","Sirpoora","Devunigutta Lt"]
[10888,"1703740002060100","Sangareddy","Hathoora","Hathnoora","Sirpoora","Sirpoora","Bheemlatanda"]
[10865,"1722340033012300","Sangareddy","Hathoora","Hathnoora","Royyapally","Nagaramm","Akvanchaguda"]
[10894,"1722340028032200","Sangareddy","Hathoora","Hathnoora","Yellammaguda","Yellammaguda","Raindlagudem"]
[10852,"1722340027052100","Sangareddy","Hathoora","Hathnoora","Konampet","Chinthal Chervu","Reddy Palem"]
[10851,"1722340027032100","Sangareddy","Hathoora","Hathnoora","Kothagudem","Chinthal Chervu","Kothagudem Lt"]
[10885,"1722340002020100","Sangareddy","Hathoora","Hathnoora","Tellaralla Lt","Sirpoora","Tellaralla Lt"]
[10889,"1722340025011400","Sangareddy","Hathoora","Hathnoora","Turkala Khannapur","Turkala Khannapur","Turkala Khannapur"]
[10867,"1722340029012300","Sangareddy","Hathoora","Hathnoora","Kodapak","Nagaramm","Kodapak"]
[10859,"1722340023021800","Sangareddy","Hathoora","Hathnoora","Gundla Machnoor","Gundla Machnoor","Bokkalaguda"]
[10881,"1722340010020800","Sangareddy","Hathoora","Hathnoora","Lakma Thanda","Sikindlapur","Sikindlapur Lt"]
[10877,"1722340006020500","Sangareddy","Hathoora","Hathnoora","Panyal","Panyal","Badampet"]
[10876,"1722340007010500","Sangareddy","Hathoora","Hathnoora","Madhura","Panyal","Madhura"]
[10850,"1722340027022100","Sangareddy","Hathoora","Hathnoora","Kothagudem","Chinthal Chervu","Kothagudem"]
[10868,"1722340032012300","Sangareddy","Hathoora","Hathnoora","Royyapally","Nagaramm","Royyapally"]
[10849,"1722340027042100","Sangareddy","Hathoora","Hathnoora","Konampet","Chinthal Chervu","Konampet"]
[10872,"1722340019011300","Sangareddy","Hathoora","Hathnoora","Malkapur","Nastipur","Malkapur"]
[10854,"1722340014021200","Sangareddy","Hathoora","Hathnoora","Doulthabad","Doulthabad","Doulapur"]
[10890,"1722340025021400","Sangareddy","Hathoora","Hathnoora","Turkala Khannapur","Turkala Khannapur","Tarkanpet"]
[10866,"1722340031012300","Sangareddy","Hathoora","Hathnoora","Sherkanpally","Nagaramm","Sherkanpally"]
[10864,"1722340030012300","Sangareddy","Hathoora","Hathnoora","Nagaramm","Nagaramm","Nagaram"]
[10856,"1722340013011200","Sangareddy","Hathoora","Hathnoora","Devulapally","Doulthabad","Devulapally"]
[10871,"1722340016011300","Sangareddy","Hathoora","Hathnoora","Nastipur","Nastipur","Nastipur"]
[10882,"1722340010030800","Sangareddy","Hathoora","Hathnoora","Brahmanguda","Sikindlapur","Brahmanguda"]
[10892,"1722340028012200","Sangareddy","Hathoora","Hathnoora","Yellammaguda","Yellammaguda","Yellammaguda"]
[10891,"1722340017011400","Sangareddy","Hathoora","Hathnoora","Mucherla","Turkala Khannapur","Mucherla"]
[10880,"1722340010010800","Sangareddy","Hathoora","Hathnoora","Sikindlapur","Sikindlapur","Sikindlapur"]
[10857,"1722340008010600","Sangareddy","Hathoora","Hathnoora","Govindrajpally","Govindrajpally","Govindrajpally"]
[10847,"1722340004010300","Sangareddy","Hathoora","Hathnoora","Chheekmaddoor","Chheekmaddoor","Chheekmaddoor"]
[10869,"1722340009010700","Sangareddy","Hathoora","Hathnoora","Naguldevpally","Naguldevpally","Naguldevpally"]
[10863,"1722340003010200","Sangareddy","Hathoora","Hathnoora","Lingapur","Lingapur","Lingapur"]
[10855,"1722340015031200","Sangareddy","Hathoora","Hathnoora","Mangapur","Doulthabad","Mangapur"]
[10874,"1722340022011700","Sangareddy","Hathoora","Hathnoora","Palpanoor","Palpanoor","Palpanoor"]
[10893,"1722340028022200","Sangareddy","Hathoora","Hathnoora","Waddepally","Yellammaguda","Waddepally"]
[10873,"1722340011021000","Sangareddy","Hathoora","Hathnoora","Nawabpet","Nawabpet","Nawabpet"]
[10879,"1722340026012000","Sangareddy","Hathoora","Hathnoora","Sadulanagar","Sadulanagar","Sadulanagar"]
[10875,"1722340006010500","Sangareddy","Hathoora","Hathnoora","Panyal","Panyal","Panyal"]
[10846,"1722340024011900","Sangareddy","Hathoora","Hathnoora","Chandapur","Chandapur","Chandapur"]
[10878,"1722340020011500","Sangareddy","Hathoora","Hathnoora","Reddy Khannapur","Reddy Khannapur","Reddy Khannapur"]
[10858,"1722340023011800","Sangareddy","Hathoora","Hathnoora","Gundla Machnoor","Gundla Machnoor","Gundla Machnoor"]
[10848,"1722340027012100","Sangareddy","Hathoora","Hathnoora","Chinthal Chervu","Chinthal Chervu","Chinthal Chervu"]
[10845,"1722340021011600","Sangareddy","Hathoora","Hathnoora","Borpatla","Borpatla","Borpatla"]
[10862,"1722340005010400","Sangareddy","Hathoora","Hathnoora","Konyal","Konyal","Konyal"]
[10883,"1722340002010100","Sangareddy","Hathoora","Hathnoora","Sirpoora","Sirpoora","Sirpoora"]
[10860,"1722340011010900","Sangareddy","Hathoora","Hathnoora","Hathnoora","Hathnoora","Hathnoora"]
[10861,"1722340012011100","Sangareddy","Hathoora","Hathnoora","Kasala","Kasal","Kasala"]
[10853,"1722340014011200","Sangareddy","Hathoora","Hathnoora","Doulthabad","Doulthabad","Doulthabad"]
[15266,"1722339019041600","Sangareddy","Hathoora","Jinnaram","Rallakatwa","Rallakatwa","Rallakatwa Thanda"]
[15255,"1722339014031200","Sangareddy","Hathoora","Jinnaram","Laxmipathyguda","Laxmipathyguda","Choudariguda"]
[15276,"1722339025022100","Sangareddy","Hathoora","Jinnaram","Madharam","Madharam","Duvvakunta"]
[15268,"1722339020021700","Sangareddy","Hathoora","Jinnaram","Amdoor","Amdoor","Niyaziguda"]
[15282,"1722339028022200","Sangareddy","Hathoora","Jinnaram","Khazipally","Khazipally","Gollagudem"]
[15259,"1722339015041300","Sangareddy","Hathoora","Jinnaram","Jinnaram","Jinnaram","Narreguda"]
[15264,"1722339019021600","Sangareddy","Hathoora","Jinnaram","Solakpally","Solakpally","Imamnagar"]
[15274,"1722339024022000","Sangareddy","Hathoora","Jinnaram","Nalthur","Nalthur","Kurlakunta"]
[15277,"1722339025032100","Sangareddy","Hathoora","Jinnaram","Madharam","Madharam","Manthrikunta"]
[15257,"1722339015021300","Sangareddy","Hathoora","Jinnaram","Jinnaram","Jinnaram","Pedamaguda"]
[15254,"1722339014021200","Sangareddy","Hathoora","Jinnaram","Laxmipathyguda","Laxmipathyguda","Laxmipatiguda"]
[15260,"1722339017011400","Sangareddy","Hathoora","Jinnaram","Mangampet","Mangampet","Mangampet"]
[15262,"1722339018021500","Sangareddy","Hathoora","Jinnaram","Ootla","Ootla","Dadiguda"]
[15258,"1722339015031300","Sangareddy","Hathoora","Jinnaram","Jangampet","Jangampet","Jangampet"]
[15272,"1722339023011900","Sangareddy","Hathoora","Jinnaram","Kodakanchi","Kodakanchi","Puttuguda"]
[15280,"1722339027021000","Sangareddy","Hathoora","Jinnaram","Gaddapotharam","Gaddapotharam","Alinagar"]
[15250,"1722339012011000","Sangareddy","Hathoora","Jinnaram","Gaddapotharam","Gaddapotharam","Gadapotharam"]
[15279,"1722339027011000","Sangareddy","Hathoora","Jinnaram","Gaddapotharam","Gaddapotharam","Chetlapotharam"]
[15273,"1722339024012000","Sangareddy","Hathoora","Jinnaram","Nalthur","Nalthur","Nalthur"]
[15270,"1722339021011800","Sangareddy","Hathoora","Jinnaram","Shivanagar","Shivanagar","Shivanagar"]
[15271,"1722339022011900","Sangareddy","Hathoora","Jinnaram","Kodakanchi","Kodakanchi","Kodakanchi"]
[15265,"1722339019031600","Sangareddy","Hathoora","Jinnaram","Rallakatwa","Rallakatwa","Rallakatwa"]
[15267,"1722339020011700","Sangareddy","Hathoora","Jinnaram","Amdoor","Amdoor","Amdoor"]
[15278,"1722339026011000","Sangareddy","Hathoora","Jinnaram","Gaddapotharam","Gaddapotharam","Kistaipally"]
[15263,"1722339019011600","Sangareddy","Hathoora","Jinnaram","Solakpally","Solakpally","Solakpally"]
[15253,"1722339014011200","Sangareddy","Hathoora","Jinnaram","Vavilal","Vavilal","Vavilal"]
[15261,"1722339018011500","Sangareddy","Hathoora","Jinnaram","Ootla","Ootla","Ootla"]
[15281,"1722339028012200","Sangareddy","Hathoora","Jinnaram","Khazipally","Khazipally","Khazipally"]
[15256,"1722339015011300","Sangareddy","Hathoora","Jinnaram","Jinnaram","Jinnaram","Jinnaram"]
[15275,"1722339025012100","Sangareddy","Hathoora","Jinnaram","Madharam","Madharam","Madharam"]
[15286,"1722437003020300","Sangareddy","Hathoora","Patancheru","Chinna Kanjarla","Chinna Kanjarla","Mulogoi"]
[15289,"1722437018031700","Sangareddy","Hathoora","Patancheru","Ghanpur","Ghanpur","Yenukuntta"]
[15284,"1722437016021500","Sangareddy","Hathoora","Patancheru","Bhanur","Bhanur","Kancharlaguda"]
[15304,"1722437021022100","Sangareddy","Hathoora","Patancheru","Pocharam","Pocharam","Ganpathiguda"]
[15303,"1722437011012100","Sangareddy","Hathoora","Patancheru","Bachiguda","Bachiguda","Bachiguda"]
[15294,"1722437019011800","Sangareddy","Hathoora","Patancheru","Kardanur","Kardanur","Kardanur"]
[15292,"1722437010011000","Sangareddy","Hathoora","Patancheru","Inole","Inole","Inole"]
[15305,"1722437021012100","Sangareddy","Hathoora","Patancheru","Pocharam","Pocharam","Pocharam"]
[15285,"1722437003010300","Sangareddy","Hathoora","Patancheru","Chinna Kanjarla","Chinna Kanjarla","Chinna Kanjarla"]
[15301,"1722437018011700","Sangareddy","Hathoora","Patancheru","Pati","Pati","Pati"]
[15302,"1722437004010400","Sangareddy","Hathoora","Patancheru","Pedda Kanjarla","Pedda Kanjarla","Pedda Kanjarla"]
[15295,"1722437015011400","Sangareddy","Hathoora","Patancheru","Kyasaram","Kyasaram","Kyasaram"]
[15288,"1722437018021700","Sangareddy","Hathoora","Patancheru","Ghanpur","Ghanpur","Ghanpur"]
[15300,"1722437014011300","Sangareddy","Hathoora","Patancheru","Pashamylaram","Pashamylaram","Pashamylaram"]
[15297,"1722437020021900","Sangareddy","Hathoora","Patancheru","Muthangi","Muthangi","Dattatreya Colony"]
[15299,"1722437017011600","Sangareddy","Hathoora","Patancheru","Nandigama","Nandigama","Nandigama"]
[15291,"1722437008010900","Sangareddy","Hathoora","Patancheru","Rameshwarambanda","Rameshwarambanda","Rameshwarambanda"]
[15290,"1722437009010900","Sangareddy","Hathoora","Patancheru","Indresham","Indresham","Indresham"]
[15283,"1722437016011500","Sangareddy","Hathoora","Patancheru","Bhanur","Bhanur","Bhanur"]
[15306,"1722437001010100","Sangareddy","Hathoora","Patancheru","Rudraram","Rudraram","Rudraram"]
[15298,"1722437020011900","Sangareddy","Hathoora","Patancheru","Muthangi","Muthangi","Muthangi"]
[15296,"1722437002010200","Sangareddy","Hathoora","Patancheru","Lakadaram","Lakadaram","Lakadaram"]
[15287,"1722437012011100","Sangareddy","Hathoora","Patancheru","Chitkul","Chitkul","Chitkul"]
[15293,"1722437013011200","Sangareddy","Hathoora","Patancheru","Isnapur","Isnapur","Isnapur"]
[15315,"1722438007010500","Sangareddy","Hathoora","Rc Puram","Kollur","Kollur","Kollur"]
[15313,"1722438007020500","Sangareddy","Hathoora","Rc Puram","Kollur","Kollur","Bojya Thanda"]
[15318,"1722438009020700","Sangareddy","Hathoora","Rc Puram","Velmela","Velmela","Velmela Thanda"]
[15314,"1722438007030500","Sangareddy","Hathoora","Rc Puram","Kollur","Kollur","Devala Thanda"]
[15316,"1722438009030700","Sangareddy","Hathoora","Rc Puram","Velmela","Velmela","Sandugudem"]
[15317,"1722438009010700","Sangareddy","Hathoora","Rc Puram","Velmela","Velmela","Velmela"]
[15312,"1722438008010600","Sangareddy","Hathoora","Rc Puram","Edulanagulapally","Edulanagulapally","Edulanagulapally"]
[14909,"1722603023081500","Sangareddy","Narayankhed","Kalher","Modalkunta T","Nagdhar","Paslonigudam T"]
[14896,"1722603010040900","Sangareddy","Narayankhed","Kalher","Kalwakunta T","Masanpally","Ratnanaik T"]
[14868,"1722603014041100","Sangareddy","Narayankhed","Kalher","Mardi","Bachepally","Kottakunta T"]
[14890,"1722603007030600","Sangareddy","Narayankhed","Kalher","Nagankunta T","Mardi","Kottakunta T"]
[14901,"1722603024021600","Sangareddy","Narayankhed","Kalher","Munigepally","Munigepally","Manikiam T"]
[14903,"1722603024041600","Sangareddy","Narayankhed","Kalher","Munigepally","Munigepally","Nanyanaik T"]
[14904,"1722603023031500","Sangareddy","Narayankhed","Kalher","Nagdhar","Nagdhar","Erragunta T"]
[14880,"1722603009030800","Sangareddy","Narayankhed","Kalher","Pomyanaik T","Kalher","Kothacheru T"]
[14892,"1722603010030900","Sangareddy","Narayankhed","Kalher","Kalwakunta T","Masanpally","Bugyanaik T"]
[14885,"1722603008020700","Sangareddy","Narayankhed","Kalher","Krishnapur","Krishnapur","Mettukunta T"]
[14900,"1722603024031600","Sangareddy","Narayankhed","Kalher","Munigepally","Munigepally","Gamianaik T"]
[14907,"1722603023071500","Sangareddy","Narayankhed","Kalher","Modalkunta T","Nagdhar","Modalkunta T"]
[14874,"1722603005040500","Sangareddy","Narayankhed","Kalher","Jamlanayk T","Bibipet","Tukaram T"]
[14905,"1722603023051500","Sangareddy","Narayankhed","Kalher","Modalkunta T","Nagdhar","Garvubaijattu T"]
[14906,"1722603023021500","Sangareddy","Narayankhed","Kalher","Ramchander T","Nagdhar","Matronikunta T"]
[14910,"1722603023061500","Sangareddy","Narayankhed","Kalher","Ramchander T","Nagdhar","Podishetpally"]
[14869,"1722603014051100","Sangareddy","Narayankhed","Kalher","Nagankunta T","Bachepally","Nagankunta T"]
[14865,"1722603014071100","Sangareddy","Narayankhed","Kalher","Balkamchelka T","Bachepally","Chandernaik T"]
[14864,"1722603014061100","Sangareddy","Narayankhed","Kalher","Balkamchelka T","Bachepally","Balkamchelka T"]
[14866,"1722603014031100","Sangareddy","Narayankhed","Kalher","Kalwakunta T","Bachepally","Kalwakunta T"]
[14911,"1722603023041500","Sangareddy","Narayankhed","Kalher","Ramchander T","Nagdhar","Ramchander T"]
[14867,"1722603014021100","Sangareddy","Narayankhed","Kalher","Nagankunta T","Bachepally","Kishannaikt"]
[14889,"1722603007050600","Sangareddy","Narayankhed","Kalher","Indira Nagar","Mardi","Jaujanaik T"]
[14881,"1722603009020800","Sangareddy","Narayankhed","Kalher","Pomyanaik T","Kalher","Pomyanaik T"]
[14883,"1722603017020700","Sangareddy","Narayankhed","Kalher","Khanapur K","Krishnapur","Khanapur Kt"]
[14888,"1722603007020600","Sangareddy","Narayankhed","Kalher","Indira Nagar","Mardi","Indira Nagar"]
[14916,"1722603015021200","Sangareddy","Narayankhed","Kalher","Alikhan Pally","Raparthy","Alikhan Pally"]
[14913,"1722603013021000","Sangareddy","Narayankhed","Kalher","Damarcheru","Ramreddypet","Damarcheru"]
[14872,"1722603005020500","Sangareddy","Narayankhed","Kalher","Jamlanayk T","Bibipet","Jamlanayk T"]
[14893,"1722603010020900","Sangareddy","Narayankhed","Kalher","Devanpally","Masanpally","Devanpally"]
[14914,"1722603012011000","Sangareddy","Narayankhed","Kalher","Khanapur B","Ramreddypet","Khanapur B"]
[14894,"1722603011010900","Sangareddy","Narayankhed","Kalher","Mahadevpally","Masanpally","Mahadevpally"]
[14871,"1722603006010500","Sangareddy","Narayankhed","Kalher","Fathepur","Bibipet","Fathepur"]
[14917,"1722603015011200","Sangareddy","Narayankhed","Kalher","Mirkhanpet","Raparthy","Mirkhanpet"]
[14902,"1722603024011600","Sangareddy","Narayankhed","Kalher","Munigepally","Munigepally","Munigepally"]
[14870,"1722603005010500","Sangareddy","Narayankhed","Kalher","Bibipet","Bibipet","Bibipet"]
[14884,"1722603008010700","Sangareddy","Narayankhed","Kalher","Krishnapur","Krishnapur","Krishnapur"]
[14918,"1722603016011200","Sangareddy","Narayankhed","Kalher","Raparthy","Raparthy","Raparthy"]
[14915,"1722603013011000","Sangareddy","Narayankhed","Kalher","Ramreddypet","Ramreddypet","Ramreddypet"]
[14882,"1722603017010700","Sangareddy","Narayankhed","Kalher","Khanapur K","Krishnapur","Khanapur K"]
[14895,"1722603010010900","Sangareddy","Narayankhed","Kalher","Masanpally","Masanpally","Masanpally"]
[14908,"1722603023011500","Sangareddy","Narayankhed","Kalher","Nagdhar","Nagdhar","Nagdhar"]
[14891,"1722603007010600","Sangareddy","Narayankhed","Kalher","Mardi","Mardi","Mardi"]
[14863,"1722603014011100","Sangareddy","Narayankhed","Kalher","Bachepally","Bachepally","Bachepally"]
[14879,"1722603009010800","Sangareddy","Narayankhed","Kalher","Kalher","Kalher","Kalher"]
[25136,0,"Sangareddy","Narayankhed","Kangti","Jamgi K","Jamgi K","Yempally"]
[14968,"1722602025021800","Sangareddy","Narayankhed","Kangti","Nagoor B","Nagoor B","Nagoor B Thanda"]
[14976,"1722602027032000","Sangareddy","Narayankhed","Kangti","Siddangarga","Siddangarga","Sadu Shanker Thanda"]
[14982,"1722602005020500","Sangareddy","Narayankhed","Kangti","Ghanpur","Tadkal","Ghanpur Thanda"]
[14944,"1722602002040200","Sangareddy","Narayankhed","Kangti","Girgi Thanda","Chowkanpally","Mettu Tanda"]
[14966,"1722602013030800","Sangareddy","Narayankhed","Kangti","Kangti","Kangti","Watchu Thanda"]
[22564,"1823417030022200","Sangareddy","Narayankhed","Kangti","Babulgoam","Chintalwadi Thanda","Chintalwadi Thanda"]
[14957,"1722602017031100","Sangareddy","Narayankhed","Kangti","Hoba Thanda","Gajulpad","Vanju Thanda"]
[22605,"1823417030052200","Sangareddy","Narayankhed","Kangti","Babulgoam","Harya Nayak Thanda","Harya Nayak Thanda"]
[14945,"1722602002020200","Sangareddy","Narayankhed","Kangti","Girgi Thanda","Chowkanpally","Ramsing Thanda"]
[14955,"1722602017041100","Sangareddy","Narayankhed","Kangti","Hoba Thanda","Gajulpad","Hoba Thanda"]
[14985,"1722602010020500","Sangareddy","Narayankhed","Kangti","Yedlaragadi Thanda","Tadkal","Yedlaragadi Thanda"]
[14939,"1722602004020400","Sangareddy","Narayankhed","Kangti","Chapta B","Chapta K","Tukaram Thanda"]
[14951,"1722602028021700","Sangareddy","Narayankhed","Kangti","Enkemori","Enkemori","Enkemori Thanda"]
[14978,"1722602027022000","Sangareddy","Narayankhed","Kangti","Siddangarga","Siddangarga","Tukaram Thanda"]
[14980,"1722602016020400","Sangareddy","Narayankhed","Kangti","Sukkaltirth","Sukkaltirth","Tukaram Thanda"]
[14956,"1722602017021100","Sangareddy","Narayankhed","Kangti","Hoba Thanda","Gajulpad","Topya Thanda"]
[14986,"1722602015041000","Sangareddy","Narayankhed","Kangti","Turkawadgoan","Turkawadgoan","Chintamani Thanda"]
[14988,"1722602015031000","Sangareddy","Narayankhed","Kangti","Rajaram Thanda","Turkawadgoan","Sadu Thanda"]
[14983,"1722602010030500","Sangareddy","Narayankhed","Kangti","Yedlaragadi Thanda","Tadkal","Sadu Tanda"]
[14953,"1722602024021700","Sangareddy","Narayankhed","Kangti","Ramtirth","Enkemori","Ramtirth Thanda"]
[14934,"1722602014020900","Sangareddy","Narayankhed","Kangti","Bheemra","Bheemra","Bheemra Thanda"]
[14949,"1722602001020100","Sangareddy","Narayankhed","Kangti","Chander Tanda","Chander Tanda","Degulwadi Thanda"]
[14961,"1722602007030700","Sangareddy","Narayankhed","Kangti","Sadu Tanda","Jamgi B","Jamgi B Thanda"]
[14943,"1722602002030200","Sangareddy","Narayankhed","Kangti","Girgi Thanda","Chowkanpally","Girgi Thanda"]
[14959,"1722602007020700","Sangareddy","Narayankhed","Kangti","Gandhinagar","Jamgi B","Gandhinagar"]
[14965,"1722602013020800","Sangareddy","Narayankhed","Kangti","Mukund Thanda","Kangti","Mukund Thanda"]
[14937,"1722602004010400","Sangareddy","Narayankhed","Kangti","Chapta B","Chapta K","Chapta B"]
[14974,"1722602018011200","Sangareddy","Narayankhed","Kangti","Rasole","Rasole","Rasole"]
[14952,"1722602024011700","Sangareddy","Narayankhed","Kangti","Ramtirth","Enkemori","Ramtirth"]
[14936,"1722602003020300","Sangareddy","Narayankhed","Kangti","Sardar Thanda","Borgi Aurad","Sardar Thanda"]
[14963,"1722602011010600","Sangareddy","Narayankhed","Kangti","Murkunjal","Jamgi K","Murkunjal"]
[14960,"1722602007010700","Sangareddy","Narayankhed","Kangti","Jamgi B","Jamgi B","Jamgi B"]
[14946,"1722602019011300","Sangareddy","Narayankhed","Kangti","Banswada","Damargidda","Banswada"]
[14979,"1722602016010400","Sangareddy","Narayankhed","Kangti","Sukkaltirth","Sukkaltirth","Sukkaltirth"]
[14987,"1722602015021000","Sangareddy","Narayankhed","Kangti","Rajaram Thanda","Turkawadgoan","Rajaram Thanda"]
[14950,"1722602028011700","Sangareddy","Narayankhed","Kangti","Enkemori","Enkemori","Enkemori"]
[14954,"1722602017011100","Sangareddy","Narayankhed","Kangti","Gajulpad","Gajulpad","Gajulpad"]
[14977,"1722602027012000","Sangareddy","Narayankhed","Kangti","Siddangarga","Siddangarga","Siddangarga"]
[14942,"1722602002010200","Sangareddy","Narayankhed","Kangti","Chowkanpally","Chowkanpally","Chowkanpally"]
[22532,"1823417030012200","Sangareddy","Narayankhed","Kangti","Babulgoam","Babulgoam","Babulgoam"]
[14947,"1722602020011300","Sangareddy","Narayankhed","Kangti","Damargidda","Damargidda","Damargidda"]
[14969,"1722602026011900","Sangareddy","Narayankhed","Kangti","Nagoor K","Nagoor K","Nagoor K"]
[14933,"1722602014010900","Sangareddy","Narayankhed","Kangti","Bheemra","Bheemra","Bheemra"]
[14962,"1722602006010600","Sangareddy","Narayankhed","Kangti","Jamgi K","Jamgi K","Jamgi K"]
[14935,"1722602003010300","Sangareddy","Narayankhed","Kangti","Borgi Aurad","Borgi Aurad","Borgi Aurad"]
[14948,"1722602001010100","Sangareddy","Narayankhed","Kangti","Degulwadi","Degulwadi","Degulwadi"]
[14967,"1722602025011800","Sangareddy","Narayankhed","Kangti","Nagoor B","Nagoor B","Nagoor B"]
[14989,"1722602015011000","Sangareddy","Narayankhed","Kangti","Turkawadgoan","Turkawadgoan","Turkawadgoan"]
[14981,"1722602005010500","Sangareddy","Narayankhed","Kangti","Ghanpur","Tadkal","Ghanpur"]
[14938,"1722602012010400","Sangareddy","Narayankhed","Kangti","Chapta K","Chapta K","Chapta K"]
[14984,"1722602010010500","Sangareddy","Narayankhed","Kangti","Tadkal","Tadkal","Tadkal"]
[14964,"1722602013010800","Sangareddy","Narayankhed","Kangti","Kangti","Kangti","Kangti"]
[15088,"1722601036022500","Sangareddy","Narayankhed","Manoor","Ranapoor","Thumnoor","Ranapoor Tanda"]
[15091,"1722601023021400","Sangareddy","Narayankhed","Manoor","Kamalapur","Timmapur","Kamalapur Tanda"]
[15016,"1722601025031500","Sangareddy","Narayankhed","Manoor","Dawoor","Dawoor","Narya Nayak Tanda"]
[15058,"1722601035022400","Sangareddy","Narayankhed","Manoor","Maikode","Maikode","Maikode Tanda"]
[15060,"1722601026021600","Sangareddy","Narayankhed","Manoor","Manoor","Manoor","Manoor Tanda"]
[15015,"1722601025021500","Sangareddy","Narayankhed","Manoor","Dawoor","Dawoor","Dawoor Tanda"]
[15093,"1722601024021400","Sangareddy","Narayankhed","Manoor","Thimmapur","Timmapur","Thimmapur Tanda"]
[15020,"1722601037012600","Sangareddy","Narayankhed","Manoor","Doodgonda","Doodgonda","G Lingampally"]
[15090,"1722601023011400","Sangareddy","Narayankhed","Manoor","Kamalapur","Timmapur","Kamalapur"]
[15018,"1722601042022800","Sangareddy","Narayankhed","Manoor","Dhanwar","Dhanwar","Islampur"]
[15086,"1722601040012500","Sangareddy","Narayankhed","Manoor","Maqdoompur","Thumnoor","Maqdoompur"]
[15073,"1722601027022100","Sangareddy","Narayankhed","Manoor","Dosapally","Pulkurthi","Dosapally"]
[15076,"1722601045012900","Sangareddy","Narayankhed","Manoor","Usirikapally","Raipally","Usirikapally"]
[15075,"1722601044012900","Sangareddy","Narayankhed","Manoor","Raipally","Raipally","Raipally"]
[15089,"1722601039012500","Sangareddy","Narayankhed","Manoor","Thumnoor","Thumnoor","Thumnoor"]
[15017,"1722601042012800","Sangareddy","Narayankhed","Manoor","Dhanwar","Dhanwar","Dhanwar"]
[15092,"1722601024011400","Sangareddy","Narayankhed","Manoor","Thimmapur","Timmapur","Thimmapur"]
[15072,"1722601030012000","Sangareddy","Narayankhed","Manoor","Ng Hukrana","Ng Hukrana","Ng Hukrana"]
[15085,"1722601029011900","Sangareddy","Narayankhed","Manoor","Thornal","Thornal","Thornal"]
[15006,"1722601033012200","Sangareddy","Narayankhed","Manoor","Athimiyal","Athimiyal","Athimiyal"]
[15087,"1722601036012500","Sangareddy","Narayankhed","Manoor","Ranapoor","Thumnoor","Ranapoor"]
[15014,"1722601025011500","Sangareddy","Narayankhed","Manoor","Dawoor","Dawoor","Dawoor"]
[15011,"1722601032011700","Sangareddy","Narayankhed","Manoor","Badalgoam","Badalgoam","Badalgoam"]
[15019,"1722601038012600","Sangareddy","Narayankhed","Manoor","Doodgonda","Doodgonda","Doodgonda"]
[15084,"1722601029011300","Sangareddy","Narayankhed","Manoor","Shelgira","Shelgira","Shelgira"]
[15074,"1722601031012100","Sangareddy","Narayankhed","Manoor","Pulkurthi","Pulkurthy","Pulkurthy"]
[15012,"1722601034012300","Sangareddy","Narayankhed","Manoor","Bellapur","Bellapur","Bellapur"]
[15057,"1722601035012400","Sangareddy","Narayankhed","Manoor","Maikode","Maikode","Maikode"]
[15013,"1722601042012700","Sangareddy","Narayankhed","Manoor","Borancha","Borancha","Borancha"]
[15059,"1722601026011600","Sangareddy","Narayankhed","Manoor","Manoor","Manoor","Manoor"]
[15100,"1722601028011800","Sangareddy","Narayankhed","Manoor","Yelgoi","Yelgoi","Yelgoi"]
[15030,"1722601005060400","Sangareddy","Narayankhed","Nagalgidda","Erakpally","Errakpally","Hanuman Tanda"]
[15038,"1722601005190410","Sangareddy","Narayankhed","Nagalgidda","Shanthinagar Tanda","Errakpally","Muna Tanda"]
[15043,"1722601006140410","Sangareddy","Narayankhed","Nagalgidda","Shanthinagar Tanda","Errakpally","Sheri Shankar Tanda"]
[15027,"1722601005150410","Sangareddy","Narayankhed","Nagalgidda","Shanthinagar Tanda","Errakpally","Bheemla Tanda"]
[15050,"1722601014021000","Sangareddy","Narayankhed","Nagalgidda","Karamungi","Karamungi","Kurum Tanda"]
[15095,"1722601021021200","Sangareddy","Narayankhed","Nagalgidda","Muktapur","Valloor","Muktapur Tanda"]
[15032,"1722601005070400","Sangareddy","Narayankhed","Nagalgidda","Shanthinagar Tanda","Errakpally","Karobari Tanda"]
[15026,"1703501006050500","Sangareddy","Narayankhed","Nagalgidda","Konda Naik Tanda","Enakpally","Thauru Tanda"]
[15081,"1722601008040600","Sangareddy","Narayankhed","Nagalgidda","Gopya Tanda","Seri Damargidda","Peeria Naik Tanda"]
[15045,"1722601005110410","Sangareddy","Narayankhed","Nagalgidda","Kuba Tanda","Errakpally","Wali Tanda"]
[15051,"1722601004060300","Sangareddy","Narayankhed","Nagalgidda","Reka Tanda","Karasguthi","Chowkla Tanda"]
[15036,"1722601005030400","Sangareddy","Narayankhed","Nagalgidda","Shanthinagar Tanda","Errakpally","Laskari Tanda"]
[15098,"1722601003020200","Sangareddy","Narayankhed","Nagalgidda","Yesgi","Yesgi","Yesgi Tanda"]
[15031,"1722601005100410","Sangareddy","Narayankhed","Nagalgidda","Erakpally","Errakpally","Humla Tanda"]
[15054,"1722601004030300","Sangareddy","Narayankhed","Nagalgidda","Reka Tanda","Karasguthi","Gyma Tanda"]
[15024,"1722601006020500","Sangareddy","Narayankhed","Nagalgidda","Ratan Naik Tanda","Enakpally","Pattu Tanda"]
[15039,"1722601005160410","Sangareddy","Narayankhed","Nagalgidda","Kuba Tanda","Errakpally","Pattu Tanda"]
[15044,"1722601005080400","Sangareddy","Narayankhed","Nagalgidda","Kuba Tanda","Errakpally","Vittal Tanda"]
[15029,"1722601005130410","Sangareddy","Narayankhed","Nagalgidda","Megha Tanda","Errakpally","Gurusing Tanda"]
[15034,"1722601005180410","Sangareddy","Narayankhed","Nagalgidda","Kuba Tanda","Errakpally","Kuba Tanda"]
[15053,"1722601004050300","Sangareddy","Narayankhed","Nagalgidda","Reka Tanda","Karasguthi","Govend Tanda"]
[15035,"1722601005040400","Sangareddy","Narayankhed","Nagalgidda","Kuba Tanda","Errakpally","Lakya Tanda"]
[15064,"1722601012030900","Sangareddy","Narayankhed","Nagalgidda","Shanthinagar Tanda","Mavanhally","Ramchander Tanda"]
[15040,"1722601005170410","Sangareddy","Narayankhed","Nagalgidda","Megha Tanda","Errakpally","Ramchander Tanda"]
[15079,"1722601009020600","Sangareddy","Narayankhed","Nagalgidda","Erraboguda","Seri Damargidda","Goma Sadu Tanda"]
[15041,"1722601005120410","Sangareddy","Narayankhed","Nagalgidda","Megha Tanda","Errakpally","Shama Tanda"]
[15066,"1722601012020900","Sangareddy","Narayankhed","Nagalgidda","Sakku Tanda","Mavanhally","Shama Tanda"]
[15071,"1722601010020700","Sangareddy","Narayankhed","Nagalgidda","Nagalgidda","Nagalgidda","Shama Tanda"]
[15077,"1722601008030600","Sangareddy","Narayankhed","Nagalgidda","Gopya Tanda","Seri Damargidda","Bikya Tanda"]
[15022,"1722601006030500","Sangareddy","Narayankhed","Nagalgidda","Konda Naik Tanda","Enakpally","Konda Naik Tanda"]
[15056,"1722601004040300","Sangareddy","Narayankhed","Nagalgidda","Reka Tanda","Karasguthi","Reka Tanda"]
[15025,"1722601006040500","Sangareddy","Narayankhed","Nagalgidda","Ratan Naik Tanda","Enakpally","Ratan Naik Tanda"]
[15065,"1722601012060900","Sangareddy","Narayankhed","Nagalgidda","Sakku Tanda","Mavanhally","Sakku Tanda"]
[15061,"1722601012050900","Sangareddy","Narayankhed","Nagalgidda","Kishan Naik Tanda","Mavanhally","Dolya Tanda"]
[15042,"1722601005050400","Sangareddy","Narayankhed","Nagalgidda","Shanthinagar Tanda","Errakpally","Shanthinagar Tanda"]
[15010,"1722601013010100","Sangareddy","Narayankhed","Nagalgidda","Shikarkhana","Audatpur","Shikarkhana"]
[15037,"1703501005020400","Sangareddy","Narayankhed","Nagalgidda","Megha Tanda","Errakpally","Megha Tanda"]
[15009,"1722601001010100","Sangareddy","Narayankhed","Nagalgidda","Goudgoanjanwada","Audatpur","Goudgoanjanwada"]
[15078,"1722601009010600","Sangareddy","Narayankhed","Nagalgidda","Erraboguda","Seri Damargidda","Erraboguda"]
[15068,"1722601015010800","Sangareddy","Narayankhed","Nagalgidda","Shapur","Morgi","Shapur"]
[15048,"1722601018011100","Sangareddy","Narayankhed","Nagalgidda","Keshwar","Gudur","Keshwar"]
[15070,"1722601020010700","Sangareddy","Narayankhed","Nagalgidda","Pusalpad","Nagalgidda","Pusalpad"]
[15046,"1722601011013000","Sangareddy","Narayankhed","Nagalgidda","Gondegoan","Gondegoan","Gondegoan"]
[15080,"1722601008020600","Sangareddy","Narayankhed","Nagalgidda","Gopya Tanda","Seri Damargidda","Gopya Tanda"]
[15021,"1722601006010500","Sangareddy","Narayankhed","Nagalgidda","Enakpally","Enakpally","Enakpally"]
[15033,"1722601005090400","Sangareddy","Narayankhed","Nagalgidda","Shanthinagar Tanda","Errakpally","Kishan Naik Tanda"]
[15062,"1722601012040900","Sangareddy","Narayankhed","Nagalgidda","Kishan Naik Tanda","Mavanhally","Kishan Naik Tanda"]
[15052,"1722601004020300","Sangareddy","Narayankhed","Nagalgidda","Gangaram Tanda","Karasguthi","Gangaram Tanda"]
[15096,"1722601019011200","Sangareddy","Narayankhed","Nagalgidda","Valloor","Valloor","Valloor"]
[15097,"1722601003010200","Sangareddy","Narayankhed","Nagalgidda","Yesgi","Yesgi","Yesgi"]
[15023,"1722601007010500","Sangareddy","Narayankhed","Nagalgidda","Ootapally","Enakpally","Ootapally"]
[15063,"1722601012010900","Sangareddy","Narayankhed","Nagalgidda","Mavenhally","Mavenhally","Mavenhally"]
[15094,"1722601021011200","Sangareddy","Narayankhed","Nagalgidda","Muktapur","Valloor","Muktapur"]
[15067,"1722601016010800","Sangareddy","Narayankhed","Nagalgidda","Morgi","Morgi","Morgi"]
[15083,"1722601008010600","Sangareddy","Narayankhed","Nagalgidda","Sheridamargidda","Seri Damargidda","Seri Damargidda"]
[15028,"1722601005010400","Sangareddy","Narayankhed","Nagalgidda","Erakpally","Errakpally","Erakpally"]
[15047,"1722601017011100","Sangareddy","Narayankhed","Nagalgidda","Gudur","Gudur","Gudur"]
[15069,"1722601010010700","Sangareddy","Narayankhed","Nagalgidda","Nagalgidda","Nagalgidda","Nagalgidda"]
[15008,"1722601002010100","Sangareddy","Narayankhed","Nagalgidda","Audatpur","Audatpur","Audathpur"]
[15049,"1722601014011000","Sangareddy","Narayankhed","Nagalgidda","Karamungi","Karamungi","Karamungi"]
[15055,"1722601014010300","Sangareddy","Narayankhed","Nagalgidda","Karasguthi","Karasguthi","Karasguthi"]
[15104,"1722604017021300","Sangareddy","Narayankhed","Narayankhed","Peerla Tanda","Abbenda","Kindi Thanda"]
[15130,"1722604001040100","Sangareddy","Narayankhed","Narayankhed","Gopinayak Tanda","Hangarga K","Lal Singh Tanda"]
[15159,"1722604008020700","Sangareddy","Narayankhed","Narayankhed","Kothapally","Nizampet","Kothapally"]
[15151,"1722604005020400","Sangareddy","Narayankhed","Narayankhed","Kamjipoor","Narsapoor","Kothapally"]
[15187,"1722604021041500","Sangareddy","Narayankhed","Narayankhed","Venkatapure","Venkatapure","Hatya Nayak Tanda"]
[15133,"1722604001050100","Sangareddy","Narayankhed","Narayankhed","Hangarga K","Hangarga K","Shama Nayak Tanda"]
[15157,"1722604009030800","Sangareddy","Narayankhed","Narayankhed","Nemilimet","Nemilimet","Road Dhuba Thanda"]
[15118,"1722604003070200","Sangareddy","Narayankhed","Narayankhed","Chapta K","Chapta K","Durgamma Thanda"]
[15162,"1722604008060700","Sangareddy","Narayankhed","Narayankhed","Megyanayak Thanda","Nizampet","Raamdhan Thanda"]
[15158,"1722604008070700","Sangareddy","Narayankhed","Narayankhed","Megyanayak Thanda","Nizampet","Kheeranayak Thanda"]
[15110,"1722604035032201","Sangareddy","Narayankhed","Narayankhed","Bandaranpally","Ananthsagar","Miyapure Tanda"]
[15156,"1722604009020800","Sangareddy","Narayankhed","Narayankhed","Nemilimet","Nemilimet","Nemilimet Thanda"]
[15160,"1722604008040700","Sangareddy","Narayankhed","Narayankhed","Megyanayak Thanda","Nizampet","Megyanayak Thanda"]
[15126,"1722604016021400","Sangareddy","Narayankhed","Narayankhed","Hangarga B","Hangarga B","Hangariga  B Tanda"]
[15179,"1722604007050600","Sangareddy","Narayankhed","Narayankhed","Eedhul Tandha","Rayala Madugu","Jairam Thanda"]
[15109,"1722604035032200","Sangareddy","Narayankhed","Narayankhed","Bandaranpally","Ananthsagar","Gowraram Tanda"]
[15164,"1722604008050700","Sangareddy","Narayankhed","Narayankhed","Megyanayak Thanda","Nizampet","Tukyanayak Thanda"]
[15163,"1722604008080700","Sangareddy","Narayankhed","Narayankhed","Nizampet","Nizampet","Shaakhapoor"]
[15132,"1722604014010100","Sangareddy","Narayankhed","Narayankhed","Nagapur Thanda","Hangarga K","Nagapure"]
[15153,"1722604010020400","Sangareddy","Narayankhed","Narayankhed","Dnt Thanda","Narsapoor","Narsapoor Chenna  T"]
[15119,"1722604003020200","Sangareddy","Narayankhed","Narayankhed","Aklai Thanda","Chapta K","Gairam Thanda"]
[15182,"1722604007040600","Sangareddy","Narayankhed","Narayankhed","Eedhul Tandha","Rayala Madugu","Telta Kunta Thanda"]
[15180,"1722604007020600","Sangareddy","Narayankhed","Narayankhed","Manik Nayak Thanda","Rayala Madugu","Manik Nayak Thanda"]
[15113,"1722604025021900","Sangareddy","Narayankhed","Narayankhed","Jukal","Anthwar","Jukal Tanda"]
[15178,"1722604007030600","Sangareddy","Narayankhed","Narayankhed","Manik Nayak Thanda","Rayala Madugu","Gadda Thanda"]
[15116,"1722604003040200","Sangareddy","Narayankhed","Narayankhed","Seetharam Tanda","Chapta K","Chali Thanda"]
[15105,"1722604017041300","Sangareddy","Narayankhed","Narayankhed","Allapure","Abbenda","Malparagadi Tanda"]
[15128,"1722604001030100","Sangareddy","Narayankhed","Narayankhed","Gopinayak Tanda","Hangarga K","Gopinayak Tanda"]
[15138,"1722604011040900","Sangareddy","Narayankhed","Narayankhed","Kondapoor","Kondapoor","Schoolthanda"]
[15127,"1722604001020100","Sangareddy","Narayankhed","Narayankhed","Gopinayak Tanda","Hangarga K","Chandarnayak Tanda"]
[15172,"1722904031022100","Sangareddy","Narayankhed","Narayankhed","Pippiri","Panchagum","Shenkarnaik Tanda"]
[15137,"1722604011050900","Sangareddy","Narayankhed","Narayankhed","Kondapoor","Kondapoor","Mitiya Nayak Thanda"]
[15115,"1722604003030200","Sangareddy","Narayankhed","Narayankhed","Aklai Thanda","Chapta K","Aklai Thanda"]
[15131,"1722604014020100","Sangareddy","Narayankhed","Narayankhed","Nagapur Thanda","Hangarga K","Nagapur Thanda"]
[15169,"1722604032022100","Sangareddy","Narayankhed","Narayankhed","Pippiri","Panchagum","Balnayak Tanda"]
[15120,"1722604003060200","Sangareddy","Narayankhed","Narayankhed","Seetharam Tanda","Chapta K","Seetharam Tanda"]
[15144,"1722604023021700","Sangareddy","Narayankhed","Narayankhed","Madhewar Thanda","Madhewar","Madhewar Tanda"]
[15102,"1722604015011300","Sangareddy","Narayankhed","Narayankhed","Allapure","Abbenda","Allapure"]
[15141,"1722604023031700","Sangareddy","Narayankhed","Narayankhed","Madhewar Thanda","Madhewar","Gunkula Kunta"]
[15167,"1722604029012000","Sangareddy","Narayankhed","Narayankhed","Jujalpure","Paidipally","Jujalpure"]
[15135,"1722604011010900","Sangareddy","Narayankhed","Narayankhed","Kondapoor","Kondapoor","Hanman Thanda"]
[15174,"1722604004040300","Sangareddy","Narayankhed","Narayankhed","Paluguthanda","Raikal","Paluguthanda"]
[15142,"1722604023051700","Sangareddy","Narayankhed","Narayankhed","Madhewar","Madhewar","Lingnayak Pally"]
[15139,"1722604026011800","Sangareddy","Narayankhed","Narayankhed","Lingapoor","Lingapoor","Chandapure"]
[15177,"1722604007060600","Sangareddy","Narayankhed","Narayankhed","Eedhul Tandha","Rayala Madugu","Eedhul Tandha"]
[15108,"1722604035022200","Sangareddy","Narayankhed","Narayankhed","Bandaranpally","Ananthsagar","Bandaranpally"]
[15121,"1722604003050200","Sangareddy","Narayankhed","Narayankhed","Shere Thanda","Chapta K","Shere Thanda"]
[15154,"1722604009040800","Sangareddy","Narayankhed","Narayankhed","Nemilimet","Nemilimet","Gondu Karel Thanda"]
[15149,"1722604010030400","Sangareddy","Narayankhed","Narayankhed","Dnt Thanda","Narsapoor","Dnt Thanda"]
[15150,"1722604004010400","Sangareddy","Narayankhed","Narayankhed","Kamjipoor","Narsapoor","Kamjipoor"]
[15188,"1722604021031500","Sangareddy","Narayankhed","Narayankhed","Surpanch Tanda","Venkatapure","Munya Nayak Tanda"]
[15152,"1722604010010400","Sangareddy","Narayankhed","Narayankhed","Narsapoor","Narsapoor","Narsapoor"]
[15166,"1722604030012000","Sangareddy","Narayankhed","Narayankhed","Jaganathpoor","Paidipally","Jaganathpoor"]
[15136,"1722604011020900","Sangareddy","Narayankhed","Narayankhed","Kondapoor","Kondapoor","Kerya Thanda"]
[15165,"1722604028012000","Sangareddy","Narayankhed","Narayankhed","Bhanapure","Paidipally","Bhanapure"]
[15111,"1722604027011900","Sangareddy","Narayankhed","Narayankhed","Anthwar","Anthwar","Anthwar"]
[15175,"1722604004020300","Sangareddy","Narayankhed","Narayankhed","Poltana Pally","Raikal","Poltana Pally"]
[15190,"1722604021011500","Sangareddy","Narayankhed","Narayankhed","Venkatapure","Venkatapure","Venkatapure"]
[15171,"1722604031012100","Sangareddy","Narayankhed","Narayankhed","Pippiri","Panchagum","Pippiri"]
[15189,"1722604021021500","Sangareddy","Narayankhed","Narayankhed","Surpanch Tanda","Venkatapure","Surpanch Tanda"]
[15125,"1722604016011400","Sangareddy","Narayankhed","Narayankhed","Hangarga B","Hangarga B","Hangariga  B"]
[15103,"1722604018011300","Sangareddy","Narayankhed","Narayankhed","Hukarana","Abbenda","Hukarana"]
[15186,"1722604013031200","Sangareddy","Narayankhed","Narayankhed","Turkapally Tanda","Turkapally","Turkapally Tanda"]
[15143,"1722604023011700","Sangareddy","Narayankhed","Narayankhed","Madhewar","Madhewar","Madhewar"]
[15173,"1722604004030300","Sangareddy","Narayankhed","Narayankhed","Chala Gedha Thanda","Raikal","Chala Gedha Thanda"]
[15106,"1722604017031300","Sangareddy","Narayankhed","Narayankhed","Peerla Tanda","Abbenda","Peerla Tanda"]
[15114,"1722604034011900","Sangareddy","Narayankhed","Narayankhed","Sathyagam","Anthwar","Sathyagam"]
[15170,"1722604032012100","Sangareddy","Narayankhed","Narayankhed","Panchagum","Panchagum","Panchagam"]
[15112,"1722604025191900","Sangareddy","Narayankhed","Narayankhed","Jukal","Anthwar","Jukal"]
[15155,"1722604009010800","Sangareddy","Narayankhed","Narayankhed","Nemilimet","Nemilimet","Nemelmet"]
[15124,"1722604013011100","Sangareddy","Narayankhed","Narayankhed","Gangapure","Gangapure","Gangapure"]
[15168,"1722604033012000","Sangareddy","Narayankhed","Narayankhed","Paidipally","Paidipally","Paidipally"]
[15145,"1722604023041700","Sangareddy","Narayankhed","Narayankhed","Pothan Pally","Madhewar","Pothan Pally"]
[15129,"1722604001010100","Sangareddy","Narayankhed","Narayankhed","Hangarga K","Hangarga K","Hangariga K"]
[15134,"1722604022011600","Sangareddy","Narayankhed","Narayankhed","Hanmanthraopeta","Hanmanthraopeta","Hanmanthrao P Et"]
[15181,"1722604007010600","Sangareddy","Narayankhed","Narayankhed","Rayala Madugu","Rayala Madugu","Rayala Madugu"]
[15107,"1722604035012200","Sangareddy","Narayankhed","Narayankhed","Ananthsagar","Ananthsagar","Ananthsagar"]
[15140,"1722604024011800","Sangareddy","Narayankhed","Narayankhed","Lingapoor","Lingapoor","Lingapoor"]
[15185,"1722604013011200","Sangareddy","Narayankhed","Narayankhed","Turkapally","Turkapally","Turkapally"]
[15117,"1722604003010200","Sangareddy","Narayankhed","Narayankhed","Chapta K","Chapta K","Chapta K"]
[15101,"1722604017011300","Sangareddy","Narayankhed","Narayankhed","Abbenda","Abbenda","Abbendha"]
[15176,"1722604004010300","Sangareddy","Narayankhed","Narayankhed","Raikal","Raikal","Raikal"]
[15184,"1722604006010500","Sangareddy","Narayankhed","Narayankhed","Sanjivaraopet","Sanjivaraopet","Sanjivaraopet"]
[15147,"1722604019011000","Sangareddy","Narayankhed","Narayankhed","Narayankhed","Narayankhed","Mansalpure Harjanwada"]
[15183,"1722904036012300","Sangareddy","Narayankhed","Narayankhed","Rudraram","Rudraram","Rudraram"]
[15161,"1722604008010700","Sangareddy","Narayankhed","Narayankhed","Nizampet","Nizampet","Nizampet"]
[15146,"1722604012011000","Sangareddy","Narayankhed","Narayankhed","Narayankhed","Narayankhed","Chandkhan Pally"]
[15148,"1722604020011000","Sangareddy","Narayankhed","Narayankhed","Narayankhed","Narayankhed","Narayankhed"]
[14999,"1722602029092100","Sangareddy","Narayankhed","Sirgapur","Kishen Thanda","Waser","Hemla Tanda"]
[14998,"1722602029072100","Sangareddy","Narayankhed","Sirgapur","Chander Thanda","Waser","Devsing Thanda"]
[14990,"1722602030062200","Sangareddy","Narayankhed","Sirgapur","Roopla Thanda","Wangdhal","Dkya Tanda"]
[15123,"1722604002020200","Sangareddy","Narayankhed","Sirgapur","Ujlamapad","Chapta K","Ujlamapad T"]
[14876,"1722603022041400","Sangareddy","Narayankhed","Sirgapur","Kadpal","Kadpal","Kadpal T"]
[14925,"1722603021071300","Sangareddy","Narayankhed","Sirgapur","Sarpanch T","Sirgapur","Rajeshwar T"]
[15002,"1722602029102100","Sangareddy","Narayankhed","Sirgapur","Chander Thanda","Waser","Munya Tanda"]
[14922,"1722603021051300","Sangareddy","Narayankhed","Sirgapur","Gairan T","Sirgapur","Lonka T"]
[14973,"1722602023021600","Sangareddy","Narayankhed","Sirgapur","Potpally","Potpally","Potpally Thanda"]
[14921,"1722603021101300","Sangareddy","Narayankhed","Sirgapur","Jamla T","Sirgapur","Jeewla T"]
[15001,"1722602029052100","Sangareddy","Narayankhed","Sirgapur","Kishen Thanda","Waser","Lachu Thanda"]
[14994,"1722602030042200","Sangareddy","Narayankhed","Sirgapur","Roopla Thanda","Wangdhal","Shama Thanda"]
[14924,"1722603021041300","Sangareddy","Narayankhed","Sirgapur","Gairan T","Sirgapur","Patel T"]
[14923,"1722603021081300","Sangareddy","Narayankhed","Sirgapur","Sarpanch T","Sirgapur","Mangal T"]
[15004,"1722602029082100","Sangareddy","Narayankhed","Sirgapur","Chander Thanda","Waser","Valu Thanda"]
[14997,"1722602029032100","Sangareddy","Narayankhed","Sirgapur","Chander Thanda","Waser","Chander Thanda"]
[14919,"1722603021111310","Sangareddy","Narayankhed","Sirgapur","Gairan T","Sirgapur","Gairan T"]
[14992,"1722602030022200","Sangareddy","Narayankhed","Sirgapur","Wangdhal","Wangdhal","Ramsing Thanda"]
[14991,"1722602030032200","Sangareddy","Narayankhed","Sirgapur","Gairan Thanda","Wangdhal","Gairan Thanda"]
[14996,"1722602029042100","Sangareddy","Narayankhed","Sirgapur","Chander Thanda","Waser","Bibya Thanda"]
[14929,"1722603021091300","Sangareddy","Narayankhed","Sirgapur","Jamla T","Sirgapur","Tolya T"]
[14878,"1722603022031400","Sangareddy","Narayankhed","Sirgapur","Lakshminaik T","Kadpal","Vittalnaik T"]
[14926,"1722603021031300","Sangareddy","Narayankhed","Sirgapur","Sarpanch T","Sirgapur","Sarpanch T"]
[14877,"1722603022021400","Sangareddy","Narayankhed","Sirgapur","Lakshminaik T","Kadpal","Lakshminaik T"]
[14920,"1722603021061300","Sangareddy","Narayankhed","Sirgapur","Jamla T","Sirgapur","Jamla T"]
[14975,"1722602033012300","Sangareddy","Narayankhed","Sirgapur","Sangam","Sangam","Sangam"]
[14898,"1722603020020100","Sangareddy","Narayankhed","Sirgapur","Chinna Mubarakpur","Mubarakpur","Chinna Mubarakpur"]
[14927,"1722603021021300","Sangareddy","Narayankhed","Sirgapur","Sirgapur","Sirgapur","Singerboguda T"]
[15000,"1722602029062100","Sangareddy","Narayankhed","Sirgapur","Kishen Thanda","Waser","Kishen Thanda"]
[14993,"1722602030052200","Sangareddy","Narayankhed","Sirgapur","Roopla Thanda","Wangdhal","Roopla Thanda"]
[15003,"1722602029022100","Sangareddy","Narayankhed","Sirgapur","Suthya Thanda","Waser","Suthya Thanda"]
[14970,"1722602031011600","Sangareddy","Narayankhed","Sirgapur","Goudgoan","Potpally","Goudgoan"]
[14862,"1722603002020200","Sangareddy","Narayankhed","Sirgapur","Anthargaon","Anthargaon","Anthargaon T"]
[14899,"1722603020010100","Sangareddy","Narayankhed","Sirgapur","Pedda Mubarakpur","Mubarakpur","Pedda Mubarakpur"]
[15122,"1722604002010200","Sangareddy","Narayankhed","Sirgapur","Ujlamapad","Chapta K","Ujlamapad"]
[14930,"1722603004010400","Sangareddy","Narayankhed","Sirgapur","Gosaipally","Sultana Bad","Gosaipally"]
[14897,"1722603001010100","Sangareddy","Narayankhed","Sirgapur","Bokkasgoan","Mubarakpur","Bokkasgoan"]
[14941,"1722602032012300","Sangareddy","Narayankhed","Sirgapur","Cheemalpad","Cheemalpad","Cheemalpad"]
[14932,"1722603019010400","Sangareddy","Narayankhed","Sirgapur","Sultanabad","Sultana Bad","Sultanabad"]
[14861,"1722603002010200","Sangareddy","Narayankhed","Sirgapur","Anthargaon","Anthargaon","Anthargaon"]
[14995,"1722602030012200","Sangareddy","Narayankhed","Sirgapur","Wangdhal","Wangdhal","Wangdhal"]
[14972,"1722602023011600","Sangareddy","Narayankhed","Sirgapur","Potpally","Potpally","Potpally"]
[14958,"1722602021011400","Sangareddy","Narayankhed","Sirgapur","Gardegoan","Gardegoan","Gardegoan"]
[14971,"1722602022011600","Sangareddy","Narayankhed","Sirgapur","Naganpally","Potpally","Naganpally"]
[14912,"1722603003010300","Sangareddy","Narayankhed","Sirgapur","Pochapur","Pochapur","Pochapur"]
[15005,"1722602029012100","Sangareddy","Narayankhed","Sirgapur","Waser","Waser","Waser"]
[14931,"1722603018010400","Sangareddy","Narayankhed","Sirgapur","Khajapur","Sultana Bad","Khajapur"]
[14875,"1722603022011400","Sangareddy","Narayankhed","Sirgapur","Kadpal","Kadpal","Kadpal"]
[14928,"1722603021011300","Sangareddy","Narayankhed","Sirgapur","Sirgapur","Sirgapur","Sirgapur"]
[5540,"1722436012031100","Sangareddy","Sangareddy","Kandi","Bathole","Bathole","Kandireddygudem"]
[5557,"1722436016041500","Sangareddy","Sangareddy","Kandi","Chimnapur","Chimnapur","Reddya  T"]
[5555,"1722436016051500","Sangareddy","Sangareddy","Kandi","Chimnapur","Chimnapur","Chimnapur  T"]
[5553,"1722436023022000","Sangareddy","Sangareddy","Kandi","Kalvemula","Kalvemula","Kotala"]
[5558,"1722436016031500","Sangareddy","Sangareddy","Kandi","Kandi","Kandi","Vankatrao  T"]
[5542,"1722436025022300","Sangareddy","Sangareddy","Kandi","Cheriyal","Cheriyal  T","Cheriyal  T"]
[5562,"1722436014031300","Sangareddy","Sangareddy","Kandi","Tunikila Taanda","Tunikila Taanda","Gollaguda  T"]
[5549,"1722436013031200","Sangareddy","Sangareddy","Kandi","Eardanoor  T","Eardanoor  T","Ippala  T"]
[5563,"1722436014041300","Sangareddy","Sangareddy","Kandi","Waddengadda","Waddengadda","Koyaguda T"]
[5539,"1722436012021100","Sangareddy","Sangareddy","Kandi","Bathole","Bathole","Bathole  T"]
[5548,"1722436013021200","Sangareddy","Sangareddy","Kandi","Eardanoor  T","Eardanoor  T","Eardanoor  T"]
[5545,"1722436011031000","Sangareddy","Sangareddy","Kandi","Begumpet","Begumpet","Begumpet  T"]
[5565,"1722436014021300","Sangareddy","Sangareddy","Kandi","Tunikila Taanda","Tunikila Taanda","Tunikila Taanda"]
[5566,"1722436014051300","Sangareddy","Sangareddy","Kandi","Waddengadda","Waddengadda","Waddengadda"]
[5544,"1722436011021000","Sangareddy","Sangareddy","Kandi","Begumpet","Begumpet","Begumpet"]
[5538,"1722436012011100","Sangareddy","Sangareddy","Kandi","Bathole","Bathole","Bathole"]
[5564,"1722436014011300","Sangareddy","Sangareddy","Kandi","Mamidipally","Mamidipally","Mamidipally"]
[5567,"1722436029012700","Sangareddy","Sangareddy","Kandi","Topulagonda","Topulagonda","Topulagonda"]
[5552,"1722436023012000","Sangareddy","Sangareddy","Kandi","Kalvemula","Kalvemula","Kalvemula"]
[5554,"1722436016021500","Sangareddy","Sangareddy","Kandi","Chimnapur","Chimnapur","Chimnapur"]
[5561,"1722436022011900","Sangareddy","Sangareddy","Kandi","Makthallur","Makthallur","Makthallur"]
[5568,"1722436021011800","Sangareddy","Sangareddy","Kandi","Uttarpally","Uttarpally","Uttarpally"]
[5547,"1722436013011200","Sangareddy","Sangareddy","Kandi","Eardanoor","Eardanoor","Eardanoor"]
[5543,"1722436023032100","Sangareddy","Sangareddy","Kandi","Cherlagudem","Cherlagudem","Cherlagudem"]
[5551,"1722436028012600","Sangareddy","Sangareddy","Kandi","Julkal","Julkal","Julkal"]
[5560,"1722436015011400","Sangareddy","Sangareddy","Kandi","Koulampet","Koulampet","Koulampet"]
[5546,"1722436011011000","Sangareddy","Sangareddy","Kandi","Chidruppa","Chidruppa","Chidruppa"]
[5559,"1722436024012200","Sangareddy","Sangareddy","Kandi","Kashipur","Kashipur","Kashipur"]
[5537,"1722436010010900","Sangareddy","Sangareddy","Kandi","Arutla","Arutla","Arutla"]
[5569,"1722436027012500","Sangareddy","Sangareddy","Kandi","Yeddumailaram","Yeddumailaram","Yeddumailaram"]
[5550,"1722436026012400","Sangareddy","Sangareddy","Kandi","Indrakaran","Indrakaran","Indrakaran"]
[5541,"1722436025012300","Sangareddy","Sangareddy","Kandi","Cheriyal","Cheriyal  T","Cheriyal"]
[5556,"1722436016011500","Sangareddy","Sangareddy","Kandi","Kandi","Kandi","Kandi"]
[5572,"1722435015021500","Sangareddy","Sangareddy","Kondapur","Ananthsagar","Ananthsagar","Kindi Thanda"]
[5573,"1722435015031500","Sangareddy","Sangareddy","Kondapur","Ananthsagar","Ananthsagar","Meedi Than Da"]
[5586,"1722435012031100","Sangareddy","Sangareddy","Kondapur","Haridaspur","Haridaspur","Peddammagadda T"]
[5598,"1722435014021400","Sangareddy","Sangareddy","Kondapur","Marepally","Marepally","Rampur T"]
[5585,"1722435012021100","Sangareddy","Sangareddy","Kondapur","Haridaspur","Haridaspur","Jaligutta T"]
[5583,"1722435012051100","Sangareddy","Sangareddy","Kondapur","Tammadibavi T","Haridaspur","Brahmmamgari T"]
[5602,"1722435006010500","Sangareddy","Sangareddy","Kondapur","Malkapur","Malkapur","Qutubshahpet"]
[5600,"1722435021022000","Sangareddy","Sangareddy","Kondapur","Munidevunipally","Munidevunipally","Gadimalkapur"]
[5605,"1722435011021000","Sangareddy","Sangareddy","Kondapur","Terpole","Terpole","Eduragudem"]
[5589,"1722435017022300","Sangareddy","Sangareddy","Kondapur","Machepally","Machepally","Gottilagutta Thanda"]
[5587,"1722435012041100","Sangareddy","Sangareddy","Kondapur","Tammadibavi T","Haridaspur","Tammadibavi T"]
[5591,"1722435017032300","Sangareddy","Sangareddy","Kondapur","Machepally","Machepally","Setharamkunta Thanda"]
[5590,"1722435017012300","Sangareddy","Sangareddy","Kondapur","Machepally","Machepally","Machepally"]
[5578,"1722435018021700","Sangareddy","Sangareddy","Kondapur","Shivannagudem","Gangaram","Shivannagudem"]
[5604,"1722435016011610","Sangareddy","Sangareddy","Kondapur","Saidapur","Saidapur","Saidapur Thanda"]
[5584,"1722435012011100","Sangareddy","Sangareddy","Kondapur","Haridaspur","Haridaspur","Haridaspur"]
[5576,"1722435013021300","Sangareddy","Sangareddy","Kondapur","Dobbakunta","Dobbakunta","Dobbakunta"]
[5599,"1722435019011800","Sangareddy","Sangareddy","Kondapur","Mohammadapur","Mohammadapur","Mohammadapur"]
[5574,"1722435008010700","Sangareddy","Sangareddy","Kondapur","Ch Gopularam","Ch Gopularam","Ch Gopularam"]
[5593,"1722435005010500","Sangareddy","Sangareddy","Kondapur","Malkapur","Malkapur","Malkapur"]
[5570,"1722435002010200","Sangareddy","Sangareddy","Kondapur","Aliabad","Aliabad","Aliabad"]
[5592,"1722435005020500","Sangareddy","Sangareddy","Kondapur","Malkapur","Malkapur","Kistaiahgudem"]
[5580,"1722435004010400","Sangareddy","Sangareddy","Kondapur","Girmapur","Girmapur","Girmapur"]
[5579,"1722435001010100","Sangareddy","Sangareddy","Kondapur","Garakurthy","Garakurthy","Garakurthy"]
[5577,"1722435018011700","Sangareddy","Sangareddy","Kondapur","Gangaram","Gangaram","Gangaram"]
[5603,"1722435016021600","Sangareddy","Sangareddy","Kondapur","Saidapur","Saidapur","Saidapur"]
[5596,"1722435023012200","Sangareddy","Sangareddy","Kondapur","Mansanpally","Mansanpally","Mansanpally"]
[5571,"1722435015011500","Sangareddy","Sangareddy","Kondapur","Ananthsagar","Ananthsagar","Ananthsagar"]
[5597,"1722435014011400","Sangareddy","Sangareddy","Kondapur","Marepally","Marepally","Marepally"]
[5582,"1722435009010800","Sangareddy","Sangareddy","Kondapur","Guntapally","Guntapally","Guntapally"]
[5594,"1722435005030500","Sangareddy","Sangareddy","Kondapur","Malkapur","Malkapur","Todelgudem"]
[5601,"1722435021012000","Sangareddy","Sangareddy","Kondapur","Munidevunipally","Munidevunipally","Munidevunipally"]
[5575,"1722435020011900","Sangareddy","Sangareddy","Kondapur","Ch Konapur","Ch Konapur","Ch Konapur"]
[5581,"1722435010010900","Sangareddy","Sangareddy","Kondapur","Gollapally","Gollapally","Gollapally"]
[5595,"1722435007010600","Sangareddy","Sangareddy","Kondapur","Mallepally","Mallepally","Mallepally"]
[5606,"1722435011011000","Sangareddy","Sangareddy","Kondapur","Terpole","Terpole","Terpole"]
[5588,"1722435013011200","Sangareddy","Sangareddy","Kondapur","Kondapur","Kondapur","Kondapur"]
[5607,"1722435003010300","Sangareddy","Sangareddy","Kondapur","Togarpally","Togarpally","Togarpally"]
[18737,"1722932027012200","Sangareddy","Sangareddy","Munipally","Gorreghat","Gorreghat","Gorreghat"]
[18725,"1722932003010300","Sangareddy","Sangareddy","Munipally","Beloor","Kallapally Beloor","Beloor"]
[18728,"1722932021011600","Sangareddy","Sangareddy","Munipally","Bodshetpally6","Bodshetpally","Bodshetpally6"]
[18754,"1722932012011000","Sangareddy","Sangareddy","Munipally","Takkadpally","Takkadpally","Takkadpally"]
[18743,"1722932017011100","Sangareddy","Sangareddy","Munipally","Hydlapur","Hydlapur","Hydlapur"]
[18729,"1722932011010900","Sangareddy","Sangareddy","Munipally","Bodapally","Bodapally","Bodapally"]
[18752,"1722932024011900","Sangareddy","Sangareddy","Munipally","Polkampally","Polkampally","Polkampally"]
[18740,"1722932029012400","Sangareddy","Sangareddy","Munipally","Lingampally","Lingampally","Lingampally"]
[18727,"1722932016021200","Sangareddy","Sangareddy","Munipally","Mallareddypet6","Busareddypally6","Mallareddypet6"]
[18742,"1722932013011100","Sangareddy","Sangareddy","Munipally","Allapur","Allapur","Allapur"]
[18732,"1722932032012500","Sangareddy","Sangareddy","Munipally","Ibrahimpur","Ibrahimpur","Ibrahimpur"]
[18746,"1722932028012300","Sangareddy","Sangareddy","Munipally","Maqdumpally","Maqdumpally","Maqdumpally"]
[18733,"1722932002010200","Sangareddy","Sangareddy","Munipally","Cheelapally","Cheelapally","Cheelapally"]
[18734,"1722932008010600","Sangareddy","Sangareddy","Munipally","Chinnaloni6","Chinnaloni","Chinnaloni6"]
[18741,"1722932006010400","Sangareddy","Sangareddy","Munipally","Makthakyasaram6","Makthakyasaram6","Makthakyasaram6"]
[18735,"1722932018011300","Sangareddy","Sangareddy","Munipally","Chinnachelmeda","Chinnachelmeda","Chinnachelmeda"]
[18724,"1722932019011400","Sangareddy","Sangareddy","Munipally","Antharam","Antharam","Antharam"]
[18744,"1722932014011100","Sangareddy","Sangareddy","Munipally","Mallikarjunapally","Mallikarjunapally","Mallikarjunapally"]
[18736,"1722932007010500","Sangareddy","Sangareddy","Munipally","Garlapally","Garlapally","Garlapally"]
[18726,"1722932016011200","Sangareddy","Sangareddy","Munipally","Busareddypally6","Busareddypally6","Busareddypally6"]
[18730,"1722932031012500","Sangareddy","Sangareddy","Munipally","Budhera","Budhera","Budhera"]
[18747,"1722932022011700","Sangareddy","Sangareddy","Munipally","Melasangam","Melasangam","Melasangam"]
[18749,"1722932020011500","Sangareddy","Sangareddy","Munipally","Peddachelmeda","Peddachelmeda","Peddachelmeda"]
[18745,"1722932010010800","Sangareddy","Sangareddy","Munipally","Mansanpally","Mansanpally","Mansanpally"]
[18751,"1722932001010100","Sangareddy","Sangareddy","Munipally","Peddaloni","Peddaloni","Peddaloni"]
[18731,"1722932032022500","Sangareddy","Sangareddy","Munipally","Budhera","Ibrahimpur","Budhera Colony"]
[18750,"1722932026012100","Sangareddy","Sangareddy","Munipally","Peddagopularam6","Peddagopularam6","Peddagopularam6"]
[18753,"1722932009010700","Sangareddy","Sangareddy","Munipally","Tatipally","Tatipally","Tatipally"]
[18739,"1722932023011800","Sangareddy","Sangareddy","Munipally","Kammampally","Kammampally","Kammampally"]
[18748,"1722932025012000","Sangareddy","Sangareddy","Munipally","Munipally","Munipally","Munipally"]
[18738,"1722932030012200","Sangareddy","Sangareddy","Munipally","Komkole","Komkole","Komkole"]
[5643,"1722934014021400","Sangareddy","Sangareddy","Sadasivapet","Venkatapur","Venkatapur","Markandeyanagar"]
[5640,"1722934026022600","Sangareddy","Sangareddy","Sadasivapet","Tangadpally","Tangadpally","Tangadpally T"]
[5639,"1722934026032600","Sangareddy","Sangareddy","Sadasivapet","Tangadpally","Tangadpally","Tangadpally Ashramam"]
[5624,"1722934016021600","Sangareddy","Sangareddy","Sadasivapet","Mubarakpur  A","Mubarakpur  A","Mubarakpur B"]
[5630,"1722934005030400","Sangareddy","Sangareddy","Sadasivapet","Nizampur","Nizampur","Thimmanaguda"]
[5621,"1722934027022700","Sangareddy","Sangareddy","Sadasivapet","Maddikunta","Maddikunta","Maddikunta Tanda I"]
[5635,"1722934019011900","Sangareddy","Sangareddy","Sadasivapet","Siddapur","Siddapur","Siddapur"]
[5629,"1722934005020400","Sangareddy","Sangareddy","Sadasivapet","Nizampur","Nizampur","Nizampur Colony"]
[5642,"1722934013011400","Sangareddy","Sangareddy","Sadasivapet","Ishritabad","Ishritabad","Ishritabad"]
[5626,"1722934018021800","Sangareddy","Sangareddy","Sadasivapet","Gollaguda","Nandikandi","Gollaguda"]
[5622,"1722934024012400","Sangareddy","Sangareddy","Sadasivapet","Miligiripet","Miligiripet","Miligiripet"]
[5634,"1722934029012900","Sangareddy","Sangareddy","Sadasivapet","Rejinthal","Rejinthal","Rejinthal"]
[5633,"1722934003010200","Sangareddy","Sangareddy","Sadasivapet","Pottipally","Pottipally","Pottipally"]
[5631,"1722434017021300","Sangareddy","Sangareddy","Sadasivapet","Nagsanpally","Peddapur","Nagsanpally"]
[5616,"1722934030013000","Sangareddy","Sangareddy","Sadasivapet","Kambalapally","Kambalapally","Kambalapally"]
[5637,"1722934025012500","Sangareddy","Sangareddy","Sadasivapet","Suraram","Suraram","Suraram"]
[5645,"1722934009010900","Sangareddy","Sangareddy","Sadasivapet","Yellaram","Yellaram","Yellaram"]
[5614,"1722934001010100","Sangareddy","Sangareddy","Sadasivapet","Malapad","Malapad","Malapad"]
[5623,"1722934016011600","Sangareddy","Sangareddy","Sadasivapet","Mubarakpur  A","Mubarakpur  A","Mubarakpur   A"]
[5625,"1722934010011000","Sangareddy","Sangareddy","Sadasivapet","Nagulapally","Nagulapally","Nagulapally"]
[5613,"1722934002010100","Sangareddy","Sangareddy","Sadasivapet","Eatigaddasangam","Eatigaddasangam","Eatigaddasangam"]
[5636,"1722934019021900","Sangareddy","Sangareddy","Sadasivapet","Siddapur","Siddapur","Yavapur"]
[5619,"1722934006010600","Sangareddy","Sangareddy","Sadasivapet","Machireddypally","Machireddypally","Machireddypally"]
[5638,"1722934026012600","Sangareddy","Sangareddy","Sadasivapet","Tangadpally","Tangadpally","Tangadpally"]
[5612,"1722934011011100","Sangareddy","Sangareddy","Sadasivapet","Chandapur","Chandapur","Chandapur"]
[5617,"1722934004010300","Sangareddy","Sangareddy","Sadasivapet","Kolkur","Kolkur","Kolkur"]
[5611,"1722934008010800","Sangareddy","Sangareddy","Sadasivapet","Babilgoan","Babilgoan","Babilgoan"]
[5628,"1722934005010400","Sangareddy","Sangareddy","Sadasivapet","Nizampur","Nizampur","Nizampur"]
[5608,"1722934021012100","Sangareddy","Sangareddy","Sadasivapet","Ankenpally","Ankenpally","Ankenpally"]
[5615,"1722934012011200","Sangareddy","Sangareddy","Sadasivapet","Enkepally","Enkepally","Enkepally"]
[5618,"1722934022012200","Sangareddy","Sangareddy","Sadasivapet","Konapur","Konapur","Konapur"]
[5620,"1722934027012700","Sangareddy","Sangareddy","Sadasivapet","Maddikunta","Maddikunta","Maddikunta"]
[5609,"1722934023012300","Sangareddy","Sangareddy","Sadasivapet","Aroor","Aroor","Aroor"]
[5627,"1722934018011800","Sangareddy","Sangareddy","Sadasivapet","Nandikandi","Nandikandi","Nandikandi"]
[5644,"1722934014011400","Sangareddy","Sangareddy","Sadasivapet","Venkatapur","Venkatapur","Venkatapur"]
[5632,"1722434017011300","Sangareddy","Sangareddy","Sadasivapet","Peddapur","Peddapur","Peddapur"]
[5641,"1722934015011500","Sangareddy","Sangareddy","Sadasivapet","Veltoor","Veltoor","Veltoor"]
[5610,"1722934007010700","Sangareddy","Sangareddy","Sadasivapet","Atmakur","Atmakur","Atmakur"]
[5651,"1722436008050700","Sangareddy","Sangareddy","Sangareddy","Fasalvadi  T","Fasalvadi","Raitunagar"]
[5652,"1722436008040700","Sangareddy","Sangareddy","Sangareddy","Fasalvadi  T","Fasalvadi","Vakeelsab  T"]
[5663,"1722436007030600","Sangareddy","Sangareddy","Sangareddy","Kulabgoor","Kulabgoor","Mohd Shapur Thanda"]
[5650,"1722436008020700","Sangareddy","Sangareddy","Sangareddy","Fasalvadi  T","Fasalvadi","Fasalvadi  T2"]
[5659,"1722436002030200","Sangareddy","Sangareddy","Sangareddy","Kalabgur","Kalabgur","Gangiguda"]
[5666,"1722436019021600","Sangareddy","Sangareddy","Sangareddy","Pothireddypally","Pothireddypally","Gollagudem"]
[5649,"1722436008030700","Sangareddy","Sangareddy","Sangareddy","Fasalvadi  T","Fasalvadi","Fasalvadi  T"]
[5654,"1722436009030800","Sangareddy","Sangareddy","Sangareddy","Hanumannagar","Ismailkhanpet","Dasugadda  T"]
[5664,"1722436007020600","Sangareddy","Sangareddy","Sangareddy","Kulabgoor","Kulabgoor","Sadashivnagar"]
[5656,"1722436009040800","Sangareddy","Sangareddy","Sangareddy","Hanumannagar","Ismailkhanpet","Hanumannagar"]
[5653,"1722436001010100","Sangareddy","Sangareddy","Sangareddy","Irrigipally","Irrigipally","Irigipally"]
[5662,"1722436007010600","Sangareddy","Sangareddy","Sangareddy","Kulabgoor","Kulabgoor","Kulabgoor"]
[5667,"1722436019011600","Sangareddy","Sangareddy","Sangareddy","Pothireddypally","Pothireddypally","Pothireddypally"]
[5665,"1722436004010400","Sangareddy","Sangareddy","Sangareddy","Nagapur","Nagapur","Nagapur"]
[5655,"1722436009020800","Sangareddy","Sangareddy","Sangareddy","Goudicherla","Ismailkhanpet","Goudicherla"]
[5658,"1722436002020200","Sangareddy","Sangareddy","Sangareddy","Kalabgur","Kalabgur","Angadipet"]
[5646,"1722436003010300","Sangareddy","Sangareddy","Sangareddy","Chintalpally","Chintalpally","Chintalpally"]
[5660,"1722436002010200","Sangareddy","Sangareddy","Sangareddy","Kalabgur","Kalabgur","Kallabgur"]
[5668,"1722436006010500","Sangareddy","Sangareddy","Sangareddy","Tallapally","Tallapally","Tallapally"]
[5661,"1722436020011700","Sangareddy","Sangareddy","Sangareddy","Kothlapur","Kothlapur","Kothlapur"]
[5648,"1722436008010700","Sangareddy","Sangareddy","Sangareddy","Fasalvadi","Fasalvadi","Fasalvadi"]
[5647,"1722436003020300","Sangareddy","Sangareddy","Sangareddy","Chintalpally","Chintalpally","Hostel Gadda"]
[5657,"1722436009010800","Sangareddy","Sangareddy","Sangareddy","Ismailkhanpet","Ismailkhanpet","Ismailkhanpet"]
[11394,"1722529002030200","Sangareddy","Zaheerabad","Jarasangam","Bojianaik T","Bojianaik T","Ramchander Naik T"]
[11395,"1722529002050200","Sangareddy","Zaheerabad","Jarasangam","Bojianaik T","Bojianaik T","Topia Naik T"]
[11393,"1722529002040200","Sangareddy","Zaheerabad","Jarasangam","Bojianaik T","Bojianaik T","Poorianaik T"]
[11392,"1722529002020200","Sangareddy","Zaheerabad","Jarasangam","Bojianaik T","Bojianaik T","Bojianaik T"]
[11376,"1722529021021800","Sangareddy","Zaheerabad","Jarasangam","Junegaon","Junegoan","Islampur"]
[11366,"1722529011020800","Sangareddy","Zaheerabad","Jarasangam","Chelepally T","Chelepally T","Chelepally T"]
[11380,"1722529004020300","Sangareddy","Zaheerabad","Jarasangam","Gangapur","Gangapur","Gangapur"]
[11364,"1722529024022000","Sangareddy","Zaheerabad","Jarasangam","Chilemamidi","Chilamamidi","Anantasagar"]
[11390,"1722529005030400","Sangareddy","Zaheerabad","Jarasangam","Tummanpalli","Tummanpally","Sangam K"]
[11389,"1722529005020400","Sangareddy","Zaheerabad","Jarasangam","Kappad","Kappad","Kappad"]
[11369,"1722529025012100","Sangareddy","Zaheerabad","Jarasangam","Devarampalle","Devarampally","Devarampally"]
[11363,"1722529011011500","Sangareddy","Zaheerabad","Jarasangam","Boregoan","Boregoan","Boregoan"]
[11388,"1722529001010100","Sangareddy","Zaheerabad","Jarasangam","Siddapur","Siddapur","Siddapur"]
[11373,"1722529019011600","Sangareddy","Zaheerabad","Jarasangam","Guntamarpally","Gunthamarpally","Gunthamarpally"]
[11377,"1722529021011800","Sangareddy","Zaheerabad","Jarasangam","Junegaon","Junegoan","Junegoan"]
[11370,"1722529025022100","Sangareddy","Zaheerabad","Jarasangam","Pyaravaram","Pyaravaram","Pyaravaram"]
[11396,"1722529028010200","Sangareddy","Zaheerabad","Jarasangam","Vanampalle","Vanmpally","Vanampally"]
[11379,"1722529007010500","Sangareddy","Zaheerabad","Jarasangam","Kamalpalle","Kamalpally","Kamalpally"]
[11362,"1722529017011400","Sangareddy","Zaheerabad","Jarasangam","Bopanpalle","Boppanpally","Boppanpally"]
[11378,"1722529010010700","Sangareddy","Zaheerabad","Jarasangam","Kakkerwada","Kakarwada","Kakarwada"]
[11381,"1722529004010300","Sangareddy","Zaheerabad","Jarasangam","Kollur","Kollur","Kollur"]
[11391,"1722529005010400","Sangareddy","Zaheerabad","Jarasangam","Tummanpalli","Tummanpally","Tummanpally"]
[11367,"1722529011010800","Sangareddy","Zaheerabad","Jarasangam","Chilepalle","Chelepally","Chelepally"]
[11368,"1722529027012700","Sangareddy","Zaheerabad","Jarasangam","Chilkepally","Chilkepally","Chilkepally"]
[11386,"1722529008010600","Sangareddy","Zaheerabad","Jarasangam","Narsapur","Narsapur","Narsapur"]
[11372,"1722529034012800","Sangareddy","Zaheerabad","Jarasangam","Giniayarpalle","Giniyarpally","Giniyarpally"]
[11385,"1722529027012200","Sangareddy","Zaheerabad","Jarasangam","Medpalle","Medepally","Medepally"]
[11365,"1722529024012000","Sangareddy","Zaheerabad","Jarasangam","Chilemamidi","Chilamamidi","Chilamamidi"]
[11374,"1722529020011700","Sangareddy","Zaheerabad","Jarasangam","Jeerlapalle","Jeerlapally","Jeerlapally"]
[11387,"1722529013011000","Sangareddy","Zaheerabad","Jarasangam","Potpalle","Potpally","Potpally"]
[11382,"1722529030012400","Sangareddy","Zaheerabad","Jarasangam","Krishnapur","Krishnapur","Krishnapur"]
[11371,"1722529032012600","Sangareddy","Zaheerabad","Jarasangam","Edulapally","Edulapally","Edulapally"]
[11384,"1722529029012300","Sangareddy","Zaheerabad","Jarasangam","Machnoor","Machnoor","Machnoor"]
[11361,"1722529031012500","Sangareddy","Zaheerabad","Jarasangam","Bidekanna","Bedekanna","Bedakanna"]
[11397,"1722529023011900","Sangareddy","Zaheerabad","Jarasangam","Yedakulapalle","Edakulapally","Edakulapally"]
[11360,"1722529014011100","Sangareddy","Zaheerabad","Jarasangam","Bardhipur","Bardhipur","Bardhipur"]
[11398,"1722529012010900","Sangareddy","Zaheerabad","Jarasangam","Yelgoi","Yelgoi","Yelgoi"]
[11383,"1722529012011200","Sangareddy","Zaheerabad","Jarasangam","Kuppanagar","Kuppanagar","Kuppanagar"]
[11375,"1722529016011300","Sangareddy","Zaheerabad","Jarasangam","Jharsangam","Jarasangam","Jarasangam"]
[11265,"1722531020021800","Sangareddy","Zaheerabad","Koheer","Badampet","Badampet","Badampet T"]
[11272,"1722531022042000","Sangareddy","Zaheerabad","Koheer","Godigarpally","Godigarpally","Gopinaik Tanda"]
[11271,"1722531022022000","Sangareddy","Zaheerabad","Koheer","Godigarpally","Godigarpally","Sedigutta Tanda"]
[11289,"1722531012031100","Sangareddy","Zaheerabad","Koheer","Nallarathi Thanda","Nallarathi Thanda","Kotha Tanda"]
[11285,"1722531017021500","Sangareddy","Zaheerabad","Koheer","Paidigummal","Paidigummal","Lalsingh Tanda"]
[11288,"1722531012021100","Sangareddy","Zaheerabad","Koheer","Nallarathi Thanda","Nallarathi Thanda","Nallarathi Thanda"]
[11282,"1722531019021700","Sangareddy","Zaheerabad","Koheer","Maniyarpally","Maniyarpally","Manik Naik Tanda"]
[11264,"1722531020011800","Sangareddy","Zaheerabad","Koheer","Badampet","Badampet","Badampet"]
[11268,"1722531005010400","Sangareddy","Zaheerabad","Koheer","Kothurd","Kothurd","Kothurd"]
[11273,"1722531022012000","Sangareddy","Zaheerabad","Koheer","Siddapur Tanda","Siddapur Tanda","Siddapur Tanda"]
[11290,"1722531007010600","Sangareddy","Zaheerabad","Koheer","Pothireddypally","Pothireddypally","Pothireddypally"]
[11286,"1722531021011900","Sangareddy","Zaheerabad","Koheer","Parshapally","Parshapally","Parshapally"]
[11292,"1722531014011300","Sangareddy","Zaheerabad","Koheer","Sajjapur","Sajjapur","Sajjapur"]
[11277,"1722531015021400","Sangareddy","Zaheerabad","Koheer","Kothurk","Kothurk","Kothurk"]
[11291,"1722531010010900","Sangareddy","Zaheerabad","Koheer","Rajanelly","Rajanelly","Rajanelly"]
[11270,"1722531022032000","Sangareddy","Zaheerabad","Koheer","Godigarpally","Godigarpally","Godigarpally"]
[11281,"1722531019011700","Sangareddy","Zaheerabad","Koheer","Maniyarpally","Maniyarpally","Maniyarpally"]
[11279,"1722531013011200","Sangareddy","Zaheerabad","Koheer","Machireddypally","Machireddypally","Machireddypally"]
[11276,"1722531015011400","Sangareddy","Zaheerabad","Koheer","Khanapur","Khanapur","Khanapur"]
[11274,"1722531011011000","Sangareddy","Zaheerabad","Koheer","Gurjuwada","Gurjuwada","Gurjuwada"]
[11287,"1722531012011100","Sangareddy","Zaheerabad","Koheer","Picharagadi","Picharagadi","Picharagadi"]
[11267,"1722531004010400","Sangareddy","Zaheerabad","Koheer","Chintalghat","Chintalghat","Chintalghat"]
[11275,"1722531003010300","Sangareddy","Zaheerabad","Koheer","Kaveli","Kaveli","Kaveli"]
[11283,"1722531008010700","Sangareddy","Zaheerabad","Koheer","Nagereddypally","Nagireddypally","Nagereddypally"]
[11280,"1722531001010100","Sangareddy","Zaheerabad","Koheer","Madri","Madri","Madri"]
[11293,"1722531006010500","Sangareddy","Zaheerabad","Koheer","Venkatapur","Venkatapur","Venkatapur"]
[11269,"1722531002010200","Sangareddy","Zaheerabad","Koheer","Digwal","Digwal","Digwal"]
[11284,"1722531017011500","Sangareddy","Zaheerabad","Koheer","Paidigummal","Paidigummal","Paidigummal"]
[11266,"1722531018011600","Sangareddy","Zaheerabad","Koheer","Bilalpur","Bilalpur","Bilalpur"]
[11278,"1722531009010800","Sangareddy","Zaheerabad","Koheer","Koheer","Koheer","Koheer"]
[11303,"1722530019021700","Sangareddy","Zaheerabad","Mogudampally","Gudpally","Gudpally  T","Gudpally T"]
[11322,"1722530022112000","Sangareddy","Zaheerabad","Mogudampally","Padiyal T","Padiyal T","Nandunaik T"]
[11315,"1722530022042000","Sangareddy","Zaheerabad","Mogudampally","Chunnambatti T","Chunnambatti T","Mandagubadi T"]
[11311,"1722530022081900","Sangareddy","Zaheerabad","Mogudampally","Mogudampally","Mogudampally","Lethamamidi T"]
[11317,"1722530022072000","Sangareddy","Zaheerabad","Mogudampally","Chunnambatti T","Chunnambatti T","Chunnambatti T"]
[11319,"1722530022012000","Sangareddy","Zaheerabad","Mogudampally","Jamboult Thanda","Jamboult Thanda","Upparpally T"]
[11309,"1722530024022200","Sangareddy","Zaheerabad","Mogudampally","Mannapur","Mannapur","Thotti T"]
[11320,"1722530022032000","Sangareddy","Zaheerabad","Mogudampally","H Naik T","H Naik T","H Naik T"]
[11313,"1722530035012900","Sangareddy","Zaheerabad","Mogudampally","Raipally T","Parwathapur","Parwathapur"]
[11316,"1722530022102000","Sangareddy","Zaheerabad","Mogudampally","Jamboult Thanda","Jamboult Thanda","Jamboult Thanda"]
[11318,"1722530022022000","Sangareddy","Zaheerabad","Mogudampally","Padiyal T","Padiyal T","Padiyal T"]
[11321,"1722530022082000","Sangareddy","Zaheerabad","Mogudampally","Mirzampally T","Mirzampally T","Mirzampally T"]
[11301,"1722530021011800","Sangareddy","Zaheerabad","Mogudampally","Gousabad T","Gousabad T","Gousabad T"]
[11297,"1722530017011400","Sangareddy","Zaheerabad","Mogudampally","Khanjamalpur","Khanjamalpur","Khanjamalpur"]
[11300,"1722530021021800","Sangareddy","Zaheerabad","Mogudampally","Gousabad","Gousabad","Gousabad"]
[11312,"1722530031012900","Sangareddy","Zaheerabad","Mogudampally","Raipally T","Raipallyt","Raipally T"]
[11296,"1722530016011400","Sangareddy","Zaheerabad","Mogudampally","Godgarpally","Godgarpally","Godgarpally"]
[11294,"1722530014011200","Sangareddy","Zaheerabad","Mogudampally","Asadginj","Asadgunj","Asadginj"]
[11305,"1722530036013300","Sangareddy","Zaheerabad","Mogudampally","Sajjaraopet","Sajjaraopet","Sajjaraopet"]
[11299,"1722530020011800","Sangareddy","Zaheerabad","Mogudampally","Auranganagar","Auranganagar","Auranganagar"]
[11304,"1722530023012100","Sangareddy","Zaheerabad","Mogudampally","Ippepally","Ippepally","Ippepally"]
[11314,"1722530022052000","Sangareddy","Zaheerabad","Mogudampally","Vittunaik Thanda","Mogudampally","Vittunaik Thanda"]
[11298,"1722530015011300","Sangareddy","Zaheerabad","Mogudampally","Gopanpally","Gopanpalluy","Gopanpally"]
[11307,"1722530001010100","Sangareddy","Zaheerabad","Mogudampally","Madgi","Madgi","Madgi"]
[11308,"1722530024012200","Sangareddy","Zaheerabad","Mogudampally","Mannapur","Mannapur","Mannapur"]
[11302,"1722530019011700","Sangareddy","Zaheerabad","Mogudampally","Gudpally","Gudpally","Gudpally"]
[11306,"1722530037013300","Sangareddy","Zaheerabad","Mogudampally","Jadimalkapur","Jadimalkapur","Jadimalkapur"]
[11295,"1722530018011600","Sangareddy","Zaheerabad","Mogudampally","Dhanasiri","Dhanasiri","Dhanasiri"]
[11310,"1722530022011900","Sangareddy","Zaheerabad","Mogudampally","Mogudampally","Mogudampally","Mogudampally"]
[11408,"1722628019021400","Sangareddy","Zaheerabad","Nyalkal","Ganjetti","Gunjoti","Gunjoti Tanda"]
[11431,"1722528027021900","Sangareddy","Zaheerabad","Nyalkal","Rukmapur","Rukmapur","Chaplanayak Tanda"]
[11411,"1722628028022000","Sangareddy","Zaheerabad","Nyalkal","Hadnur","Hadnoor","Hadnoor Tanda"]
[11434,"1722528027031900","Sangareddy","Zaheerabad","Nyalkal","Mungi","Rukmapur","Suryanayak Tanda"]
[11436,"1722628021021500","Sangareddy","Zaheerabad","Nyalkal","Nyalkal","Nyalkal","Nyalkal Tanda"]
[11429,"1722528026021900","Sangareddy","Zaheerabad","Nyalkal","Mungi","Mungi","Mungi Tanda"]
[11413,"1722628039012000","Sangareddy","Zaheerabad","Nyalkal","Hadnur","Malkanpad","Malkanpad"]
[11442,"1722528024011800","Sangareddy","Zaheerabad","Nyalkal","Tekur","Tatpally","Tatpally"]
[11433,"1722628027021901","Sangareddy","Zaheerabad","Nyalkal","Rukmapur","Rukmapur","Rukmapur"]
[11425,"1722628011010800","Sangareddy","Zaheerabad","Nyalkal","Mariampur","Maryampur","Mariampur"]
[11418,"1722628007010500","Sangareddy","Zaheerabad","Nyalkal","Humnapur","Humnapur","Humnapur"]
[11399,"1722628003010200","Sangareddy","Zaheerabad","Nyalkal","Ameerabad","Ameerabad","Ameerabad"]
[11403,"1722628005010400","Sangareddy","Zaheerabad","Nyalkal","Murthujapur","Murthjapur","Murthujapur"]
[11414,"1722628017011300","Sangareddy","Zaheerabad","Nyalkal","Ganeshpur","Ganeshpur","Ganeshpur"]
[11422,"1722628037012900","Sangareddy","Zaheerabad","Nyalkal","Khaleelpur","Khaleelpur","Khaleelpur"]
[11443,"1722628025011800","Sangareddy","Zaheerabad","Nyalkal","Tekur","Tekur","Tekur"]
[11416,"1722628016011300","Sangareddy","Zaheerabad","Nyalkal","Shamshellapur","Shamshillapur","Shamshellapur"]
[11415,"1722628018011300","Sangareddy","Zaheerabad","Nyalkal","Husselli","Husselli","Husselli"]
[11419,"1722628009010500","Sangareddy","Zaheerabad","Nyalkal","Ibrahimpur","Ibrahimpur","Ibrahimpur"]
[11405,"1722628010010700","Sangareddy","Zaheerabad","Nyalkal","Chingepalle","Chengepally","Chingepally"]
[11427,"1722628023011700","Sangareddy","Zaheerabad","Nyalkal","Mirjapur N","Mirjapur N","Mirjapur N"]
[11435,"1722628029012100","Sangareddy","Zaheerabad","Nyalkal","Nayamathabad","Nyamthabad","Nayamthabad"]
[11439,"1722628031012300","Sangareddy","Zaheerabad","Nyalkal","Rajola","Rajhola","Rajola"]
[11441,"1722628038013000","Sangareddy","Zaheerabad","Nyalkal","Rejental","Rejental","Rejinthal"]
[11410,"1722628020011400","Sangareddy","Zaheerabad","Nyalkal","Ramthirth","Ramtheerth","Ramthirth"]
[11407,"1722628035012700","Sangareddy","Zaheerabad","Nyalkal","Gangwar","Gangwar","Gangwar"]
[11438,"1722628008010600","Sangareddy","Zaheerabad","Nyalkal","Raghavapur","Raghavapur","Ragavapur"]
[11400,"1722628022011600","Sangareddy","Zaheerabad","Nyalkal","Atnur","Athnoora","Athnoora"]
[11417,"1722628040013100","Sangareddy","Zaheerabad","Nyalkal","Hussian Nagar","Hussian Nagar","Hussian Nagar"]
[11420,"1722628004010300","Sangareddy","Zaheerabad","Nyalkal","Kakijanwada","Kakijanwada","Kakijanwada"]
[11401,"1722628033012500","Sangareddy","Zaheerabad","Nyalkal","Basanthpur","Basanthpur","Basanthpur"]
[11404,"1722628002010100","Sangareddy","Zaheerabad","Nyalkal","Cheekurthy","Cheekurthy","Cheekurthy"]
[11409,"1722628019011400","Sangareddy","Zaheerabad","Nyalkal","Ganjetti","Gunjoti","Gunjoti"]
[11402,"1722628006010400","Sangareddy","Zaheerabad","Nyalkal","Chalki","Chalki","Chalki"]
[11428,"1722628036012800","Sangareddy","Zaheerabad","Nyalkal","Mirzapur B","Mirjapur B","Mirjapur B"]
[11440,"1722628012010900","Sangareddy","Zaheerabad","Nyalkal","Ratnapur","Ratnapur","Rathnapur"]
[11444,"1722628015011200","Sangareddy","Zaheerabad","Nyalkal","Waddi","Waddi","Waddi"]
[11430,"1722628026011900","Sangareddy","Zaheerabad","Nyalkal","Mungi","Mungi","Mungi"]
[11406,"1722628014011100","Sangareddy","Zaheerabad","Nyalkal","Dappur","Dappur","Dappur"]
[11426,"1722628034012600","Sangareddy","Zaheerabad","Nyalkal","Metalkunta","Metalkunta","Metalkunta"]
[11423,"1722628013011000","Sangareddy","Zaheerabad","Nyalkal","Malgi","Malgi","Malgi"]
[11424,"1722628030012200","Sangareddy","Zaheerabad","Nyalkal","Mamidgi","Mamidgi","Mamidgi"]
[11421,"1722628032012400","Sangareddy","Zaheerabad","Nyalkal","Kalbemal","Kalbemala","Kalbemal"]
[11412,"1722628028012000","Sangareddy","Zaheerabad","Nyalkal","Hadnur","Hadnoor","Hadnoor"]
[11437,"1722628021011500","Sangareddy","Zaheerabad","Nyalkal","Nyalkal","Nyalkal","Nyalkal"]
[18848,"1722527023012100","Sangareddy","Zaheerabad","Raikode","Naganpalle","Mustafapur","Mustafapur"]
[18857,"1722527019021200","Sangareddy","Zaheerabad","Raikode","Peapadpalle","Ramojipally","Ramojipally"]
[18831,"1722527036012400","Sangareddy","Zaheerabad","Raikode","Aurangnagar","Yenkepally6","Yenkepally6"]
[18839,"1722627006010100","Sangareddy","Zaheerabad","Raikode","Matoor6","Matoor6","Matoor6"]
[18851,"1722527017010400","Sangareddy","Zaheerabad","Raikode","Mahabatpur6","Madapur","Madapur"]
[18843,"1722527018011100","Sangareddy","Zaheerabad","Raikode","Doultabad","Doultabad","Doultabad"]
[18847,"1722527022012600","Sangareddy","Zaheerabad","Raikode","Moratga6","Moradga","Moradga"]
[18855,"1722627004020201","Sangareddy","Zaheerabad","Raikode","Shapur","Shapur","Shapur"]
[18833,"1722527027010800","Sangareddy","Zaheerabad","Raikode","Dharmapur","Dharmapur","Dharmapur"]
[18842,"1722527033012300","Sangareddy","Zaheerabad","Raikode","Kodoor","Kodur","Kodur"]
[18830,"1722527035012400","Sangareddy","Zaheerabad","Raikode","Aurangnagar","Aurangnagar","Aurangnagar"]
[18850,"1722627006010400","Sangareddy","Zaheerabad","Raikode","Mahabatpur6","Mahabatpur6","Mahabatpur6"]
[18838,"1722627002010100","Sangareddy","Zaheerabad","Raikode","Khanjamalpur","Khanjamalpur","Khanjamalpur"]
[18846,"1722527025011600","Sangareddy","Zaheerabad","Raikode","Mohammadapur6","Mohammadapur","Mohammadapur"]
[18861,"1722527012010700","Sangareddy","Zaheerabad","Raikode","Shamshuddinpur","Shamsuddinpur","Shamsuddinpur"]
[18832,"1722527014010800","Sangareddy","Zaheerabad","Raikode","Allapur","Allapur","Allapur"]
[18845,"1722527021111300","Sangareddy","Zaheerabad","Raikode","Mamidipally","Mamidipally","Mamidipally"]
[18841,"1722527024011500","Sangareddy","Zaheerabad","Raikode","Karchal","Karchal","Karchal"]
[18837,"1722627003010100","Sangareddy","Zaheerabad","Raikode","Itkepalle","Itkepally","Itkepally"]
[18864,"1722527028011800","Sangareddy","Zaheerabad","Raikode","Yousufpur","Yousufpur","Yousufpur"]
[18835,"1722527011010600","Sangareddy","Zaheerabad","Raikode","Hulgera6","Hulgera","Hulgera"]
[18860,"1722527029012500","Sangareddy","Zaheerabad","Raikode","Sangapur","Sangapur","Sangapur"]
[18852,"1722527017020401","Sangareddy","Zaheerabad","Raikode","Nagwar","Nagwar","Nagwar"]
[18859,"1722527030012000","Sangareddy","Zaheerabad","Raikode","Raipally C","Raipally C","Raipally C"]
[18844,"1722627010011100","Sangareddy","Zaheerabad","Raikode","Kushnoor","Kushnur","Kushnur"]
[18853,"1722527026011700","Sangareddy","Zaheerabad","Raikode","Nallampalle","Nallampally6","Nallampally6"]
[18840,"1722527016011000","Sangareddy","Zaheerabad","Raikode","Jambgi K","Jambigi K6","Jambigi K6"]
[18836,"1722527005010500","Sangareddy","Zaheerabad","Raikode","Indoor","Indoor","Indoor"]
[18856,"1722527019011200","Sangareddy","Zaheerabad","Raikode","Peapadpalle","Peepadpally","Peepadpally"]
[18854,"1722627004010200","Sangareddy","Zaheerabad","Raikode","Pampad","Pampad","Pampad"]
[18849,"1722527031012100","Sangareddy","Zaheerabad","Raikode","Naganpalle","Naganpally","Naganpally"]
[18863,"1722527005010300","Sangareddy","Zaheerabad","Raikode","Sirur","Siroor","Siroor"]
[18862,"1722527029011900","Sangareddy","Zaheerabad","Raikode","Singitham","Singitham","Singitham"]
[18834,"1722527032012200","Sangareddy","Zaheerabad","Raikode","Hasnabad","Hasnabad","Hasnabad"]
[18858,"1722527015010900","Sangareddy","Zaheerabad","Raikode","Raikode","Raikode","Raikode"]
[11343,"1722530026012300","Sangareddy","Zaheerabad","Zaheerabad","Arjunnaik Thanda","Arjunnaik Thanda","Goppinaik Thanda"]
[11344,"1722530026032300","Sangareddy","Zaheerabad","Zaheerabad","Arjunnaik Thanda","Arjunnaik Thanda","Mood T"]
[11339,"1722530028032600","Sangareddy","Zaheerabad","Zaheerabad","Hothi K","Hothi  K","Gadak T"]
[11359,"1722530033023100","Sangareddy","Zaheerabad","Zaheerabad","Shaikapur T","Shaikapur T","Jamow T"]
[11346,"1722530032013000","Sangareddy","Zaheerabad","Zaheerabad","Hugelli T","Hugelli T","Hugelli T"]
[11350,"1722530038023400","Sangareddy","Zaheerabad","Zaheerabad","Malchelma Tanda","Malchelma Tanda","Malchelma Tanda"]
[11340,"1722530028012600","Sangareddy","Zaheerabad","Zaheerabad","Hothi K","Hothi  K","Pathrunaik T"]
[11328,"1722530034023200","Sangareddy","Zaheerabad","Zaheerabad","Anegunta","Anegunta","Ventalagadda T"]
[11358,"1722530033033100","Sangareddy","Zaheerabad","Zaheerabad","Shaikapur T","Shaikapur T","Shaikapur T"]
[11337,"1722530039012400","Sangareddy","Zaheerabad","Zaheerabad","Madulai T","Madulai T","Madulai T"]
[11327,"1722530034043200","Sangareddy","Zaheerabad","Zaheerabad","Lachinaik T","Lachinaik T","Lachinaik T"]
[11355,"1722530030022800","Sangareddy","Zaheerabad","Zaheerabad","Ranjhole","Ranjhole","Baba Nagar"]
[11326,"1722530034033200","Sangareddy","Zaheerabad","Zaheerabad","Lachinaik T","Lachinaik T","Jeedigadda T"]
[11331,"1722530006010500","Sangareddy","Zaheerabad","Zaheerabad","Thumkunta","Thumkunta","Thumkunta"]
[11336,"1722530039022400","Sangareddy","Zaheerabad","Zaheerabad","Govindpur","Govindpur","Govindpur"]
[11342,"1722530026022300","Sangareddy","Zaheerabad","Zaheerabad","Arjunnaik Thanda","Arjunnaik Thanda","Arjunnaik Thanda"]
[11325,"1722530034013200","Sangareddy","Zaheerabad","Zaheerabad","Anegunta","Anegunta","Anegunta"]
[11338,"1722530028022600","Sangareddy","Zaheerabad","Zaheerabad","Hothi K","Hothi  K","Hothi K"]
[11353,"1722530011011000","Sangareddy","Zaheerabad","Zaheerabad","Raipally D","Raipally D","Raipally D"]
[11335,"1722530008010700","Sangareddy","Zaheerabad","Zaheerabad","Didgi","Didgi","Didgi"]
[11330,"1722530005010500","Sangareddy","Zaheerabad","Zaheerabad","Burdipad","Burdipad","Burdipad"]
[11348,"1722530007010600","Sangareddy","Zaheerabad","Zaheerabad","Kothur B","Kothur B","Kothur B"]
[11347,"1722530013011100","Sangareddy","Zaheerabad","Zaheerabad","Khasimpur","Khasimpur","Khasimpur"]
[11345,"1722530032023000","Sangareddy","Zaheerabad","Zaheerabad","Hugelli","Hugelli","Hugelli"]
[11323,"1722530009010800","Sangareddy","Zaheerabad","Zaheerabad","Algole","Algol","Algole"]
[11329,"1722530004010400","Sangareddy","Zaheerabad","Zaheerabad","Buchinelly","Buchinelly","Buchinelly"]
[11334,"1722530002010200","Sangareddy","Zaheerabad","Zaheerabad","Chiragpally","Chiragpally","Chiragpally"]
[11352,"1722530010020900","Sangareddy","Zaheerabad","Zaheerabad","Pastapur","Pastapur","Tamadpally"]
[11341,"1722530026042300","Sangareddy","Zaheerabad","Zaheerabad","Hothi B","Hothi  B","Hothi B"]
[11349,"1722530038013400","Sangareddy","Zaheerabad","Zaheerabad","Malchelma","Malchelma","Malchelma"]
[11357,"1722530033013100","Sangareddy","Zaheerabad","Zaheerabad","Shaikapur","Shaikapur","Shaikapur"]
[11356,"1722530003010300","Sangareddy","Zaheerabad","Zaheerabad","Satwar","Satwar","Satwar"]
[11354,"1722530030012800","Sangareddy","Zaheerabad","Zaheerabad","Ranjhole","Ranjhole","Ranjhole"]
[11351,"1722530010010900","Sangareddy","Zaheerabad","Zaheerabad","Pastapur","Pastapur","Pastapur"]
[11332,"1722530027012500","Sangareddy","Zaheerabad","Zaheerabad","China Hyderabad","Chinna Hyderabad","China Hyderabad"]
[11324,"1722530029012700","Sangareddy","Zaheerabad","Zaheerabad","Allipur","Allipur","Allipur"]
[11333,"1722530027022500","Sangareddy","Zaheerabad","Zaheerabad","China Hyderabad","Chinna Hyderabad","Ramnagar"]
[14478,"1704122001020100","Siddipet","Dubbak","Doulthabad","Doulthabad","Doulthabad","Lambadi Tanda"]
[14496,"1722122005010500","Siddipet","Dubbak","Doulthabad","Mallesham Pally","Mubaraspur","Showripur"]
[14491,"1722122022011900","Siddipet","Dubbak","Doulthabad","Machanpally","Machanpally","Sherilla"]
[14484,"1704122001013500","Siddipet","Dubbak","Doulthabad","Konapur","Konapur","Konapur"]
[14426,"1722823012031000","Siddipet","Dubbak","Doulthabad","Konaipally","Govindapur","Konaipally"]
[14504,"1722122006010600","Siddipet","Dubbak","Doulthabad","S Pallybandram","S Pallybandram","Narsampet"]
[14494,"1722122005020500","Siddipet","Dubbak","Doulthabad","Mallesham Pally","Mubaraspur","Mallesham Pally"]
[14425,"1722823013061100","Siddipet","Dubbak","Doulthabad","Govindapur","Govindapur","Govindapur"]
[14488,"1722122002010200","Siddipet","Dubbak","Doulthabad","Lingarajupally","Lingarajupally","Lingarajupally"]
[14497,"1704122001012900","Siddipet","Dubbak","Doulthabad","Muthyampet","Muthyampet","Muthyampet"]
[14487,"1704122001013100","Siddipet","Dubbak","Doulthabad","Lingaipally","Lingaipally ","Lingaipally "]
[14472,"1722122030012600","Siddipet","Dubbak","Doulthabad","Appaipally","Begumpet","Appaipally"]
[14493,"1722122010010900","Siddipet","Dubbak","Doulthabad","Md Shapur","Md Shapur","Md Shapur"]
[14498,"1704122001013200","Siddipet","Dubbak","Doulthabad","Narsampally","Narsampally","Narsampally"]
[14465,"1704122001013400","Siddipet","Dubbak","Doulthabad","Ahmednager","Ahmednager","Ahmednager"]
[14475,"1704122001013000","Siddipet","Dubbak","Doulthabad","Deepayampally","Deepayampally","Deepayampally"]
[14460,"1722823011010900","Siddipet","Dubbak","Doulthabad","Guvvalegi","Upperpally","Guvvalegi"]
[14427,"1722823012021000","Siddipet","Dubbak","Doulthabad","Govindapur","Govindapur","Posanpally"]
[14495,"1722122005030500","Siddipet","Dubbak","Doulthabad","Mubaraspur","Mubaraspur","Mubaraspur"]
[14490,"1722122022021900","Siddipet","Dubbak","Doulthabad","Machanpally","Machanpally","Machanpally"]
[14479,"1722122027012700","Siddipet","Dubbak","Doulthabad","Gajulapally","Gajulapally","Gajulapally"]
[14505,"1722122006020600","Siddipet","Dubbak","Doulthabad","S Pallybandram","S Pallybandram","S Pallybandram"]
[14461,"1722823003020100","Siddipet","Dubbak","Doulthabad","Upperpalle","Upperpally","Upperpally"]
[14480,"1722122009010800","Siddipet","Dubbak","Doulthabad","Godugupally","Godugupally","Godugupally"]
[14483,"1722122019011800","Siddipet","Dubbak","Doulthabad","Indupriyal","Indupriyal","Indupriyal"]
[14509,"1722122011010700","Siddipet","Dubbak","Doulthabad","Thirumalapur","Thirumalapur","Thirumalapur"]
[14506,"1722122004010400","Siddipet","Dubbak","Doulthabad","Surampally","Surampally","Surampally"]
[14476,"1722122003010300","Siddipet","Dubbak","Doulthabad","Dommat","Dommat","Dommat"]
[14477,"1722122001010100","Siddipet","Dubbak","Doulthabad","Doulthabad","Doulthabad","Doulthabad"]
[14519,"1722014010041200","Siddipet","Dubbak","Dubbak","Balwanthapur","Balwanthapur","Chippalagadda"]
[14533,"1722114005020700","Siddipet","Dubbak","Dubbak","Dubbak","Dubbak","Rekulakunta"]
[14544,"1722114017021700","Siddipet","Dubbak","Dubbak","Padmanabunipally","Padmanabunipally","Marrikunta"]
[14522,"1722014010031200","Siddipet","Dubbak","Dubbak","Balwanthapur","Balwanthapur","Wadderawada"]
[14555,"1722114001040200","Siddipet","Dubbak","Dubbak","Venkatagiritanda","Shilajinagar","Lalsinghtanda"]
[14558,"1722114001030200","Siddipet","Dubbak","Dubbak","Venkatagiritanda","Shilajinagar","Venkatagiritanda"]
[14557,"1722114001020200","Siddipet","Dubbak","Dubbak","Shilajinagar","Shilajinagar","Tekulatanda"]
[14517,"1722114003010400","Siddipet","Dubbak","Dubbak","Arepally","Arepally","Arepally"]
[14520,"1722014010051200","Siddipet","Dubbak","Dubbak","Padmasaligadda","Balwanthapur","Narrangi Gadda"]
[14552,"1722014007020800","Siddipet","Dubbak","Dubbak","Rajakkapet","Rajakkapet","Yellapur"]
[14521,"1722014010021200","Siddipet","Dubbak","Dubbak","Padmasaligadda","Balwanthapur","Padmasaligadda"]
[14548,"1704114002020300","Siddipet","Dubbak","Dubbak","Potharam","Potharam","Wadderacolony"]
[14525,"1722114004030500","Siddipet","Dubbak","Dubbak","Cheekode","Cheekode","Parusuramnagar"]
[14556,"1722114001010200","Siddipet","Dubbak","Dubbak","Shilajinagar","Shilajinagar","Shilajinagar"]
[14547,"1722114002010300","Siddipet","Dubbak","Dubbak","Potharam","Potharam","Potharam"]
[14543,"1704114001013500","Siddipet","Dubbak","Dubbak","Nagaram","Nagaram","Nagaram"]
[14542,"1722014008010900","Siddipet","Dubbak","Dubbak","Mallaipally","Mallaipally","Mallaipally"]
[14539,"1722014012011400","Siddipet","Dubbak","Dubbak","Hasanmerapur","Hasanmerapur","Hasanmerapur"]
[14530,"1722114024012800","Siddipet","Dubbak","Dubbak","Chowderpally","Chowderpally","Chowderpally"]
[14518,"1722014010011200","Siddipet","Dubbak","Dubbak","Balwanthapur","Balwanthapur","Balwanthpur"]
[14559,"1704114001013400","Siddipet","Dubbak","Dubbak","Tallapally","Tallapally","Tallapally"]
[14554,"1722114026013100","Siddipet","Dubbak","Dubbak","Rameshampally","Rameshampally","Rameshampally"]
[14528,"1722114026013200","Siddipet","Dubbak","Dubbak","Chinnanizampet","Chinnanizampet","Chinnanizampet"]
[14523,"1722114021012600","Siddipet","Dubbak","Dubbak","Boppapur","Boppapur","Boppapur"]
[14527,"1722114016011900","Siddipet","Dubbak","Dubbak","Chervapur","Chervapur","Chervapur"]
[14514,"1704114001013300","Siddipet","Dubbak","Dubbak","Achumaipally","Achumaipally","Achumaipally"]
[14545,"1722014017011700","Siddipet","Dubbak","Dubbak","Padmanabunipally","Padmanabunipally","Padmanabunipally"]
[14550,"1722114020012500","Siddipet","Dubbak","Dubbak","Ragothampally","Ragothampally","Ragothampally"]
[14560,"1722014014011600","Siddipet","Dubbak","Dubbak","Thimmapur","Thimmapur","Thimmapur"]
[14537,"1722114020012400","Siddipet","Dubbak","Dubbak","Gosanpally","Gosanpally","Gosanpally"]
[14540,"1722114004020600","Siddipet","Dubbak","Dubbak","Kammarpally","Kammarpally","Kammarpally"]
[14535,"1722114023012700","Siddipet","Dubbak","Dubbak","Enagurthi","Enagurthi","Enagurthi"]
[14536,"1722114001010100","Siddipet","Dubbak","Dubbak","Ghambhirpur","Ghambhirpur","Ghambhirpur"]
[14516,"1722014013011500","Siddipet","Dubbak","Dubbak","Appanapally","Appanapally","Appanapally"]
[14534,"1722014010011100","Siddipet","Dubbak","Dubbak","Dumpalapally","Dumpalapally","Dumpalapally"]
[14529,"1722114025012900","Siddipet","Dubbak","Dubbak","Chittapur","Chittapur","Chittapur"]
[14515,"1722114020012300","Siddipet","Dubbak","Dubbak","Akaram","Akaram","Akaram"]
[14541,"1722114018012100","Siddipet","Dubbak","Dubbak","Lachapet","Lachapet","Lachapet"]
[14551,"1722014007010800","Siddipet","Dubbak","Dubbak","Rajakkapet","Rajakkapet","Rajakkapet"]
[14538,"1722014015011800","Siddipet","Dubbak","Dubbak","Habsipur","Habsipur","Habsipur"]
[14549,"1722114026013000","Siddipet","Dubbak","Dubbak","Pothareddypet","Pothareddypet","Pothareddypet"]
[14524,"1722114004010500","Siddipet","Dubbak","Dubbak","Cheekode","Cheekode","Cheekode"]
[14553,"1722114019012200","Siddipet","Dubbak","Dubbak","Ramakkapet","Ramakkapet","Ramakkapet"]
[14526,"1722014009011000","Siddipet","Dubbak","Dubbak","Chellapur","Chellapur","Chellapur"]
[14531,"1722114017012000","Siddipet","Dubbak","Dubbak","Dharmajipet","Dharmajipet","Dharmajipet"]
[14546,"1722014011011300","Siddipet","Dubbak","Dubbak","Peddagundlavelly","Peddagundlavelly","Peddagundlavelly"]
[14532,"1722114005010700","Siddipet","Dubbak","Dubbak","Dubbak","Dubbak","Dubbak"]
[14568,"1722115002030200","Siddipet","Dubbak","Mirdoddi","Begampet","Bhoompally","Gurralapally"]
[14571,"1722115021031700","Siddipet","Dubbak","Mirdoddi","Chepyal","Chepyal","Tadkapally"]
[14577,"1722115005020600","Siddipet","Dubbak","Mirdoddi","Laxminagar","Laxminagar","Arepally"]
[14576,"1722115007010800","Siddipet","Dubbak","Mirdoddi","Kondapur","Kondapur","Kondapur"]
[14564,"1704115013021500","Siddipet","Dubbak","Mirdoddi","Alwal","Alwal","Ramnagar"]
[14584,"1722115020022000","Siddipet","Dubbak","Mirdoddi","Veerareddypally","Veerareddypally","Madannapet"]
[14570,"1722115021011700","Siddipet","Dubbak","Mirdoddi","Lingupally","Chepyal","Lingupally"]
[14562,"1722115001020100","Siddipet","Dubbak","Mirdoddi","Kudavelly","Akberpet","Kudavelly"]
[14583,"1704115020032000","Siddipet","Dubbak","Mirdoddi","Almaspur","Veerareddypally","Almaspur"]
[14585,"1722115020012000","Siddipet","Dubbak","Mirdoddi","Veerareddypally","Veerareddypally","Veerareddypally"]
[14566,"1722115002010200","Siddipet","Dubbak","Mirdoddi","Begampet","Bhoompally","Begampet"]
[14578,"1722115005010600","Siddipet","Dubbak","Mirdoddi","Laxminagar","Laxminagar","Laxminagar"]
[14561,"1722115001010100","Siddipet","Dubbak","Mirdoddi","Akberpet","Akberpet","Akberpet"]
[14572,"1722115006010700","Siddipet","Dubbak","Mirdoddi","Dharmaram","Dharmaram","Dharmaram"]
[14573,"1722115019012100","Siddipet","Dubbak","Mirdoddi","Jangapally","Jangapally","Jangapally"]
[14579,"1722115015011600","Siddipet","Dubbak","Mirdoddi","Mallupally","Mallupally","Mallupally"]
[14574,"1722115004010400","Siddipet","Dubbak","Mirdoddi","Kasulabad","Kasulabad","Kasulabad"]
[14565,"1722115009011100","Siddipet","Dubbak","Mirdoddi","Andey","Andey","Andey"]
[14581,"1722115003010300","Siddipet","Dubbak","Mirdoddi","Mothey","Mothey","Mothey"]
[14575,"1722115017011900","Siddipet","Dubbak","Mirdoddi","Khajipur","Khajipur","Khajipur"]
[14567,"1722115002020200","Siddipet","Dubbak","Mirdoddi","Bhoompally","Bhoompally","Bhoompally"]
[14563,"1722115013011500","Siddipet","Dubbak","Mirdoddi","Alwal","Alwal","Alwal"]
[14582,"1722115016011800","Siddipet","Dubbak","Mirdoddi","Rudraram","Rudraram","Rudraram"]
[14569,"1722115021021700","Siddipet","Dubbak","Mirdoddi","Chepyal","Chepyal","Chepyal"]
[14580,"1722115005010500","Siddipet","Dubbak","Mirdoddi","Mirdoddi","Mirdoddi","Mirdoddi"]
[14486,"1722122016011500","Siddipet","Dubbak","Raipole","Kothapally","Kothapally","Kothapally"]
[14467,"1722222013021200","Siddipet","Dubbak","Raipole","Anajipur","Anajipur","Chowdaripalem"]
[14482,"1722122019011700","Siddipet","Dubbak","Raipole","Gollapally","Gollapally","Udaypur"]
[14485,"1722122016021500","Siddipet","Dubbak","Raipole","Kothapally","Kothapally","Kistasagar"]
[14499,"1722122018021600","Siddipet","Dubbak","Raipole","Sayyad Nagarkasegugudiselu","Ramaram","Kasegugudiselu"]
[14510,"1722122023012000","Siddipet","Dubbak","Raipole","Waddepally","Waddepally","Dodlapally"]
[14469,"1722122028012400","Siddipet","Dubbak","Raipole","Ankireddypally","Ankireddypally","Veera Nager"]
[14489,"1722222001012200","Siddipet","Dubbak","Raipole","Lingareddypalli","Lingareddypalli","Lingareddypalli"]
[14511,"1722122023022000","Siddipet","Dubbak","Raipole","Veera Reddy Pally","Waddepally","Veera Reddy Pally"]
[14507,"1704122001013300","Siddipet","Dubbak","Raipole","Tenkampet","Tenkampet","Tenkampet"]
[14474,"1722222015011400","Siddipet","Dubbak","Raipole","Chinamasanpally","Chinamasanpally","Chinamasanpally"]
[14473,"1722122030022600","Siddipet","Dubbak","Raipole","Begumpet","Begumpet","Begumpet"]
[14471,"1722222027012300","Siddipet","Dubbak","Raipole","Arepallysj","Arepallysj","Arepallys J"]
[14508,"1722122013021100","Siddipet","Dubbak","Raipole","Thimmakkapally","Thimmakkapally","Thimmakkapally"]
[14500,"1722122018011600","Siddipet","Dubbak","Raipole","Ramaram","Ramaram","Ramaram"]
[14502,"1722122024022100","Siddipet","Dubbak","Raipole","Ramsager","Ramsager","Ramsager"]
[14481,"1722122019021700","Siddipet","Dubbak","Raipole","Gollapally","Gollapally","Gollapally"]
[14468,"1722122028022400","Siddipet","Dubbak","Raipole","Ankireddypally","Ankireddypally","Ankireddypally"]
[14513,"1722122029012500","Siddipet","Dubbak","Raipole","Yelakal","Yelakal","Yelakal"]
[14501,"1722122024012100","Siddipet","Dubbak","Raipole","Mungispally","Ramsager","Mungispally"]
[14492,"1722122014011300","Siddipet","Dubbak","Raipole","Manthoor","Manthoor","Manthoor"]
[14512,"1722122023032000","Siddipet","Dubbak","Raipole","Waddepally","Waddepally","Waddepally"]
[14466,"1722222013011200","Siddipet","Dubbak","Raipole","Anajipur","Anajipur","Anajipur"]
[14503,"1722122012011000","Siddipet","Dubbak","Raipole","Rayapole","Rayapole","Rayapole"]
[14594,"1722146017021700","Siddipet","Dubbak","Thoguta","Ghanpur","Ghanpur","Sivunipally"]
[14589,"1722146016011600","Siddipet","Dubbak","Thoguta","Chandapur","Chandapur","Chandapur"]
[14587,"1722146003020300","Siddipet","Dubbak","Thoguta","Bandarpally","Bandarpally","Mettu"]
[14606,"1704146004020400","Siddipet","Dubbak","Thoguta","Peddamasanpally","Peddamasanpally","Indiranager"]
[14595,"1722146010031000","Siddipet","Dubbak","Thoguta","Govardhanagiri","Govardhanagiri","Ch Muthyampet"]
[14608,"1704146004030400","Siddipet","Dubbak","Thoguta","Peddamasanpally","Peddamasanpally","Wadderacolony"]
[14600,"1722146012011200","Siddipet","Dubbak","Thoguta","Lingampet","Lingampet","Lingampet"]
[14601,"1722146014021400","Siddipet","Dubbak","Thoguta","Banjarpally","Lingapur","Banjarpally"]
[14612,"1722146010021000","Siddipet","Dubbak","Thoguta","Vardharajpally","Vardharajpally","Vardharajpally"]
[14617,"1722146013011300","Siddipet","Dubbak","Thoguta","Zapthilingareddhypally","Zapthilingareddhypally","Zapthilingareddypally"]
[14607,"1722146004010400","Siddipet","Dubbak","Thoguta","Peddamasanpally","Peddamasanpally","Peddamasanpally"]
[14611,"1722146005010500","Siddipet","Dubbak","Thoguta","Tukkapur","Tukkapur","Tukkapur"]
[14586,"1722146003010300","Siddipet","Dubbak","Thoguta","Bandarpally","Bandarpally","Bandarpally"]
[14602,"1722146014011400","Siddipet","Dubbak","Thoguta","Lingapur","Lingapur","Lingapur"]
[14596,"1722146010011000","Siddipet","Dubbak","Thoguta","Govardhanagiri","Govardhanagiri","Govardhanagiri"]
[14598,"1722146011011100","Siddipet","Dubbak","Thoguta","Kangal","Kangal","Kangal"]
[14593,"1722146017011700","Siddipet","Dubbak","Thoguta","Ghanpur","Ghanpur","Ghanpur"]
[14616,"1722146002010200","Siddipet","Dubbak","Thoguta","Yellareddypet","Yellareddypet","Yellareddypet"]
[14597,"1722146009010900","Siddipet","Dubbak","Thoguta","Gudikandula","Gudikandula","Gudikandula"]
[14610,"1722146001010100","Siddipet","Dubbak","Thoguta","Thoguta","Thoguta","Thoguta"]
[14615,"1722146015011500","Siddipet","Dubbak","Thoguta","Venkataraopet","Venkataraopet","Venkataraopet"]
[14630,"1722221001020100","Siddipet","Gajwel","Gajwel","Dilal Poor","Dilal Poor","Wadderawada"]
[14638,"1722221024022500","Siddipet","Gajwel","Gajwel","Makta Masan Pally","Makta Masan Pally","Ahmed Nagar"]
[14622,"1722221009020900","Siddipet","Gajwel","Gajwel","Ryagatlapally","Anantharao Pally","Ragatlapally"]
[14620,"1722221016021600","Siddipet","Gajwel","Gajwel","Akkaram","Akkaram","Konapur"]
[14637,"1722221025022600","Siddipet","Gajwel","Gajwel","Rangampet","Komatibanda","Rangampeta"]
[14470,"1722222001012800","Siddipet","Gajwel","Gajwel","Arepalle Sb","Arepalle Sb","Arepalle Sb"]
[14621,"1722221009010900","Siddipet","Gajwel","Gajwel","Anantharao Pally","Anantharao Pally","Ananyharaopalll"]
[14639,"1722221024012500","Siddipet","Gajwel","Gajwel","Makta Masan Pally","Makta Masan Pally","Makthamasan Pally"]
[14642,"1722221002010200","Siddipet","Gajwel","Gajwel","Sheripally","Sheripally","Sheripally"]
[14636,"1722221025012600","Siddipet","Gajwel","Gajwel","Komatibanda","Komatibanda","Komatibanda"]
[14631,"1722221014011500","Siddipet","Gajwel","Gajwel","Datarpally","Datarpally","Datarpally"]
[14626,"1722221006010600","Siddipet","Gajwel","Gajwel","Burugupally","Burugupally","Bururugupally"]
[14629,"1722221001010100","Siddipet","Gajwel","Gajwel","Dilal Poor","Dilal Poor","Dilal Poor"]
[14627,"1722221007010700","Siddipet","Gajwel","Gajwel","Dasaram","Dasaram","Dasaram"]
[14632,"1722221022022200","Siddipet","Gajwel","Gajwel","Girpally","Girpally","Giripallpy"]
[14619,"1722221016011600","Siddipet","Gajwel","Gajwel","Akkaram","Akkaram","Akkaram"]
[14623,"1722221023012400","Siddipet","Gajwel","Gajwel","Bagla Venkata Poor","Bagla Venkata Poor","Bangla Venktapoor"]
[14628,"1722221022012300","Siddipet","Gajwel","Gajwel","Dharma Redy Pally","Dharma Redy Pally","Dharmareddy Pally"]
[14624,"1722221010011100","Siddipet","Gajwel","Gajwel","Bayyaram","Bayyaram","Bayyaram"]
[14644,"1722221017011700","Siddipet","Gajwel","Gajwel","Srigiripally","Srigiripally","Srigiripally"]
[14643,"1722221005010500","Siddipet","Gajwel","Gajwel","Singatam","Singatam","Sinhgatam"]
[14641,"1722221012011300","Siddipet","Gajwel","Gajwel","Rimmanaguda","Rimmanaguda","Rimmanaguda"]
[14640,"1722221008010800","Siddipet","Gajwel","Gajwel","Pidchedu","Pidchedu","Pidchedu"]
[14633,"1722221021012100","Siddipet","Gajwel","Gajwel","Jaligam","Jaligam","Jaligam"]
[14635,"1722221003010300","Siddipet","Gajwel","Gajwel","Kolgoor","Kolgoor","Kolgoor"]
[14625,"1722221009011000","Siddipet","Gajwel","Gajwel","Bejgam","Bejgam","Bejgam"]
[14634,"1722221013011400","Siddipet","Gajwel","Gajwel","Kodakandla","Kodakandla","Kodakandla"]
[14618,"1722221004010400","Siddipet","Gajwel","Gajwel","Ahmedipoor","Ahmedipoor","Ahamadipoor"]
[24982,"0","Siddipet","Gajwel","Jagadevpur","B G  Venkatapur","Gubbadi","Gubbadi"]
[14666,"1722220009010700","Siddipet","Gajwel","Jagadevpur","Munigadapa","Munigadapa","Gopalpur"]
[14646,"1722220019011401","Siddipet","Gajwel","Jagadevpur","Nirmal Nagar","Alirajpet","Alirajpet Harijanawada"]
[14660,"1722220016011200","Siddipet","Gajwel","Jagadevpur","Kondapur","Gollapally","Kondapur"]
[14654,"1722220001010100","Siddipet","Gajwel","Jagadevpur","Ramchadrapur","Chinnakistapur","Ramchadrapur"]
[24983,"0","Siddipet","Gajwel","Jagadevpur","Teegul Narsapur","Kondapochamma","Kondapochamma"]
[14671,"1722220013021000","Siddipet","Gajwel","Jagadevpur","Teegul","Teegul","Ramnagar"]
[14664,"1722220023011901","Siddipet","Gajwel","Jagadevpur","Jagadevpur","Jagadevpur","Nabinagar"]
[14680,"1722220015021101","Siddipet","Gajwel","Jagadevpur","Palugadda","Venkatapur B G ","Mamdapur B C Colony"]
[14679,"1722220015021100","Siddipet","Gajwel","Jagadevpur","Mamdapur","Venkatapur B G ","Mamdapur"]
[14675,"1722220005010400","Siddipet","Gajwel","Jagadevpur","Teegul Narsapur","Teegul Narsapur","Teegul Narsapur"]
[14649,"1722220004010300","Siddipet","Gajwel","Jagadevpur","Yellaiguda","Basvapur","Yellaiguda"]
[14662,"1722220022031700","Siddipet","Gajwel","Jagadevpur","Kothapet","Itikyal","Kothapet"]
[14676,"1722220011010800","Siddipet","Gajwel","Jagadevpur","Anatha Sagar","Thimmapur","Anatha Sagar"]
[14683,"1722220002010900","Siddipet","Gajwel","Jagadevpur","P T Venkatapur","Venkatapur Pt","Venkatapur P T"]
[14674,"1722220005030400","Siddipet","Gajwel","Jagadevpur","Jangamreddy Pally","Teegul Narsapur","Jangamreddy Pally"]
[14673,"1722220005020400","Siddipet","Gajwel","Jagadevpur","Anthaiguda","Teegul Narsapur","Anthaiguda"]
[14681,"1722220014011100","Siddipet","Gajwel","Jagadevpur","B G  Venkatapur","Venkatapur B G ","Venkatapur B G "]
[14656,"1722220025012100","Siddipet","Gajwel","Jagadevpur","Dharmarm","Dharmarm","Dharmarm"]
[14682,"1722220012010900","Siddipet","Gajwel","Jagadevpur","Rayavaram","Venkatapur Pt","Rayavaram"]
[14648,"1722220008010300","Siddipet","Gajwel","Jagadevpur","Basvapur","Basvapur","Basvapur"]
[14665,"1722220022021800","Siddipet","Gajwel","Jagadevpur","Lingareddy Pally","Lingareddy Pally","Lingareddy Pally"]
[14677,"1722220010010800","Siddipet","Gajwel","Jagadevpur","Thimmapur","Thimmapur","Thimmapur"]
[14655,"1722220006010500","Siddipet","Gajwel","Jagadevpur","Chatlapally","Chtlapally","Chtlapally"]
[14653,"1722220003010100","Siddipet","Gajwel","Jagadevpur","Chinnakistapur","Chinnakistapur","Chinnakistapur"]
[14659,"1722220018011200","Siddipet","Gajwel","Jagadevpur","Gollapally","Gollapally","Gollapally"]
[14668,"1722220024012000","Siddipet","Gajwel","Jagadevpur","Peerlapally","Peerlapally","Peerlapally"]
[14684,"1722220007010600","Siddipet","Gajwel","Jagadevpur","Wattpally","Wattpally","Wattpally"]
[14661,"1722220022011700","Siddipet","Gajwel","Jagadevpur","Itikyal","Itikyal","Itikyal"]
[14657,"1722220017011300","Siddipet","Gajwel","Jagadevpur","Doulapur","Doulapur","Doulapur"]
[14645,"1722220019011400","Siddipet","Gajwel","Jagadevpur","Alirajpet","Alirajpet","Alirajpet"]
[14667,"1722220015010700","Siddipet","Gajwel","Jagadevpur","Munigadapa","Munigadapa","Munigadapa"]
[14672,"1722220013011000","Siddipet","Gajwel","Jagadevpur","Teegul","Teegul","Teegul"]
[14663,"1722220023011900","Siddipet","Gajwel","Jagadevpur","Jagadevpur","Jagadevpur","Jagadevpur"]
[24238,"1722119010041001","Siddipet","Gajwel","Kondapak","Sirsinagandla","Sirsinagandla","Seetharampally"]
[14721,"1722119009040900","Siddipet","Gajwel","Kondapak","Zaptinacharam","Zaptinacharam","Rajampally"]
[24236,"1722119007040800","Siddipet","Gajwel","Kondapak","Velkatta","Velkatta","Gunturuwada"]
[14720,"1722119009020900","Siddipet","Gajwel","Kondapak","Zaptinacharam","Zaptinacharam","Murukonipally"]
[14719,"1722119009030900","Siddipet","Gajwel","Kondapak","Zaptinacharam","Zaptinacharam","Domalonipally"]
[24234,"1722119018041700","Siddipet","Gajwel","Kondapak","Kondapak","Kondapak","Pittalawada"]
[24235,"1722119005030600","Siddipet","Gajwel","Kondapak","Ankireddypally","Ankireddypally","Mylaram Indlu"]
[14712,"1722119019021800","Siddipet","Gajwel","Kondapak","Thimmareddypally","Thimmareddypally","Sarlawada"]
[24228,"1722119021012002","Siddipet","Gajwel","Kondapak","Medinipur","Medinipur","Gunturpalli"]
[14701,"1722119028022600","Siddipet","Gajwel","Kondapak","Mangole","Mangole","Kashanagar"]
[24229,"1722119020031900","Siddipet","Gajwel","Kondapak","Lakudaram","Lakudaram","Kakulagadda"]
[24233,"1722119018031700","Siddipet","Gajwel","Kondapak","Kondapak","Kondapak","Wadderawada"]
[24232,"1722119004010503","Siddipet","Gajwel","Kondapak","Duddeda","Duddeda","Ragikuntla"]
[14692,"1722119023022200","Siddipet","Gajwel","Kondapak","Konaipally","Konaipally","Waddara Colony"]
[14710,"1722119010031000","Siddipet","Gajwel","Kondapak","Sirsinagandla","Sirsinagandla","Kashinagar"]
[14699,"1722119020021900","Siddipet","Gajwel","Kondapak","Lakudaram","Lakudaram","Kolonivampu"]
[24226,"1722119029032501","Siddipet","Gajwel","Kondapak","Kuknoorpally","Kuknoorpally","Tarakaramanagar"]
[24230,"1722119004010501","Siddipet","Gajwel","Kondapak","Duddeda","Duddeda","Shelampu"]
[24231,"1722119004010502","Siddipet","Gajwel","Kondapak","Duddeda","Duddeda","Permandlanagar"]
[14711,"1722119010041000","Siddipet","Gajwel","Kondapak","Sirsinagandla","Sirsinagandla","Odhemcheruvu"]
[14716,"1722119008020800","Siddipet","Gajwel","Kondapak","Velkatta","Velkatta","Arepally"]
[14718,"1722119007030800","Siddipet","Gajwel","Kondapak","Ravindranagar Vishwanathpally","Velkatta","Viswanathpally"]
[24227,"1722119021012001","Siddipet","Gajwel","Kondapak","Medinipur","Medinipur","Hanuman Nagar"]
[14704,"1722119003030300","Siddipet","Gajwel","Kondapak","Marpadga","Marpadga","Nagireddypally"]
[14691,"1722119023012200","Siddipet","Gajwel","Kondapak","Konaipally","Konaipally","Konaipally"]
[14698,"1722119029032500","Siddipet","Gajwel","Kondapak","Kuknoorpally","Kuknoorpally","Ramunipally"]
[14697,"1722119027042500","Siddipet","Gajwel","Kondapak","Muddapur","Kuknoorpally","Muddapur"]
[14708,"1722119010021000","Siddipet","Gajwel","Kondapak","Giraipally","Sirsinagandla","Giraipally"]
[14686,"1722119005020600","Siddipet","Gajwel","Kondapak","Darga","Ankireddypally","Bandaramdarga"]
[14705,"1722119003020300","Siddipet","Gajwel","Kondapak","Rampally","Marpadga","Rampally"]
[14693,"1722119018021700","Siddipet","Gajwel","Kondapak","Dammakpally","Kondapak","Dammakpally"]
[24237,"1722119007050800","Siddipet","Gajwel","Kondapak","Ravindranagar Vishwanathpally","Velkatta","Ravindranagar"]
[14706,"1722119022012100","Siddipet","Gajwel","Kondapak","Mathpally","Mathpally","Mathpally"]
[14715,"1722119026012400","Siddipet","Gajwel","Kondapak","Thipparam","Thipparam","Thipparam"]
[14722,"1722119009010900","Siddipet","Gajwel","Kondapak","Zaptinacharam","Zaptinacharam","Zaptinacharam"]
[14707,"1722119021012000","Siddipet","Gajwel","Kondapak","Medinipur","Medinipur","Medinipur"]
[14695,"1722119029022500","Siddipet","Gajwel","Kondapak","Bobbaipally","Kuknoorpally","Bobbaipally"]
[14700,"1722119020011900","Siddipet","Gajwel","Kondapak","Lakudaram","Lakudaram","Lakudaram"]
[14713,"1722119019011800","Siddipet","Gajwel","Kondapak","Thimmareddypally","Thimmareddypally","Thimmareddypally"]
[14717,"1722119008010800","Siddipet","Gajwel","Kondapak","Velkatta","Velkatta","Velkatta"]
[14690,"1722119003010400","Siddipet","Gajwel","Kondapak","Khammampally","Khammampally","Khammampally"]
[14685,"1722119005010600","Siddipet","Gajwel","Kondapak","Ankireddypally","Ankireddypally","Ankireddypally"]
[14702,"1722119028012600","Siddipet","Gajwel","Kondapak","Mangole","Mangole","Mangole"]
[14687,"1722119006010700","Siddipet","Gajwel","Kondapak","Bandaram","Bandaram","Bandaram"]
[14703,"1722119003010300","Siddipet","Gajwel","Kondapak","Marpadga","Marpadga","Marpadga"]
[14696,"1722119029012500","Siddipet","Gajwel","Kondapak","Kuknoorpally","Kuknoorpally","Kuknoorpally"]
[14709,"1722119010011000","Siddipet","Gajwel","Kondapak","Sirsinagandla","Sirsinagandla","Sirsinagandla"]
[14694,"1722119018011700","Siddipet","Gajwel","Kondapak","Kondapak","Kondapak","Kondapak"]
[14688,"1722119004010500","Siddipet","Gajwel","Kondapak","Duddeda","Duddeda","Duddeda"]
[24990,"0","Siddipet","Gajwel","Markook","Varadarajpur","Varadarajpur","Konamma Cheruvu"]
[24988,"0","Siddipet","Gajwel","Markook","Pamulaparthy","Pamulaparthy","Pamulaparthy Banda"]
[24989,"0","Siddipet","Gajwel","Markook","Pamulaparthy","Pamulaparthy","Pamulaparthy Bavulu"]
[14749,"1722245012051200","Siddipet","Gajwel","Markook","Markook","Markook","Ashramam"]
[14753,"1722245012041200","Siddipet","Gajwel","Markook","Gangapur Yousupkhanpally","Markook","Yousupkhanpally"]
[14751,"1722245012031200","Siddipet","Gajwel","Markook","Gangapur Yousupkhanpally","Markook","Gangapur"]
[14651,"1722220021021600","Siddipet","Gajwel","Markook","Ganeshpally","Chebarthy","Ganeshpally"]
[14851,"1722244009030800","Siddipet","Gajwel","Markook","Ippalagudam","Paturu","Ippalaguda"]
[14652,"1722220021031600","Siddipet","Gajwel","Markook","Erravelli","Chebarthy","Narasannapet"]
[14647,"1722220020011500","Siddipet","Gajwel","Markook","Angadikistapur","Angadikistapur","Angadikistapur"]
[14670,"1722220028012400","Siddipet","Gajwel","Markook","Shivar Venkatapur","Shivar Venkatapur","Shivar Venkatapur"]
[14738,"1722245013021400","Siddipet","Gajwel","Markook","Kashireddypally","Damarkunta","Kashireddypally"]
[14750,"1722245012021200","Siddipet","Gajwel","Markook","Bavanandapur","Markook","Bavanandapur"]
[14742,"1722245014011500","Siddipet","Gajwel","Markook","Karkapatla","Karkapatla","Karkapatla"]
[14658,"1722220027012300","Siddipet","Gajwel","Markook","Narasannapet","Erravally","Erravally"]
[14678,"1722220026012200","Siddipet","Gajwel","Markook","Varadarajpur","Varadarajpur","Varadarajpur"]
[14650,"1722220021011600","Siddipet","Gajwel","Markook","Chebarthy","Chebarthy","Chebarthy"]
[14852,"1722244009020800","Siddipet","Gajwel","Markook","Paturu","Paturu","Paturu"]
[14737,"1722245013011300","Siddipet","Gajwel","Markook","Damarkunta","Damarkunta","Damarkunta"]
[14850,"1722244009010700","Siddipet","Gajwel","Markook","Pamulaparthy","Pamulaparthy","Pamulaparthy"]
[14752,"1722245012011200","Siddipet","Gajwel","Markook","Markook","Markook","Markook"]
[25140,0,"Siddipet","Gajwel","Mulugu","Bailampur","Bailampur","Bailampur R"]
[25141,0,"Siddipet","Gajwel","Mulugu","Bailampur","Bailampur","Thanedharpally R"]
[25142,0,"Siddipet","Gajwel","Mulugu","Bailampur","Bailampur","Thanedharpally Thanda  R"]
[14740,"1722245024022100","Siddipet","Gajwel","Mulugu","Dasarlapally","Dasarlapally","Lambadi Thanda"]
[14759,"1722245003020200","Siddipet","Gajwel","Mulugu","Kokkonda","Srirampur","Agaraopally"]
[14729,"1722245001020100","Siddipet","Gajwel","Mulugu","Banda Timmapur","Banda Timmapur","Dandu Gudem"]
[14733,"1722245019032000","Siddipet","Gajwel","Mulugu","Cheelasagar","Cheelasagar","Kamalabad"]
[14756,"1722245008030900","Siddipet","Gajwel","Mulugu","Nagireddypally","Mulugu","Nagireddypally"]
[14739,"1722245024012100","Siddipet","Gajwel","Mulugu","Dasarlapally","Dasarlapally","Dasarlapally"]
[14741,"1722245020011900","Siddipet","Gajwel","Mulugu","Gangadharpally","Gangadharpally","Gangadharpally"]
[14764,"1722245021011900","Siddipet","Gajwel","Mulugu","Zapthi Singaipally","Zapthi Singaipally","Zapthi Singaipally"]
[14736,"1722245022021900","Siddipet","Gajwel","Mulugu","Chinna Thimmapur","Chinna Thimmapur","Vantimamidi"]
[14745,"1722245015021600","Siddipet","Gajwel","Mulugu","Alinagar","Kotyal","Alinagar"]
[14728,"1722245001010100","Siddipet","Gajwel","Mulugu","Banda Timmapur","Banda Timmapur","Banda Timmapur"]
[14760,"1722245003010300","Siddipet","Gajwel","Mulugu","Srirampur","Srirampur","Srirampur"]
[14731,"1722245019042000","Siddipet","Gajwel","Mulugu","Annasagar","Cheelasagar","Annasagar"]
[14754,"1722245008020800","Siddipet","Gajwel","Mulugu","Mulugu","Mulugu","Masanpally"]
[14724,"1722245016011800","Siddipet","Gajwel","Mulugu","Advimasjid","Advimasjid","Advimasjid"]
[14734,"1722245019022000","Siddipet","Gajwel","Mulugu","Vagunuthi","Cheelasagar","Vagunuthi"]
[14747,"1722245007010700","Siddipet","Gajwel","Mulugu","Laxmakkapally","Laxmakkapally","Laxmakkapally"]
[14723,"1722245023012100","Siddipet","Gajwel","Mulugu","Achaipally","Achaipally","Achaipally"]
[14730,"1722245025012200","Siddipet","Gajwel","Mulugu","Basvapur","Basvapur","Basvapur"]
[14746,"1722245015011600","Siddipet","Gajwel","Mulugu","Kotyal","Kotyal","Kotyal"]
[14727,"1722245017011800","Siddipet","Gajwel","Mulugu","Narsampalle","Narsampalle","Narsampalle"]
[14758,"1722245004010400","Siddipet","Gajwel","Mulugu","Singannaguda","Singannaguda","Singannaguda"]
[14757,"1722245005010500","Siddipet","Gajwel","Mulugu","Narsapur","Narsapur","Narsapur"]
[14726,"1722245027012300","Siddipet","Gajwel","Mulugu","Banda Mailaram","Banda Mailaram","Banda Mailaram"]
[14735,"1722245022011900","Siddipet","Gajwel","Mulugu","Chinna Thimmapur","Chinna Thimmapur","Chinna Thimmapur"]
[14763,"1722245006010600","Siddipet","Gajwel","Mulugu","Tunkibollaram","Tunkibollaram","Tunkibollaram"]
[14743,"1722245002010200","Siddipet","Gajwel","Mulugu","Kokkonda","Kokkonda","Kokkonda"]
[14732,"1722245019012000","Siddipet","Gajwel","Mulugu","Cheelasagar","Cheelasagar","Cheelasagar"]
[14744,"1722245026010100","Siddipet","Gajwel","Mulugu","Kothur","Kothur","Kothur"]
[14755,"1722245008010800","Siddipet","Gajwel","Mulugu","Mulugu","Mulugu","Mulugu"]
[14827,"1722244002031000","Siddipet","Gajwel","Wargal","Guntipally","Guntipally","Kagajguda"]
[14830,"1722244015010300","Siddipet","Gajwel","Wargal","Dandupally","Majidpally","Chandapur"]
[14840,"1722244002020200","Siddipet","Gajwel","Wargal","Nacharam","Nacharam","Nacharamt"]
[14846,"1722244004030400","Siddipet","Gajwel","Wargal","Nemtur","Nemtur","Malapalla"]
[14859,"1722244011020900","Siddipet","Gajwel","Wargal","Avusulonipally","Wargal","Ramakkapally"]
[14837,"1722244006030500","Siddipet","Gajwel","Wargal","Chandkhanmakta","Mylaram","Lingaraopally"]
[14848,"1722244004050400","Siddipet","Gajwel","Wargal","Nemtur","Nemtur","Ramsagarpally"]
[14855,"1704244019031400","Siddipet","Gajwel","Wargal","Sitharampalli","Veloor","Sitharampalli"]
[14829,"1722244003030300","Siddipet","Gajwel","Wargal","Dandupally","Majidpally","Boregudem"]
[14854,"1722244019021400","Siddipet","Gajwel","Wargal","Sitharampalli","Veloor","Sitarampally Tanda"]
[14849,"1722244004020400","Siddipet","Gajwel","Wargal","Samlapally","Nemtur","Samlapally"]
[14822,"1722244013021200","Siddipet","Gajwel","Wargal","Shakaram","Girmapur","Shakaram"]
[14828,"1722244001021000","Siddipet","Gajwel","Wargal","Mallareddypally","Guntipally","Mallareddypally"]
[14857,"1722244011030900","Siddipet","Gajwel","Wargal","Avusulonipally","Wargal","Avusulonipally"]
[14858,"1722244011040900","Siddipet","Gajwel","Wargal","Avusulonipally","Wargal","Nagaramtanda"]
[14821,"1722244012011200","Siddipet","Gajwel","Wargal","Govindapur","Girmapur","Govindapur"]
[14816,"1722244014091300","Siddipet","Gajwel","Wargal","Madaram","Amberpet","Madaram"]
[14834,"1722244023021700","Siddipet","Gajwel","Wargal","Tunkimakta","Minajaipet","Tunkimakta"]
[14831,"1722244003020300","Siddipet","Gajwel","Wargal","Dandupally","Majidpally","Dandupally"]
[14820,"1722244013011200","Siddipet","Gajwel","Wargal","Girmapur","Girmapur","Girmapoor"]
[14825,"1722244010020600","Siddipet","Gajwel","Wargal","Singaipally","Gouraram","Singaipally"]
[14835,"1722244006020500","Siddipet","Gajwel","Wargal","Chandkhanmakta","Mylaram","Chandkhanmakta"]
[14826,"1722244011051000","Siddipet","Gajwel","Wargal","Guntipally","Guntipally","Guntipally"]
[14836,"1722244005010500","Siddipet","Gajwel","Wargal","Jabbapur","Mylaram","Jabbapur"]
[14819,"1722244011091100","Siddipet","Gajwel","Wargal","Sheripally","Choudaryplly","Sheripally"]
[14817,"1722244017011500","Siddipet","Gajwel","Wargal","Ananthagiripalli","Ananthagiripalli","Ananthagiripalli"]
[14815,"1722244020011300","Siddipet","Gajwel","Wargal","Amberpet","Amberpet","Amberpet"]
[14818,"1722244011081100","Siddipet","Gajwel","Wargal","Choudaryplly","Choudaryplly","Choudaryplly"]
[14832,"1722244003010300","Siddipet","Gajwel","Wargal","Majidpally","Majidpally","Majidpally"]
[14833,"1722244024011700","Siddipet","Gajwel","Wargal","Minajaipet","Minajaipet","Minajipet"]
[14838,"1722244006010500","Siddipet","Gajwel","Wargal","Mylaram","Mylaram","Mylaram"]
[14839,"1722244002010200","Siddipet","Gajwel","Wargal","Nacharam","Nacharam","Nacharam"]
[14847,"1722244004010400","Siddipet","Gajwel","Wargal","Nemtur","Nemtur","Nemtur"]
[14856,"1722244019011400","Siddipet","Gajwel","Wargal","Veloor","Veloor","Veloor"]
[14823,"1722244010010600","Siddipet","Gajwel","Wargal","Gouraram","Gouraram","Gouraram"]
[14860,"1722244011010900","Siddipet","Gajwel","Wargal","Wargal","Wargal","Wargal"]
[14853,"1722244023011700","Siddipet","Gajwel","Wargal","Tunkikalsa","Tunkikalsa","Tunkikalsa"]
[24970,"0","Siddipet","Husnabad","Akkannapet","Maisammavagu Thanda","Maisammavagu Thanda","Dummanaik Thanda"]
[24971,"0","Siddipet","Husnabad","Akkannapet","Maisammavagu Thanda","Maisammavagu Thanda","Konkanaik Thanda"]
[24972,"0","Siddipet","Husnabad","Akkannapet","Panthul Thanda","Akkannapet","Dharavath Thanda"]
[24976,"0","Siddipet","Husnabad","Akkannapet","Pedha Thanda","Mothkulapalli","Aava Thanda"]
[24978,"0","Siddipet","Husnabad","Akkannapet","Pedha Thanda","Mothkulapalli","Thalla Thanda"]
[24979,"0","Siddipet","Husnabad","Akkannapet","Ramavaram","Ramavaram","Komatinaik Thanda"]
[24975,"0","Siddipet","Husnabad","Akkannapet","Panthul Thanda","Akkannapet","Pikku Thanda"]
[1276,"2025156014101900","Siddipet","Husnabad","Akkannapet","Dubba Tanda","Chapagonithanda","Bancharay Thanda"]
[1395,"2025355022073000","Siddipet","Husnabad","Akkannapet","Kundanivanipalli","Kundanivanipalli","Seetaram Thanda"]
[1281,"2025156014131900","Siddipet","Husnabad","Akkannapet","Chapagonithanda","Chapagonithanda","Panyanaikthanda"]
[1286,"2025156014091900","Siddipet","Husnabad","Akkannapet","Dubba Tanda","Chapagonithanda","Vankayathanda"]
[1280,"2025156014061900","Siddipet","Husnabad","Akkannapet","Chapagonithanda","Chapagonithanda","Ippalathanda"]
[1389,"2025355022123000","Siddipet","Husnabad","Akkannapet","Kundanivanipalli","Kundanivanipalli","Bandakadi Thanda"]
[1282,"2025156014111900","Siddipet","Husnabad","Akkannapet","Chapagonithanda","Chapagonithanda","Perumalla"]
[1429,"2025355013091800","Siddipet","Husnabad","Akkannapet","Bodigipalli","Govardhanagiri","Sanjeevarani Colony"]
[1391,"2025355022103000","Siddipet","Husnabad","Akkannapet","Kundanivanipalli","Kundanivanipalli","Devanaikthanda\nRangannakunta"]
[1461,"2025355015012001","Siddipet","Husnabad","Akkannapet","Kapornayak Thada","Nandaram","Lambadi Thanda"]
[24965,"0","Siddipet","Husnabad","Akkannapet","Akkannapet","Akkannapet","Bodaruvagu Thanda"]
[24974,"0","Siddipet","Husnabad","Akkannapet","Panthul Thanda","Akkannapet","Hemsingh Thanda"]
[1283,"2025156014041900","Siddipet","Husnabad","Akkannapet","Dubba Tanda","Chapagonithanda","Rajagondi Thanda"]
[1464,"2025355015042000","Siddipet","Husnabad","Akkannapet","Kapornayak Thada","Nandaram","Tukki Thanda"]
[1473,"2025355013071700","Siddipet","Husnabad","Akkannapet","Malchervu Thanda","Regonda","Dubbathanda\n Lambadipalli"]
[1285,"2025156014121900","Siddipet","Husnabad","Akkannapet","Chapagonithanda","Chapagonithanda","Thellapalugu"]
[1279,"2025156014031900","Siddipet","Husnabad","Akkannapet","Dubba Tanda","Chapagonithanda","Dubba Gadda Thanda"]
[1284,"2025156014081900","Siddipet","Husnabad","Akkannapet","Dubba Tanda","Chapagonithanda","Seetharamthanda"]
[1394,"2025355022053000","Siddipet","Husnabad","Akkannapet","Maisammavagu Thanda","Kundanivanipalli","Maisammavagu Thanda"]
[1426,"2025355013101800","Siddipet","Husnabad","Akkannapet","Govardhanagiri","Govardhanagiri","Ippaalapally"]
[1437,"2025355012021600","Siddipet","Husnabad","Akkannapet","Gubbadi","Janagan","Gubbadi"]
[1451,"2025155020042600","Siddipet","Husnabad","Akkannapet","Mallampalli","Mallampalli","Tekula Tanda"]
[24967,"0","Siddipet","Husnabad","Akkannapet","Akkannapet","Akkannapet","Manjyanaik Thanda"]
[1459,"2025355015032000","Siddipet","Husnabad","Akkannapet","Kapornayak Thada","Nandaram","Devanaik Thanda"]
[1463,"2025355015012002","Siddipet","Husnabad","Akkannapet","Kapornayak Thada","Nandaram","Pusalthanda"]
[1397,"2025355021052800","Siddipet","Husnabad","Akkannapet","Akkannapet","Akkannapet","Cherumundu Thanda"]
[1413,"2025355014021900","Siddipet","Husnabad","Akkannapet","Dhrmaram","Dhrmaram","Regadivanipalli"]
[1471,"2025355023023100","Siddipet","Husnabad","Akkannapet","Ramavaram","Ramavaram","Bangaruloddi"]
[24966,"0","Siddipet","Husnabad","Akkannapet","Akkannapet","Akkannapet","Chowda Thanda"]
[24969,"0","Siddipet","Husnabad","Akkannapet","Keshavanaik Thanda","Keshavanaik Thanda","Chowtakunta Thanda"]
[1398,"2025355021072800","Siddipet","Husnabad","Akkannapet","Panthul Thanda","Akkannapet","Fakiruthanda"]
[1401,"2025355021082800","Siddipet","Husnabad","Akkannapet","Panthul Thanda","Akkannapet","Hemala Thanda"]
[1403,"2025355021062800","Siddipet","Husnabad","Akkannapet","Panthul Thanda","Akkannapet","Panthulu Thanda"]
[1278,"2025156014051900","Siddipet","Husnabad","Akkannapet","Dubba Tanda","Chapagonithanda","Dasthanda"]
[1460,"2025355015022000","Siddipet","Husnabad","Akkannapet","Kapornayak Thada","Nandaram","Kapornayak Thada"]
[1393,"2025355022113000","Siddipet","Husnabad","Akkannapet","Kundanivanipalli","Kundanivanipalli","Mabbukunta"]
[1402,"2025355021032800","Siddipet","Husnabad","Akkannapet","Keshavanaik Thanda","Akkannapet","Keshavanaik Thanda"]
[1442,"2025155019032500","Siddipet","Husnabad","Akkannapet","Manchinella Banda","Keshvapoor","Yatakaripalli"]
[1474,"2025355013081700","Siddipet","Husnabad","Akkannapet","Malchervu Thanda","Regonda","Malchervu Thanda"]
[1390,"2025355022023000","Siddipet","Husnabad","Akkannapet","Kundanivanipalli","Kundanivanipalli","Chowta Kunta"]
[1457,"2025155020052700","Siddipet","Husnabad","Akkannapet","Pedha Thanda","Mothkulapalli","Rodatanda\nManganvanipalli"]
[1468,"2025355024023200","Siddipet","Husnabad","Akkannapet","Pothatram J","Pothatram J","Turkavani Kunta"]
[24977,"2025155020052700","Siddipet","Husnabad","Akkannapet","Pedha Thanda","Mothkulapalli","Rodatanda\nManganvanipalli"]
[24973,"0","Siddipet","Husnabad","Akkannapet","Panthul Thanda","Akkannapet","Dubba Thanda"]
[1277,"2025156014071900","Siddipet","Husnabad","Akkannapet","Chapagonithanda","Chapagonithanda","Chapagondithanda"]
[1475,"2025355013051700","Siddipet","Husnabad","Akkannapet","Malchervu Thanda","Regonda","Narsing Thanda"]
[1405,"2025355017022300","Siddipet","Husnabad","Akkannapet","Anthakpet","Anthakpet","Chinna Gubbadi"]
[1400,"2025355021022800","Siddipet","Husnabad","Akkannapet","Akkannapet","Akkannapet","Gollapalli"]
[1449,"2025155020022600","Siddipet","Husnabad","Akkannapet","Gollapally","Mallampalli","Gollapelli"]
[1428,"2025355013031800","Siddipet","Husnabad","Akkannapet","Govardhanagiri","Govardhanagiri","Pariki Banda"]
[1412,"2025355014031900","Siddipet","Husnabad","Akkannapet","Masireddy Thanda","Dhrmaram","Masireddy Thanda"]
[1427,"2025355013041800","Siddipet","Husnabad","Akkannapet","Govardhanagiri","Govardhanagiri","Lingareddypalli"]
[1424,"2025355013061800","Siddipet","Husnabad","Akkannapet","Bodigipalli","Govardhanagiri","Bodigipalli"]
[1441,"2025155019022500","Siddipet","Husnabad","Akkannapet","Manchinella Banda","Keshvapoor","Manchinella Banda"]
[1399,"2025355021042800","Siddipet","Husnabad","Akkannapet","Gollakunta","Akkannapet","Gollakunta"]
[1462,"2025355015012000","Siddipet","Husnabad","Akkannapet","Nandaram","Nandaram","Nandaram"]
[1296,"2025156014021800","Siddipet","Husnabad","Akkannapet","Katkur","Katkur","Manikyalapally"]
[1410,"2025155018012400","Siddipet","Husnabad","Akkannapet","Choutapally","Choutapally","Choutapalli"]
[1392,"2025355022033000","Siddipet","Husnabad","Akkannapet","Kundanivanipalli","Kundanivanipalli","Kundanivanipalli"]
[1467,"2025355024013200","Siddipet","Husnabad","Akkannapet","Pothatram J","Pothatram J","Pothatram J"]
[1477,"2025355013011700","Siddipet","Husnabad","Akkannapet","Regonda","Regonda","Regonda"]
[1411,"2025355014011900","Siddipet","Husnabad","Akkannapet","Dhrmaram","Dhrmaram","Dhrmaram"]
[1423,"2025355016022100","Siddipet","Husnabad","Akkannapet","Gouravelli","Gouravelli","H Colony"]
[1456,"2025155020032700","Siddipet","Husnabad","Akkannapet","Mothkulapalli","Mothkulapalli","Mothukula Palli"]
[1419,"2025355022012900","Siddipet","Husnabad","Akkannapet","Gandipalli","Gandipalli","Gandipalli"]
[24968,"2025355022012900","Siddipet","Husnabad","Akkannapet","Gandipalli","Gandipalli","Boring Thanda"]
[1440,"2025155019012500","Siddipet","Husnabad","Akkannapet","Keshvapoor","Keshvapoor","Kesshvapoor"]
[1425,"2025355013021800","Siddipet","Husnabad","Akkannapet","Govardhanagiri","Govardhanagiri","Govardhanagiri"]
[1422,"2025355016012100","Siddipet","Husnabad","Akkannapet","Gouravelli","Gouravelli","Gouravelli"]
[1472,"2025355023013100","Siddipet","Husnabad","Akkannapet","Ramavaram","Ramavaram","Ramavaram"]
[1450,"2025155020012600","Siddipet","Husnabad","Akkannapet","Mallampalli","Mallampalli","Mallampalli"]
[1295,"2025156014011800","Siddipet","Husnabad","Akkannapet","Katkur","Katkur","Katkur"]
[1396,"2025355021012800","Siddipet","Husnabad","Akkannapet","Akkannapet","Akkannapet","Akkannapet"]
[1404,"2025355017012300","Siddipet","Husnabad","Akkannapet","Anthakpet","Anthakpet","Anthakpet"]
[1438,"2025355012011600","Siddipet","Husnabad","Akkannapet","Janagan","Janagan","Janagan"]
[10465,"2025346018062200","Siddipet","Husnabad","Bejjanki","Laxmipur","Laxmipur","Theeranjoni Nagar"]
[10480,"2025346011020900","Siddipet","Husnabad","Bejjanki","Thalarivanipally","Vadloori Begumpet","Oddera Vanipally"]
[10479,"2025346008030600","Siddipet","Husnabad","Bejjanki","Thalarivanipally","Vadloori Begumpet","Margamvanipally"]
[10458,"2025346017052000","Siddipet","Husnabad","Bejjanki","Gudem","Gudem","Gunturupally"]
[10461,"2025346017031900","Siddipet","Husnabad","Bejjanki","Kallepally","Kallepally","Gunturupalli"]
[10462,"2025346017021900","Siddipet","Husnabad","Bejjanki","Kallepally","Kallepally","Ittireddypally"]
[10466,"2025346022042600","Siddipet","Husnabad","Bejjanki","Narsimhulapally","Muthannapet","Kothapally"]
[10478,"2025346011040900","Siddipet","Husnabad","Bejjanki","Thalarivanipally","Vadloori Begumpet","Ennavanipally"]
[10471,"2025346023022700","Siddipet","Husnabad","Bejjanki","Potharam","Potharam","Reddykuntapally"]
[10472,"2025346025022900","Siddipet","Husnabad","Bejjanki","Regulapally","Regulapally","Gollavaripally"]
[10481,"2025346011050900","Siddipet","Husnabad","Bejjanki","Thalarivanipally"," Begumpet","Thalarivanipally"]
[10473,"2025346025032900","Siddipet","Husnabad","Bejjanki","Regulapally","Regulapally","Kothapelly"]
[10475,"2025346015021700","Siddipet","Husnabad","Bejjanki","Thotapally","Thotapally","Salepally"]
[10453,"2025346019032300","Siddipet","Husnabad","Bejjanki","Dacharam","Dacharam","Laddabanda"]
[10468,"2025346022022600","Siddipet","Husnabad","Bejjanki","Narsimhulapally","Muthannapet","Narsimhulapally"]
[10425,"2025346018032100","Siddipet","Husnabad","Bejjanki","Bejjanki","Bejjanki","Ellampally"]
[10460,"2025346021022500","Siddipet","Husnabad","Bejjanki","Thimmaiahpally","Guggilla","Thimmaiahpally"]
[10470,"2025346023012700","Siddipet","Husnabad","Bejjanki","Potharam","Potharam","Potharam"]
[10469,"2025346022032600","Siddipet","Husnabad","Bejjanki","Bejjanki Crossing","Muthannapet","Regulapally Bejjanki Crossing"]
[10443,"2025346018022100","Siddipet","Husnabad","Bejjanki","Bejjanki","Bejjanki","Papannapally"]
[10467,"2025346022012600","Siddipet","Husnabad","Bejjanki","Muthannapet","Muthannapet","Muthannapet"]
[24980,"0","Siddipet","Husnabad","Bejjanki","Perukabanda","Perukabanda","Perukabanda"]
[10420,"2025346018052100","Siddipet","Husnabad","Bejjanki","Cheelapur Pally","Bejjanki","Cheelapur Pally"]
[10483,"2025346016011800","Siddipet","Husnabad","Bejjanki","Veerapur","Veerapur","Veerapur"]
[10454,"2025346019022300","Siddipet","Husnabad","Bejjanki","Dacharam","Dacharam","Ramsagar"]
[10455,"2025346014011600","Siddipet","Husnabad","Bejjanki","Devakkapally","Devakkapally","Devakkapally"]
[10457,"2025346017042000","Siddipet","Husnabad","Bejjanki","Gudem","Gudem","Gudem"]
[10451,"2025346024012800","Siddipet","Husnabad","Bejjanki","Cheelapur","Cheelapur","Cheelapur"]
[10456,"2025346020012400","Siddipet","Husnabad","Bejjanki","Gagillapur","Gagillapur","Gagillapur"]
[10464,"2025346018042200","Siddipet","Husnabad","Bejjanki","Laxmipur","Laxmipur","Laxmipur"]
[10474,"2025346025012900","Siddipet","Husnabad","Bejjanki","Regulapally","Regulapally","Regulapally"]
[10452,"2025346019012300","Siddipet","Husnabad","Bejjanki","Dacharam","Dacharam","Dacharam"]
[10498,"0","Siddipet","Husnabad","Bejjanki","Gundaram","Gundaram","Gundaram"]
[10459,"2025346021012500","Siddipet","Husnabad","Bejjanki","Guggilla","Guggilla","Guggilla"]
[10477,"2025346011061000","Siddipet","Husnabad","Bejjanki","Vadloor","Vadloor","Vadloor"]
[10463,"2025346017011900","Siddipet","Husnabad","Bejjanki","Kallepally","Kallepally","Kallepally"]
[10476,"2025346015011700","Siddipet","Husnabad","Bejjanki","Thotapally","Thotapally","Thotapally"]
[10482,"2025346011010900","Siddipet","Husnabad","Bejjanki","Begumpet"," Begumpet"," Begumpet"]
[10417,"2025346018012100","Siddipet","Husnabad","Bejjanki","Bejjanki","Bejjanki","Bejjanki"]
[25138,0,"Siddipet","Husnabad","Husnabad","Balluthanda","Balluthanda","Lakyathanda"]
[25139,0,"Siddipet","Husnabad","Husnabad","Balluthanda","Balluthanda","Bhojyathanda"]
[1478,"2025355011021400","Siddipet","Husnabad","Husnabad","Thotapalli","Thotapalli","Pusaverlapally"]
[1409,"2025355002050300","Siddipet","Husnabad","Husnabad","Banjerupalli","Banjerupalli","Gunturpalli"]
[24981,"0","Siddipet","Husnabad","Husnabad","Potharam S","Potharams","Gaddalameedi Colony"]
[1415,"2025355011031500","Siddipet","Husnabad","Husnabad","Gandhinagar","Gandhinagar","Kishan Nagar"]
[1406,"2025355002040300","Siddipet","Husnabad","Husnabad","Banjerupalli","Banjerupalli","Ambaipalli"]
[1469,"2025355001020100","Siddipet","Husnabad","Husnabad","Potlapalli","Potlapalli","Devendra Nagar"]
[1444,"2025355005020700","Siddipet","Husnabad","Husnabad","Madatha","Madatha","Bantupalli"]
[1407,"2025355002030300","Siddipet","Husnabad","Husnabad","Banjerupalli","Banjerupalli","Banjerupalli"]
[1480,"2025155008011000","Siddipet","Husnabad","Husnabad","Ummapoor","Ummapoor","Ummapoor"]
[1454,"2025155009041200","Siddipet","Husnabad","Husnabad","Vangaramaiah Palli","Merjapoor","Pool Naiak Thanda"]
[1455,"2025155009021200","Siddipet","Husnabad","Husnabad","Vangaramaiah Palli","Merjapoor","Vangaramaiah Palli"]
[1458,"2025355007010900","Siddipet","Husnabad","Husnabad","Nagaram","Nagaram","Nagaram"]
[1439,"2025155008021100","Siddipet","Husnabad","Husnabad","Jilleligada","Jilleligada","Jillelagadda"]
[1443,"2025355003010400","Siddipet","Husnabad","Husnabad","Kuchanpalli","Kuchanpalli","Kuchanpalli"]
[1448,"2025155003020500","Siddipet","Husnabad","Husnabad","Malapalli","Malapalli","Malapalli"]
[1446,"2025355005030700","Siddipet","Husnabad","Husnabad","Ramulapalli","Madatha","Ramulapalli"]
[1445,"2025355005010700","Siddipet","Husnabad","Husnabad","Madatha","Madatha","Madatha"]
[1453,"2025155009011200","Siddipet","Husnabad","Husnabad","Merjapoor","Merjapoor","Merjapoor"]
[1479,"2025355011011400","Siddipet","Husnabad","Husnabad","Thotapalli","Thotapalli","Thotapalli"]
[1452,"2025155009031200","Siddipet","Husnabad","Husnabad","Ballu Tahnda","Merjapoor","Ballu Tahnda"]
[1465,"2025355002010200","Siddipet","Husnabad","Husnabad","Pandilla","Pandilla","Pandilla"]
[1414,"2025355011041500","Siddipet","Husnabad","Husnabad","Gandhinagar","Gandhinagar","Gandhinagar"]
[1466,"2025355010011300","Siddipet","Husnabad","Husnabad","Potharam S","Potharam S","Potharam S"]
[1408,"2025355002020300","Siddipet","Husnabad","Husnabad","Banjerupalli","Banjerupalli","Gollapally"]
[1447,"2025355006010800","Siddipet","Husnabad","Husnabad","Mahamadappor","Mahamadappor","Mahamadappor"]
[1470,"2025355001010100","Siddipet","Husnabad","Husnabad","Potlapalli","Potlapalli","Potlapalli"]
[24985,"0","Siddipet","Husnabad","Koheda","Samudrala","Samudrala","Dandugula Wada"]
[24987,"0","Siddipet","Husnabad","Koheda","Varikol","Varikol","Dhodapatipally"]
[25137,0,"Siddipet","Husnabad","Koheda","Baswapoor","Baswapoor","Bangaru Thanda"]
[1494,"2025354007020700","Siddipet","Husnabad","Koheda","Koorella","Koorella","Kondetipally"]
[1493,"2025354008030800","Siddipet","Husnabad","Koheda","Koheda","Koheda","Veldandipally"]
[1496,"2025354007010701","Siddipet","Husnabad","Koheda","Koorella","Koorella","Mondikunta Thanda"]
[1497,"2025354007010702","Siddipet","Husnabad","Koheda","Koorella","Koorella","Odderapally"]
[1508,"2025354016132100","Siddipet","Husnabad","Koheda","Poreddypally","Poreddypally","Appisa Colony"]
[1523,"2025354003030300","Siddipet","Husnabad","Koheda","Vinjapally","Vinjapally","Samallapally"]
[24986,"0","Siddipet","Husnabad","Koheda","Samudrala","Samudrala","Oddera Colony"]
[1514,"2025354004020400","Siddipet","Husnabad","Koheda","Shanigaram","Shanigaram","Shankar Nagar"]
[1485,"2025354016061900","Siddipet","Husnabad","Koheda","Baswapoor","Baswapoor","Jyothiram Thanda"]
[1484,"2025354016081900","Siddipet","Husnabad","Koheda","Baswapoor","Baswapoor","Goddala Gudeshelu"]
[24984,"0","Siddipet","Husnabad","Koheda","Dharma Sagarpally","Koheda","Mothiram Thanda"]
[1511,"2025354015011701","Siddipet","Husnabad","Koheda","Samudrala","Samudrala","Koheda Crossing"]
[1481,"2025354016041900","Siddipet","Husnabad","Koheda","Arepally","Baswapoor","Arepally"]
[1520,"2025354008050900","Siddipet","Husnabad","Koheda","Venkateshwarla Pally","Venkateshwarla Pally","Shair Ali Nagar"]
[1498,"2025354015041800","Siddipet","Husnabad","Koheda","Mysampally","Mysampally","Mettubanda"]
[1517,"2025354008071000","Siddipet","Husnabad","Koheda","Theegalakuntapally","Theegalakuntapally","Somarampally"]
[1505,"2025354010031200","Siddipet","Husnabad","Koheda","Vijaynagar Colony","Narayanpoor","Vijaynagar Colony"]
[1483,"2025354016021900","Siddipet","Husnabad","Koheda","Arepally","Baswapoor","Chandranak Thanda"]
[1503,"2025354010021200","Siddipet","Husnabad","Koheda","Narayanpoor","Narayanpoor","Fakerpally"]
[1500,"2025354016102000","Siddipet","Husnabad","Koheda","Bathulavanipally","Nagasmudrala","Bathulavanipally"]
[1522,"2025354003020300","Siddipet","Husnabad","Koheda","Errakuntapally","Vinjapally","Errakuntapally"]
[1521,"2025354008040900","Siddipet","Husnabad","Koheda","Venkateshwarla Pally","Venkateshwarla Pally","Venkateshwarla Pally"]
[1491,"2025354008020800","Siddipet","Husnabad","Koheda","Dharma Sagarpally","Koheda","Dharma Sagarpally"]
[1486,"2025354016051900","Siddipet","Husnabad","Koheda","Baswapoor","Baswapoor","Muthannapet"]
[1490,"2025354014011500","Siddipet","Husnabad","Koheda","Kachapur","Kachapur","Kachapur"]
[1488,"2025354009011100","Siddipet","Husnabad","Koheda","Gotlamitta","Gotlamitta","Gotlamitta"]
[1509,"2025354016122100","Siddipet","Husnabad","Koheda","Poreddypally","Poreddypally","Poreddypally"]
[1506,"2025354012011400","Siddipet","Husnabad","Koheda","Nakarikommula","Pariveda","Nakarikommula"]
[1504,"2025354010011200","Siddipet","Husnabad","Koheda","Narayanpoor","Narayanpoor","Narayanpoor"]
[1502,"2025354016092000","Siddipet","Husnabad","Koheda","Nagasmudrala","Nagasmudrala","Nagasmudrala"]
[1518,"2025354008061000","Siddipet","Husnabad","Koheda","Theegalakuntapally","Theegalakuntapally","Theegalakuntapally"]
[1499,"2025354015031800","Siddipet","Husnabad","Koheda","Mysampally","Mysampally","Mysampally"]
[1501,"2025354016112000","Siddipet","Husnabad","Koheda","Nagasmudrala","Nagasmudrala","Laxmipur"]
[1507,"2025354013011400","Siddipet","Husnabad","Koheda","Pariveda","Pariveda","Pariveda"]
[1510,"2025354002010200","Siddipet","Husnabad","Koheda","Ramchandrapoor","Ramchandrapoor","Ramchandrapoor"]
[1487,"2025354014021600","Siddipet","Husnabad","Koheda","Chenchelcheruvupally","Chenchelcheruvupally","Chenchelcheruvupally"]
[1515,"2025354011011300","Siddipet","Husnabad","Koheda","Sriramulapally","Sriramulapally","Sriramulapally"]
[1519,"2025354001010100","Siddipet","Husnabad","Koheda","Varikol","Varikol","Varikol"]
[1489,"2025354005010500","Siddipet","Husnabad","Koheda","Gundareddypally","Gundareddypally","Gundareddypally"]
[1495,"2025354007010700","Siddipet","Husnabad","Koheda","Koorella","Koorella","Koorella"]
[1524,"2025354003010300","Siddipet","Husnabad","Koheda","Vinjapally","Vinjapally","Vinjapally"]
[1482,"2025354016011900","Siddipet","Husnabad","Koheda","Baswapoor","Baswapoor","Baswapoor"]
[1512,"2025354015011700","Siddipet","Husnabad","Koheda","Samudrala","Samudrala","Samudrala"]
[1516,"2025354006010600","Siddipet","Husnabad","Koheda","Thangalapally","Thangalapally","Thangalapally"]
[1513,"2025354004010400","Siddipet","Husnabad","Koheda","Shanigaram","Shanigaram","Shanigaram"]
[1492,"2025354008010800","Siddipet","Husnabad","Koheda","Koheda","Koheda","Koheda"]
[14171,"2126101018021900","Siddipet","Jangaon","Cherial","Peddarajapet","Peddarajapet","Balasanthagudem"]
[14145,"2126101006070600","Siddipet","Jangaon","Cherial","Cherial","Cherial","Vavillavampu"]
[14169,"2126101017051800","Siddipet","Jangaon","Cherial","Nagapuri","Nagapuri","Sambanivandla Indlu"]
[14138,"2126101006080600","Siddipet","Jangaon","Cherial","Cherial","Cherial","Geekuronibavi"]
[14143,"2126101006090600","Siddipet","Jangaon","Cherial","Cherial","Cherial","Thurupuguntur"]
[14135,"2126101006100600","Siddipet","Jangaon","Cherial","Cherial","Cherial","Burannia Thota"]
[14166,"2126101017021800","Siddipet","Jangaon","Cherial","Nagapuri","Nagapuri","Dudekulabai"]
[14142,"2126101006110600","Siddipet","Jangaon","Cherial","Cherial","Cherial","Rollabanda"]
[14144,"2126101006130600","Siddipet","Jangaon","Cherial","Cherial","Cherial","Utlapally"]
[14131,"2126101005020500","Siddipet","Jangaon","Cherial","Akunur","Akunur","Machireddypally"]
[14146,"2126101006140600","Siddipet","Jangaon","Cherial","Cherial","Cherial","Velgalawada"]
[14139,"2126101006050600","Siddipet","Jangaon","Cherial","Cherial","Cherial","Karshaknagar"]
[14167,"2126101017041800","Siddipet","Jangaon","Cherial","Nagapuri","Nagapuri","Gandikunta"]
[14180,"2126101007020800","Siddipet","Jangaon","Cherial","Vechareni","Vechareni","Yelladas Nagar"]
[14133,"2126101006020600","Siddipet","Jangaon","Cherial","Cherial","Cherial","Bandapally"]
[14130,"2126101005050500","Siddipet","Jangaon","Cherial","Kasha Gudiselu","Akunur","Kasha Gudiselu"]
[14140,"2126101006160600","Siddipet","Jangaon","Cherial","Cherial","Cherial","Kurma Colony"]
[14137,"2126101006060600","Siddipet","Jangaon","Cherial","Cherial","Cherial","Gattu Thota"]
[14141,"2126101006040600","Siddipet","Jangaon","Cherial","Cherial","Cherial","Padmati Guntur"]
[14175,"2126101005042500","Siddipet","Jangaon","Cherial","Rampur","Akunur","Rampur"]
[14170,"2126101017031800","Siddipet","Jangaon","Cherial","Shabash Gudem","Nagapuri","Shabash Gudem"]
[14172,"2126101018011900","Siddipet","Jangaon","Cherial","Peddarajapet","Peddarajapet","Peddarajapet"]
[14134,"2126101006150600","Siddipet","Jangaon","Cherial","Cherial","Cherial","Beedi Colony"]
[14150,"2126101004010400","Siddipet","Jangaon","Cherial","Dommata","Dommata","Dommata Colony"]
[14149,"2126101003010300","Siddipet","Jangaon","Cherial","Danampally","Danampally","Danampally"]
[14151,"2126101004020400","Siddipet","Jangaon","Cherial","Kotha Dommata","Dommata","Kotha Dommata"]
[14177,"2126101001010100","Siddipet","Jangaon","Cherial","Thadur","Thadur","Thadur"]
[14153,"2126101006030700","Siddipet","Jangaon","Cherial","Gurijakunta","Cherial","Gurijakunta"]
[14174,"2126101019032100","Siddipet","Jangaon","Cherial","Pothireddypally","Kadaverugu","Pothireddypally"]
[14147,"2126101002010200","Siddipet","Jangaon","Cherial","Chityal","Chityal","Chityal"]
[14168,"2126101017011800","Siddipet","Jangaon","Cherial","Nagapuri","Nagapuri","Nagapuri"]
[14181,"2126101021022400","Siddipet","Jangaon","Cherial","Veerannapet","Mustyal","Veerannapet"]
[14179,"2126101007010800","Siddipet","Jangaon","Cherial","Vechareni","Vechareni","Vechareni"]
[14148,"2126101020012200","Siddipet","Jangaon","Cherial","Chunchunkota","Chunchunkota","Chunchunkota"]
[14165,"2126101021012300","Siddipet","Jangaon","Cherial","Mustyal","Mustyal","Mustyal"]
[14158,"2126101019012000","Siddipet","Jangaon","Cherial","Kadaverugu","Kadaverugu","Kadaverugu"]
[14129,"2126101005010500","Siddipet","Jangaon","Cherial","Akunur","Akunur","Akunur"]
[14136,"2126101006010600","Siddipet","Jangaon","Cherial","Cherial","Cherial","Cherial"]
[14155,"2126101015021600","Siddipet","Jangaon","Komuravelly","Guruvannapet","Guruvannapet","Jeelavandla Bavi"]
[14161,"2126101008020900","Siddipet","Jangaon","Komuravelly","Leninnagar","Kistampet","Leninnagar"]
[14178,"2126101014011500","Siddipet","Jangaon","Komuravelly","Thapaspally","Thapaspally","Thapaspally"]
[14157,"2126101013021400","Siddipet","Jangaon","Komuravelly","Rasulabad","Inapur","Rasulabad"]
[14176,"2126101012011300","Siddipet","Jangaon","Komuravelly","Ramsagar","Ramsagar","Ramsagar"]
[14162,"2126101011021200","Siddipet","Jangaon","Komuravelly","Komuravelly","Komuravelly","Komuravelly Temple"]
[14173,"2126101016011700","Siddipet","Jangaon","Komuravelly","Posanpally","Posanpally","Posanpally"]
[14160,"2126101008010900","Siddipet","Jangaon","Komuravelly","Kistampet","Kistampet","Kistampet"]
[14154,"2126101015011600","Siddipet","Jangaon","Komuravelly","Guruvannapet","Guruvannapet","Guruvannapet"]
[14152,"2126101010011100","Siddipet","Jangaon","Komuravelly","Gouraipally","Gouraipally","Gouraipally"]
[14164,"2126101009011000","Siddipet","Jangaon","Komuravelly","Marrimustyal","Marrimustyal","Marrimuchala"]
[14163,"2126101011011200","Siddipet","Jangaon","Komuravelly","Komuravelly","Komuravelly","Komuravelly"]
[14156,"2126101013011400","Siddipet","Jangaon","Komuravelly","Inapur","Inapur","Inapur"]
[14200,"2126102008020800","Siddipet","Jangaon","Maddur","Kondapur","Kondapur","Jeeralakadiyhanda"]
[14193,"2126102008170800","Siddipet","Jangaon","Maddur","Kondapur","Kondapur","Babiya Thanda"]
[14215,"2126102009030900","Siddipet","Jangaon","Maddur","Redyanaik Thanda","Kootigal","Kista Kothathanda"]
[14229,"2126102006020600","Siddipet","Jangaon","Maddur","Hanuma Thanda","Thornala","Hanuma Thanda"]
[14213,"2126102009020900","Siddipet","Jangaon","Maddur","Redyanaik Thanda","Kootigal","Dongalabanda Thanda"]
[14196,"2126102008040800","Siddipet","Jangaon","Maddur","Dubba Thanda","Kondapur","Dhaila Thanda"]
[14194,"2126102008050800","Siddipet","Jangaon","Maddur","Dubba Thanda","Kondapur","Booja Thanda"]
[14207,"2126102008150800","Siddipet","Jangaon","Maddur","Dubba Thanda","Kondapur","Palthya Vachya Thanda"]
[14204,"2126102008200800","Siddipet","Jangaon","Maddur","Redyanaik Thanda","Kondapur","Mansingh Thanda"]
[14206,"2126102008210800","Siddipet","Jangaon","Maddur","Hanuma Thanda","Kondapur","Padyaheerya Thanda"]
[14210,"2126102008110800","Siddipet","Jangaon","Maddur","Kondapur","Kondapur","Ramoji Thanda"]
[14190,"2126102012021200","Siddipet","Jangaon","Maddur","Gagillapur","Gagillapur","Naradasgudiselu"]
[14209,"2126102008060800","Siddipet","Jangaon","Maddur","Dubba Thanda","Kondapur","Pottidevula Thanda"]
[14212,"2126102008180800","Siddipet","Jangaon","Maddur","Hanuma Thanda","Kondapur","Shibbi Thanda"]
[14217,"2126102009040900","Siddipet","Jangaon","Maddur","Redyanaik Thanda","Kootigal","Pancharaienyanaikthand"]
[14226,"2126102013021300","Siddipet","Jangaon","Maddur","Narsaipally","Narsaipally","Pittalavarigudem"]
[14220,"2126102004020400","Siddipet","Jangaon","Maddur","Lingapur","Lingapur","Jallagagudem"]
[14202,"2126102008100800","Siddipet","Jangaon","Maddur","Hanuma Thanda","Kondapur","Maharaj Thanda"]
[14211,"2126102008160800","Siddipet","Jangaon","Maddur","Dubba Thanda","Kondapur","Redya Thanda"]
[14208,"2126102008120800","Siddipet","Jangaon","Maddur","Hanuma Thanda","Kondapur","Panthulu Thanda"]
[14184,"2126102007020700","Siddipet","Jangaon","Maddur","Bekkal","Bekkal","Shivalithanda"]
[14195,"2126102008080800","Siddipet","Jangaon","Maddur","Dubba Thanda","Kondapur","Chelemethanda"]
[14203,"2126102008030800","Siddipet","Jangaon","Maddur","Kondapur","Kondapur","Mallanna Gutta Thanda"]
[14198,"2126102008090800","Siddipet","Jangaon","Maddur","Kondapur","Kondapur","Gopathanda"]
[14187,"2126102018011700","Siddipet","Jangaon","Maddur","Dharmaram","Lakkapally","Lakkapally"]
[14205,"2126102008140800","Siddipet","Jangaon","Maddur","Hanuma Thanda","Kondapur","Mathadikadi Thanda"]
[14233,"2126102020021900","Siddipet","Jangaon","Maddur","Vangapally","Vangapally","Upparivanigadda"]
[14197,"2126102008070800","Siddipet","Jangaon","Maddur","Dubba Thanda","Kondapur","Dubba Thanda"]
[14223,"2126102016021600","Siddipet","Jangaon","Maddur","Marmamula","Marmamula","Bhanjara"]
[14201,"2126102008010800","Siddipet","Jangaon","Maddur","Kondapur","Kondapur","Kondapur"]
[14218,"2126102009050900","Siddipet","Jangaon","Maddur","Redyanaik Thanda","Kootigal","Redyanaik Thanda"]
[14186,"2126102017011700","Siddipet","Jangaon","Maddur","Dharmaram","Dharmaram","Dharmaram"]
[14192,"2126102001010100","Siddipet","Jangaon","Maddur","Kamalaipally","Kamalaipally","Kamalaipally"]
[14234,"2126102020011900","Siddipet","Jangaon","Maddur","Vangapally","Vangapally","Vangapally"]
[14191,"2126102003010300","Siddipet","Jangaon","Maddur","Jalapally","Jalapally","Jalapally"]
[14231,"2126102011011100","Siddipet","Jangaon","Maddur","Vallampatla","Vallampatla","Vallampatla"]
[14230,"2126102006010600","Siddipet","Jangaon","Maddur","Thornala","Thornala","Thornala"]
[14182,"2126102002010200","Siddipet","Jangaon","Maddur","Arjunpatla","Arjunpatla","Arjunpatla"]
[14189,"2126102012011200","Siddipet","Jangaon","Maddur","Gagillapur","Gagillapur","Gagillapur"]
[14221,"2126102004010400","Siddipet","Jangaon","Maddur","Lingapur","Lingapur","Lingapur"]
[14216,"2126102009010900","Siddipet","Jangaon","Maddur","Kootigal","Kootigal","Kootigal"]
[14228,"2126102015011500","Siddipet","Jangaon","Maddur","Salakpur","Salakpur","Salakpur"]
[14224,"2126102016011600","Siddipet","Jangaon","Maddur","Marmamula","Marmamula","Marmamula"]
[14225,"2126102013011300","Siddipet","Jangaon","Maddur","Narsaipally","Narsaipally","Narsaipally"]
[14183,"2126102007010700","Siddipet","Jangaon","Maddur","Bekkal","Bekkal","Bekkal"]
[14185,"2126102010011000","Siddipet","Jangaon","Maddur","Byranpally","Byranpally","Byranpally"]
[14188,"2126102005010500","Siddipet","Jangaon","Maddur","Dhoolimitta","Dhoolimitta","Dhoolimitta"]
[14222,"2126102014011400","Siddipet","Jangaon","Maddur","Maddur","Maddur","Maddur"]
[14219,"2126102021012000","Siddipet","Jangaon","Maddur","Ladnoor","Ladnoor","Ladnoor"]
[14227,"2126102019011800","Siddipet","Jangaon","Maddur","Rebarthy","Rebarthy","Rebarthy"]
[11505,"1722018004040402","Siddipet","Siddipet","Chinnakodur","Obulapur","Obulapur","Gunnalawada"]
[11574,"1722017006021100","Siddipet","Siddipet","Chinnakodur","Cherlankireddipalle","Cherlaankireedypally","Shivunipally"]
[11565,"1722017017022300","Siddipet","Siddipet","Chinnakodur","Chandlapur","Chandlapur","Middelawada"]
[11500,"1722018004030401","Siddipet","Siddipet","Chinnakodur","Obulapur","Obulapur","Bestawada"]
[11555,"1722017012021800","Siddipet","Siddipet","Chinnakodur","Machapur","Machapur","Kothapally"]
[11556,"1722017017032300","Siddipet","Siddipet","Chinnakodur","Chandlapur","Chandlapur","Kummarindlu"]
[11571,"1722017011031702","Siddipet","Siddipet","Chinnakodur","Chinnakodur","Chinnakodur","Salandri"]
[11568,"1722017020022600","Siddipet","Siddipet","Chinnakodur","Ibrahimnagar","Ibrahimnagar","Rammannapally"]
[11545,"1722017013011900","Siddipet","Siddipet","Chinnakodur","Gangapur","Gangapur","Gangapur"]
[11544,"1722017004030900","Siddipet","Siddipet","Chinnakodur","Chowdaram","Chowdaram","Gadicherlapally"]
[11570,"1722017002020400","Siddipet","Siddipet","Chinnakodur","Rangaipally","Vittalapur","Rangaipally"]
[11528,"1722018004020400","Siddipet","Siddipet","Chinnakodur","Obulapur","Obulapur","Shaneraiahkunta"]
[11564,"1722017011021700","Siddipet","Siddipet","Chinnakodur","Metpally","Chinnakodur","Metpally"]
[11578,"1722017004020900","Siddipet","Siddipet","Chinnakodur","Chowdaram","Chowdaram","Yellammajalu"]
[11539,"1722017003060800","Siddipet","Siddipet","Chinnakodur","Chelkalapally","Allipur","Chelkalapally"]
[11577,"1722017003070800","Siddipet","Siddipet","Chinnakodur","Yellaipally","Allipur","Yellaipally"]
[11559,"1722017008021200","Siddipet","Siddipet","Chinnakodur","Mallaram","Sikindlapur","Mallaram"]
[11553,"1722017003020600","Siddipet","Siddipet","Chinnakodur","Kistapur","Allipur","Kistapur"]
[11552,"1722017021011600","Siddipet","Siddipet","Chinnakodur","Kasturipally","Kasturipally","Kasturipally"]
[11551,"1722017003040700","Siddipet","Siddipet","Chinnakodur","Mylaram","Mylaram","Kammarlapally"]
[11521,"1722018004010400","Siddipet","Siddipet","Chinnakodur","Obulapur","Obulapur","Obulapur"]
[11557,"1722017012011800","Siddipet","Siddipet","Chinnakodur","Machapur","Machapur","Machapur"]
[11543,"1722017004010900","Siddipet","Siddipet","Chinnakodur","Chowdaram","Chowdaram","Chowdaram"]
[11558,"1722017003030700","Siddipet","Siddipet","Chinnakodur","Mylaram","Mylaram","Mailaram"]
[11575,"1722017008011200","Siddipet","Siddipet","Chinnakodur","Sikindlapur","Sikindlapur","Sikindlapur"]
[11541,"1722017006011100","Siddipet","Siddipet","Chinnakodur","Cherlankireddipalle","Cherlaankireedypally","Cherlaankireddypally"]
[11569,"1722017019012500","Siddipet","Siddipet","Chinnakodur","Ramuni Patla","Ramunipatla","Ramunipatla"]
[11537,"1722017003010500","Siddipet","Siddipet","Chinnakodur","Allipur","Allipur","Allipur"]
[11538,"1722017005011000","Siddipet","Siddipet","Chinnakodur","Ananthsagar","Ananthasagar","Ananthasagar"]
[11563,"1722017010011500","Siddipet","Siddipet","Chinnakodur","Medipalle","Medipally","Medipally"]
[11576,"1722017002010400","Siddipet","Siddipet","Chinnakodur","Vittalpur","Vittalapur","Vittalapur"]
[11566,"1722017018012400","Siddipet","Siddipet","Chinnakodur","Peddakodur","Peddakodur","Peddakodur"]
[11546,"1722017022012800","Siddipet","Siddipet","Chinnakodur","Gonepalle","Gonepally","Gonepally"]
[11549,"1722017020012600","Siddipet","Siddipet","Chinnakodur","Ibrahimnagar","Ibrahimnagar","Ibrahimnagar"]
[11567,"1722017016012200","Siddipet","Siddipet","Chinnakodur","Ramancha","Ramancha","Ramancha"]
[11540,"1722017017012300","Siddipet","Siddipet","Chinnakodur","Chandlapur","Chandlapur","Chendlapur"]
[11542,"1722017011011700","Siddipet","Siddipet","Chinnakodur","Chinnakodur","Chinnakodur","Chinakodur"]
[11509,"1722018002030202","Siddipet","Siddipet","Nangnoor","Rajgopalpet","Rajgopalpet","Kodurgudesalu"]
[11494,"1722018007020801","Siddipet","Siddipet","Nangnoor","Appalaicheru","Maqdumpur","Appalaicheru"]
[11495,"1722018008020901","Siddipet","Siddipet","Nangnoor","Appalaicheru","Venkatapur","Appalaicheru"]
[11496,"1722018012021300","Siddipet","Siddipet","Nangnoor","Appalaicheru","Narmeta","Appalaicheru"]
[11512,"1722018016031800","Siddipet","Siddipet","Nangnoor","Gatlamalyal","Gatlamalyala","Lambaditanda"]
[11523,"1722018002020201","Siddipet","Siddipet","Nangnoor","Rajgopalpet","Rajgopalpet","Phakeergudesalu"]
[11535,"1722018012031301","Siddipet","Siddipet","Nangnoor","Narmetta","Narmeta","Wadderawada"]
[11536,"1722018016021801","Siddipet","Siddipet","Nangnoor","Gatlamalyal","Gatlamalyala","Wadderawada"]
[11513,"1722018003030300","Siddipet","Siddipet","Nangnoor","Palamkula","Palamakula","Lambadithanda"]
[11532,"1722018014031502","Siddipet","Siddipet","Nangnoor","Nanganur","Nangunoor","Tk Indlu"]
[11517,"1722018016051804","Siddipet","Siddipet","Nangnoor","Gatlamalyal","Gatlamalyala","Mw Wada"]
[11524,"1722018003020301","Siddipet","Siddipet","Nangnoor","Palamkula","Palamakula","Pittalagudesalu"]
[11504,"1722018001020101","Siddipet","Siddipet","Nangnoor","Mundrai","Mundrai","Ge Colony"]
[11506,"1722018005030500","Siddipet","Siddipet","Nangnoor","Jp Tanda","Baddipadaga","Jp Tanda"]
[11530,"1722018016041803","Siddipet","Siddipet","Nangnoor","Gatlamalyal","Gatlamalyala","Sitarampally"]
[11499,"1722118011021200","Siddipet","Siddipet","Nangnoor","Timmaipally","Thimmaipally","Bashagudam"]
[11510,"1722018009011000","Siddipet","Siddipet","Nangnoor","Konaipalle","Konaipally","Konaipally"]
[11497,"1722018015021700","Siddipet","Siddipet","Nangnoor","Akkanepalle","Akkanapally","Arrepally"]
[11527,"1722018014021501","Siddipet","Siddipet","Nangnoor","Nanganur","Nangunoor","Rc Pur"]
[11518,"1722018020012100","Siddipet","Siddipet","Nangnoor","Nagrajpalle","Nagarajpally","Nagarajpally"]
[11501,"1722018005020600","Siddipet","Siddipet","Nangnoor","Durgapalle","Baddipadaga","Dargapally"]
[11507,"1722018021012200","Siddipet","Siddipet","Nangnoor","Khanapur","Khanapur","Khanapur"]
[11526,"1722018006010700","Siddipet","Siddipet","Nangnoor","Rampur","Rampur","Rampur"]
[11514,"1722018012031300","Siddipet","Siddipet","Nangnoor","Mysampally","Narmetta","Maisampally"]
[11516,"1722018001010100","Siddipet","Siddipet","Nangnoor","Mundrai","Mundrai","Mundrai"]
[11493,"1722018013011400","Siddipet","Siddipet","Nangnoor","Ankshapur","Ankshapur","Ankshapur"]
[11531,"1722118011011200","Siddipet","Siddipet","Nangnoor","Timmaipally","Thimmaipally","Timmaipally"]
[11508,"1722018019011900","Siddipet","Siddipet","Nangnoor","Katha","Khatha","Khata"]
[11511,"1722018017012300","Siddipet","Siddipet","Nangnoor","Kondamrajpalle","Kondamrajpaly","Kondamrajpally"]
[11534,"1722018008010900","Siddipet","Siddipet","Nangnoor","Venkatapur","Venkatapur","Venkatapur"]
[11529,"1722018014031600","Siddipet","Siddipet","Nangnoor","Siddannapet","Siddannapet","Siddannapet"]
[11502,"1722018018012000","Siddipet","Siddipet","Nangnoor","Ghanpur","Ghanpur","Ganpur"]
[11503,"1722018016011800","Siddipet","Siddipet","Nangnoor","Gatlamalyal","Gatlamalyala","Gatlamalyala"]
[11492,"1722018015011700","Siddipet","Siddipet","Nangnoor","Akkanepalle","Akkanapally","Akkanapally"]
[11515,"1722018007010800","Siddipet","Siddipet","Nangnoor","Maqdumpur","Maqdumpur","Maqdumpur"]
[11525,"1722018002010200","Siddipet","Siddipet","Nangnoor","Rajgopalpet","Rajgopalpet","Rajagopalpet"]
[11520,"1722018012011300","Siddipet","Siddipet","Nangnoor","Narmetta","Narmeta","Narmeta"]
[11498,"1722018005010500","Siddipet","Siddipet","Nangnoor","Baddipadaga","Baddipadaga","Baddipadaga"]
[11522,"1722018003010300","Siddipet","Siddipet","Nangnoor","Palamkula","Palamakula","Palamakula"]
[11519,"1722018014011500","Siddipet","Siddipet","Nangnoor","Nanganur","Nangunoor","Nangunoor"]
[11573,"1722017001020100","Siddipet","Siddipet","Narayanraopet","Jakkapur","Jakkapur","Shenagagunta"]
[11572,"1722017001050301","Siddipet","Siddipet","Narayanraopet","Matindla","Jakkapur","Shekaraopet"]
[11468,"1722016002010300","Siddipet","Siddipet","Narayanraopet","Kodandaraopally","Kodandaraopally","Kodandaraopally"]
[11451,"1722016002020300","Siddipet","Siddipet","Narayanraopet","Banjarpally","Kodandaraopally","Banjarpally"]
[11562,"1722017001040300","Siddipet","Siddipet","Narayanraopet","Matindla","Jakkapur","Matindlu"]
[11464,"1722016001010100","Siddipet","Siddipet","Narayanraopet","Ibrahimpur","Ibrahimpoor","Ibrahimpur"]
[11547,"1722017001030200","Siddipet","Siddipet","Narayanraopet","Gopulapur","Jakkapur","Gopulapur"]
[11469,"1722016002020200","Siddipet","Siddipet","Narayanraopet","Laxmidevipally","Narayanaraopet","Laxmidevpally"]
[11560,"1722017015012100","Siddipet","Siddipet","Narayanraopet","Malyala","Malyala","Malyal"]
[11548,"1722017014012000","Siddipet","Siddipet","Narayanraopet","Gurralagondi","Gurralagondi","Gurralagondi"]
[11550,"1722017001010100","Siddipet","Siddipet","Narayanraopet","Jakkapur","Jakkapur","Jakkapur"]
[11474,"1722016002010200","Siddipet","Siddipet","Narayanraopet","Narayanraopet","Narayanraopet","Narayanraopet"]
[11483,"1722016003040400","Siddipet","Siddipet","Siddipetrural","Seetharampally","Machapur","Seetharampally"]
[11448,"1722016003030400","Siddipet","Siddipet","Siddipetrural","Machapur","Machapur","Badduvani Indlu"]
[11463,"1722016021022500","Siddipet","Siddipet","Siddipetrural","Irkode","Irkode","Hanmanthupally"]
[11465,"1722016007020600","Siddipet","Siddipet","Siddipetrural","Raghavapur","Raghavapur","Indragudem"]
[11484,"1722016003020400","Siddipet","Siddipet","Siddipetrural","Machapur","Machapur","Shankarnagar"]
[11447,"1722016007030600","Siddipet","Siddipet","Siddipetrural","Raghavapur","Raghavapur","Bachaipelly"]
[11446,"1722016006010500","Siddipet","Siddipet","Siddipetrural","Chintamadaka","Chintamadaka","Ankampet"]
[11459,"1722016005020500","Siddipet","Siddipet","Siddipetrural","Chintamadaka","Chintamadaka","Dammacheru"]
[11490,"1722016020022400","Siddipet","Siddipet","Siddipetrural","Tornal","Thornal","Wadderacolony"]
[11450,"1722016008020800","Siddipet","Siddipet","Siddipetrural","Bandacherlapally","Pullur","Bandacherlapally"]
[11480,"1722016019022300","Siddipet","Siddipet","Siddipetrural","Rampur","Raorukla","Rampur"]
[11475,"1722016007010700","Siddipet","Siddipet","Siddipetrural","Pedda Lingareddipalle","Raghavapur","Peddalingareddypally"]
[11471,"1722016003010400","Siddipet","Siddipet","Siddipetrural","Machapur","Machapur","Machapur"]
[11489,"1722016023012700","Siddipet","Siddipet","Siddipetrural","Venkatapur","Venkatapur","Venkatapur"]
[11455,"1722016022012600","Siddipet","Siddipet","Siddipetrural","Bussapur","Bussapur","Bussapur"]
[11458,"1722016005010500","Siddipet","Siddipet","Siddipetrural","Chintamadaka","Chintamadaka","Chintamadaka"]
[11481,"1722016019012300","Siddipet","Siddipet","Siddipetrural","Raorukula","Raorukla","Raorukla"]
[11486,"1722016020012400","Siddipet","Siddipet","Siddipetrural","Tornal","Thornal","Thornal"]
[11456,"1722016018012200","Siddipet","Siddipet","Siddipetrural","Chinna Gundavelli","Ch Gundlavelly","Ch Gundlavelly"]
[11466,"1722016021012500","Siddipet","Siddipet","Siddipetrural","Irkode","Irkode","Irkode"]
[11478,"1722016007010600","Siddipet","Siddipet","Siddipetrural","Raghavapur","Raghavapur","Raghavapur"]
[11477,"1722016008010800","Siddipet","Siddipet","Siddipetrural","Pullur","Pullur","Pullur"]
[11487,"1722016016032000","Siddipet","Siddipet","Siddipeturban","Ensanpalle","Ensanpally","Tipparaboinacolony"]
[11457,"1722016015051900","Siddipet","Siddipet","Siddipeturban","Ponnala","Ponnala","Chellacolony"]
[11460,"1722016013021700","Siddipet","Siddipet","Siddipeturban","Bakrichapial","Bakrichepyal","Dammannagarigudem"]
[11452,"1722016015031900","Siddipet","Siddipet","Siddipeturban","Ponnala","Ponnala","Batrampally"]
[11453,"1722016012021400","Siddipet","Siddipet","Siddipeturban","Boggulonibanda","Mittapally","Boggulonibanda"]
[11462,"1722016015021900","Siddipet","Siddipet","Siddipeturban","Ponnala","Ponnala","Gandhigram"]
[11467,"1722016015041900","Siddipet","Siddipet","Siddipeturban","Kistasagar","Ponnala","Kistasagar"]
[11479,"1722016017022100","Siddipet","Siddipet","Siddipeturban","Burugupalle","Burugupally","Ramchandranagar"]
[11454,"1722016017012100","Siddipet","Siddipet","Siddipeturban","Burugupalle","Burugupally","Burugupally"]
[11491,"1722016012021500","Siddipet","Siddipet","Siddipeturban","Yellupalle","Yellupally","Yellupally"]
[11473,"1722016014011800","Siddipet","Siddipet","Siddipeturban","Nacharpalle","Nancharpally","Nancharpally"]
[11470,"1722016009010900","Siddipet","Siddipet","Siddipeturban","Lingareddypally","Lingareddypally","Lingareddypally"]
[11482,"1722016009020900","Siddipet","Siddipet","Siddipeturban","Lingareddypally","Lingareddypally","Renukanagar"]
[11533,"1722018010011100","Siddipet","Siddipet","Siddipeturban","Velkatur","Velkatur","Velkatur"]
[11449,"1722016013011700","Siddipet","Siddipet","Siddipeturban","Bakrichapial","Bakrichepyal","Bakrichepyal"]
[11561,"1722017023012900","Siddipet","Siddipet","Siddipeturban","Mandapalle","Mandapally","Mandapally"]
[11472,"1722016012011400","Siddipet","Siddipet","Siddipeturban","Mittapalle","Mittapally","Mittapally"]
[11476,"1722016015011900","Siddipet","Siddipet","Siddipeturban","Ponnala","Ponnala","Ponnala"]
[11485,"1722016024012800","Siddipet","Siddipet","Siddipeturban","Tadkapalle","Tadakapally","Tadakapally"]
[11461,"1722016016012000","Siddipet","Siddipet","Siddipeturban","Ensanpalle","Ensanpally","Ensanpally"]